Workbook

Sheet Hauptmenü
B1: LANDESBETRIEB LANDWIRTSCHAFT
B2: HESSEN
B3: Fachinformation Ökonomie und Markt | I3: Stand: Februar 2025 [Version 10]
B4: Rechenansätze (Deckungsbeiträge - Konventionell) - 2024/ 2025
B5: Hauptmenü - Auswahl der Produktionsverfahren
F21: Pauschalierend
B23: Allgemeine Daten | I23: Futterbau
B24: Stammdaten | I24: Silomais
B25: Wirtschaftsdünger | I25: Grünland
B26: Strohbergung | I26: Kleegras
B27: Marktfrüchte | I27: Grünfutter
B28: Qualitätsweizen | I28: Zwischenfrucht
B29: Futterweizen | I29: Weidelgras
B30: Sommerweizen | I30: Rinder-, Schaf- und Pferdehaltung
B31: Roggen | I31: Milchkuh (Boxenlaufstall)
B32: Triticale | I32: Milchkuh (AMS)
B33: Dinkel | I33: Aufzuchtfärse, Kalb
B34: Wintergerste | I34: Mutterkuh, Mastfärse
B35: Braugerste | I35: Mastbulle, Ochse
B36: Hafer | I36: Schafhaltung
B37: Raps | I37: Pensionspferde
B38: Erbsen | I38: Schweine- und Geflügelhaltung
B39: Ackerbohnen | I39: Zuchtsau (konventionell)
B40: Zuckerrüben | I40: Zuchtsau (separat)
B41: Kartoffeln | I41: Ferkelaufzucht
B42: Körnermais | I42: Mastschweine
I43: Legehennen
B44: Energiepflanzen | I44: Legehennen (Direktverm.)
B45: Biogasmais, Grünrog. | I45: Masthähnchen
A47: Benutzerhinweise
A48: 1. | B48: Klicken Sie die grauen Schaltflächen "DB" an und Sie gelangen zu dem Produktionsverfahren Ihrer Wahl!
A49: 2. | B49: Die grauen Schaltfächen "Arbeitsgänge" führen Sie zu den dazugehörigen Arbeitsgängen. Diese Schaltfläche
B50: finden Sie auch in den jeweiligen Produktionsverfahren wieder.
A51: 3. | B51: Jedes Produktionsverfahren hat eine graue Schaltfläche "Hauptmenü", um wieder zum Inhaltsverzeichnis zurückzugelangen.
A52: 4. | B52: Jedes Produktionsverfahren hat eine Spalte "Eigene Werte" hier können Sie die betriebsindividuelle Gegebenheiten abbilden.
B53: Außerdem können die Felder mit den blauen Zahlen verändert werden. Die übrigen Felder beinhalten Funktionen und sind deshalb geschützt.
B54: Desweiteren können sämtliche Verfahren inkl. MwSt. gerechnet und angezeigt werden, wenn in den Stammdaten per Listenpfeilauswahl
B55: von "Regelbesteuerung" auf "Pauschalierend" umgeschaltet wird! Das Gleiche gilt für die Umstellung von "letztes WJ" auf "5 WJ Durchschnitt".
B58: Herausgeber: | C58: Landesbetrieb Landwirtschaft Hessen (LLH)
B60: Redaktion: | C60: Christoph Rohde, Ulrich Stahl und Klaus Wagner Kölnische Straße 48-50 , 34117 Kassel; Tel.: 0561 7299-258/ -268/ 06621 9228-13
C61: E-Mail: christoph.rohde@llh.hessen.de/ ulrich.stahl@llh.hessen.de/ klaus.wagner@llh.hessen.de
B62: Fachliche Inhalte: | C62: Abteilung Fachinformation und Bildung, Fachgebiete Ökonomie und Tierproduktion
C63: Abteilung Beratung, Fachgebiete Betriebswirtschaft, Pflanzenproduktion und Tierproduktion
M69: Vers. 9.1 - Dezember/2023
A72: Fachliche Hinweise:

Sheet Vorwort (hidden)
A1: Vorwort:

Sheet Stammdatenblatt (hidden)
H2: Bitte Auswahl treffen! | S2: Durchschnitt 5 WJ.
A3: Landesbetrieb Landwirtschaft Hessen | E3: Auswahl Umsatzsteuersystem: | S3: Letztes (aktuelles) WJ.
F6: Umsatzsteuer für pauschalierende Betriebe bei Verkaufsprodukten beträgt seit dem 01.01.2022: | G6: =IF(Hauptmenü!$F$21="Regelbesteuerung","0%",H6) -> 0.078 | H6: 0.078 | V6: Pauschalierend
A7: Preise der Wirtschaftsjahre 2014/ 15 bis 2018/ 19
E8: WJ18/19 | F8: WJ 19/20 | G8: WJ 20/21 | H8: WJ21/22 | I8: WJ 22/23 | J8: WJ 23/24 | K8: Ø | N8: noch zu aktualisieren! | P8: Preise | Q8: 2 | R8: Regelbesteuerung | V8: Regelbesteuerung
A9: Pflanzenproduktion
M10: Anteil | N10: Durchschnitts- preise
A11: Weizen | B11: Backweizen | C11: A-Qualität | E11: 17.9788 | F11: 15.97 | G11: 18.78 | H11: 27.37 | I11: 27.85 | J11: 20.73 | K11: =IF(Q8=1,AVERAGE(F11:J11),J11) -> 20.73 | L11: €/dt | P11: =+((K11+K12)*0.5)*(1+$G$6) -> 21.1288 | Q11: Marktinfo LLH + LLH Marktdaten WJ 18/19; Marktdatenblatt 22/ 23
C12: B-Qualität | E12: 17.7457 | F12: 16.42 | G12: 18.91 | H12: 26.68 | I12: 27.3 | J12: 18.47 | K12: =IF($Q$8=1,AVERAGE(F12:J12),J12) -> 18.47 | L12: €/dt | O12: ^^^^^^^^^^^^^^^^^^ | P12: =+((K12+K13)*0.5)*(1+$G$6) -> 19.17762 | Q12: Marktinfo LLH + LLH Marktdaten WJ 18/19
B13: Futterweizen | C13: C-Qualität | E13: 17.47 | F13: 15.48 | G13: 18.41 | H13: 25.65 | I13: 25.02 | J13: 17.11 | K13: 17.11 | L13: €/dt | P13: =+K13*(1+$G$6) -> 18.44458 | Q13: Marktinfo LLH + LLH Marktdaten WJ 18/19; Marktdatenblatt 22/ 23
A14: Roggen | B14: Brotroggen | E14: 17.3247 | F14: 14.12 | G14: 15.14 | H14: 23.02 | I14: 24.69 | J14: 15.27 | K14: 15.27 | L14: €/dt | P14: =+((K14))*(1+G6) -> 16.46106 | Q14: Marktinfo LLH + LLH Marktdaten WJ 18/19
B15: Futterroggen | E15: 16.08 | F15: 13.49 | G15: 14.94 | H15: 21.98 | I15: 21.39 | J15: 14.09 | K15: 14.09 | L15: €/dt | P15: =+K15*(1+$G$6) -> 15.18902 | Q15: Marktinfo LLH + LLH Marktdaten WJ 18/19
B16: Grünroggen | E16: 4 | F16: 4 | G16: 7 | H16: 9 | I16: 9 | J16: 9 | K16: 9 | L16: €/dt | P16: =+((K16))*(1+G6) -> 9.702 | Q16: KTBL 18-19, Seite 493; Eigene Erhebung
A17: Triticale | E17: 16.81 | F17: 14.37 | G17: 16.97 | H17: 25.34 | I17: 24.97 | J17: 15.86 | K17: 15.86 | L17: €/dt | P17: 17.09708 | Q17: Marktinfo LLH + LLH Marktdaten WJ 18/19
A18: Dinkel | B18: bespelzte Ware | E18: 22.5 | F18: 22.8 | G18: 24.5 | H18: 24.5 | I18: 23.5 | J18: 26.66 | K18: 26.66 | L18: €/dt | P18: 28.73948 | Q18: LfL Bayern DB 2017/18; LfL Bayern DB 2017/18, LfL DB Plus 2019; LFL 2024
B19: entspelzte Ware | E19: 52 | F19: 50 | G19: 50 | H19: 48 | I19: 47 | J19: 48 | K19: 48 | L19: €/dt | P19: 51.744 | Q19: LfL Bayern DB 2017/18; LfL Bayern DB 2017/18, Preise VGMS angeschlossene Mühlen Durchschnitt 2018/ 2019; Recherche Internet 20-22; Recherche Intnernet 2023
A20: Futtergerste | E20: 17.23 | F20: 14.1 | G20: 16.8 | H20: 25.37 | I20: 22.93 | J20: 15.61 | K20: 15.61 | L20: €/dt | P20: 16.82758 | Q20: Marktinfo LLH + LLH Marktdaten WJ 18/19; Marktdatenblatt 22/ 23
A21: Braugerste | E21: 19.72 | F21: 15.2 | G21: 17.67 | H21: 25.34 | I21: 31.48 | J21: 23.61 | K21: 23.61 | L21: €/dt | P21: 25.45158 | Q21: Marktinfo LLH + LLH Marktdaten WJ 18/19; Marktdatenblatt 22/ 23
A22: Futterhafer | E22: 15.03 | F22: 15.54 | G22: 16.3 | H22: 18.97 | I22: 22.05 | J22: 18.5 | K22: 18.5 | L22: €/dt | P22: 19.943 | Q22: Marktinfo LLH + LLH Marktdaten WJ 18/19
A23: Körnermais | E23: 17.29 | F23: 15.5 | G23: 16.07 | H23: 23.3 | I23: 26.15 | J23: 21.26 | K23: 21.26 | L23: €/dt | P23: 22.91828 | Q23: Marktinfo LLH + LLH Marktdaten WJ 18/19
A24: Silomais | E24: 3.67 | F24: 3.1 | G24: 3.25 | H24: 3.8 | I24: 4.5 | J24: 4.5 | K24: 4.5 | L24: €/dt | P24: 4.851 | Q24: Marktdatenblatt Excel-Tabelle, KTBL 18/ 19 S. 540; KTBL 20/ 21 S. 246; Arnd Schäfers 2023
A25: Raps | E25: 34.8 | F25: 36.13 | G25: 41.98 | H25: 70.11 | I25: 52.26 | J25: 44.13 | K25: 44.13 | L25: €/dt | P25: 47.57214 | Q25: Marktinfo LLH + LLH Marktdaten WJ 18/19
A26: Erbsen | E26: 18.83 | F26: 21 | G26: 19.63 | H26: 24.91 | I26: 33.75 | J26: 23.27 | K26: 23.27 | L26: €/dt | P26: 25.08506 | Q26: Marktinfo LLH + LLH Marktdaten WJ 18/19
A27: Ackerbohnen | E27: 15.43 | F27: 20.12 | G27: 20.09 | H27: 25.5 | I27: 34 | J27: 23.45 | K27: 23.45 | L27: €/dt | P27: 25.2791 | Q27: Marktinfo LLH + LLH Marktdaten WJ 18/19
A28: Zuckerrüben | B28: Quotenrüben | E28: 2.9 | F28: 2.54 | G28: 3.06 | H28: 3.5 | I28: 4.88 | J28: 6.8 | K28: 6.8 | L28: €/dt | P28: 7.3304 | Q28: KTBL 2013/2017 + LEL/LFL 2013/2018; LfL Bayern DB 2017 und Durchschnitt 2018-2020; 20/21 KTBL S. 394; Buchführungsergebnisse LLH 20/21; dzz-online.de; Auskunft Stahl; LFL 2023
B29: Industrie-/Vertrags-/Energierüben | E29: 2.9 | F29: 2.54 | G29: 3.06 | H29: 3.5 | I29: 3.45 | J29: 4.43 | K29: 4.43 | L29: €/dt | P29: 4.77554 | Q29: KTBL 2013/2017 + LEL/LFL 2013/2018; LfL Bayern DB 2017 und Durchschnitt 2018-2020; 20/21 KTBL S. 394; Auskunft Stahl; Richtwert DB Niedersachsen 2022
B30: Rübenmarkvergütung | E30: 0.3 | F30: 0.3 | G30: 0.3 | H30: 0.3 | I30: 0.3 | J30: 0.3 | K30: 0.3 | L30: €/dt | P30: 0.3234 | Q30: Richtwert-Deckungsbeiträge 2017 LWK NDS
A31: Kartoffeln | B31: Speisekartoffen | C31: festkochend | E31: 28.13 | F31: 27.35 | G31: 18.75 | H31: 22.31 | I31: 33.22 | J31: 42.33 | K31: 42.33 | L31: €/dt | P31: 45.63174 | Q31: Marktinfo LLH + LLH Marktdaten WJ 18/19;LFL 2023
B32: Speisekartoffen | C32: vorwieg. festkochend | E32: 26.14 | F32: 25.35 | G32: 14.82 | H32: 22.27 | I32: 33.22 | J32: 40.59 | K32: 40.59 | L32: €/dt | P32: 43.75602 | Q32: Marktinfo LLH + LLH Marktdaten WJ 18/19; LFL 2023
B33: Speisekartoffen | C33: Direktverm. festkochend | E33: 77.85 | F33: 89.64 | G33: 78.63 | H33: 77 | I33: 84 | J33: 119.44 | K33: 119.44 | L33: €/dt | P33: 128.75632 | Q33: Marktinfo LLH + LLH Marktdaten WJ 18/19; Internetrecherche
B34: Frühkartoffeln | C34: (1.7. bis 10.8. lose) | E34: 37 | F34: 22 | G34: 16 | H34: 25 | I34: 42.7 | J34: 42.7 | K34: 42.7 | L34: €/dt | P34: 46.0306 | Q34: KTBL 12/13 S. 238; KTBL 14/15 S. 233; KTBL 16/17 S.240, KTBL 2018-19 S.242; KTBL S. 242 20/21 agrarheute.com KTBL S. 248
B35: Stärkekartoffeln | E35: 8.617886179 | F35: 8.72 | G35: 8.5 | H35: 9 | I35: 13.46 | J35: 10.31 | K35: 10.31 | L35: €/dt | P35: 11.11418 | Q35: LfL Bayern DB 2017 Durchschnitt und 2018-19; LFL DB 2022; LFL 2023
A37: Tierproduktion
A38: Milch | B38: 4 % Fett-; 3,4 % Eiweißgehalt | E38: 0.3349 | F38: 0.3295 | G38: 0.3313 | H38: 0.3971 | I38: 0.53 | J38: 0.4958 | K38: =IF($Q$8=1,AVERAGE(F38:J38),J38) -> 0.4958 | L38: €/kg | P38: =+K38*(1+$G$6) -> 0.5344724 | Q38: Marktdatenblatt Excel-Tabelle; DB-Plus lfl
B39: Zuschlag je 0,1 % höheren Fettgehalt | K39: =IF($Q$8=1,AVERAGE(E39:I39),I39) -> 0 | L39: €/kg | P39: 0
A40: Schlachtkühe | B40: O 3 Hdkl. | E40: 2.78 | F40: 2.65 | G40: 2.73 | H40: 3.43 | I40: 4.19 | J40: 4.29 | K40: =IF($Q$8=1,AVERAGE(F40:J40),J40) -> 4.29 | L40: €/kg SG | P40: 4.62462 | Q40: Marktdatenblatt Excel-Tabelle; DB-Plus lfl
A41: Schlachtfärsen | B41: O 3 Hdkl. | E41: 2.91 | F41: 2.87 | G41: 2.95 | H41: 4.3 | I41: 4.85 | J41: 4.71 | K41: 4.71 | L41: €/kg SG | P41: 5.07738 | Q41: Marktinfo LLH + LLH Marktdaten WJ 18/19; LWK Rheinland Pfalz; Internetrecherche 2023
A42: Jungbullen | B42: R 3 Hdkl. | E42: 3.7 | F42: 3.51 | G42: 3.72 | H42: 4.6 | I42: 4.93 | J42: 5.21 | K42: 5.21 | L42: €/kg SG | P42: 5.61638 | Q42: Marktdatenblatt Excel-Tabelle; Lwk Rheinland Pfalz
A43: Mastochsen | B43: R 3 Hdkl. | E43: 3.37 | F43: 2.89 | G43: 3 | H43: 4.52 | I43: 4.85 | J43: 5.06 | K43: 5.06 | L43: €/kg SG | N43: x | P43: 5.45468 | Q43: Kalkulationsdaten Rindermast LEL 2016 und 17-20; Internetrecherche 2023; LFL 2025
A44: Schlachtkälber | E44: 3.170731707 | F44: 2.89 | G44: 4.13 | H44: 5.13 | I44: 4.72 | J44: 4.77 | K44: 4.77 | L44: €/kg SG | N44: x | P44: 5.14206 | Q44: Marktdatenblatt Excel-Tabelle und DB Lfl. 17-20; Marktdaten LLH Kälber; Internetrecherche
A45: Färse | B45: schwarzbunt | E45: 1258 | F45: 1594 | G45: 1633 | H45: 1490.5 | I45: 1900 | J45: 1454 | K45: 1454 | L45: €/Stück | P45: 1567.412 | Q45: ZBH Alsfeld; Richtwert Deckungsbeiträge 2017 LWK NDS, Qnetics 2019; DB-Plus LFL 21/ 22; Arnd Schäfers 2023; Qunetics 2024
A46: Kälber | B46: schwarzbunt | C46: männlich | E46: 77.54 | F46: 48.78 | G46: 47.05 | H46: 74.94 | I46: 91.69 | J46: 122.78 | K46: 122.78 | L46: €/Stück | P46: 132.35684 | Q46: Marktdatenblatt Excel-Tabelle
B47: schwarzbunt | C47: weiblich | E47: 20.09 | F47: 15.62 | G47: 11.77 | H47: 22.75 | I47: 23 | J47: 39.85 | K47: 39.85 | L47: €/Stück | P47: 42.9583 | Q47: Marktinfo LLH + LLH Marktdaten WJ 18/19; Internetrecherche 2023
A48: Färse | B48: Fleischrind | E48: 1499 | F48: 1300 | G48: 1350 | H48: 2000 | I48: 2100 | J48: 1891 | K48: 1891 | L48: €/Stück | P48: 2038.498 | Q48: Vorjahre ZBH, 2019 Qnetics Hessen Durchschnitt durch alle Rassen Herr Daum/ Quer alle Rassen Auskunft Herr Grasmüller 2023; Qunetics 2024
A49: Absetzer | B49: Fleischrind/Limousin | C49: männlich | E49: 2.84 | F49: 2.73 | G49: 2.6 | H49: 2.95 | I49: 3.87 | J49: =1234/310 -> 3.980645161 | K49: =IF($Q$8=1,AVERAGE(E49:J49),J49) -> 3.980645161 | L49: €/kg LG | P49: 4.291135484 | Q49: Marktdatenblatt Excel-Tabelle; Qunetics 2024
B50: Fleischrind/Limousin | C50: weiblich | E50: 2.06 | F50: 2 | G50: 2.06 | H50: 2.35 | I50: 2.72 | J50: =878/280 -> 3.135714286 | K50: =IF($Q$8=1,AVERAGE(F50:J50),J50) -> 3.135714286 | L50: €/kg LG | P50: 3.3803 | Q50: Marktdatenblatt Excel-Tabelle; Qunetics 2024
A51: Ferkel | B51: 28 kg LG Qualitätsferkel | E51: 50.1 | F51: 72.52 | G51: 45.49 | H51: 40.99 | I51: 75.07 | J51: 82.5 | K51: 82.5 | L51: €/Stück | N51: =SUM(K51/28) -> 2.946428571 | O51: €/kg | P51: 88.935 | Q51: Marktdatenblatt Excel-Tabelle
B52: Zuschlag je kg, 28-30 kg LG | E52: 1.3 | F52: 1.3 | G52: 1.3 | H52: 1.3 | I52: 1.5 | J52: 1.5 | K52: 1.5 | L52: €/kg | P52: 1.617 | Q52: Marktinfo LLH | R52: Hessenbauer
A53: Systemferkel | B53: 7 - 8 kg LG | E53: 31.04 | F53: 42.43 | G53: 24.22 | H53: 21.2 | I53: 45.5 | J53: 43 | K53: 43 | L53: €/Stück | N53: x | P53: 46.354 | Q53: Richtwert-Deckungsbeiträge 2016 LWK NDS, AMI Kammerprogramm, Erzeugergemeinschaft für Qualitätsvieh Hümmelingen e.G. 18-19; Viehmarkt Rheinland; Internetrecherche 2023 top Agrar Raiffeisen Internetrecherche 2025
A54: Jungsauen | B54: nicht tragend | E54: 360.6 | F54: 346.4 | G54: 300.11 | H54: 291.4 | I54: 465 | J54: 445.1 | K54: 445.1 | L54: €/Stück | N54: x | P54: 479.8178 | Q54: Richtwert-Deckungsbeiträge 2016 LWK NDS, Lfl DB 17-20; LFL DBPlus 21 22; LfL DB 2023
A55: Altsauen | B55: M1 | E55: 1.12 | F55: 1.51 | G55: 1.01 | H55: 0.9 | I55: 1.74 | J55: 1.27 | K55: 1.27 | L55: €/kg SG | N55: x | P55: 1.36906 | Q55: Marktdatenblatt Excel-Tabelle, Lfl. DB 2017-2020; DBPLUS 2122; LFL 2025
A56: Mastschweine | B56: MFA 55 -59,9% | E56: 1.51 | F56: 1.84 | G56: 1.36 | H56: 1.47 | I56: 2.11 | J56: 2.05 | K56: 2.05 | L56: €/kg SG | P56: 2.2099 | Q56: Marktdatenblatt Excel-Tabelle; DB-Plus lfl
A57: Eier | B57: Kl. L Kleingruppenhaltung ab Erzeugerp. | E57: 0.1884 | F57: 0.1625 | G57: 0.1512 | H57: 0.1554 | I57: 0.2088 | J57: 0.2088 | K57: 0.2088 | L57: €/Stück | N57: x | P57: =+K57*(1+$G$6) -> 0.2250864 | Q57: Marktinfo LLH + LLH Marktdaten WJ 18/19; LfL DB 2023
B58: Kl. M Kleingruppenhaltung ab Erzeugerp. | E58: 0.15 | F58: 0.1594 | G58: 0.1498 | H58: 0.1512 | I58: 0.1888 | J58: 0.1888 | K58: 0.1888 | L58: €/Stück | N58: x | P58: =+K58*(1+$G$6) -> 0.2035264 | Q58: Marktinfo LLH + LLH Marktdaten WJ 18/19; LfL DB 2023
B59: Kl. L Bodenhaltung ab Erzeugerpackstelle | E59: 0.1507 | F59: 0.1563 | G59: 0.1582 | H59: 0.1723 | I59: 0.2294 | J59: 0.2213 | K59: 0.2213 | L59: €/Stück | N59: x | P59: =+K59*(1+$G$6) -> 0.2385614 | Q59: Marktinfo LLH + LLH Marktdaten WJ 18/19; LfL DB 2023
B60: Kl. M Bodenhaltung ab Erzeugerpackstelle | E60: 0.136 | F60: 0.1398 | G60: 0.1356 | H60: 0.1524 | I60: 0.2028 | J60: 0.2065 | K60: 0.2065 | L60: €/Stück | N60: x | P60: 0.222607 | Q60: Marktinfo LLH + LLH Marktdaten WJ 18/19
B61: Kl. L Bodenhaltung Direktvermarktung | E61: 0.221 | F61: 0.223 | G61: 0.2278 | H61: 0.246 | I61: 0.2835 | J61: 0.2671 | K61: 0.2671 | L61: €/Stück | N61: x | P61: 0.2879338 | Q61: Marktinfo LLH + LLH Marktdaten WJ 18/19
B62: Kl. M Bodenhaltung Direktvermarktung | E62: 0.1897 | F62: 0.1945 | G62: 0.1985 | H62: 0.214 | I62: 0.2572 | J62: 0.2261 | K62: 0.2261 | L62: €/Stück | N62: x | P62: 0.2437358 | Q62: Marktinfo LLH + LLH Marktdaten WJ 18/19; LLH Marktonfo 2023
B63: Kl. L Freilandhaltung ab Erzeugerpackstelle | E63: 0.1787 | F63: 0.1814 | G63: 0.2135 | H63: 0.2452 | I63: 0.2515 | J63: 0.2953 | K63: 0.2953 | L63: €/Stück | N63: x | P63: 0.3183334 | Q63: Marktinfo LLH + LLH Marktdaten WJ 18/19; LfL DB 2023; LLH Marktinfo 2023
B64: Kl. M Freilandhaltung ab Erzeugerpackstelle | E64: 0.172 | F64: 0.1734 | G64: 0.1926 | H64: 0.2272 | I64: 0.2347 | J64: 0.2581 | K64: 0.2581 | L64: €/Stück | N64: x | P64: 0.2782318 | Q64: Marktinfo LLH + LLH Marktdaten WJ 18/19; LfL DB 2023
B65: Kl. L Freilandhaltung Direktvermarktung | E65: 0.2871 | F65: 0.2548 | G65: 0.2825 | H65: 0.3022 | I65: 0.3425 | J65: 0.4 | K65: 0.4 | L65: €/Stück | N65: x | P65: 0.4312 | Q65: Marktinfo LLH + LLH Marktdaten WJ 18/19; LLH Marktonfo 2023
B66: Kl. M Freilandhaltung Direktvermarktung | E66: 0.2217 | F66: 0.2341 | G66: 0.2624 | H66: 0.2863 | I66: 0.3238 | J66: 0.4 | K66: 0.4 | L66: €/Stück | N66: x | P66: 0.4312 | Q66: Marktinfo LLH + LLH Marktdaten WJ 18/19; LLH Marktonfo 2023
A67: Küken | E67: 0.35 | F67: 0.35 | G67: 0.35 | H67: 0.35 | I67: 0.38 | J67: 0.43 | K67: 0.43 | L67: €/Stück | N67: x | P67: 0.46354 | Q67: KTBL 18/19 S. 707; Rassegeflügelzucht-Leinenkamp.de; KTBL S. 684 20/21; KTBL 2023 S. 723; KTBL 24/ 25 S. 696
A68: Junghenne | E68: 4.51 | F68: 4.9 | G68: 4.9 | H68: 5 | I68: 5 | J68: 6.25 | K68: 6.25 | L68: €/Stück | N68: x | P68: 6.7375 | Q68: KTBL 18/19 S. 691; KTBL S. 666 20/21; LfL DB 2023; KTBL 24/ 25 S. 685
A69: Masthähnchen | E69: 1.06 | F69: 0.75 | G69: 0.75 | H69: 0.9 | I69: 1.07 | J69: 1.15 | K69: 1.15 | L69: €/kg | N69: x | P69: 1.2397
A70: Schlachthuhn | B70: Direktvermarktung | E70: 1.67 | F70: 1.6 | G70: 1.6 | H70: 1.6 | I70: 1.8 | J70: 1.8 | K70: 1.8 | L70: €/kg SG | N70: x | P70: 1.9404 | Q70: Eigene Ermittlung in Anlehnung an akt. KTBL-Sätze/ Indexmundi 2019 https://www.indexmundi.com/de/rohstoffpreise/?ware=huhn&wahrung=eur
B71: Abgabe an den Großhandel | E71: 0.25 | F71: 0.28 | G71: 0.28 | H71: 0.3 | I71: 0.404 | J71: 0.4 | K71: 0.4 | L71: €/kg SG | N71: x | P71: 0.4312 | Q71: KTBL 18/19 S. 691; KTBL S. 666 20/21; LfL DB 2023
A72: Lämmer | E72: 2.5 | F72: 2.27 | G72: 2.89 | H72: 3.1 | I72: 3.03 | J72: 3.65 | K72: 3.65 | L72: €/kg LG | N72: x | P72: 3.9347 | Q72: Marktinfo LLH + LLH Marktdaten WJ 18/19; LFL DB 2022; LfL DB 2023; LFL 2025
A73: Altschaf | E73: 51.6 | F73: 40 | G73: 50.5 | H73: 29 | I73: 29.09 | J73: 83.72 | K73: 83.72 | L73: €/Stück | N73: x | P73: 90.25016 | Q73: Eigene Ermittlung nach Grundlage DB Plus Lfl. Bayern; LFL DB 2022; LfL DB 2023; LFL 2025
A74: Wolle | E74: 0.85 | F74: 0.25 | G74: 0.2 | H74: 1.55 | I74: 1.56 | J74: 0.71 | K74: 0.71 | L74: €/kg | N74: x | P74: 0.76538 | Q74: KTBL "Fleischschafhaltung"; Richtwert-Deckungsbeiträge 2015 LWK NDS, Ankauf von Rohwolle auf Landtreff und Internetrecherche 2019; LFL DB 2022; LfL DB 2023; LFL 2025
A76: Einkaufspreise für Saat-und Pflanzgut
C77: Umsatzsteuer für Saat- und Pflanzgut beträgt: | D77: =IF(Hauptmenü!$F$21="Regelbesteuerung","0%",E77) -> 0.07 | E77: 0.07
A78: Winterweizen | E78: 56 | F78: 55 | G78: 55 | H78: 67 | I78: 67 | J78: 93 | K78: =IF($Q$8=1,AVERAGE(F78:J78),J78) -> 93 | L78: €/dt | P78: =+K78*(1+$D$77) -> 99.51 | Q78: KTBL 18/19 S. 247; KTBL 20/21; LFL DB 2022; KTBL S. 253-254; KTBL 24/25 S. 63
A79: Sommerweizen | E79: 59 | F79: 55 | G79: 55 | H79: 79 | I79: 79 | J79: 93 | K79: 93 | L79: €/dt | P79: =+K79*(1+$D$77) -> 99.51 | Q79: KTBL 18/19 S. 247; KTBL 20/21; LFL DB 2022; KTBL S. 253-254; KTBL 24/25 S. 63
A80: Winterroggen | E80: 55 | F80: 53 | G80: 53 | H80: 66 | I80: 66 | J80: 78 | K80: 78 | L80: €/dt | P80: 83.46 | Q80: KTBL 18/19 S. 247; KTBL 20/21; LFL DB 2022; KTBL S. 253-254; KTBL 24/25 S. 63
A81: Hybridroggen | E81: 57 | F81: 57 | G81: 57 | H81: 73.5 | I81: 73.5 | J81: 89 | K81: 89 | L81: €/dt | P81: 95.23 | Q81: KTBL 18/19 S. 247; KTBL 20/21; LFL DB 2022; KTBL S. 253-254; KTBL 24/25 S. 63
A82: Triticale | E82: 54 | F82: 54 | G82: 54 | H82: 68.5 | I82: 68.5 | J82: 85 | K82: 85 | L82: €/dt | P82: 90.95 | Q82: KTBL 18/19 S. 247; KTBL 20/21; LFL DB 2022; KTBL S. 253-254; KTBL 24/25 S. 63
A83: Dinkel | E83: 99 | F83: 105 | G83: 115 | H83: 120 | I83: 120 | J83: 118 | K83: 118 | L83: €/dt | P83: 126.26 | Q83: NDS von 18/19 bis 2021; Eigene Annahme für 2022; KTBL S. 253-254; KTBL 24/25 S. 63
A84: Wintergerste | E84: 60 | F84: 56 | G84: 56 | H84: 64.5 | I84: 64.5 | J84: 87 | K84: =IF($Q$8=1,AVERAGE(F84:J84),J84) -> 87 | L84: €/dt | P84: 93.09 | Q84: KTBL 18/19 S. 247; KTBL 20/21; LFL DB 2022; KTBL S. 253-254; KTBL 24/25 S. 63
A85: Sommergerste (Brau) | E85: 58 | F85: 60 | G85: 60 | H85: 85 | I85: 85 | J85: 87 | K85: 87 | L85: €/dt | P85: 93.09 | Q85: KTBL 18/19 S. 247; KTBL 20/21; LFL DB 2022; KTBL S. 253-254; KTBL 24/25 S. 63
A86: Hafer | E86: 55 | F86: 58 | G86: 58 | H86: 79.5 | I86: 79.5 | J86: 82 | K86: 82 | L86: €/dt | P86: 87.74 | Q86: KTBL 18/19 S. 247; KTBL 20/21; LFL DB 2022; KTBL S. 253-254; KTBL 24/25 S. 63
A87: Winterraps | B87: 00 - Sorten | E87: 15.8 | F87: 17 | G87: 17 | H87: 20 | I87: 20 | J87: 18.6 | K87: 18.6 | L87: €/kg | P87: 19.902 | Q87: KTBL 18/19 S. 247; KTBL 20/21; LFL DB 2022; KTBL S. 253-254; KTBL 24/25 S. 63
A88: Erbsen | E88: 74 | F88: 61 | G88: 61 | H88: 63 | I88: 63 | J88: 94 | K88: 94 | L88: €/dt | P88: 100.58 | Q88: KTBL 18/19 S. 247; KTBL 20/21; LFL DB 2022; KTBL S. 253-254; KTBL 24/25 S. 63
A89: Ackerbohnen | E89: 77 | F89: 63 | G89: 63 | H89: 66 | I89: 66 | J89: 98 | K89: 98 | L89: €/dt | P89: 104.86 | Q89: KTBL 18/19 S. 247; KTBL 20/21; LFL DB 2022; KTBL S. 253-254; KTBL 24/25 S. 63
A90: Mais (Hybridsaatgut) | E90: 108 | F90: 110 | G90: 110 | H90: 123 | I90: 123 | J90: 123 | K90: 123 | L90: €/E. | P90: 131.61 | Q90: KTBL 18/19 S. 247; KTBL 20/21; LFL DB 2022; KTBL S. 253-254; KTBL 24/25 S. 63
A91: Zuckerrüben | B91: genetisch monogerm (niedrige Beizausstattung) | E91: 175 | F91: 180 | G91: 180 | H91: 198.5 | I91: 198.5 | J91: 206 | K91: 206 | L91: €/E. | P91: 220.42 | Q91: KTBL 18/19 S. 247; KTBL 20/21; LFL DB 2022; KTBL S. 253-254; KTBL 24/25 S. 63
B92: Tolerante Sorten (niedrige Beizausstattung) | E92: 230 | F92: 257 | G92: 257 | H92: 257 | I92: 257 | J92: 257 | K92: 257 | L92: €/E. | P92: 274.99 | Q92: Richtwert-Deckungsbeiträge 2017 LWK NDS, KWS 2020; KTBL 20/21 S. 247; LFL DB nach Aufrundung; KTBL S. 254
A93: Kartoffeln | B93: zertifiziertes Pflanzgut
B94: Speisesorten | E94: 47 | F94: 49 | G94: 49 | H94: 74 | I94: 74 | J94: 68 | K94: =IF($Q$8=1,AVERAGE(F94:J94),J94) -> 68 | L94: €/dt | P94: =+K94*(1+$D$77) -> 72.76 | Q94: KTBL 18/19 S. 247; KTBL 20/21 S.247; LFL DB 2022; KTBL S. 254; KTBL2425 S. 64-65
B95: Frühe Speisesorten | E95: 47 | F95: 49 | G95: 49 | H95: 74 | I95: 74 | J95: 68 | K95: =IF($Q$8=1,AVERAGE(F95:J95),J95) -> 68 | L95: €/dt | P95: =+K95*(1+$D$77) -> 72.76 | Q95: KTBL 12/13 S. 240; KTBL 14/15 S.235; KTBL S.243, KTBL S. 247; LFL DB 2022; KTBL S.254; KTBL 2425 S. 64-65
B96: Stärkesorten | E96: 34.22 | F96: 44 | G96: 44 | H96: 50.5 | I96: 50.5 | J96: 41 | K96: 41 | L96: €/dt | P96: 43.87 | Q96: KTBL 12/13 S. 240; KTBL 14/15 S.235; KTBL S.243, Lfl DB Plus 2020; KTBL S.247 20/21; LFL DB 2022; KTBL S. 254; KTBL 2425 S. 64-65;
A97: Dauergrünlandansaatmischung | E97: 5.67 | F97: 3 | G97: 6.93 | H97: 6.93 | I97: 6.93 | J97: 6.96 | K97: 6.96 | L97: €/kg | P97: 7.4472 | Q97: Richtwert-Deckungsbeiträge je WJ 13/14 bis 17/18, LWK NDS, BayWa 05/ 2020; KTBL S. 247 und folgende 20/21; KTBL S. 255; KTBL 2425 S. 64-65
A98: Einjähriges Weidelgras | E98: 3.26 | F98: 3.03 | G98: 3.03 | H98: 3.03 | I98: 3.03 | J98: 6.05 | K98: 6.05 | L98: €/kg | P98: 6.4735 | Q98: LLH-WRRL-Beratung, Chr. Schmidt, 07/2017 + BayWa 03/2018 und BayWa 05/ 2020; KTBL S. 247 und folgende 20/21; KTBL S. 256; KTBL 2425 S. 64-65
A99: Welsches Weidelgras | E99: 3.53 | F99: 3.1 | G99: 3.1 | H99: 3.1 | I99: 3.1 | J99: 3.58 | K99: 3.58 | L99: €/kg | P99: 3.8306 | Q99: LLH-WRRL-Beratung, Chr. Schmidt, 07/2017 + BayWa 03/2018 und BayWa 05/ 2020; KTBL S. 247 und folgende 20/21; KTBL S. 256; KTBL 2425 S. 64-65
A100: Sommerraps | E100: 3.05 | F100: 13.6 | G100: 13.6 | H100: 13.6 | I100: 13.6 | J100: 13.75 | K100: 13.75 | L100: €/kg | P100: 14.7125 | Q100: LLH-WRRL-Beratung, Chr. Schmidt, 07/2017 + BayWa 03/2018 und BayWa 05/ 2020; KTBL S. 247 und folgende 20/21; KTBL S. 254; KTBL 2425 S. 63; KTBL 2425 S. 64-65
A101: Kleegrasmischung | C101: kleebetont | E101: 4.07 | F101: 6.77 | G101: 6.77 | H101: 6.77 | I101: 6.77 | J101: 7.93 | K101: 7.93 | L101: €/kg | P101: 8.4851 | Q101: LLH-WRRL-Beratung, Chr. Schmidt, 07/2017 + BayWa 03/2018 und BayWa 05/ 2020; KTBL S. 247 und folgende 20/21; KTBL S. 255; KTBL 2425 S. 64-65
A102: Kleegrasmischung | C102: grasbetont | E102: 3.21 | F102: 6.77 | G102: 6.77 | H102: 6.77 | I102: 6.77 | J102: 7.93 | K102: 7.93 | L102: €/kg | P102: 8.4851 | Q102: LLH-WRRL-Beratung, Chr. Schmidt, 07/2017 + BayWa 03/2018, BayWa 05/ 2020; KTBL S. 247 und folgende 20/21; KTBL S. 255; KTBL 2425 S. 64-65
A103: Phacelia | E103: 5.3 | F103: 3.98 | G103: 7.15 | H103: 7.15 | I103: 7.15 | J103: 6.9 | K103: 6.9 | L103: €/kg | P103: 7.383 | Q103: LLH-WRRL-Beratung, Chr. Schmidt, 07/2017 + BayWa 03/2018; KTBL S. 247 und folgende 20/21; KTBL S. 254; KTBL 2425 S. 64-65
A104: Senf | E104: 2.46 | F104: 2.85 | G104: 2.8 | H104: 2.8 | I104: 2.8 | J104: 4.07 | K104: 4.07 | L104: €/kg | P104: 4.3549 | Q104: LLH-WRRL-Beratung, Chr. Schmidt, 07/2017 + BayWa 03/2018 und BayWa 05/ 2020; KTBL S. 247 und folgende 20/21; KTBL S. 254; KTBL 2425 S. 64-65
A105: Ölrettich | E105: 2.47 | F105: 3.57 | G105: 3.57 | H105: 3.57 | I105: 3.57 | J105: 5.56 | K105: 5.56 | L105: €/kg | P105: 5.9492 | Q105: LLH-WRRL-Beratung, Chr. Schmidt, 07/2017 + BayWa 03/2018 und BayWa 05/ 2020; KTBL S. 247 und folgende 20/21; KTBL S. 254; KTBL 2425 S. 64-65
A106: Winterraps | E106: 1.82 | F106: 4.16 | G106: 4.16 | H106: 4.16 | I106: 4.16 | J106: 4.56 | K106: 4.56 | L106: €/kg | P106: 4.8792 | Q106: LLH-WRRL-Beratung, Chr. Schmidt, 07/2017 + BayWa 03/2018 DSV Lippstadt 05/ 2020; KTBL S. 247 und folgende 20/21; KTBL S. 254; KTBL 2425 S. 64-65
A107: Grünroggen | E107: 0.7 | F107: 0.8 | G107: 0.8 | H107: 0.8 | I107: 0.8 | J107: 0.8 | K107: 0.8 | L107: €/kg | P107: 0.856 | Q107: LLH-WRRL-Beratung, Chr. Schmidt, 07/2017 + BayWa 03/2018/ DSV Lippstadt 05/ 2020; KTBL S. 247 und folgende 20/21; Eigene Erhebung; vom Vorjahr übernommen
A108: Mischung Beta Maxx | E108: 2.16 | F108: 2.97 | G108: 2.97 | H108: 2.97 | I108: 2.97 | J108: 2.97 | K108: 2.97 | L108: €/kg | P108: 3.1779 | Q108: DSV Lippstadt, Sept. 16 (über Hr. Sünder, FG 31) DSV Lippstadt 05 2020; Eigene Annahme; Eigene Annahme; vom Vorjahr übernommen
A109: Landsberger Gemenge | E109: 3.32 | F109: 3.36 | G109: 3.36 | H109: 3.36 | I109: 3.36 | J109: 4.5 | K109: 4.5 | L109: €/kg | P109: 4.815 | Q109: LLH-WRRL-Beratung, Chr. Schmidt, 07/2017 + BayWa 03/2018 und BayWa 05/ 2020; KTBL S. 247 und folgende 20/21; KTBL S. 255; KTBL 2425 S. 64-65
A111: Einkaufspreise für Düngemittel
C112: Umsatzsteuer für Düngemittel beträgt: | D112: =IF(Hauptmenü!$F$21="Regelbesteuerung","0%",E112) -> 0.19 | E112: 0.19
A114: Kalkamonsalpeter (KAS) | C114: 0.27 | D114: N | E114: 22.27 | F114: 19.48 | G114: 21.61 | H114: 59.08 | I114: 59.98 | J114: 32.27 | K114: =IF($Q$8=1,AVERAGE(F114:J114),J114) -> 32.27 | L114: €/dt | O114: KAS | P114: =+K114*(1+$D$112) -> 38.4013 | Q114: Marktinfo LLH + LLH Marktdaten WJ 18/19; LLH Marktdaten 22/23
A115: Ammonnitrat-Harnstoff-Lösung (AHL) | C115: 0.28 | D115: N | E115: 19.83 | F115: 18.8 | G115: 19.08 | H115: 57.9 | I115: 56.08 | J115: 29.85 | K115: =IF($Q$8=1,AVERAGE(F115:J115),J115) -> 29.85 | L115: €/dt | O115: AHL | P115: 35.5215 | Q115: Marktinfo LLH + LLH Marktdaten WJ 18/19; LLH Marktdaten 22/23
A116: Harnstoff (HST) | C116: 0.46 | D116: N | E116: 31.13 | F116: 32.51 | G116: 35.35 | H116: 56.79 | I116: 77.74 | J116: 46.27 | K116: 46.27 | L116: €/dt | O116: HST | P116: 55.0613 | Q116: Marktinfo LLH + LLH Marktdaten WJ 18/19; LLH Marktdaten 22/23
A117: Ammonsulfatsalpeter (ASS) 26 N + 13 S | C117: 0.26 | D117: N | E117: 25.64 | F117: 24.53 | G117: 23.94 | H117: 50.08 | I117: 69.35 | J117: 38.98 | K117: 38.98 | L117: €/dt | O117: ASS | P117: 46.3862 | Q117: Marktinfo LLH + LLH Marktdaten WJ 18/19; LLH Marktdaten 22/23
C118: 0.13 | D118: S | K118: 0 | L118: €/dt
A119: Kornkali 40-er | C119: 0.4 | D119: K2O | E119: 25.04 | F119: 25.4 | G119: 24.28 | H119: 34.17 | I119: 58.62 | J119: 31.93 | K119: 31.93 | L119: €/dt | O119: K 40 | P119: 37.9967 | Q119: Marktinfo LLH + LLH Marktdaten WJ 18/19; LLH Marktdaten 22/23
C120: 0.06 | D120: Mg | K120: 0 | L120: €/dt
A121: Triple Phosphat | C121: 0.45 | D121: P2O5 | E121: 38.57 | F121: 36.81 | G121: 36.19 | H121: 55.28 | I121: 72.42 | J121: 54.48 | K121: 54.48 | L121: €/dt | O121: TSP | P121: 64.8312 | Q121: Marktinfo LLH + LLH Marktdaten WJ 18/19; LLH Marktdaten 22/23
A122: Diammonphosphat | C122: 0.18 | D122: N | E122: 45.39 | F122: 37.67 | G122: 41.33 | H122: 60.87 | I122: 96.18 | J122: 66.97 | K122: 66.97 | L122: €/dt | O122: DAP | P122: 79.6943 | Q122: Marktinfo LLH + LLH Marktdaten WJ 18/19; LLH Marktdaten 22/23
C123: 0.46 | D123: P2O5 | K123: 0 | L123: €/dt
A124: Kohlensaurer Kalk | C124: 0.9 | D124: CaCO | E124: 4.07 | F124: 2.44 | G124: 1.92 | H124: 3.59 | I124: 2.66 | J124: 3.92 | K124: 3.92 | L124: €/dt | O124: KSK | P124: =+K124*(1+$D$112) -> 4.6648 | Q124: KTBL 18/19 S. 248; KTBL S. 297; LLH Marktdaten 22/23; KTBL 24/ 25 S. 353
A125: Carbo-Kalk | C125: 0.27 | D125: CaCO | E125: 1.8 | F125: 1.8 | G125: 1.8 | H125: 1.8 | I125: 1.8 | J125: 1.8 | K125: 1.8 | L125: €/dt | O125: CaK | P125: =+K125*(1+$D$112) -> 2.142 | Q125: https://bisz.suedzucker.de/wp-content/uploads/2018/04/2018_Bestellung_von_Carbokalk_ab_Fr%C3%BChjahr-2018_OHNE_SEPA_Bankeinzug-1.pdf | Z125: manuelbauermann.de
A128: Preise je kg Reinnährstoff
A129: Bruttopreise bei: | B129: =IF(Hauptmenü!$F$21="Regelbesteuerung","0%",C129) -> 0.19 | C129: 0.19
A130: Stickstoff | B130: (75% KAS + 25% Harnstoff) | E130: =E114/27*0.75+E116/46*0.25 -> 0.7877958937 | F130: 0.7177958937 | G130: 0.792397343 | H130: 1.949752415 | I130: 2.088611111 | J130: 1.14785628 | K130: =+(K114/C114/100*0.75+K116/C116/100*0.25) -> 1.14785628 | L130: €/kg | O130: N | P130: =K130*(1+B129) -> 1.365948973 | Q130: Marktdatenblatt Excel-Tabelle
A131: Phosphor | B131: (100% Diammonphosphat) | E131: =E122/48 -> 0.945625 | F131: 0.7847916667 | G131: 0.8610416667 | H131: 1.268125 | I131: 2.00375 | J131: 1.395208333 | K131: =((K122/C123/100)-(C122*K130))*0.75+0.25*(K121/C121/100) -> 1.239608243 | L131: €/kg | O131: P | P131: =K131*1+B129 -> 1.429608243 | Q131: Marktdatenblatt Excel-Tabelle
A132: Kali | E132: 0.59 | F132: 0.63 | G132: =G119/40 -> 0.607 | H132: =H119/40 -> 0.85425 | I132: =I119/40 -> 1.4655 | J132: =J119/40 -> 0.79825 | K132: =+($K$119/$C$119/100) -> 0.79825 | L132: €/kg | O132: K | P132: =K132*(1+B129) -> 0.9499175 | Q132: Marktdatenblatt Excel-Tabelle
A133: Kalk | E133: =E124/90 -> 0.04522222222 | F133: 0.02711111111 | G133: 0.02133333333 | H133: 0.03988888889 | I133: 0.02955555556 | J133: 0.04355555556 | K133: =+($K$124/$C$124/100) -> 0.04355555556 | L133: €/kg | O133: Ca | P133: =K133*(1+B129) -> 0.05183111111 | Q133: Marktdatenblatt Excel-Tabelle
A134: Magnesium | E134: 1.43 | F134: 1.39 | G134: 1.398 | H134: 2.2 | I134: 2.25 | J134: 1.95 | K134: =IF($Q$8=1,AVERAGE(F134:J134),J134) -> 1.95 | L134: €/kg | O134: Mg | P134: =K134*(1+B129) -> 2.3205 | Q134: LEL Kalkulationsdaten Marktfrüchte 2017; Richtwerte DB LWK N; Recherche Internet 2023
A135: Schwefel | E135: 0.55 | F135: 0.587 | G135: 0.588 | H135: 0.898 | I135: 1.15 | J135: 0.88 | K135: =IF($Q$8=1,AVERAGE(F135:J135),J135) -> 0.88 | L135: €/kg | O135: S | P135: =K135*(1+B129) -> 1.0472 | Q135: LEL Kalkulationsdaten Marktfrüchte 2017; Richtwerte DB LWK N; Recherche Internet 2023
Q136: (abgeglichen 11/2017 mit B. Blackert, FG 11)
A139: Einkaufspreise für Futtermittel
C140: Umsatzsteuer für Futtermittel beträgt: | D140: =IF(Hauptmenü!$F$21="Regelbesteuerung","0%",E140) -> 0.07 | E140: 0.07
A142: Weizen | E142: =E13 -> 17.47 | F142: 15.48 | G142: 18.41 | H142: 25.65 | I142: 25.02 | J142: 17.11 | K142: 17.11 | L142: €/dt | P142: =+K142*(1+$D$140) -> 18.3077 | Q142: Bezug zu Verkaufspreisen
A143: Gerste | E143: =E20 -> 17.23 | F143: 14.1 | G143: 16.8 | H143: 25.37 | I143: 22.93 | J143: 15.61 | K143: 15.61 | L143: €/dt | P143: =+K143*(1+$D$140) -> 16.7027 | Q143: Bezug zu Verkaufspreisen
A144: Roggen | E144: =E15 -> 16.08 | F144: 13.49 | G144: 14.94 | H144: 21.98 | I144: 21.39 | J144: 14.09 | K144: =IF($Q$8=1,AVERAGE(F144:J144),J144) -> 14.09 | L144: €/dt | P144: =+K144*(1+$D$140) -> 15.0763 | Q144: Bezug zu Verkaufspreisen
A145: Triticale | E145: =E17 -> 16.81 | F145: 14.37 | G145: 16.97 | H145: 25.34 | I145: 24.97 | J145: 15.86 | K145: 15.86 | L145: €/dt | P145: =+K145*(1+$D$140) -> 16.9702 | Q145: Bezug zu Verkaufspreisen
A146: Hafer | E146: =E22 -> 15.03 | F146: 15.54 | G146: 16.3 | H146: 18.97 | I146: 22.05 | J146: 18.5 | K146: 18.5 | L146: €/dt | P146: =+K146*(1+$D$140) -> 19.795 | Q146: Bezug zu Verkaufspreisen
K147: Mischverhältnis: | M147: Getreide | N147: Soja | P147: Inkl. Lohnmischer
A148: Kraftfutter für Aufzuchtfärse/Kälber | K148: =(M148/2)*$K$142+(M148/2)*$K$143+N148*$K$168 -> 19.334 | L148: €/dt | M148: 0.9 | N148: 0.1 | P148: =K148*(1+$D$140)+$P$152 -> 23.30538
A149: Kraftfutter für Mutterkühe | K149: =(M149/2)*$K$142+(M149/2)*$K$143+N149*$K$168 -> 19.334 | L149: €/dt | M149: 0.9 | N149: 0.1 | P149: =K149*(1+$D$140)+$P$152 -> 23.30538
A150: Kraftfutter für Mastbullen/Ochsen | K150: =(M150/2)*$K$142+(M150/2)*$K$143+N150*$K$168 -> 19.334 | L150: €/dt | M150: 0.9 | N150: 0.1 | P150: =K150*(1+$D$140)+$P$152 -> 23.30538
A151: Mahl- und Mischkosten (eigen) | K151: 1.6 | L151: €/dt | P151: =K151*(1+$B$129) -> 1.904 | Q151: Richtpreise für wirtschaftseigenes Kraftfutter - Hollmichel
A152: Lohnmischer | K152: 2.2 | L152: €/dt | P152: =K152*(1+$B$129) -> 2.618 | Q152: Richtpreise für wirtschaftseigenes Kraftfutter - Hollmichel
A153: Milchleistungsfutter | C153: 18 % Protein, III | E153: 25.68 | F153: 24.5 | G153: 26.24 | H153: 32.52 | I153: 37.54 | J153: 31.97 | K153: =IF($Q$8=1,AVERAGE(F153:J153),J153) -> 31.97 | L153: €/dt | P153: =+K153*(1+$D$140) -> 34.2079 | Q153: Marktdatenblatt Excel-Tabelle
A154: Milchaustauscher | C154: 50 % Magermilch- pulver, gesackt | E154: 189.3 | F154: 212.94 | G154: 218.66 | H154: 270.11 | I154: 234.64 | J154: 252.39 | K154: 252.39 | L154: €/dt | P154: 270.0573 | Q154: Marktinfo LLH + LLH Marktdaten WJ 18/19
A155: Ergänzungsfutter für Aufzuchtkälber | E155: 31.73 | F155: 32.48 | G155: 33.57 | H155: 41.63 | I155: 48.46 | J155: 38.52 | K155: 38.52 | L155: €/dt | P155: 41.2164 | Q155: Marktinfo LLH
A156: Mineralstoffmischung für Rinder | E156: 81 | F156: 81 | G156: 91 | H156: 91 | I156: 91 | J156: 97 | K156: 97 | L156: €/dt | P156: 103.79 | Q156: KTBL 16/17 S.545, KTBL 18/ 19 S. 540; KTBL S.547 20/21 KTBL 22/23 S. 564; KTBL 24/25 S. 589
A157: Ferkelaufzuchtfutter II | C157: 13-14 MJ/kg | E157: 34.73 | F157: 32.05 | G157: 36.38 | H157: 46.05 | I157: 51.39 | J157: 41.17 | K157: 41.17 | L157: €/dt | P157: =+K157*(1+$D$140) -> 44.0519 | Q157: Marktinfo LLH + LLH Marktdaten WJ 18/19
A158: Sauenfutter | B158: säugende Sauen | C158: 13 MJ/kg | E158: 32.59 | F158: 30.52 | G158: 32.4 | H158: 41.99 | I158: 45.86 | J158: 35.54 | K158: 35.54 | L158: €/dt | P158: =+K158*(1+$D$140) -> 38.0278 | Q158: Marktinfo LLH + LLH Marktdaten WJ 18/19
B159: tragende Sauen | C159: 11 MJ/kg | E159: 28.7 | F159: 28.16 | G159: 29.6 | H159: 37.38 | I159: 39.8 | J159: 30.94 | K159: 30.94 | L159: €/dt | P159: 33.1058 | Q159: Marktinfo LLH + LLH Marktdaten WJ 18/19
A160: Schweinemastfutter | K160: 0
A161: Vormast | B161: 1,0-1,15 % Lysin | C161: > 13,2 MJ/kg | E161: 28.89 | F161: 32.05 | G161: 36.38 | H161: 38.95 | I161: 42.47 | J161: 32.84 | K161: 32.84 | L161: €/dt | P161: =+K161*(1+$D$140) -> 35.1388 | Q161: Marktinfo LLH + LLH Marktdaten WJ 18/19
A162: Endmast | B162: 0,9-1,0 % Lysin | C162: > 12,6 MJ/kg | E162: 28.21 | F162: 27.12 | G162: 29.76 | H162: 35.34 | I162: 37.76 | J162: 29.31 | K162: 29.31 | L162: €/dt | P162: 31.3617 | Q162: Marktinfo LLH + LLH Marktdaten WJ 18/19
A163: Legehennen- alleinfutter | B163: 0,38 % Methionin | C163: > 11,4 MJ/kg | E163: 31.72 | F163: 31.72 | G163: 33.88 | H163: 41.6 | I163: 46.1 | J163: 36.68 | K163: 36.68 | L163: €/dt | P163: 39.2476 | Q163: Marktinfo LLH + LLH Marktdaten WJ 18/19
A164: Broilerkükenalleinfutter | E164: 35.1 | F164: 32.88 | G164: 32.76 | H164: 38.98 | I164: 50.58 | J164: 40.46 | K164: 40.46 | L164: €/dt | N164: x | P164: 43.2922 | Q164: Eigene Ermittlung / APH FuMi/ Erhebung der Landwirtschaftskammer Niedersachsen für 2018 - 19
A165: Broileralleinfutter | E165: 34.85 | F165: 32.88 | G165: 32.76 | H165: 38.98 | I165: 50.58 | J165: 38.23 | K165: 38.23 | L165: €/dt | P165: 40.9061 | Q165: Marktinfo LLH + LLH Marktdaten WJ 18/19;NDS Richtwert DB 20/ 21 S.10; Internetrecherche
A166: Melasseschnitzel, pelliert | E166: 21.25 | F166: 20.42 | G166: 22.38 | H166: 28 | I166: 32.6 | J166: 22.6 | K166: 22.6 | L166: €/dt | P166: 24.182 | Q166: Marktinfo B LWK NDS, WB Qualitätsfutterwerke GmbH 2020; Richtwert DB NDS 20/ 21 S.10; Internetrecherche; Bremer Futtermittelpreise 2023
A167: Weizenkleie, pelliert | E167: 16 | F167: 17.12 | G167: 20.24 | H167: 27 | I167: 23.8 | J167: 21.8 | K167: 21.8 | L167: €/dt | P167: 23.326 | Q167: Marktinfo B LWK NDS, Proplanta Preis 2019; NDS Richtwert DB 20/ 21 S.10; Bremen Futtermittelpreise 2023
A168: Sojaschrot | C168: 44 % Protein, lose | E168: 35.03 | F168: 34.87 | G168: 42.24 | H168: 48.97 | I168: 59.21 | J168: 46.1 | K168: 46.1 | L168: €/dt | P168: 49.327 | Q168: Marktinfo LLH + LLH Marktdaten WJ 18/19;NDS Richtwert DB 20/ 21 S.10; LLH Marktinfo 2023
A169: Stroh (Rundballen) | E169: 12.08 | F169: 13 | G169: 8.19 | H169: 8.56 | I169: 9.65 | J169: 9.65 | K169: 9.65 | L169: €/dt | P169: =+K169*(1+$D$140) -> 10.3255 | Q169: Marktinfo LLH + LLH Marktdaten WJ 18/19;NDS Richtwert DB 20/ 21 S.10; LFL DB Plus Weizenstroh; LLH Marktinfo 2023
A170: Heu (Rundballen) | E170: 18.64 | F170: 16.72 | G170: 15.44 | H170: 12.61 | I170: 13.71 | J170: 13.71 | K170: 13.71 | L170: €/dt | P170: 14.6697 | Q170: Marktinfo LLH + LLH Marktdaten WJ 18/19;NDS Richtwert DB 20/ 21 S.10; Eigenen Erhebung nach DB Plus LFL; LLH Marktinfo 2023
A171: Silage (Mais) | E171: 3.66 | F171: 3.7 | G171: 3.1 | H171: 4.26 | I171: 4.5 | J171: 4.5 | K171: =IF($Q$8=1,AVERAGE(F171:J171),J171) -> 4.5 | L171: €/dt | P171: 4.815 | Q171: Marktinfo LLH + LLH Marktdaten WJ 18/19;NDS Richtwert DB 20/ 21 S.10; LFL DB Plus Maissilage; Arnd Schäfers
A172: Silage (Gras) | E172: 4.24 | F172: 3.63 | G172: 3.34 | H172: 5.44 | I172: 3.5 | J172: 3.5 | K172: 3.5 | L172: €/dt | P172: 3.745 | Q172: Richtwert-Deckungsbeiträge 2017 LWK NDS, https://www.dap.rlp.de/Internet/global/themen.nsf/0828f2bf8acbd78cc125814d00365f31/0659715059a7fcf3c12574e1003dd9f3/$FILE/GRASKAUF.pdf; NDS Richtwert DB 20/ 21; LFL DB Plus; Arnd Schäfers 2023
A174: Flächenzahlungen für das Wirtschaftsjahr 2023/ 2024
B177: pro ha Landwirtschaftliche Nutzfläche | K177: 170.93 | L177: €/ha | Q177: Nicht enthalten in den berechneten DB-Verfahren!
B178: Flächenzahlung HALM - ext. Grünland konv. | K178: 120 | L178: €/ha | Q178: Enthalten in den extensiven Grünland-DB-Verfahren!
B179: Flächenzahlung HALM - Öko, Grünland | K179: 200 | L179: €/ha | Q179: Ökologischer Landbau - Beibehalter
B180: Flächenzahlung HALM - Öko, Ackerland | K180: 300 | L180: €/ha | Q180: Ökologischer Landbau - Beibehalter
A182: Einstreu: | C182: Bitte Auswahl treffen!
A183: Stroh | B183: MwSt: | C183: =IF(Hauptmenü!$F$21="Regelbesteuerung","0%",D183) -> 0.078 | D183: 0.078 | K183: =$K$169 -> 9.65 | L183: €/dt | P183: =K183*(1+$C$183) -> 10.4027 | Q183: Marktinfo LLH
A186: Saatgutpreis Eigen: | C186: Getreidepreis | D186: + Reinigungs- und Aufbereitungskosten inkl. Lizenzgebühr | K186: 7.21 | L186: €/dt | P186: =K186*(1+$C$183) -> 7.77238 | Q186: KTBL 18-19 S.221 und S. 240; KTBL 24/ 25 S. 61-63
A189: Versicherungsbeitrag:
C190: Wintergetreide | E190: 5.99 | F190: 5.98 | G190: 5.98 | H190: 5.98 | I190: 6.08 | J190: 6.08 | K190: =IF($Q$8=1,AVERAGE(F190:J190),J190) -> 6.08 | L190: €/1000€ Versicherungssumme | P190: =+K190*(1+$C$221) -> 7.2352 | Q190: KTBL18/19 S. 242, 20/21 S. 241; KTBL 24/25 S. 327
C191: Sommergetreide | E191: 5.99 | F191: 5.98 | G191: 5.98 | H191: 5.98 | I191: 6.08 | J191: 6.08 | K191: 6.08 | L191: €/1000€ Versicherungssumme | P191: 7.2352 | Q191: KTBL18/19 S. 242, 20/21 S. 241; KTBL 24/25 S. 327
C192: Winterraps | E192: 17.96 | F192: 10.92 | G192: 10.92 | H192: 10.92 | I192: 18.24 | J192: 18.24 | K192: 18.24 | L192: €/1000€ Versicherungssumme | P192: 21.7056 | Q192: KTBL18/19 S. 242, 20/21 S. 241; KTBL 24/25 S. 327
C193: Erbsen | E193: 13.47 | F193: 13.45 | G193: 13.45 | H193: 13.45 | I193: 13.68 | J193: 13.68 | K193: 13.68 | L193: €/1000€ Versicherungssumme | P193: 16.2792 | Q193: KTBL18/19 S. 242, 20/21 S. 241; KTBL 24/25 S. 327
C194: Ackerbohnen | E194: 13.47 | F194: 13.45 | G194: 13.45 | H194: 13.45 | I194: 13.68 | J194: 13.68 | K194: 13.68 | L194: €/1000€ Versicherungssumme | P194: 16.2792 | Q194: KTBL18/19 S. 242, 20/21 S. 241; KTBL 24/25 S. 327
C195: Zuckerrüben | E195: 5.99 | F195: 5.98 | G195: 5.98 | H195: 5.98 | I195: 6.08 | J195: 6.08 | K195: 6.08 | L195: €/1000€ Versicherungssumme | P195: 7.2352 | Q195: KTBL18/19 S. 242, 20/21 S. 241; KTBL 24/25 S. 327
C196: Kartoffeln | E196: 5.99 | F196: 5.98 | G196: 5.98 | H196: 5.98 | I196: 6.08 | J196: 6.08 | K196: 6.08 | L196: €/1000€ Versicherungssumme | P196: 7.2352 | Q196: KTBL18/19 S. 242, 20/21 S. 241; KTBL 24/25 S. 327
C197: Körnermais | E197: 5.39 | F197: 5.98 | G197: 5.98 | H197: 5.38 | I197: 5.47 | J197: 5.47 | K197: 5.47 | L197: €/1000€ Versicherungssumme | P197: 6.5093 | Q197: KTBL18/19 S. 242, 20/21 S. 241; KTBL 24/25 S. 327
C198: Silomais | E198: 5.39 | F198: 5.98 | G198: 5.98 | H198: 5.38 | I198: 5.47 | J198: 5.47 | K198: 5.47 | L198: €/1000€ Versicherungssumme | P198: 6.5093 | Q198: KTBL18/19 S. 242, 20/21 S. 241; KTBL 24/25 S. 327
A201: Lohntrocknung: | B201: Getreide: | C201: Grundbetrag | E201: 1.73 | F201: 1.73 | G201: 1.73 | H201: 1.28 | I201: 1.28 | J201: 1.28 | K201: =IF($Q$8=1,AVERAGE(F201:J201),J201) -> 1.28 | L201: €/dt | M201: Trockengut | P201: =K201*(1+C$221) -> 1.5232 | Q201: LfL Bayern DB 2015; LLH FG11 Ruch 2017, KTBL 18-19 S. 224, 20/21 S.223; Eigene Ermittlung 2023; LFL 2025
B202: für jedes weitere % Wasserentzug | E202: 0.27 | F202: 0.27 | G202: 0.27 | H202: 0.7 | I202: 0.7 | J202: 0.7 | K202: 0.7 | L202: €/dt | M202: Trockengut | P202: 0.833 | Q202: LfL Bayern DB 2015; LLH FG11 Ruch 2017, KTBL 18-19 S. 224, 20/21 S.223; Eigene Ermittlung 2023; LFL 2025
B203: Wasserentzug von 18% auf 14% Kornfeuchte | E203: 4 | F203: 4 | G203: 4 | H203: 4 | I203: 4 | J203: 4 | K203: 4 | L203: % Wasserentzug | Q203: LfL Bayern DB 2015; LLH FG11 Ruch 2017; Eigene Ermittlung 2023; LFL 2025
B204: Häufigkeit der Trocknung | E204: 3 | F204: 3 | G204: 3 | H204: 3 | I204: 3 | J204: 3 | K204: 3 | L204: Jahre | Q204: LfL Bayern DB 2015; LLH FG11 Ruch 2017; Eigene Ermittlung 2023; LFL 2025
B206: Raps: | C206: Grundbetrag | E206: 1.14 | F206: 1.14 | G206: 1.14 | H206: 1.43 | I206: 1.43 | J206: 1.43 | K206: 1.43 | L206: €/dt | M206: Trockengut | P206: 1.7017 | Q206: LfL Bayern DB 2015; LLH FG11 Ruch 2017, KTBL 18-19 S. 224, 20/21 S. 223; Eignen Ermittlung 2023; LFL 2025
B207: für jedes weitere % Wasserentzug | E207: 0.22 | F207: 0.22 | G207: 0.22 | H207: 0.72 | I207: 0.72 | J207: 0.72 | K207: 0.72 | L207: €/dt | M207: Trockengut | P207: 0.8568 | Q207: LfL Bayern DB 2015; LLH FG11 Ruch 2017, KTBL 18-19 S. 224, 20/21 S. 223; Eignen Ermittlung 2023; LFL 2025
B208: Wasserentzug von 12% auf 9% Kornfeuchte | E208: 3 | F208: 3 | G208: 3 | H208: 3 | I208: 3 | J208: 3 | K208: 3 | L208: % Wasserentzug | Q208: LfL Bayern DB 2015; LLH FG11 Ruch 2017; Eigene Ermittlung 2023; LFL 2025
B209: Häufigkeit der Trocknung | E209: 3 | F209: 3 | G209: 3 | H209: 3 | I209: 3 | J209: 3 | K209: 3 | L209: Jahre | Q209: LfL Bayern DB 2015; LLH FG11 Ruch 2017; Eigene Ermittlung 2023; LFL 2025
B211: Erbsen/Ackerbohnen: Grundbetrag | E211: 0.8 | F211: 0.8 | G211: 0.8 | H211: 0.8 | I211: 0.8 | J211: 0.8 | K211: 0.8 | L211: €/dt | M211: Trockengut | P211: 0.952 | Q211: LWK Niedersachsen 2016, DB Öko, KTBL 18-19 S. 224, 20/21 S.223; Eigene Ermittlung 2023; LFL 2025
B212: Je dt Trockengut für die Trocknung von | E212: 16 | F212: 16 | G212: 16 | H212: 16 | I212: 16 | J212: 16 | K212: 16 | L212: % | M212: auf 14 | N212: % Kornfeuchte | Q212: LWK Niedersachsen 2016, DB Öko, KTBL 18-19 S. 224, 20/21 S.223; Eigene Ermittlung 2023; LFL 2025
B213: Verbrauch | E213: 0.5 | F213: 0.5 | G213: 0.5 | H213: 0.6 | I213: 0.7 | J213: 0.5 | K213: 0.5 | L213: €/dt | Q213: LWK Niedersachsen 2016, DB Öko; Eigene Ermittlung 2023; LFL 2025
B214: Häufigkeit der Trocknung | E214: 2.5 | F214: 2.5 | G214: 2.5 | H214: 2.5 | I214: 2.5 | J214: 2.5 | K214: 2.5 | L214: Jahre | Q214: LWK Niedersachsen 2016, DB Öko; Eigene Ermittlung 2023; LFL 2025
B216: Körnermais: | E216: 3.75 | F216: 3.75 | G216: 4.76 | H216: 4.76 | I216: 4.976 | J216: 4.976 | K216: 4.976 | L216: €/dt | M216: feuchte Ware | P216: =K216*(1+C$221) -> 5.92144 | Q216: Trocknungstabelle RWZ 2013 bis 2018; KTBL 20/21 S. 223; Eigene Ermittlung 2023; LfL 2025
B217: Umrechnungsfaktor auf feuchte Ware | E217: 2 | F217: 2 | G217: 2 | H217: 2 | I217: 2 | J217: 2 | K217: 2 | M217: 2,00 Jahre | Q217: Trocknungstabelle RWZ 2013 bis 2018; KTBL 20/21 S. 223; Eigene Ermittlung 2023; LfL 2025
A219: Entspelzen / Reinigen: | E219: 13 | F219: 13 | G219: 13 | H219: 13 | I219: 15 | J219: 15 | K219: =IF($Q$8=1,AVERAGE(F219:J219),J219) -> 15 | L219: €/dt | P219: =K219*(1+C$221) -> 17.85 | Q219: KTBL 16/17; Eigene Ermittlung 2017/18 übernommen aus Vorjahr; Eigene Ermittlung 2023
B221: Umsatzsteuer: | C221: =IF(Hauptmenü!$F$21="Regelbesteuerung","0%",D221) -> 0.19 | D221: 0.19
A223: Betriebsstoffe: | B223: Heizwert: 9,88 kWh/l | C223: Heizöl | E223: 0.68 | F223: 0.53 | G223: 0.68 | H223: 0.94 | I223: 1.3 | J223: 1 | K223: =IF($Q$8=1,AVERAGE(F223:J223),J223) -> 1 | L223: €/Liter | P223: =K223*(1+$C$221) -> 1.19 | Q223: CASH-Preise 2013 bis 2018, https://www.tanke-guenstig.de/Heizoelpreise; Marktdaten und Eigene Annahme
C224: Diesel | E224: 1.04 | F224: 0.93 | G224: 0.91 | H224: 1.6 | I224: 1.9 | J224: 1.56 | K224: 1.56 | L224: €/l | M224: ./. GÖV | N224: =0.22*0.6 -> 0.132 | O224: =K224-N224 -> 1.428 | P224: =O224*(1+$C$221) -> 1.69932 | Q224: CASH-Preise 2013 bis 2018; Eigenen Annahme; nach Statistica 21/22; Marktdaten
C225: Betriebsöl | E225: 3 | F225: 3 | G225: 3 | H225: 3.4 | I225: 3.4 | J225: 3.4 | K225: 3.4 | L225: €/l | P225: =K225*(1+$C$221) -> 4.046 | Q225: KTBL 13/14; KTBL 15/16; KTBL 17/18
C226: Strom | E226: 0.29 | F226: 0.29 | G226: 0.29 | H226: 0.31 | I226: 0.3 | J226: 0.3 | K226: 0.3 | L226: €/kwh | P226: =K226*(1+$C$221) -> 0.357 | Q226: KTBL 16/17; Eigene Ermittlung 2017/18, https://www.finanztip.de/stromvergleich/strompreis/ 18-19
C227: Wasser, öffentl. Leitung | E227: 3.2 | F227: 3.2 | G227: 3.2 | H227: 3.2 | I227: 3.2 | J227: 3.2 | K227: 3.2 | L227: €/m³ | P227: =K227*(1+$C$221) -> 3.808 | Q227: KTBL 16/17; Eigene Ermittlung 2017/18, 18-19 https://www.statistik-bw.de/Umwelt/Wasser/Trink-Abwasserpreise.jsp
C228: Wasser, eigener Brunnen | E228: 0.8 | F228: 0.8 | G228: 0.8 | H228: 0.8 | I228: 0.8 | J228: 0.8 | K228: 0.8 | L228: €/m³ | P228: =K228*(1+$C$221) -> 0.952 | Q228: KTBL 16/17; Eigene Ermittlung 2017/18 für 2018-19 übernommen
... 8 more rows

Sheet Wirtschaftsdünger
B3: Landesbetrieb Landwirtschaft Hessen
A4: Wert des organischen Düngers | N4: =IF(Stammdatenblatt!Q8=2,Stammdatenblatt!S3,Stammdatenblatt!S2) -> Letztes (aktuelles) WJ.
A6: Gülleanfall | B6: TS % | C6: Gülleanfall | D6: Gülle/E. | E6: Nährstoffgehalt kg / m³ | I6: Nährstoffgehalt in kg / E. | M6: Wert des organischen Düngers
A7: je Einheit bzw. Tierplatz | C7: m³/Monat | D7: m³ u. TP | E7: N | F7: P2O5 | G7: K2O | H7: CaO | I7: N* | J7: P2O5 | K7: K2O | L7: CaO | M7: N* | N7: P2O5 | O7: K2O | P7: CaO | Q7: Summe
A8: Rinder
A9: Milchkuh | B9: 7.5 | C9: 1.67 | D9: =+C9*12 -> 20.04 | E9: 5 | F9: 2 | G9: 6 | H9: 2 | I9: =+D9*E9*$E$28 -> 50.1 | J9: =+D9*F9 -> 40.08 | K9: =+G9*D9 -> 120.24 | L9: =+H9*D9 -> 40.08 | M9: =+I9*Stammdatenblatt!$P$130 -> 68.43404357 | N9: =+J9*Stammdatenblatt!$P$131 -> 57.29869837 | O9: 85.2 | P9: =+L9*Stammdatenblatt!$P$133 -> 2.077390933 | Q9: =SUM(M9:P9) -> 213.0101329
A10: Mutterkuh | B10: 7.5 | C10: 1.5 | D10: =C10*12 -> 18 | E10: 5 | F10: 2 | G10: 6 | H10: 2 | I10: 45 | J10: 36 | K10: 108 | L10: 36 | M10: =+I10*Stammdatenblatt!$P$130 -> 61.4677038 | N10: =+J10*Stammdatenblatt!$P$131 -> 51.46589674 | O10: 76.5 | P10: =+L10*Stammdatenblatt!$P$133 -> 1.86592 | Q10: =SUM(M10:P10) -> 191.2995205
A11: Aufzuchtkalb (4 Monate) | B11: 7.5 | C11: 0.25 | D11: =+C11*'Aufzuchtfärse, Kalb'!$D$7 -> 1 | E11: 5 | F11: 2 | G11: 6 | H11: 2 | I11: 2.5 | J11: 2 | K11: 6 | L11: 2 | M11: =+I11*Stammdatenblatt!$P$130 -> 3.414872434 | N11: =+J11*Stammdatenblatt!$P$131 -> 2.859216486 | O11: 4.3 | P11: =+L11*Stammdatenblatt!$P$133 -> 0.1036622222 | Q11: =SUM(M11:P11) -> 10.67775114
A12: Zuchtfärsen 27 Mo | B12: 7.5 | C12: 0.78 | D12: =+C12*'Aufzuchtfärse, Kalb'!$J$6 -> 21.06 | E12: 5 | F12: 2 | G12: 6 | H12: 2 | I12: 52.65 | J12: 42.12 | K12: 126.36 | L12: 42.12 | M12: =+I12*Stammdatenblatt!$P$130 -> 71.91721345 | N12: =+J12*Stammdatenblatt!$P$131 -> 60.21509918 | O12: 89.5 | P12: =+L12*Stammdatenblatt!$P$133 -> 2.1831264 | Q12: =SUM(M12:P12) -> 223.815439
A13: Zuchtfärsen 30 Mo | B13: 7.5 | C13: 0.78 | D13: =+C13*'Aufzuchtfärse, Kalb'!$H$6 -> 23.4 | E13: 5 | F13: 2 | G13: 6 | H13: 2 | I13: 58.5 | J13: 46.8 | K13: =+G13*D13 -> 140.4 | L13: 46.8 | M13: =+I13*Stammdatenblatt!$P$130 -> 79.90801495 | N13: =+J13*Stammdatenblatt!$P$131 -> 66.90566576 | O13: 99.5 | P13: =+L13*Stammdatenblatt!$P$133 -> 2.425696 | Q13: =SUM(M13:P13) -> 248.7393767
A14: Mastfärse | B14: 7.5 | C14: 0.78 | D14: =+C14*'Mutterkühe, Mastfärse'!$F$8 -> 16.38 | E14: 5 | F14: 2 | G14: 6 | H14: 2 | I14: 40.95 | J14: 32.76 | K14: 98.28 | L14: 32.76 | M14: =+I14*Stammdatenblatt!$P$130 -> 55.93561046 | N14: =+J14*Stammdatenblatt!$P$131 -> 46.83396603 | O14: 69.6 | P14: =+L14*Stammdatenblatt!$P$133 -> 1.6979872 | Q14: 174.0675637
A15: Mastbullen (1300 g tägl. Zun.) | B15: 7.5 | C15: 0.56 | D15: =+C15*'Bullen- und Ochsenmast'!$E$9 -> 10.30060606 | E15: 5 | F15: 2 | G15: 6 | H15: 2 | I15: 25.75151515 | J15: 20.60121212 | K15: 61.80363636 | L15: 20.60121212 | M15: =+I15*Stammdatenblatt!$P$130 -> 35.17525569 | N15: =+J15*Stammdatenblatt!$P$131 -> 29.45166266 | O15: 43.8 | P15: =+L15*Stammdatenblatt!$P$133 -> 1.067783714 | Q15: 109.4947021
A16: Mastbullen (1000 g tägl. Zun.) | B16: 7.5 | C16: 0.56 | D16: =+C16*'Bullen- und Ochsenmast'!$D$9 -> 11.10666667 | E16: 5 | F16: 2 | G16: 6 | H16: 2 | I16: 27.76666667 | J16: 22.21333333 | K16: 66.64 | L16: 22.21333333 | M16: =+I16*Stammdatenblatt!$P$130 -> 37.92784983 | N16: =+J16*Stammdatenblatt!$P$131 -> 31.75636443 | O16: 47.2 | P16: =+L16*Stammdatenblatt!$P$133 -> 1.151341748 | Q16: 118.035556
A17: Ochsen (23 Monate) | B17: 7.5 | C17: 0.78 | D17: =+C17*'Bullen- und Ochsenmast'!$G$9 -> 19.5325 | E17: 5 | F17: 2 | G17: 6 | H17: 2 | I17: 48.83125 | J17: 39.065 | K17: 117.195 | L17: 39.065 | M17: =+I17*Stammdatenblatt!$P$130 -> 66.70099581 | N17: =+J17*Stammdatenblatt!$P$131 -> 55.847646 | O17: 83 | P17: =+L17*Stammdatenblatt!$P$133 -> 2.024782356 | Q17: 207.5734242
A18: Schweine
A19: Zuchtsau mit Ferkeln | B19: 7.5 | C19: 0.5 | D19: =+C19*12 -> 6 | E19: 6 | F19: 3.5 | G19: 3.5 | H19: 3 | I19: =+D19*E19*$E$28 -> 18 | J19: =+D19*F19 -> 21 | K19: =+G19*D19 -> 21 | L19: =+H19*D19 -> 18 | M19: =+I19*Stammdatenblatt!$P$130 -> 24.58708152 | N19: =+J19*Stammdatenblatt!$P$131 -> 30.0217731 | O19: 14.9 | P19: =+L19*Stammdatenblatt!$P$133 -> 0.93296 | Q19: =SUM(M19:P19) -> 70.44181462
A20: Zuchtsau ohne Ferkel | B20: 7.5 | C20: =D20/12 -> 0.4166666667 | D20: 5 | E20: 6 | F20: 3.5 | G20: 3.5 | H20: 3 | I20: =+D20*E20*$E$28 -> 15 | J20: =+D20*F20 -> 17.5 | K20: =+G20*D20 -> 17.5 | L20: =+H20*D20 -> 15 | M20: =+I20*Stammdatenblatt!$P$130 -> 20.4892346 | N20: =+J20*Stammdatenblatt!$P$131 -> 25.01814425 | O20: 12.4 | P20: =+L20*Stammdatenblatt!$P$133 -> 0.7774666667 | Q20: =SUM(M20:P20) -> 58.68484552
A21: sep. Ferkelaufzucht | B21: 7.5 | C21: 0.05 | D21: =C21*2 -> 0.1 | E21: 6 | F21: 3.5 | G21: 3.5 | H21: 3 | I21: =+D21*E21*$E$28 -> 0.3 | J21: =+D21*F21 -> 0.35 | K21: =+G21*D21 -> 0.35 | L21: =+H21*D21 -> 0.3 | M21: =+I21*Stammdatenblatt!$P$130 -> 0.409784692 | N21: =+J21*Stammdatenblatt!$P$131 -> 0.500362885 | O21: =+K21*Stammdatenblatt!$P$132 -> 0.332471125 | P21: =+L21*Stammdatenblatt!$P$133 -> 0.01554933333 | Q21: =SUM(M21:P21) -> 1.258168035
A22: Mastschwein | B22: 7.5 | C22: 0.125 | D22: =+C22*3.8 -> 0.475 | E22: 6 | F22: 3.5 | G22: 3.5 | H22: 3 | I22: =+D22*E22*$E$28 -> 1.425 | J22: =+D22*F22 -> 1.6625 | K22: =+G22*D22 -> 1.6625 | L22: =+H22*D22 -> 1.425 | M22: =+I22*Stammdatenblatt!$P$130 -> 1.946477287 | N22: =+J22*Stammdatenblatt!$P$131 -> 2.376723704 | O22: 1.18 | P22: =+L22*Stammdatenblatt!$P$133 -> 0.07385933333 | Q22: 5.577060324
A23: Mutterschafe | I23: 6.3 | J23: 2.9 | K23: 8.4 | L23: =+H23*D23 -> 0 | M23: =+I23*Stammdatenblatt!$P$130 -> 8.605478533 | N23: =+J23*Stammdatenblatt!$P$131 -> 4.145863904 | O23: 5.95 | P23: =+L23*Stammdatenblatt!$P$133 -> 0 | Q23: 18.70134244
A24: Pferde | I24: 68 | J24: 32 | K24: 61 | L24: 0 | M24: =+I24*Stammdatenblatt!$P$130 -> 92.88453019 | N24: =+J24*Stammdatenblatt!$P$131 -> 45.74746377 | O24: 43.2 | P24: =+L24*Stammdatenblatt!$P$133 -> 0 | Q24: 181.831994
A26: Masthähnchen | B26: 75 | C26: 2.08 | D26: 11.796 | E26: 2.5 | F26: 1.6 | G26: 2.3 | H26: 8 | I26: =+D26*E26*$E$28/588 -> 0.02507653061 | J26: =+D26*F26/588 -> 0.03209795918 | K26: =+G26*D26/588 -> 0.04614081633 | L26: =+H26*D26/588 -> 0.1604897959 | M26: =+I26*Stammdatenblatt!$P$130 -> 0.03425326125 | N26: =+J26*Stammdatenblatt!$P$131 -> 0.04588750702 | O26: 0.35 | P26: =+L26*Stammdatenblatt!$P$133 -> 0.008318364444 | Q26: =SUM(M26:P26) -> 0.4384591327
A27: Legehennen | B27: 45 | C27: =D27/12 -> 1.833 | D27: 21.996 | E27: 3.6 | F27: 3.7 | G27: 2.8 | H27: 8 | I27: =+D27*E27*$E$28/294 -> 0.1346693878 | J27: =+D27*F27/294 -> 0.2768204082 | K27: =+G27*D27/294 -> 0.2094857143 | L27: =+H27*D27/294 -> 0.5985306122 | M27: =+I27*Stammdatenblatt!$P$130 -> 0.183951512 | N27: =+J27*Stammdatenblatt!$P$131 -> 0.3957447373 | O27: 0.35 | P27: =+L27*Stammdatenblatt!$P$133 -> 0.03102250667 | Q27: 0.9607187559
D28: * Beim Stickstoff wird eine Ausnutzung von: | E28: 0.5 | F28: berücksichtigt.

Sheet Lagerung (hidden)
A5: Ernteertrag | B5: =[1]Strohbergeverfahren!D9 -> 30 | C5: dt/ha
A6: Pressgewicht | B6: 0.168
A7: Rohstoffkosten | B7: =[1]Strohbergeverfahren!D22/[1]Strohbergeverfahren!D9 -> 2.293034433 | I7: 0.04
A9: Lagerungskosten | F9: Nutzung | G9: Festkosten | I9: v. Kosten | K9: Gesamtk. | L9: €/dt | M9: Verlust | P9: Gesamtk | Q9: Ernteertrag pro dt/ha
B10: € | C10: €/m² | D10: Nutzvolumen m³ | E10: Nutzv. in dt | F10: Jahre | G10: €/Jahr | H10: €/m³ | I10: €/J | N10: Jahr | O10: dt | Q10: =[1]Strohbergeverfahren!D9 -> 30 | R10: =[1]Strohbergeverfahren!E9 -> 42 | S10: =[1]Strohbergeverfahren!F9 -> 49.5
A11: Feldmiete | B11: 0 | M11: 0.15 | N11: =SUM($B$5*M11)*$B$7 -> 10.31865495 | O11: =SUM(N11)/($B$5-($B$5*M11*M11)) -> 0.3518722915 | P11: =SUM(L11+O11) -> 0.3518722915 | Q11: =SUM(P11*$B$5) -> 10.55616875 | R11: =Q23 -> 14.86518356 | S11: =Q35 -> 17.55831782
A12: Altgeb. 200m² | B12: 30000 | C12: =SUM(B12/200) -> 150 | D12: =20*10*5 -> 1000 | E12: =SUM(D12*$B$6)*10 -> 1680 | F12: 22 | G12: =SUM(B12/F12) -> 1363.636364 | H12: =SUM(G12/D12) -> 1.363636364 | I12: =SUM(B12*$I$7) -> 1200 | J12: =SUM(I12/F12) -> 54.54545455 | K12: =SUM(G12+I12) -> 2563.636364 | L12: =SUM(K12/E12) -> 1.525974026 | M12: 0.03 | N12: =SUM($B$5*M12)*$B$7 -> 2.06373099 | O12: =SUM(N12)/($B$5-($B$5*M12*M12)) -> 0.06885300069 | P12: =SUM(L12+O12) -> 1.594827027 | Q12: =SUM(P12*$B$5) -> 47.8448108 | R12: =Q24 -> 66.99967036 | S12: =Q36 -> 78.94393782
A13: Halle 450m² | B13: 110000 | C13: =SUM(B13/450) -> 244.4444444 | D13: =30*15*5 -> 2250 | E13: =SUM(D13*$B$6)*10 -> 3780 | F13: 35 | G13: =SUM(B13/F13) -> 3142.857143 | H13: =SUM(G13/D13) -> 1.396825397 | I13: =SUM(B13*$I$7) -> 4400 | J13: =SUM(I13/F13) -> 125.7142857 | K13: =SUM(G13+I13) -> 7542.857143 | L13: =SUM(K13/E13) -> 1.995464853 | M13: 0.03 | N13: =SUM($B$5*M13)*$B$7 -> 2.06373099 | O13: =SUM(N13)/($B$5-($B$5*M13*M13)) -> 0.06885300069 | P13: =SUM(L13+O13) -> 2.064317853 | Q13: =SUM(P13*$B$5) -> 61.9295356 | R13: =Q25 -> 86.71828508 | S13: =Q37 -> 102.1837337
A14: Halle 840m² | B14: 230000 | C14: =SUM(B14/840) -> 273.8095238 | D14: =42*20*5 -> 4200 | E14: =SUM(D14*$B$6)*10 -> 7056 | F14: 35 | G14: =SUM(B14/F14) -> 6571.428571 | H14: =SUM(G14/D14) -> 1.56462585 | I14: =SUM(B14*$I$7) -> 9200 | J14: =SUM(I14/F14) -> 262.8571429 | K14: =SUM(G14+I14) -> 15771.42857 | L14: =SUM(K14/E14) -> 2.235179786 | M14: 0.03 | N14: =SUM($B$5*M14)*$B$7 -> 2.06373099 | O14: =SUM(N14)/($B$5-($B$5*M14*M14)) -> 0.06885300069 | P14: =SUM(L14+O14) -> 2.304032787 | Q14: =SUM(P14*$B$5) -> 69.12098361 | R14: =Q26 -> 96.78631229 | S14: =Q38 -> 114.049623
A17: Ernteertrag | B17: =[1]Strohbergeverfahren!E9 -> 42 | C17: dt/ha
A18: Pressgewicht | B18: 0.168
A19: Rohstoffkosten | B19: =SUM([1]Strohbergeverfahren!E22/[1]Strohbergeverfahren!E9) -> 2.306463004 | I19: 0.04
A21: Lagerungskosten | F21: Nutzung | G21: Festkosten | I21: v. Kosten | K21: Gesamtk. | L21: €/dt | M21: Verlust | P21: Gesamtk | Q21: pro ha
B22: € | C22: €/m² | D22: Nutzvolumen m³ | E22: Nutzv. in dt | F22: Jahre | G22: €/Jahr | H22: €/m³ | I22: €/J | N22: Jahr | O22: dt
A23: Feldmiete | B23: 0 | M23: 0.15 | N23: =SUM($B$17*M23)*$B$19 -> 14.53071693 | O23: =SUM(N23)/($B$17-($B$17*M23*M23)) -> 0.3539329419 | P23: =SUM(L23+O23) -> 0.3539329419 | Q23: =SUM(P23*$B$17) -> 14.86518356
A24: Altgeb. 200m² | B24: 30000 | C24: =SUM(B24/200) -> 150 | D24: =20*10*5 -> 1000 | E24: =SUM(D24*$B$6)*10 -> 1680 | F24: 22 | G24: =SUM(B24/F24) -> 1363.636364 | H24: =SUM(G24/D24) -> 1.363636364 | I24: =SUM(B24*$I$7) -> 1200 | J24: =SUM(I24/F24) -> 54.54545455 | K24: =SUM(G24+I24) -> 2563.636364 | L24: =SUM(K24/E24) -> 1.525974026 | M24: 0.03 | N24: =SUM($B$17*M24)*$B$19 -> 2.906143386 | O24: =SUM(N24)/($B$17-($B$17*M24*M24)) -> 0.06925622073 | P24: =SUM(L24+O24) -> 1.595230247 | Q24: =SUM(P24*$B$17) -> 66.99967036
A25: Halle 450m² | B25: 110000 | C25: =SUM(B25/450) -> 244.4444444 | D25: =30*15*5 -> 2250 | E25: =SUM(D25*$B$6)*10 -> 3780 | F25: 35 | G25: =SUM(B25/F25) -> 3142.857143 | H25: =SUM(G25/D25) -> 1.396825397 | I25: =SUM(B25*$I$7) -> 4400 | J25: =SUM(I25/F25) -> 125.7142857 | K25: =SUM(G25+I25) -> 7542.857143 | L25: =SUM(K25/E25) -> 1.995464853 | M25: 0.03 | N25: =SUM($B$17*M25)*$B$19 -> 2.906143386 | O25: =SUM(N25)/($B$17-($B$17*M25*M25)) -> 0.06925622073 | P25: =SUM(L25+O25) -> 2.064721073 | Q25: =SUM(P25*$B$17) -> 86.71828508
A26: Halle 840m² | B26: 230000 | C26: =SUM(B26/840) -> 273.8095238 | D26: =42*20*5 -> 4200 | E26: =SUM(D26*$B$6)*10 -> 7056 | F26: 35 | G26: =SUM(B26/F26) -> 6571.428571 | H26: =SUM(G26/D26) -> 1.56462585 | I26: =SUM(B26*$I$7) -> 9200 | J26: =SUM(I26/F26) -> 262.8571429 | K26: =SUM(G26+I26) -> 15771.42857 | L26: =SUM(K26/E26) -> 2.235179786 | M26: 0.03 | N26: =SUM($B$17*M26)*$B$19 -> 2.906143386 | O26: =SUM(N26)/($B$17-($B$17*M26*M26)) -> 0.06925622073 | P26: =SUM(L26+O26) -> 2.304436007 | Q26: =SUM(P26*$B$17) -> 96.78631229
A29: Ernteertrag | B29: =[1]Strohbergeverfahren!F9 -> 49.5 | C29: dt/ha
A30: Pressgewicht | B30: 0.168
A31: Rohstoffkosten | B31: =[1]Strohbergeverfahren!F22/[1]Strohbergeverfahren!F9 -> 2.311549584 | I31: 0.04
A33: Lagerungskosten | F33: Nutzung | G33: Festkosten | I33: v. Kosten | K33: Gesamtk. | L33: €/dt | M33: Verlust | P33: Gesamtk | Q33: pro ha
B34: € | C34: €/m² | D34: Nutzvolumen m³ | E34: Nutzv. in dt | F34: Jahre | G34: €/Jahr | H34: €/m³ | I34: €/J | N34: Jahr | O34: dt
A35: Feldmiete | B35: 0 | M35: 0.15 | N35: =SUM($B$29*M35)*$B$31 -> 17.16325566 | O35: =SUM(N35)/($B$29-($B$29*M35*M35)) -> 0.3547134912 | P35: =SUM(L35+O35) -> 0.3547134912 | Q35: =SUM(P35*$B$29) -> 17.55831782
A36: Altgebäude 200m² | B36: 30000 | C36: =SUM(B36/200) -> 150 | D36: =20*10*5 -> 1000 | E36: =SUM(D36*$B$6)*10 -> 1680 | F36: 22 | G36: =SUM(B36/F36) -> 1363.636364 | H36: =SUM(G36/D36) -> 1.363636364 | I36: =SUM(B36*$I$7) -> 1200 | J36: =SUM(I36/F36) -> 54.54545455 | K36: =SUM(G36+I36) -> 2563.636364 | L36: =SUM(K36/E36) -> 1.525974026 | M36: 0.03 | N36: =SUM($B$29*M36)*$B$7 -> 3.405156133 | O36: =SUM(N36)/($B$29-($B$29*M36*M36)) -> 0.06885300069 | P36: =SUM(L36+O36) -> 1.594827027 | Q36: =SUM(P36*$B$29) -> 78.94393782
A37: Halle 450m² | B37: 110000 | C37: =SUM(B37/450) -> 244.4444444 | D37: =30*15*5 -> 2250 | E37: =SUM(D37*$B$6)*10 -> 3780 | F37: 35 | G37: =SUM(B37/F37) -> 3142.857143 | H37: =SUM(G37/D37) -> 1.396825397 | I37: =SUM(B37*$I$7) -> 4400 | J37: =SUM(I37/F37) -> 125.7142857 | K37: =SUM(G37+I37) -> 7542.857143 | L37: =SUM(K37/E37) -> 1.995464853 | M37: 0.03 | N37: =SUM($B$5*M37)*$B$7 -> 2.06373099 | O37: =SUM(N37)/($B$5-($B$5*M37*M37)) -> 0.06885300069 | P37: =SUM(L37+O37) -> 2.064317853 | Q37: =SUM(P37*$B$29) -> 102.1837337
A38: Halle 840m² | B38: 230000 | C38: =SUM(B38/840) -> 273.8095238 | D38: =42*20*5 -> 4200 | E38: =SUM(D38*$B$6)*10 -> 7056 | F38: 35 | G38: =SUM(B38/F38) -> 6571.428571 | H38: =SUM(G38/D38) -> 1.56462585 | I38: =SUM(B38*$I$7) -> 9200 | J38: =SUM(I38/F38) -> 262.8571429 | K38: =SUM(G38+I38) -> 15771.42857 | L38: =SUM(K38/E38) -> 2.235179786 | M38: 0.03 | N38: =SUM($B$5*M38)*$B$7 -> 2.06373099 | O38: =SUM(N38)/($B$5-($B$5*M38*M38)) -> 0.06885300069 | P38: =SUM(L38+O38) -> 2.304032787 | Q38: =SUM(P38*$B$29) -> 114.049623

Sheet Daten (hidden)
B8: Ø | C8: Volumen | D8: Gewicht | E8: Raumgew.
A9: RB Ø 1,2m | B9: 1.2 | C9: =SUM(B9*B9*0.785)*1.2 -> 1.35648 | D9: 180 | E9: =SUM(D9/C9/1000) -> 0.1326963907
A10: RB Ø 1,2m mit Schneideinr. | B10: 1.2 | C10: 1.35648 | D10: 190 | E10: 0.1400684124
A11: RB Ø 1,5m | B11: 1.5 | C11: 2.1195 | D11: 240 | E11: 0.1132342534
A12: RB Ø 1,5m mit Schneideinr. | B12: 1.5 | C12: 2.1195 | D12: 255 | E12: 0.1203113942
A13: RB Ø 1,8m | B13: 1.8 | C13: 3.05208 | D13: 300 | E13: 0.09829362271
A14: RB Ø 1,8m mit Schneideinr. | B14: 1.8 | C14: 3.05208 | D14: 320 | E14: 0.1048465309
A16: GP 0,8 x 0,8 m | B16: 1 | C16: =SUM(0.8*0.8*B16) -> 0.64 | D16: 100 | E16: =SUM(D16/C16)/1000 -> 0.15625
A17: - mit Schneideinr. | B17: 1 | C17: =SUM(0.8*0.8*B17) -> 0.64 | D17: 105 | E17: =SUM(D17/C17)/1000 -> 0.1640625
A18: GP 1,2 x 0,7 m | B18: 1 | C18: =SUM(1.2*0.7*B18) -> 0.84 | D18: 140 | E18: 0.1666666667
A19: - mit Schneideinr. | B19: 1 | C19: =SUM(1.2*0.7*B19) -> 0.84 | D19: 150 | E19: 0.1785714286
A20: GP 1,2 x 0,9 m | B20: 1 | C20: =SUM(1.2*0.9*B20) -> 1.08 | D20: 180 | E20: 0.1666666667
A21: - mit Schneideinr. | B21: 1 | C21: =SUM(1.2*0.9*B21) -> 1.08 | D21: 190 | E21: 0.1759259259
D22: Ø | E22: =SUM(E16:E21)/6 -> 0.1680238646
A23: GP 1,2 x 0,7 m - Fine Cut - | B23: 1 | C23: =SUM(1.2*0.7*B23) -> 0.84 | D23: 200 | E23: 0.2380952381
E25: RB - KTBL: | F25: 0,10 - 0,12 t/m³
A26: Rundballenpresse | B26: Ø | C26: Breite | E26: Volumen | F26: Raumgewicht | H26: Ballengewicht | J26: Info Raumgewicht
A27: RB Ø 1,2m | B27: 1.2 | C27: 1.2 | E27: =SUM(B27*B27*0.785*C27) -> 1.35648 | F27: 0.115 | H27: =SUM(E27*F27)*1000 -> 155.9952 | J27: 0,129 - 0,154 möglich | S27: 4.5
A28: RB Ø 1,2m mit Schneideinr. | B28: 1.2 | C28: 1.2 | E28: 1.35648 | F28: 0.125 | H28: 169.56 | S28: 5.3
A29: RB Ø 1,5m | B29: 1.5 | C29: 1.2 | E29: 2.1195 | F29: 0.115 | H29: 243.7425 | S29: 5.6
A30: RB Ø 1,5m mit Schneideinr. | B30: 1.5 | C30: 1.2 | E30: 2.1195 | F30: 0.125 | H30: 264.9375 | S30: 6.5
A31: RB Ø 1,8m | B31: 1.8 | C31: 1.2 | E31: 3.05208 | F31: 0.115 | H31: 350.9892 | S31: 7
A32: RB Ø 1,8m mit Schneideinr. | B32: 1.8 | C32: 1.2 | E32: 3.05208 | F32: 0.125 | H32: 381.51 | S32: 8.3
A33: Großpackenpresse | B33: Breite | C33: Höhe | D33: Länge | E33: Volumen | F33: Raumgewicht | H33: Ballengewicht | J33: Info:
A34: GP 0,8 x 0,8 m | B34: 0.8 | C34: 0.8 | D34: =[1]Strohbergeverfahren!$B$12 -> 2.44 | E34: =SUM(B34*C34*D34) -> 1.5616 | F34: 0.163 | H34: =SUM(E34*F34)*1000 -> 254.5408 | J34: Länge bis 3,2 m | R34: 2.4 | S34: =SUM(R34*D34) -> 5.856
A35: GP 0,8 x 0,8 m - mit Schneideinr. | B35: 0.8 | C35: 0.8 | D35: =[1]Strohbergeverfahren!$B$12 -> 2.44 | E35: =SUM(B35*C35*D35) -> 1.5616 | F35: 0.173 | H35: 270.1568 | R35: 2.6 | S35: 6.344
A36: GP 1,2 x 0,7 m | B36: 1.2 | C36: 0.7 | D36: =[1]Strohbergeverfahren!$B$12 -> 2.44 | E36: 2.0496 | F36: 0.163 | H36: 334.0848 | R36: 3.5 | S36: 8.54
A37: GP 1,2 x 0,7 m - mit Schneideinr. | B37: 1.2 | C37: 0.7 | D37: =[1]Strohbergeverfahren!$B$12 -> 2.44 | E37: 2.0496 | F37: 0.173 | H37: 354.5808 | R37: 3.7 | S37: 9.028
A38: GP 1,2 x 0,9 m | B38: 1.2 | C38: 0.9 | D38: =[1]Strohbergeverfahren!$B$12 -> 2.44 | E38: 2.6352 | F38: 0.163 | H38: 429.5376 | R38: 4.3 | S38: 10.492
A39: GP 1,2 x 0,9 m - mit Schneideinr. | B39: 1.2 | C39: 0.9 | D39: =[1]Strohbergeverfahren!$B$12 -> 2.44 | E39: 2.6352 | F39: 0.173 | H39: 455.8896 | R39: 4.7 | S39: 11.468
A40: GP 1,2 x 0,7 m - Fine Cut / 49 Messer- | B40: 1.2 | C40: 0.7 | D40: =[1]Strohbergeverfahren!$B$12 -> 2.44 | E40: 2.0496 | F40: 0.238 | H40: 487.8048 | R40: 5.7 | S40: 13.908
E41: GP - KTBL: | F41: 0,12 - 0,14 t/m³
D44: Transportkosten über Ballengewicht und Transportentfernung
D45: Schlepper | E45: Diesel | F45: Fahrer
A46: Ballen laden mit Schlepper u. Zange | B46: 0.5 | C46: h/ha | D46: 19 | E46: =12*1.2 -> 14.4 | F46: 20 | G46: =SUM(D46:F46) -> 53.4 | H46: =SUM(G46*B46) -> 26.7 | I46: €/ha
A47: Ballen abladen mit Schlepper u. Zange | B47: 0.5 | C47: h/ha | D47: 19 | E47: =12*1.2 -> 14.4 | F47: 20 | G47: =SUM(D47:F47) -> 53.4 | H47: =SUM(G47*B47) -> 26.7 | I47: €/ha
A48: Laden und Abladen | H48: =SUM(H46:H47) -> 53.4 | I48: €/ha | J48: =SUM(H48/40) -> 1.335 | K48: €/dt
C49: B.wagen | D49: Schlepper | E49: Diesel | F49: Fahrer
A50: Transport | C50: 19 | D50: 26 | E50: =1.4*18 -> 25.2 | F50: 20 | G50: =SUM(C50:F50) -> 90.2
A51: Nutzlast | B51: 10 | C51: t | G51: =SUM(G50/B51) -> 9.02 | H51: €/h u. t
A52: Entfernung | B52: =[1]Strohbergeverfahren!B27 -> 5 | C52: km | G52: =SUM(G51/B53) -> 0.6013333333 | H52: €/km u t
A53: Ø Geschwindigkeit | B53: =[1]Strohbergeverfahren!B28 -> 15 | C53: km/h | G53: =SUM(G52*B52) -> 3.006666667 | H53: €/t
G54: =G53/10 -> 0.3006666667 | H54: €/dt | J54: =SUM(G54+J48) -> 1.635666667 | K54: €/dt

Sheet Strohbergung-GP
B3: Landesbetrieb Landwirtschaft Hessen
A4: =IF([2]Stammdatenblatt!G6+[2]Stammdatenblatt!D77+[2]Stammdatenblatt!D112+[2]Stammdatenblatt!B129+[2]Stammdatenblatt!D140+[2]Stammdatenblatt!C183+[2]Stammdatenblatt!C221+[2]Stammdatenblatt!C239=0,"Produktionsverfahren wurden netto gerechnet", "Produktionsverfahren wurden brutto gerechnet") -> Produktionsverfahren wurden netto gerechnet | F4: =Wirtschaftsdünger!N4 -> Letztes (aktuelles) WJ.
G5: eigene
A6: Strohbergung | G6: Werte
A7: Menge Korn (Ernteprodukt) | C7: dt/ha | D7: 55 | E7: 70 | F7: 90 | G7: 0
A8: Korn-Stroh-Verhältnis 1: | D8: =IF(D7<75,0.8,0.75) -> 0.8 | E8: =IF(E7<75,0.8,0.75) -> 0.8 | F8: =IF(F7<75,0.8,0.75) -> 0.75 | G8: 0
A9: Menge Stroh abzüglich | B9: 0.2 | C9: dt/ha | D9: =+D7*(D8-$B$9) -> 33 | E9: =+E7*(E8-$B$9) -> 42 | F9: =+F7*(F8-$B$9) -> 49.5 | G9: =+G7*(G8-$B$9) -> 0
A10: Auswahl - Strohernteverfahren | B10: Ballengewicht
A11: GP Presse 0,8 m x 0,8 m | B11: =0.8*0.8*B12*0.163*1000 -> 250.368 | C11: Ballen/ha | D11: =SUM(D9/$B$11)*100 -> 13.18059816 | E11: =SUM(E9/$B$11)*100 -> 16.77530675 | F11: =SUM(F9/$B$11)*100 -> 19.77089724 | G11: =SUM(G9/$B$11)*100 -> 0
A12: -Ballenlänge nur GP - | B12: 2.4
A13: Preis Stroh (Marktinfo APH Feldfrüchte) | C13: €/dt | D13: =Stammdatenblatt!P169 -> 10.3255 | E13: =Stammdatenblatt!P169 -> 10.3255 | F13: =Stammdatenblatt!P169 -> 10.3255 | G13: 0
A14: Erlös Stroh | C14: €/ha | D14: =SUM(D9*D13) -> 340.7415 | E14: =E9*E13 -> 433.671 | F14: =F9*F13 -> 511.11225 | G14: =G9*G13 -> 0
A15: Marktleistung | C15: €/ha | D15: =SUM(D14:D14) -> 340.7415 | E15: =SUM(E14:E14) -> 433.671 | F15: =SUM(F14:F14) -> 511.11225 | G15: =SUM(G14:G14) -> 0
A17: Nährstoffkosten*
A18: S Nährstoffwert | C18: €/ha | D18: =D9*(D37*$B$37+D38*$B$38+D39*$B$39+D40*$B$40+D41*$B$41+D42*$B$42) -> 99.42706816 | E18: =E9*(E37*$B$37+E38*$B$38+E39*$B$39+E40*$B$40+E41*$B$41+E42*$B$42) -> 126.5435413 | F18: =F9*(F37*$B$37+F38*$B$38+F39*$B$39+F40*$B$40+F41*$B$41+F42*$B$42) -> 149.1406022 | G18: =G9*(G37*$B$37+G38*$B$38+G39*$B$39+G40*$B$40+G41*$B$41+G42*$B$42) -> 0
A19: Humuswert | B19: 10 | C19: €/ha | D19: =+$B$19*D9/10 -> 33 | E19: =+$B$19*E9/10 -> 42 | F19: =+$B$19*F9/10 -> 49.5 | G19: =+$B$19*G9/10 -> 0
A20: Mineraldüngerausbringungskosten | B20: 1.5 | C20: €/ha | D20: =+D37*D9/$B$21*$B$20 -> 6.1875 | E20: =+E37*E9/$B$21*$B$20 -> 7.875 | F20: =+F37*F9/$B$21*$B$20 -> 9.28125 | G20: =+G37*G9/$B$21*$B$20 -> 0
A21: Strohhäcksler | B21: 4 | C21: €/ha | D21: -10 | E21: =D21 -> -10 | F21: =E21 -> -10 | G21: =F21 -> -10
A22: Wert ab Feld | C22: €/ha | D22: =SUM(D18:D21) -> 128.6145682 | E22: =SUM(E18:E21) -> 166.4185413 | F22: =SUM(F18:F21) -> 197.9218522 | G22: =SUM(G18:G21) -> -10
C23: €/Ballen | D23: =+D22/D11 -> 9.757870364 | E23: =+E22/E11 -> 9.920446988 | F23: =+F22/F11 -> 10.01076733 | G23: =+G22/G11 -> 
C24: €/dt | D24: =+D22/D9 -> 3.897411157 | E24: =+E22/E9 -> 3.962346221 | F24: =+F22/F9 -> 3.998421258 | G24: =+G22/G9 -> 
A26: Presskosten (Lohnunternehmer) | B26: 2.4 | C26: €/ha | D26: =$B$26*$B$12*D11 -> 75.9202454 | E26: =$B$26*$B$12*E11 -> 96.62576687 | F26: =$B$26*$B$12*F11 -> 113.8803681 | G26: =$B$26*$B$12*G11 -> 0
A27: Transportkosten dt/Km | B27: 10 | C27: 90 | D27: =90/10/$B$28 -> 0.6 | E27: =90/10/$B$28 -> 0.6 | F27: =90/10/$B$28 -> 0.6 | G27: =$C$27/10/$B$28 -> 0.6
A28: Ø Geschwindigkeit Km/ h | B28: 15 | C28: €/Ballen | D28: =$D$27*D9*$B$27/10/13 -> 1.523076923 | E28: =$D$27*E9*$B$27/10/13 -> 1.938461538 | F28: =$D$27*F9*$B$27/10/13 -> 2.284615385 | G28: =$D$27*G9*$B$27/10/13 -> 0
A29: Transportkosten, Laden, Abladen | B29: =1.34*D19/D11+D28 -> 4.878008123 | C29: €/ha | D29: =+$B$29*D11 -> 64.29506489 | E29: =+$B$29*E11 -> 81.83008259 | F29: =+$B$29*F11 -> 96.44259733 | G29: =+$B$29*G11 -> 0
A30: Lagerung Altgebäude 200m² | B30: 1.6 | C30: €/ha | D30: =$B$30*D9 -> 52.8 | E30: =$B$30*E9 -> 67.2 | F30: =$B$30*F9 -> 79.2 | G30: =$B$30*G9 -> 0
A31: Risikozuschlag (20% der Press-und Transportkosten) | C31: €/ha | D31: =+(D26+D29+D30)*0.2 -> 38.60306206 | E31: =+(E26+E29+E30)*0.2 -> 49.13116989 | F31: =+(F26+F29+F30)*0.2 -> 57.90459309 | G31: =+(G26+G29+G30)*0.2 -> 0
A32: Wert ab Hof | C32: €/ha | D32: =+D22+D26+D29+D30+D31 -> 360.2329405 | E32: =+E22+E26+E29+E30+E31 -> 461.2055606 | F32: =+F22+F26+F29+F30+F31 -> 545.3494108 | G32: =+G22+G26+G29+G30+G31 -> -10
C33: €/Ballen | D33: =+D32/D11 -> 27.33054571 | E33: =+E32/E11 -> 27.49312234 | F33: =+F32/F11 -> 27.58344268 | G33: =+G32/G11 -> 
A34: unterstellt, dass die Kosten mind. als Leistung realisiert werden müssen. | C34: €/dt | D34: =+D32/D9 -> 10.91614971 | E34: =+E32/E9 -> 10.98108478 | F34: =+F32/F9 -> 11.01715981 | G34: =+G32/G9 -> 
A36: Nährstoffwert: | B36: €/kg: | C36: Entzogene Nährstoffe:
A37: Stickstoff | B37: =Stammdatenblatt!P130 -> 1.365948973 | C37: kg/dt Stroh | D37: 0.5 | E37: =D37 -> 0.5 | F37: 0.5 | G37: 0.5
A38: Phosphor | B38: =Stammdatenblatt!P131 -> 1.429608243 | C38: kg/dt Stroh | D38: 0.3 | E38: 0.3 | F38: 0.3 | G38: 0.3
A39: Kali | B39: =Stammdatenblatt!P132 -> 0.9499175 | C39: kg/dt Stroh | D39: 1.4 | E39: 1.4 | F39: 1.4 | G39: 1.4
A40: Kalk | B40: =Stammdatenblatt!P133 -> 0.05183111111 | C40: kg/dt Stroh | D40: 0.45 | E40: 0.45 | F40: 0.45 | G40: 0.45
A41: Magnesium | B41: =Stammdatenblatt!P134 -> 2.3205 | C41: kg/dt Stroh | D41: 0.2 | E41: 0.2 | F41: 0.2 | G41: 0.2
A42: Schwefel | B42: =Stammdatenblatt!P135 -> 1.0472 | C42: kg/dt Stroh | D42: 0.08 | E42: 0.08 | F42: 0.08 | G42: 0.08
A43: * Verrechnung des Düngewertes durch Strohabfuhr inkl. Ausbringung nach ÜMV-Verrechnungssätzen

Sheet Strohbergung alt (hidden)
B3: Landesbetrieb Landwirtschaft Hessen
A4: =IF(Stammdatenblatt!G6+Stammdatenblatt!D77+Stammdatenblatt!D112+Stammdatenblatt!B129+Stammdatenblatt!D140+Stammdatenblatt!C183+Stammdatenblatt!C221+Stammdatenblatt!C239=0,"Produktionsverfahren wurden netto gerechnet", "Produktionsverfahren wurden brutto gerechnet") -> Produktionsverfahren wurden brutto gerechnet
G5: eigene
A6: Strohbergung | G6: Werte
A7: Menge Korn (Ernteprodukt) | C7: dt/ha | D7: 50 | E7: 70 | F7: 90 | G7: 0
A8: Korn-Stroh-Verhältnis 1: | D8: 0.8 | E8: 0.8 | F8: 0.7 | G8: 0
A9: Menge Stroh | C9: dt/ha | D9: =+D7*D8 -> 40 | E9: =+E7*E8 -> 56 | F9: =+F7*F8 -> 63 | G9: =+G7*G8 -> 0
A10: Anzahl Quaderballen | B10: =+Stammdatenblatt!K240*Stammdatenblatt!C240 -> 270 | C10: Stück | D10: =+D9*100/$B$10 -> 14.81481481 | E10: =+E9*100/$B$10 -> 20.74074074 | F10: =+F9*100/$B$10 -> 23.33333333 | G10: =+G9*100/$B$10 -> 0
A11: Preis Stroh | C11: €/dt | D11: =Stammdatenblatt!P183 -> 10.4027 | E11: =D11 -> 10.4027 | F11: =E11 -> 10.4027 | G11: 0
A12: Erlös Stroh | C12: €/ha | D12: =D9*D11 -> 416.108 | E12: =E7*E11 -> 728.189 | F12: =F7*F11 -> 936.243 | G12: =G7*G11 -> 0
A13: Marktleistung | C13: €/ha | D13: =SUM(D12:D12) -> 416.108 | E13: =SUM(E12:E12) -> 728.189 | F13: =SUM(F12:F12) -> 936.243 | G13: =SUM(G12:G12) -> 0
A15: Nährstoffkosten
A16: Nährstoffwert | C16: €/ha | D16: =D9*(D32*0*$B$32+D33*$B$33+D34*$B$34+D35*$B$35+D36*$B$36+D37*$B$37) -> 93.19867891 | E16: =E9*(E32*0*$B$32+E33*$B$33+E34*$B$34+E35*$B$35+E36*$B$36+E37*$B$37) -> 130.4781505 | F16: =F9*(F32*0*$B$32+F33*$B$33+F34*$B$34+F35*$B$35+F36*$B$36+F37*$B$37) -> 146.7879193 | G16: =G9*(G32*0*$B$32+G33*$B$33+G34*$B$34+G35*$B$35+G36*$B$36+G37*$B$37) -> 0
A17: Humuswert | B17: 10 | C17: €/ha | D17: =+$B$17*D9/10 -> 40 | E17: =+$B$17*E9/10 -> 56 | F17: =+$B$17*F9/10 -> 63 | G17: =+$B$17*G9/10 -> 0
A18: Mineraldüngerausbringungskosten | C18: €/ha | D18: =3.59*(1+Stammdatenblatt!$B$129) -> 4.2721 | E18: =3.59*(1+Stammdatenblatt!$B$129) -> 4.2721 | F18: =3.59*(1+Stammdatenblatt!$B$129) -> 4.2721 | G18: =0*(1+Stammdatenblatt!$B$129) -> 0
A19: Strohhäcksler | C19: €/ha | D19: -5 | E19: =D19 -> -5 | F19: =E19 -> -5 | G19: 0
A20: Wert ab Feld | C20: €/ha | D20: =SUM(D16:D19) -> 132.4707789 | E20: =SUM(E16:E19) -> 185.7502505 | F20: =SUM(F16:F19) -> 209.0600193 | G20: =SUM(G16:G19) -> 0
C21: €/Ballen | D21: =+D20/D10 -> 8.941777577 | E21: =+E20/E10 -> 8.955815648 | F21: =+F20/F10 -> 8.959715112 | G21: =+G20/G10 -> 
C22: €/dt | D22: =+D20/D9 -> 3.311769473 | E22: =+E20/E9 -> 3.316968759 | F22: =+F20/F9 -> 3.318413005 | G22: =+G20/G9 -> 
A24: Presskosten (Lohnunternehmer) | B24: =Stammdatenblatt!$P$240 -> 6.7914 | C24: €/ha | D24: =+$B$24*D10 -> 100.6133333 | E24: =+$B$24*E10 -> 140.8586667 | F24: =+$B$24*F10 -> 158.466 | G24: =+$B$24*G10 -> 0
A25: Transportkosten | B25: =Stammdatenblatt!$P$241 -> 9.702 | C25: €/ha | D25: =+$B$25*D10 -> 143.7333333 | E25: =+$B$25*E10 -> 201.2266667 | F25: =+$B$25*F10 -> 226.38 | G25: =+$B$25*G10 -> 0
A26: Risikozuschlag (15% der Press-und Transportkosten) | C26: €/ha | D26: =+(D24+D25)*0.15 -> 36.652 | E26: =+(E24+E25)*0.15 -> 51.3128 | F26: =+(F24+F25)*0.15 -> 57.7269 | G26: =+(G24+G25)*0.15 -> 0
A27: Wert ab Hof | C27: €/ha | D27: =+D20+D24+D25+D26 -> 413.4694456 | E27: =+E20+E24+E25+E26 -> 579.1483838 | F27: =+F20+F24+F25+F26 -> 651.6329193 | G27: =+G20+G24+G25+G26 -> 0
C28: €/Ballen | D28: =+D27/D10 -> 27.90918758 | E28: =+E27/E10 -> 27.92322565 | F28: =+F27/F10 -> 27.92712511 | G28: =+G27/G10 -> 
C29: €/dt | D29: =+D27/D9 -> 10.33673614 | E29: =+E27/E9 -> 10.34193543 | F29: =+F27/F9 -> 10.34337967 | G29: =+G27/G9 -> 
A30: Nährstoffwert
B31: €/kg: | C31: Entzogener Nährstoff:
A32: Stickstoff | B32: =Stammdatenblatt!P130 -> 1.365948973 | C32: kg/dt Stroh | D32: 0.5 | E32: =D32 -> 0.5 | F32: 0.5 | G32: 0
A33: Phosphor | B33: =Stammdatenblatt!P131 -> 1.429608243 | C33: kg/dt Stroh | D33: 0.3 | E33: 0.3 | F33: 0.3 | G33: 0
A34: Kali | B34: =Stammdatenblatt!P132 -> 0.9499175 | C34: kg/dt Stroh | D34: 1.4 | E34: 1.4 | F34: 1.4 | G34: 0
A35: Kalk | B35: =Stammdatenblatt!P133 -> 0.05183111111 | C35: kg/dt Stroh | D35: 0.45 | E35: 0.45 | F35: 0.45 | G35: 0
A36: Magnesium | B36: =Stammdatenblatt!P134 -> 2.3205 | C36: kg/dt Stroh | D36: 0.2 | E36: 0.2 | F36: 0.2 | G36: 0
A37: Schwefel | B37: =Stammdatenblatt!P135 -> 1.0472 | C37: kg/dt Stroh | D37: 0.08 | E37: 0.08 | F37: 0.08 | G37: 0

Sheet Strohbergung-RB
B3: Landesbetrieb Landwirtschaft Hessen
A4: =IF([2]Stammdatenblatt!G6+[2]Stammdatenblatt!D77+[2]Stammdatenblatt!D112+[2]Stammdatenblatt!B129+[2]Stammdatenblatt!D140+[2]Stammdatenblatt!C183+[2]Stammdatenblatt!C221+[2]Stammdatenblatt!C239=0,"Produktionsverfahren wurden netto gerechnet", "Produktionsverfahren wurden brutto gerechnet") -> Produktionsverfahren wurden netto gerechnet | F4: =Wirtschaftsdünger!N4 -> Letztes (aktuelles) WJ.
G5: eigene
A6: Strohbergung | G6: Werte
A7: Menge Korn (Ernteprodukt) | C7: dt/ha | D7: 55 | E7: 70 | F7: 90 | G7: 0
A8: Korn-Stroh-Verhältnis 1: | D8: =IF(D7<75,0.8,0.75) -> 0.8 | E8: =IF(E7<75,0.8,0.75) -> 0.8 | F8: =IF(F7<75,0.8,0.75) -> 0.75 | G8: 0
A9: Menge Stroh abzüglich | B9: 0.2 | C9: dt/ha | D9: =+D7*(D8-$B$9) -> 33 | E9: =+E7*(E8-$B$9) -> 42 | F9: =+F7*(F8-$B$9) -> 49.5 | G9: =+G7*(G8-$B$9) -> 0
A10: Auswahl - Strohernteverfahren | B10: Ballengewicht
A11: RB Presse Ø 1,5m mit Schneidwerk | B11: =1.5*1.5*0.785*1.2*B12*1000 -> 264.9375 | C11: Ballen/ha | D11: =SUM(D9/$B$11)*100 -> 12.45576787 | E11: =SUM(E9/$B$11)*100 -> 15.85279547 | F11: =SUM(F9/$B$11)*100 -> 18.6836518 | G11: =SUM(G9/$B$11)*100 -> 0
A12: -Raumgewicht RB - | B12: 0.125
A13: Preis Stroh (Marktinfo APH Feldfrüchte) | C13: €/dt | D13: =Stammdatenblatt!P169 -> 10.3255 | E13: =Stammdatenblatt!P169 -> 10.3255 | F13: =Stammdatenblatt!P169 -> 10.3255 | G13: 11
A14: Erlös Stroh | C14: €/ha | D14: =SUM(D9*D13) -> 340.7415 | E14: =E9*E13 -> 433.671 | F14: =F9*F13 -> 511.11225 | G14: =G9*G13 -> 0
A15: Marktleistung | C15: €/ha | D15: =SUM(D14:D14) -> 340.7415 | E15: =SUM(E14:E14) -> 433.671 | F15: =SUM(F14:F14) -> 511.11225 | G15: =SUM(G14:G14) -> 0
A17: Nährstoffkosten*
A18: S Nährstoffwert | C18: €/ha | D18: =D9*(D37*$B$37+D38*$B$38+D39*$B$39+D40*$B$40+D41*$B$41+D42*$B$42) -> 99.42706816 | E18: =E9*(E37*$B$37+E38*$B$38+E39*$B$39+E40*$B$40+E41*$B$41+E42*$B$42) -> 126.5435413 | F18: =F9*(F37*$B$37+F38*$B$38+F39*$B$39+F40*$B$40+F41*$B$41+F42*$B$42) -> 149.1406022 | G18: 0
A19: Humuswert | B19: 10 | C19: €/ha | D19: =+$B$19*D9/10 -> 33 | E19: =+$B$19*E9/10 -> 42 | F19: =+$B$19*F9/10 -> 49.5 | G19: 0
A20: Mineraldüngerausbringungskosten | B20: 1.5 | C20: €/ha | D20: =+D37*D9/$B$21*$B$20 -> 6.1875 | E20: =+E37*E9/$B$21*$B$20 -> 7.875 | F20: =+F37*F9/$B$21*$B$20 -> 9.28125 | G20: =+G37*G9/$B$21*$B$20 -> 0
A21: Strohhäcksler | B21: 4 | C21: €/ha | D21: -10 | E21: =D21 -> -10 | F21: =E21 -> -10 | G21: =F21 -> -10
A22: Wert ab Feld | C22: €/ha | D22: =SUM(D18:D21) -> 128.6145682 | E22: =SUM(E18:E21) -> 166.4185413 | F22: =SUM(F18:F21) -> 197.9218522 | G22: =SUM(G18:G21) -> -10
C23: €/Ballen | D23: =+D22/D11 -> 10.32570368 | E23: =+E22/E11 -> 10.49774102 | F23: =+F22/F11 -> 10.59331732 | G23: =+G22/G11 -> 
C24: €/dt | D24: =+D22/D9 -> 3.897411157 | E24: =+E22/E9 -> 3.962346221 | F24: =+F22/F9 -> 3.998421258 | G24: =+G22/G9 -> 
A26: Presskosten (Lohnunternehmer) | B26: 6.5 | C26: €/ha | D26: =$B$26*D11 -> 80.96249115 | E26: =$B$26*E11 -> 103.0431706 | F26: =$B$26*F11 -> 121.4437367 | G26: =$B$26*G11 -> 0
A27: Transportkosten dt/Km | B27: 10 | C27: 90 | D27: =$C$27/10/$B$28 -> 0.6 | E27: =$C$27/10/$B$28 -> 0.6 | F27: =$C$27/10/$B$28 -> 0.6 | G27: =$C$27/10/$B$28 -> 0.6
A28: Ø Geschwindigkeit in Km/ h | B28: 15 | C28: €/Ballen | D28: =$D$27*D9*$B$27/10/13 -> 1.523076923 | E28: =$D$27*E9*$B$27/10/13 -> 1.938461538 | F28: =$D$27*F9*$B$27/10/13 -> 2.284615385 | G28: =$D$27*G9*$B$27/10/12 -> 0
A29: Transportkosten, Laden, Abladen | B29: =1.34*D19/D11+D28 -> 5.073239423 | C29: €/ha | D29: =+$B$29*D11 -> 63.1910926 | E29: =+$B$29*E11 -> 80.42502695 | F29: =+$B$29*F11 -> 94.7866389 | G29: =+$B$29*G11 -> 0
A30: Lagerung Altgebäude 200m² | B30: 1.6 | C30: €/ha | D30: =$B$30*D9 -> 52.8 | E30: =$B$30*E9 -> 67.2 | F30: =$B$30*F9 -> 79.2 | G30: =$B$30*G9 -> 0
A31: Risikozuschlag (20% der Press-und Transportkosten) | C31: €/ha | D31: =+(D26+D29+D30)*0.2 -> 39.39071675 | E31: =+(E26+E29+E30)*0.2 -> 50.1336395 | F31: =+(F26+F29+F30)*0.2 -> 59.08607513 | G31: =+(G26+G29+G30)*0.2 -> 0
A32: Wert ab Hof | C32: €/ha | D32: =+D22+D26+D29+D30+D31 -> 364.9588687 | E32: =+E22+E26+E29+E30+E31 -> 467.2203783 | F32: =+F22+F26+F29+F30+F31 -> 552.438303 | G32: =+G22+G26+G29+G30+G31 -> -10
C33: €/Ballen | D33: =+D32/D11 -> 29.30039099 | E33: =+E32/E11 -> 29.47242833 | F33: =+F32/F11 -> 29.56800463 | G33: =+G32/G11 -> 
A34: (Unterstellt, dass die Kosten mind. als Leistung realisiert werden müssen.) | C34: €/dt | D34: =+D32/D9 -> 11.05935966 | E34: =+E32/E9 -> 11.12429472 | F34: =+F32/F9 -> 11.16036976 | G34: =+G32/G9 -> 
A36: Nährstoffwert: | B36: €/kg: | C36: Entzogene Nährstoffe:
A37: Stickstoff | B37: =Stammdatenblatt!P130 -> 1.365948973 | C37: kg/dt Stroh | D37: 0.5 | E37: =D37 -> 0.5 | F37: 0.5 | G37: 0.5
A38: Phosphor | B38: =Stammdatenblatt!P131 -> 1.429608243 | C38: kg/dt Stroh | D38: 0.3 | E38: 0.3 | F38: 0.3 | G38: 0.3
A39: Kali | B39: =Stammdatenblatt!P132 -> 0.9499175 | C39: kg/dt Stroh | D39: 1.4 | E39: 1.4 | F39: 1.4 | G39: 1.4
A40: Kalk | B40: =Stammdatenblatt!P133 -> 0.05183111111 | C40: kg/dt Stroh | D40: 0.45 | E40: 0.45 | F40: 0.45 | G40: 0.45
A41: Magnesium | B41: =Stammdatenblatt!P134 -> 2.3205 | C41: kg/dt Stroh | D41: 0.2 | E41: 0.2 | F41: 0.2 | G41: 0.2
A42: Schwefel | B42: =Stammdatenblatt!P135 -> 1.0472 | C42: kg/dt Stroh | D42: 0.08 | E42: 0.08 | F42: 0.08 | G42: 0.08
A43: * Verrechnung des Düngewertes durch Strohabfuhr inkl. Ausbringung nach ÜMV-Verrechnungssätzen

Sheet Qualitätsweizen
B3: Landesbetrieb Landwirtschaft Hessen
A4: =IF(Stammdatenblatt!G6+Stammdatenblatt!D77+Stammdatenblatt!D112+Stammdatenblatt!B129+Stammdatenblatt!D140+Stammdatenblatt!C183+Stammdatenblatt!C221+Stammdatenblatt!C239=0,"Produktionsverfahren wurden netto gerechnet", "Produktionsverfahren wurden brutto gerechnet") -> Produktionsverfahren wurden brutto gerechnet | I4: =Wirtschaftsdünger!N4 -> Letztes (aktuelles) WJ.
K5: eigene
A6: Qualitätsweizen | E6: 2 ha | G6: 5 ha | I6: 20 ha | K6: Werte
A7: Leistung: Menge Hauptprodukt | C7: dt/ha | D7: 65 | E7: 80 | F7: 100 | G7: 80 | H7: 100 | I7: 80 | J7: 100 | K7: 0
A8: Preis Hauptprodukt | C8: € | D8: =+Stammdatenblatt!P11 -> 21.1288 | E8: =D8 -> 21.1288 | F8: =E8 -> 21.1288 | G8: =+F8 -> 21.1288 | H8: =G8 -> 21.1288 | I8: =+H8 -> 21.1288 | J8: =I8 -> 21.1288 | K8: 0
A9: Erlös Hauptprodukt | C9: €/ha | D9: =D7*D8 -> 1373.372 | E9: 1690.304 | F9: 2112.88 | G9: 1690.304 | H9: 2112.88 | I9: 1690.304 | J9: 2112.88 | K9: 0
A10: Erlös Nebenprodukt(e) | C10: €/ha | D10: 0 | E10: =D10 -> 0 | F10: =E10 -> 0 | G10: 0 | H10: =G10 -> 0 | I10: 0 | J10: =I10 -> 0 | K10: 0
A11: Leistungen | C11: €/ha | D11: =SUM(D9:D10) -> 1373.372 | E11: =SUM(E9:E10) -> 1690.304 | F11: 2112.88 | G11: 1690.304 | H11: 2112.88 | I11: 1690.304 | J11: 2112.88 | K11: 0
A12: Saatgutkosten | C12: €/ha | D12: =D43 -> 153.470432 | E12: 153.470432 | F12: 153.470432 | G12: 153.470432 | H12: 153.470432 | I12: 153.470432 | J12: 153.470432 | K12: =K43 -> 0
A13: Mineraldüngerkosten | C13: €/ha | D13: =D51 -> 404.6360013 | E13: 487.6190074 | F13: 585.2731886 | G13: 487.6190074 | H13: 585.2731886 | I13: 487.6190074 | J13: 585.2731886 | K13: =K51 -> 0
A14: Pflanzenbehandlungskosten | C14: €/ha | D14: =D56*(1+Stammdatenblatt!D112) -> 114.24 | E14: =E56*(1+Stammdatenblatt!D112) -> 164.22 | F14: =F56*(1+Stammdatenblatt!D112) -> 217.77 | G14: =G56*(1+Stammdatenblatt!D112) -> 164.22 | H14: =H56*(1+Stammdatenblatt!D112) -> 217.77 | I14: =I56*(1+Stammdatenblatt!D112) -> 164.22 | J14: =J56*(1+Stammdatenblatt!D112) -> 217.77 | K14: =K56 -> 0
A15: Versicherung | C15: €/ha | D15: =(D11/1000)*Stammdatenblatt!$P$190 -> 9.936621094 | E15: =(E11/1000)*Stammdatenblatt!$P$190 -> 12.2296875 | F15: =(F11/1000)*Stammdatenblatt!$P$190 -> 15.28710938 | G15: =(G11/1000)*Stammdatenblatt!$P$190 -> 12.2296875 | H15: =(H11/1000)*Stammdatenblatt!$P$190 -> 15.28710938 | I15: =(I11/1000)*Stammdatenblatt!$P$190 -> 12.2296875 | J15: =(J11/1000)*Stammdatenblatt!$P$190 -> 15.28710938 | K15: =(K11/1000)*Stammdatenblatt!$E$190 -> 0
A16: Trocknungs- und Konservierungskosten | C16: €/ha | D16: =(D7*Stammdatenblatt!$P$201+D7*(Stammdatenblatt!$P$202*4))/3 -> 105.196 | E16: =(E7*Stammdatenblatt!$P$201+E7*(Stammdatenblatt!$P$202*4))/3 -> 129.472 | F16: =(F7*Stammdatenblatt!$P$201+F7*(Stammdatenblatt!$P$202*4))/3 -> 161.84 | G16: =E16 -> 129.472 | H16: =F16 -> 161.84 | I16: =G16 -> 129.472 | J16: =H16 -> 161.84 | K16: 0
A17: Summe Direktkosten | C17: €/ha | D17: =SUM(D12:D16) -> 787.4790544 | E17: =SUM(E12:E16) -> 947.0111269 | F17: 1133.64073 | G17: 947.0111269 | H17: 1133.64073 | I17: 947.0111269 | J17: 1133.64073 | K17: =SUM(K12:K16) -> 0
A18: Direktkostenfreie Leistung | C18: €/ha | D18: =D11-D17 -> 585.8929456 | E18: =E11-E17 -> 743.2928731 | F18: 979.23927 | G18: 743.2928731 | H18: 979.23927 | I18: 743.2928731 | J18: 979.23927 | K18: 0
A19: Maschinenkosten eigen ** | C19: €/ha | D19: ='Arbeitsvorgänge-KTBL'!T76 -> 213.4720921 | E19: ='Arbeitsvorgänge-KTBL'!T156 -> 260.5320076 | F19: ='Arbeitsvorgänge-KTBL'!T245 -> 280.8536811 | G19: ='Arbeitsvorgänge-KTBL'!T328 -> 243.927936 | H19: ='Arbeitsvorgänge-KTBL'!T420 -> 261.5751163 | I19: ='Arbeitsvorgänge-KTBL'!T511 -> 224.9298867 | J19: ='Arbeitsvorgänge-KTBL'!T611 -> 242.1673727 | K19: 0
A20: Maschinenkosten fremd | C20: €/ha | D20: ='Arbeitsvorgänge-KTBL'!U76*(1+Stammdatenblatt!C239) -> 123.97 | E20: ='Arbeitsvorgänge-KTBL'!U156*(1+Stammdatenblatt!C239) -> 123.97 | F20: ='Arbeitsvorgänge-KTBL'!U245*(1+Stammdatenblatt!C239) -> 123.97 | G20: ='Arbeitsvorgänge-KTBL'!U328*(1+Stammdatenblatt!C239) -> 123.97 | H20: ='Arbeitsvorgänge-KTBL'!U420*(1+Stammdatenblatt!C239) -> 123.97 | I20: ='Arbeitsvorgänge-KTBL'!U511*(1+Stammdatenblatt!C239) -> 113.19 | J20: ='Arbeitsvorgänge-KTBL'!U611*(1+Stammdatenblatt!C239) -> 113.19 | K20: 0
A21: Lohnkosten | C21: €/ha | D21: 0 | E21: =D21 -> 0 | F21: =E21 -> 0 | G21: 0 | H21: =G21 -> 0 | I21: 0 | J21: =I21 -> 0 | K21: 0
A22: xxx | C22: €/ha | D22: 0 | E22: =D22 -> 0 | F22: =E22 -> 0 | G22: 0 | H22: =G22 -> 0 | I22: 0 | J22: =I22 -> 0 | K22: 0
A23: variable Kosten | C23: €/ha | D23: =SUM(D17,D19:D22) -> 1124.921147 | E23: =SUM(E17,E19:E22) -> 1331.513134 | F23: 1538.464411 | G23: 1314.909063 | H23: 1519.185846 | I23: 1285.131014 | J23: 1488.998103 | K23: 0
A24: Deckungsbeitrag (DB) | C24: €/ha | D24: =D11-D23 -> 248.4508534 | E24: 358.7908656 | F24: 574.4155889 | G24: 375.3949371 | H24: 593.6941537 | I24: 405.1729864 | J24: 623.8818973 | K24: 0
A25: Zeit-Spanne | B25: AK-Bedarf
A26: FEB | C26: Akh/ha | D26: =SUMIF('Arbeitsvorgänge-KTBL'!$B$9:$B$73,Qualitätsweizen!A26,'Arbeitsvorgänge-KTBL'!$G$9:$G$73) -> 0.33 | E26: =SUMIF('Arbeitsvorgänge-KTBL'!$B$88:$B$153,Qualitätsweizen!A26,'Arbeitsvorgänge-KTBL'!$G$88:$G$153) -> 0.37 | F26: =SUMIF('Arbeitsvorgänge-KTBL'!$B$168:$B$242,Qualitätsweizen!A26,'Arbeitsvorgänge-KTBL'!$G$168:$G$242) -> 0.39 | G26: =SUMIF('Arbeitsvorgänge-KTBL'!$B$257:$B$325,Qualitätsweizen!A26,'Arbeitsvorgänge-KTBL'!$G$257:$G$325) -> 0.32 | H26: =SUMIF('Arbeitsvorgänge-KTBL'!$B$340:$B$417,Qualitätsweizen!A26,'Arbeitsvorgänge-KTBL'!$G$340:$G$417) -> 0.35 | I26: =SUMIF('Arbeitsvorgänge-KTBL'!$B$432:$B$508,Qualitätsweizen!A26,'Arbeitsvorgänge-KTBL'!$G$432:$G$508) -> 0.2 | J26: =SUMIF('Arbeitsvorgänge-KTBL'!$B$523:$B$608,Qualitätsweizen!A26,'Arbeitsvorgänge-KTBL'!$G$523:$G$608) -> 0.21 | K26: 0
A27: MRZ | C27: Akh/ha | D27: =SUMIF('Arbeitsvorgänge-KTBL'!$B$9:$B$73,Qualitätsweizen!A27,'Arbeitsvorgänge-KTBL'!$G$9:$G$73) -> 0.13 | E27: =SUMIF('Arbeitsvorgänge-KTBL'!$B$88:$B$153,Qualitätsweizen!A27,'Arbeitsvorgänge-KTBL'!$G$88:$G$153) -> 0.13 | F27: =SUMIF('Arbeitsvorgänge-KTBL'!$B$168:$B$242,Qualitätsweizen!A27,'Arbeitsvorgänge-KTBL'!$G$168:$G$242) -> 0.13 | G27: =SUMIF('Arbeitsvorgänge-KTBL'!$B$257:$B$325,Qualitätsweizen!A27,'Arbeitsvorgänge-KTBL'!$G$257:$G$325) -> 0.11 | H27: =SUMIF('Arbeitsvorgänge-KTBL'!$B$340:$B$417,Qualitätsweizen!A27,'Arbeitsvorgänge-KTBL'!$G$340:$G$417) -> 0.11 | I27: =SUMIF('Arbeitsvorgänge-KTBL'!$B$432:$B$508,Qualitätsweizen!A27,'Arbeitsvorgänge-KTBL'!$G$432:$G$508) -> 0.1 | J27: =SUMIF('Arbeitsvorgänge-KTBL'!$B$523:$B$608,Qualitätsweizen!A27,'Arbeitsvorgänge-KTBL'!$G$523:$G$608) -> 0.1 | K27: 0
A28: APR | C28: Akh/ha | D28: =SUMIF('Arbeitsvorgänge-KTBL'!$B$9:$B$73,Qualitätsweizen!A28,'Arbeitsvorgänge-KTBL'!$G$9:$G$73) -> 0.74 | E28: =SUMIF('Arbeitsvorgänge-KTBL'!$B$88:$B$153,Qualitätsweizen!A28,'Arbeitsvorgänge-KTBL'!$G$88:$G$153) -> 0.74 | F28: =SUMIF('Arbeitsvorgänge-KTBL'!$B$168:$B$242,Qualitätsweizen!A28,'Arbeitsvorgänge-KTBL'!$G$168:$G$242) -> 0.9 | G28: =SUMIF('Arbeitsvorgänge-KTBL'!$B$257:$B$325,Qualitätsweizen!A28,'Arbeitsvorgänge-KTBL'!$G$257:$G$325) -> 0.52 | H28: =SUMIF('Arbeitsvorgänge-KTBL'!$B$340:$B$417,Qualitätsweizen!A28,'Arbeitsvorgänge-KTBL'!$G$340:$G$417) -> 0.65 | I28: =SUMIF('Arbeitsvorgänge-KTBL'!$B$432:$B$508,Qualitätsweizen!A28,'Arbeitsvorgänge-KTBL'!$G$432:$G$508) -> 0.37 | J28: =SUMIF('Arbeitsvorgänge-KTBL'!$B$523:$B$608,Qualitätsweizen!A28,'Arbeitsvorgänge-KTBL'!$G$523:$G$608) -> 0.43 | K28: 0
A29: MAI | C29: Akh/ha | D29: =SUMIF('Arbeitsvorgänge-KTBL'!$B$9:$B$73,Qualitätsweizen!A29,'Arbeitsvorgänge-KTBL'!$G$9:$G$73) -> 0.13 | E29: =SUMIF('Arbeitsvorgänge-KTBL'!$B$88:$B$153,Qualitätsweizen!A29,'Arbeitsvorgänge-KTBL'!$G$88:$G$153) -> 0.13 | F29: =SUMIF('Arbeitsvorgänge-KTBL'!$B$168:$B$242,Qualitätsweizen!A29,'Arbeitsvorgänge-KTBL'!$G$168:$G$242) -> 0.42 | G29: =SUMIF('Arbeitsvorgänge-KTBL'!$B$257:$B$325,Qualitätsweizen!A29,'Arbeitsvorgänge-KTBL'!$G$257:$G$325) -> 0.11 | H29: =SUMIF('Arbeitsvorgänge-KTBL'!$B$340:$B$417,Qualitätsweizen!A29,'Arbeitsvorgänge-KTBL'!$G$340:$G$417) -> 0.35 | I29: =SUMIF('Arbeitsvorgänge-KTBL'!$B$432:$B$508,Qualitätsweizen!A29,'Arbeitsvorgänge-KTBL'!$G$432:$G$508) -> 0.1 | J29: =SUMIF('Arbeitsvorgänge-KTBL'!$B$523:$B$608,Qualitätsweizen!A29,'Arbeitsvorgänge-KTBL'!$G$523:$G$608) -> 0.26 | K29: 0
A30: JUN | C30: Akh/ha | D30: =SUMIF('Arbeitsvorgänge-KTBL'!$B$9:$B$73,Qualitätsweizen!A30,'Arbeitsvorgänge-KTBL'!$G$9:$G$73) -> 0.46 | E30: =SUMIF('Arbeitsvorgänge-KTBL'!$B$88:$B$153,Qualitätsweizen!A30,'Arbeitsvorgänge-KTBL'!$G$88:$G$153) -> 0.46 | F30: =SUMIF('Arbeitsvorgänge-KTBL'!$B$168:$B$242,Qualitätsweizen!A30,'Arbeitsvorgänge-KTBL'!$G$168:$G$242) -> 0.44 | G30: =SUMIF('Arbeitsvorgänge-KTBL'!$B$257:$B$325,Qualitätsweizen!A30,'Arbeitsvorgänge-KTBL'!$G$257:$G$325) -> 0.33 | H30: =SUMIF('Arbeitsvorgänge-KTBL'!$B$340:$B$417,Qualitätsweizen!A30,'Arbeitsvorgänge-KTBL'!$G$340:$G$417) -> 0.32 | I30: =SUMIF('Arbeitsvorgänge-KTBL'!$B$432:$B$508,Qualitätsweizen!A30,'Arbeitsvorgänge-KTBL'!$G$432:$G$508) -> 0.22 | J30: =SUMIF('Arbeitsvorgänge-KTBL'!$B$523:$B$608,Qualitätsweizen!A30,'Arbeitsvorgänge-KTBL'!$G$523:$G$608) -> 0.21 | K30: 0
A31: JUL | C31: Akh/ha | D31: =SUMIF('Arbeitsvorgänge-KTBL'!$B$9:$B$73,Qualitätsweizen!A31,'Arbeitsvorgänge-KTBL'!$G$9:$G$73) -> 0 | E31: =SUMIF('Arbeitsvorgänge-KTBL'!$B$88:$B$153,Qualitätsweizen!A31,'Arbeitsvorgänge-KTBL'!$G$88:$G$153) -> 0 | F31: =SUMIF('Arbeitsvorgänge-KTBL'!$B$168:$B$242,Qualitätsweizen!A31,'Arbeitsvorgänge-KTBL'!$G$168:$G$242) -> 0 | G31: =SUMIF('Arbeitsvorgänge-KTBL'!$B$257:$B$325,Qualitätsweizen!A31,'Arbeitsvorgänge-KTBL'!$G$257:$G$325) -> 0 | H31: =SUMIF('Arbeitsvorgänge-KTBL'!$B$340:$B$417,Qualitätsweizen!A31,'Arbeitsvorgänge-KTBL'!$G$340:$G$417) -> 0 | I31: =SUMIF('Arbeitsvorgänge-KTBL'!$B$432:$B$508,Qualitätsweizen!A31,'Arbeitsvorgänge-KTBL'!$G$432:$G$508) -> 0 | J31: =SUMIF('Arbeitsvorgänge-KTBL'!$B$523:$B$608,Qualitätsweizen!A31,'Arbeitsvorgänge-KTBL'!$G$523:$G$608) -> 0 | K31: 0
A32: AUG | C32: Akh/ha | D32: =SUMIF('Arbeitsvorgänge-KTBL'!$B$9:$B$73,Qualitätsweizen!A32,'Arbeitsvorgänge-KTBL'!$G$9:$G$73) -> 1.9 | E32: =SUMIF('Arbeitsvorgänge-KTBL'!$B$88:$B$153,Qualitätsweizen!A32,'Arbeitsvorgänge-KTBL'!$G$88:$G$153) -> 2.27 | F32: =SUMIF('Arbeitsvorgänge-KTBL'!$B$168:$B$242,Qualitätsweizen!A32,'Arbeitsvorgänge-KTBL'!$G$168:$G$242) -> 2.51 | G32: =SUMIF('Arbeitsvorgänge-KTBL'!$B$257:$B$325,Qualitätsweizen!A32,'Arbeitsvorgänge-KTBL'!$G$257:$G$325) -> 1.85 | H32: =SUMIF('Arbeitsvorgänge-KTBL'!$B$340:$B$417,Qualitätsweizen!A32,'Arbeitsvorgänge-KTBL'!$G$340:$G$417) -> 2.16 | I32: =SUMIF('Arbeitsvorgänge-KTBL'!$B$432:$B$508,Qualitätsweizen!A32,'Arbeitsvorgänge-KTBL'!$G$432:$G$508) -> 1.2 | J32: =SUMIF('Arbeitsvorgänge-KTBL'!$B$523:$B$608,Qualitätsweizen!A32,'Arbeitsvorgänge-KTBL'!$G$523:$G$608) -> 1.4 | K32: 0
A33: SEP | C33: Akh/ha | D33: =SUMIF('Arbeitsvorgänge-KTBL'!$B$9:$B$73,Qualitätsweizen!A33,'Arbeitsvorgänge-KTBL'!$G$9:$G$73) -> 3.07 | E33: =SUMIF('Arbeitsvorgänge-KTBL'!$B$88:$B$153,Qualitätsweizen!A33,'Arbeitsvorgänge-KTBL'!$G$88:$G$153) -> 3.11 | F33: =SUMIF('Arbeitsvorgänge-KTBL'!$B$168:$B$242,Qualitätsweizen!A33,'Arbeitsvorgänge-KTBL'!$G$168:$G$242) -> 3.14 | G33: =SUMIF('Arbeitsvorgänge-KTBL'!$B$257:$B$325,Qualitätsweizen!A33,'Arbeitsvorgänge-KTBL'!$G$257:$G$325) -> 2.32 | H33: =SUMIF('Arbeitsvorgänge-KTBL'!$B$340:$B$417,Qualitätsweizen!A33,'Arbeitsvorgänge-KTBL'!$G$340:$G$417) -> 2.35 | I33: =SUMIF('Arbeitsvorgänge-KTBL'!$B$432:$B$508,Qualitätsweizen!A33,'Arbeitsvorgänge-KTBL'!$G$432:$G$508) -> 1.57 | J33: =SUMIF('Arbeitsvorgänge-KTBL'!$B$523:$B$608,Qualitätsweizen!A33,'Arbeitsvorgänge-KTBL'!$G$523:$G$608) -> 1.58 | K33: 0
A34: OKT | C34: Akh/ha | D34: =SUMIF('Arbeitsvorgänge-KTBL'!$B$9:$B$73,Qualitätsweizen!A34,'Arbeitsvorgänge-KTBL'!$G$9:$G$73) -> 1.83 | E34: =SUMIF('Arbeitsvorgänge-KTBL'!$B$88:$B$153,Qualitätsweizen!A34,'Arbeitsvorgänge-KTBL'!$G$88:$G$153) -> 1.83 | F34: =SUMIF('Arbeitsvorgänge-KTBL'!$B$168:$B$242,Qualitätsweizen!A34,'Arbeitsvorgänge-KTBL'!$G$168:$G$242) -> 1.83 | G34: =SUMIF('Arbeitsvorgänge-KTBL'!$B$257:$B$325,Qualitätsweizen!A34,'Arbeitsvorgänge-KTBL'!$G$257:$G$325) -> 1.31 | H34: =SUMIF('Arbeitsvorgänge-KTBL'!$B$340:$B$417,Qualitätsweizen!A34,'Arbeitsvorgänge-KTBL'!$G$340:$G$417) -> 1.31 | I34: =SUMIF('Arbeitsvorgänge-KTBL'!$B$432:$B$508,Qualitätsweizen!A34,'Arbeitsvorgänge-KTBL'!$G$432:$G$508) -> 0.85 | J34: =SUMIF('Arbeitsvorgänge-KTBL'!$B$523:$B$608,Qualitätsweizen!A34,'Arbeitsvorgänge-KTBL'!$G$523:$G$608) -> 0.85 | K34: 0
A35: NOV | C35: Akh/ha | D35: =SUMIF('Arbeitsvorgänge-KTBL'!$B$9:$B$73,Qualitätsweizen!A35,'Arbeitsvorgänge-KTBL'!$G$9:$G$73) -> 0 | E35: =SUMIF('Arbeitsvorgänge-KTBL'!$B$88:$B$153,Qualitätsweizen!A35,'Arbeitsvorgänge-KTBL'!$G$88:$G$153) -> 0 | F35: =SUMIF('Arbeitsvorgänge-KTBL'!$B$168:$B$242,Qualitätsweizen!A35,'Arbeitsvorgänge-KTBL'!$G$168:$G$242) -> 0 | G35: =SUMIF('Arbeitsvorgänge-KTBL'!$B$257:$B$325,Qualitätsweizen!A35,'Arbeitsvorgänge-KTBL'!$G$257:$G$325) -> 0 | H35: =SUMIF('Arbeitsvorgänge-KTBL'!$B$340:$B$417,Qualitätsweizen!A35,'Arbeitsvorgänge-KTBL'!$G$340:$G$417) -> 0 | I35: =SUMIF('Arbeitsvorgänge-KTBL'!$B$432:$B$508,Qualitätsweizen!A35,'Arbeitsvorgänge-KTBL'!$G$432:$G$508) -> 0 | J35: =SUMIF('Arbeitsvorgänge-KTBL'!$B$523:$B$608,Qualitätsweizen!A35,'Arbeitsvorgänge-KTBL'!$G$523:$G$608) -> 0 | K35: 0
A36: REST | C36: Akh/ha | D36: =SUMIF('Arbeitsvorgänge-KTBL'!$B$9:$B$73,Qualitätsweizen!A36,'Arbeitsvorgänge-KTBL'!$G$9:$G$73) -> 0 | E36: =SUMIF('Arbeitsvorgänge-KTBL'!$B$88:$B$153,Qualitätsweizen!A36,'Arbeitsvorgänge-KTBL'!$G$88:$G$153) -> 0 | F36: =SUMIF('Arbeitsvorgänge-KTBL'!$B$168:$B$242,Qualitätsweizen!A36,'Arbeitsvorgänge-KTBL'!$G$168:$G$242) -> 0 | G36: =SUMIF('Arbeitsvorgänge-KTBL'!$B$257:$B$325,Qualitätsweizen!A36,'Arbeitsvorgänge-KTBL'!$G$257:$G$325) -> 0 | H36: =SUMIF('Arbeitsvorgänge-KTBL'!$B$340:$B$417,Qualitätsweizen!A36,'Arbeitsvorgänge-KTBL'!$G$340:$G$417) -> 0 | I36: =SUMIF('Arbeitsvorgänge-KTBL'!$B$432:$B$508,Qualitätsweizen!A36,'Arbeitsvorgänge-KTBL'!$G$432:$G$508) -> 0 | J36: =SUMIF('Arbeitsvorgänge-KTBL'!$B$523:$B$608,Qualitätsweizen!A36,'Arbeitsvorgänge-KTBL'!$G$523:$G$608) -> 0 | K36: 0
A37: Arbeitskraftstunden | C37: AKh/ha | D37: =SUM(D26:D36) -> 8.59 | E37: 9.04 | F37: 9.76 | G37: 6.87 | H37: 7.6 | I37: 4.61 | J37: 5.04 | K37: 0
A38: DB (je Akh) | C38: €/AKh | D38: =IF(D24>0,D24/D37,0) -> 28.92326583 | E38: =IF(E24>0,E24/E37,0) -> 39.68925504 | F38: 58.85405624 | G38: 54.64264004 | H38: 78.1176518 | I38: 87.89001874 | J38: 123.7860907 | K38: 0
A39: Aussaatmenge | C39: kg/ha | D39: 200 | E39: =D39 -> 200 | F39: 200 | G39: 200 | H39: =G39 -> 200 | I39: 200 | J39: 200 | K39: 0
A40: davon Zukaufsaatgut | C40: % | D40: 68 | E40: 68 | F40: 68 | G40: 68 | H40: =G40 -> 68 | I40: 68 | J40: =I40 -> 68 | K40: 0
A41: Saatgutpreis Eigen | C41: €/dt | D41: =D8+Stammdatenblatt!$K$186 -> 28.3388 | E41: =E8+Stammdatenblatt!$K$186 -> 28.3388 | F41: =F8+Stammdatenblatt!$K$186 -> 28.3388 | G41: =G8+Stammdatenblatt!$K$186 -> 28.3388 | H41: =H8+Stammdatenblatt!$K$186 -> 28.3388 | I41: =I8+Stammdatenblatt!$K$186 -> 28.3388 | J41: =J8+Stammdatenblatt!$K$186 -> 28.3388 | K41: 0
A42: Zukauf | C42: €/dt | D42: =+Stammdatenblatt!P78 -> 99.51 | E42: 99.51 | F42: 99.51 | G42: =+F42 -> 99.51 | H42: =G42 -> 99.51 | I42: =+H42 -> 99.51 | J42: =I42 -> 99.51 | K42: 0
A43: Saatgutkosten | C43: €/ha | D43: =D40/100*(D39*D42)/100+((100-D40)/100*D39*D41/100) -> 153.470432 | E43: =E40/100*(E39*E42)/100+((100-E40)/100*E39*E41/100) -> 153.470432 | F43: 153.470432 | G43: 153.470432 | H43: 153.470432 | I43: 153.470432 | J43: 153.470432 | K43: 0
A44: Dünger: | B44: €/kg | D44: Düngerbedarf/ha (in kg Reinnährstoff) nach Düngerabfuhr LfL Deckungsbeiträge 2024
A45: =+Stammdatenblatt!A130 -> Stickstoff | B45: =+Stammdatenblatt!P130 -> 1.365948973 | C45: Aufw./ha | D45: 137 | E45: 169 | F45: 211 | G45: 169 | H45: 211 | I45: 169 | J45: 211 | K45: 0
A46: =+Stammdatenblatt!A131 -> Phosphor | B46: =+Stammdatenblatt!P131 -> 1.429608243 | C46: Aufw./ha | D46: 52 | E46: 64 | F46: 80 | G46: 64 | H46: 80 | I46: 64 | J46: 80 | K46: 0
A47: =+Stammdatenblatt!A132 -> Kali | B47: =+Stammdatenblatt!P132 -> 0.9499175 | C47: Aufw./ha | D47: 36 | E47: 44 | F47: 55 | G47: 44 | H47: 55 | I47: 44 | J47: 55 | K47: 0
A48: =+Stammdatenblatt!A133 -> Kalk | B48: =+Stammdatenblatt!P133 -> 0.05183111111 | C48: Aufw./ha | D48: 300 | E48: =D48 -> 300 | F48: =E48 -> 300 | G48: 300 | H48: =G48 -> 300 | I48: 300 | J48: =I48 -> 300 | K48: 0
A49: =+Stammdatenblatt!A134 -> Magnesium | B49: =+Stammdatenblatt!P134 -> 2.3205 | C49: Aufw./ha | D49: 38 | E49: 42 | F49: 45 | G49: 42 | H49: 45 | I49: 42 | J49: 45 | K49: 0
A50: =+Stammdatenblatt!A135 -> Schwefel | B50: =+Stammdatenblatt!P135 -> 1.0472 | C50: Aufw./ha | D50: 5 | E50: 10 | F50: 10 | G50: 10 | H50: 10 | I50: 10 | J50: 10 | K50: 0
A51: Mineraldüngerkosten | C51: €/ha | D51: =D45*$B$45+D46*$B$46+D47*$B$47+D48*$B$48+D49*$B$49+D50*$B$50 -> 404.6360013 | E51: =E45*$B$45+E46*$B$46+E47*$B$47+E48*$B$48+E49*$B$49+E50*$B$50 -> 487.6190074 | F51: 585.2731886 | G51: 487.6190074 | H51: 585.2731886 | I51: 487.6190074 | J51: 585.2731886 | K51: 0
A52: Herbizide | C52: €/ha | D52: 40 | E52: 50 | F52: 50 | G52: 50 | H52: 50 | I52: 50 | J52: 50 | K52: 0
A53: Fungizide | C53: €/ha | D53: 50 | E53: 70 | F53: 96 | G53: 70 | H53: 96 | I53: 70 | J53: 96 | K53: 0
A54: Insektizide | C54: €/ha | D54: 0 | E54: 7 | F54: 22 | G54: 7 | H54: 22 | I54: 7 | J54: 22 | K54: 0
A55: Wachstumsregler | C55: €/ha | D55: 6 | E55: 11 | F55: 15 | G55: 11 | H55: 15 | I55: 11 | J55: 15 | K55: 0
A56: Pflanzenbehandlungskosten* | C56: €/ha | D56: =SUM(D52:D55) -> 96 | E56: 138 | F56: 183 | G56: 138 | H56: 183 | I56: 138 | J56: 183 | K56: 0
A57: *bei stärkeren Ackerfuchsschwanzbesatz ist mit Mehrausgaben von 35 €/ha zu rechnen.
A58: **variable Kosten in Anlehnung an KTBL-Richtwerte für Arbeitsgänge incl. Zinsanspruch für 3 Monate

Sheet Futterweizen
B3: Landesbetrieb Landwirtschaft Hessen
A4: =IF(Stammdatenblatt!G6+Stammdatenblatt!D77+Stammdatenblatt!D112+Stammdatenblatt!B129+Stammdatenblatt!D140+Stammdatenblatt!C183+Stammdatenblatt!C221+Stammdatenblatt!C239=0,"Produktionsverfahren wurden netto gerechnet", "Produktionsverfahren wurden brutto gerechnet") -> Produktionsverfahren wurden brutto gerechnet | I4: =Wirtschaftsdünger!N4 -> Letztes (aktuelles) WJ.
K5: eigene
A6: Futterweizen | E6: 2 ha | G6: 5 ha | I6: 20 ha | K6: Werte
A7: Leistung: Menge Hauptprodukt | C7: dt/ha | D7: 60 | E7: 80 | F7: 100 | G7: 80 | H7: 100 | I7: 80 | J7: 100 | K7: 0
A8: Preis Hauptprodukt | C8: €/dt | D8: =+Stammdatenblatt!P13 -> 18.44458 | E8: =+D8 -> 18.44458 | F8: =E8 -> 18.44458 | G8: =+F8 -> 18.44458 | H8: =G8 -> 18.44458 | I8: =+H8 -> 18.44458 | J8: =I8 -> 18.44458 | K8: 0
A9: Erlös Hauptprodukt | C9: €/ha | D9: =D7*D8 -> 1106.6748 | E9: 1475.5664 | F9: 1844.458 | G9: 1475.5664 | H9: 1844.458 | I9: 1475.5664 | J9: 1844.458 | K9: 0
A10: Erlös Nebenprodukt(e) | C10: €/ha | D10: 0 | E10: =D10 -> 0 | F10: =E10 -> 0 | G10: 0 | H10: =G10 -> 0 | I10: 0 | J10: =I10 -> 0 | K10: 0
A11: Leistungen | C11: €/ha | D11: =D9+D10 -> 1106.6748 | E11: =E10+E9 -> 1475.5664 | F11: 1844.458 | G11: 1475.5664 | H11: 1844.458 | I11: 1475.5664 | J11: 1844.458 | K11: 0
A12: Saatgutkosten | C12: €/ha | D12: =D43 -> 151.7525312 | E12: 151.7525312 | F12: 151.7525312 | G12: 151.7525312 | H12: 151.7525312 | I12: 151.7525312 | J12: 151.7525312 | K12: =K43 -> 0
A13: Mineraldüngerkosten | C13: €/ha | D13: =D51 -> 382.4083261 | E13: 487.6190074 | F13: 585.2731886 | G13: 487.6190074 | H13: 585.2731886 | I13: 487.6190074 | J13: 585.2731886 | K13: =K51 -> 0
A14: Pflanzenbehandlungskosten | C14: €/ha | D14: =D56*(1+Stammdatenblatt!D112) -> 114.24 | E14: =E56*(1+Stammdatenblatt!D112) -> 164.22 | F14: =F56*(1+Stammdatenblatt!D112) -> 217.77 | G14: =G56*(1+Stammdatenblatt!D112) -> 164.22 | H14: =H56*(1+Stammdatenblatt!D112) -> 217.77 | I14: =I56*(1+Stammdatenblatt!D112) -> 164.22 | J14: =J56*(1+Stammdatenblatt!D112) -> 217.77 | K14: =K56 -> 0
A15: Versicherung | C15: €/ha | D15: =(D11/1000)*Stammdatenblatt!$P$190 -> 8.007013513 | E15: =(E11/1000)*Stammdatenblatt!$P$190 -> 10.67601802 | F15: =(F11/1000)*Stammdatenblatt!$P$190 -> 13.34502252 | G15: =(G11/1000)*Stammdatenblatt!$P$190 -> 10.67601802 | H15: =(H11/1000)*Stammdatenblatt!$P$190 -> 13.34502252 | I15: =(I11/1000)*Stammdatenblatt!$P$190 -> 10.67601802 | J15: =(J11/1000)*Stammdatenblatt!$P$190 -> 13.34502252 | K15: =(K11/1000)*Stammdatenblatt!$E$190 -> 0
A16: Trocknungskosten | C16: €/ha | D16: =(D7*Stammdatenblatt!$P$201+D7*(Stammdatenblatt!$P$202*4))/3 -> 97.104 | E16: =(E7*Stammdatenblatt!$P$201+E7*(Stammdatenblatt!$P$202*4))/3 -> 129.472 | F16: =(F7*Stammdatenblatt!$P$201+F7*(Stammdatenblatt!$P$202*4))/3 -> 161.84 | G16: =E16 -> 129.472 | H16: =F16 -> 161.84 | I16: =G16 -> 129.472 | J16: =H16 -> 161.84 | K16: =K7/Stammdatenblatt!$E$204*Stammdatenblatt!$E$201+(Stammdatenblatt!$E$203*Stammdatenblatt!$E$202) -> 1.08
A17: Summe Direktkosten | C17: €/ha | D17: =SUM(D12:D16) -> 753.5118708 | E17: =SUM(E12:E16) -> 943.7395566 | F17: 1129.980742 | G17: 943.7395566 | H17: 1129.980742 | I17: 943.7395566 | J17: 1129.980742 | K17: 1.08
A18: Direktkostenfreie Leistung | C18: €/ha | D18: =D11-D17 -> 353.1629292 | E18: 531.8268434 | F18: 714.4772576 | G18: 531.8268434 | H18: 714.4772576 | I18: 531.8268434 | J18: 714.4772576 | K18: -1.08
A19: Maschinenkosten eigen * | C19: €/ha | D19: ='Arbeitsvorgänge-KTBL'!T76 -> 213.4720921 | E19: ='Arbeitsvorgänge-KTBL'!T156 -> 260.5320076 | F19: ='Arbeitsvorgänge-KTBL'!T245 -> 280.8536811 | G19: ='Arbeitsvorgänge-KTBL'!T328 -> 243.927936 | H19: ='Arbeitsvorgänge-KTBL'!T420 -> 261.5751163 | I19: ='Arbeitsvorgänge-KTBL'!T511 -> 224.9298867 | J19: ='Arbeitsvorgänge-KTBL'!T611 -> 242.1673727 | K19: 0
A20: Maschinenkosten fremd | C20: €/ha | D20: ='Arbeitsvorgänge-KTBL'!U76*(1+Stammdatenblatt!C239) -> 123.97 | E20: ='Arbeitsvorgänge-KTBL'!U156*(1+Stammdatenblatt!C239) -> 123.97 | F20: ='Arbeitsvorgänge-KTBL'!U245*(1+Stammdatenblatt!C239) -> 123.97 | G20: ='Arbeitsvorgänge-KTBL'!U328*(1+Stammdatenblatt!C239) -> 123.97 | H20: ='Arbeitsvorgänge-KTBL'!U420*(1+Stammdatenblatt!C239) -> 123.97 | I20: ='Arbeitsvorgänge-KTBL'!U511*(1+Stammdatenblatt!C239) -> 113.19 | J20: ='Arbeitsvorgänge-KTBL'!U611*(1+Stammdatenblatt!C239) -> 113.19 | K20: 0
A21: Lohnkosten | C21: €/ha | D21: 0 | E21: =D21 -> 0 | F21: =E21 -> 0 | G21: 0 | H21: =G21 -> 0 | I21: 0 | J21: =I21 -> 0 | K21: 0
A22: xxx | C22: €/ha | D22: 0 | E22: =D22 -> 0 | F22: =E22 -> 0 | G22: 0 | H22: =G22 -> 0 | I22: 0 | J22: =I22 -> 0 | K22: 0
A23: variable Kosten | C23: €/ha | D23: =SUM(D19:D22,D17) -> 1090.953963 | E23: =SUM(E19:E22,E17) -> 1328.241564 | F23: 1534.804423 | G23: 1311.637493 | H23: 1515.525859 | I23: 1281.859443 | J23: 1485.338115 | K23: 1.08
A24: Deckungsbeitrag (DB) | C24: €/ha | D24: =D11-D23 -> 15.72083703 | E24: 147.3248359 | F24: 309.6535765 | G24: 163.9289074 | H24: 328.9321413 | I24: 193.7069567 | J24: 359.1198849 | K24: -1.08
A25: Zeit-Spanne | B25: AK-Bedarf
A26: FEB | C26: Akh/ha | D26: =SUMIF('Arbeitsvorgänge-KTBL'!$B$9:$B$73,Qualitätsweizen!A26,'Arbeitsvorgänge-KTBL'!$G$9:$G$73) -> 0.33 | E26: =SUMIF('Arbeitsvorgänge-KTBL'!$B$88:$B$153,Qualitätsweizen!A26,'Arbeitsvorgänge-KTBL'!$G$88:$G$153) -> 0.37 | F26: =SUMIF('Arbeitsvorgänge-KTBL'!$B$168:$B$242,Qualitätsweizen!A26,'Arbeitsvorgänge-KTBL'!$G$168:$G$242) -> 0.39 | G26: =SUMIF('Arbeitsvorgänge-KTBL'!$B$257:$B$325,Qualitätsweizen!A26,'Arbeitsvorgänge-KTBL'!$G$257:$G$325) -> 0.32 | H26: =SUMIF('Arbeitsvorgänge-KTBL'!$B$340:$B$417,Qualitätsweizen!A26,'Arbeitsvorgänge-KTBL'!$G$340:$G$417) -> 0.35 | I26: =SUMIF('Arbeitsvorgänge-KTBL'!$B$432:$B$508,Qualitätsweizen!A26,'Arbeitsvorgänge-KTBL'!$G$432:$G$508) -> 0.2 | J26: =SUMIF('Arbeitsvorgänge-KTBL'!$B$523:$B$608,Qualitätsweizen!A26,'Arbeitsvorgänge-KTBL'!$G$523:$G$608) -> 0.21 | K26: 0
A27: MRZ | C27: Akh/ha | D27: =SUMIF('Arbeitsvorgänge-KTBL'!$B$9:$B$73,Qualitätsweizen!A27,'Arbeitsvorgänge-KTBL'!$G$9:$G$73) -> 0.13 | E27: =SUMIF('Arbeitsvorgänge-KTBL'!$B$88:$B$153,Qualitätsweizen!A27,'Arbeitsvorgänge-KTBL'!$G$88:$G$153) -> 0.13 | F27: =SUMIF('Arbeitsvorgänge-KTBL'!$B$168:$B$242,Qualitätsweizen!A27,'Arbeitsvorgänge-KTBL'!$G$168:$G$242) -> 0.13 | G27: =SUMIF('Arbeitsvorgänge-KTBL'!$B$257:$B$325,Qualitätsweizen!A27,'Arbeitsvorgänge-KTBL'!$G$257:$G$325) -> 0.11 | H27: =SUMIF('Arbeitsvorgänge-KTBL'!$B$340:$B$417,Qualitätsweizen!A27,'Arbeitsvorgänge-KTBL'!$G$340:$G$417) -> 0.11 | I27: =SUMIF('Arbeitsvorgänge-KTBL'!$B$432:$B$508,Qualitätsweizen!A27,'Arbeitsvorgänge-KTBL'!$G$432:$G$508) -> 0.1 | J27: =SUMIF('Arbeitsvorgänge-KTBL'!$B$523:$B$608,Qualitätsweizen!A27,'Arbeitsvorgänge-KTBL'!$G$523:$G$608) -> 0.1 | K27: 0
A28: APR | C28: Akh/ha | D28: =SUMIF('Arbeitsvorgänge-KTBL'!$B$9:$B$73,Qualitätsweizen!A28,'Arbeitsvorgänge-KTBL'!$G$9:$G$73) -> 0.74 | E28: =SUMIF('Arbeitsvorgänge-KTBL'!$B$88:$B$153,Qualitätsweizen!A28,'Arbeitsvorgänge-KTBL'!$G$88:$G$153) -> 0.74 | F28: =SUMIF('Arbeitsvorgänge-KTBL'!$B$168:$B$242,Qualitätsweizen!A28,'Arbeitsvorgänge-KTBL'!$G$168:$G$242) -> 0.9 | G28: =SUMIF('Arbeitsvorgänge-KTBL'!$B$257:$B$325,Qualitätsweizen!A28,'Arbeitsvorgänge-KTBL'!$G$257:$G$325) -> 0.52 | H28: =SUMIF('Arbeitsvorgänge-KTBL'!$B$340:$B$417,Qualitätsweizen!A28,'Arbeitsvorgänge-KTBL'!$G$340:$G$417) -> 0.65 | I28: =SUMIF('Arbeitsvorgänge-KTBL'!$B$432:$B$508,Qualitätsweizen!A28,'Arbeitsvorgänge-KTBL'!$G$432:$G$508) -> 0.37 | J28: =SUMIF('Arbeitsvorgänge-KTBL'!$B$523:$B$608,Qualitätsweizen!A28,'Arbeitsvorgänge-KTBL'!$G$523:$G$608) -> 0.43 | K28: 0
A29: MAI | C29: Akh/ha | D29: =SUMIF('Arbeitsvorgänge-KTBL'!$B$9:$B$73,Qualitätsweizen!A29,'Arbeitsvorgänge-KTBL'!$G$9:$G$73) -> 0.13 | E29: =SUMIF('Arbeitsvorgänge-KTBL'!$B$88:$B$153,Qualitätsweizen!A29,'Arbeitsvorgänge-KTBL'!$G$88:$G$153) -> 0.13 | F29: =SUMIF('Arbeitsvorgänge-KTBL'!$B$168:$B$242,Qualitätsweizen!A29,'Arbeitsvorgänge-KTBL'!$G$168:$G$242) -> 0.42 | G29: =SUMIF('Arbeitsvorgänge-KTBL'!$B$257:$B$325,Qualitätsweizen!A29,'Arbeitsvorgänge-KTBL'!$G$257:$G$325) -> 0.11 | H29: =SUMIF('Arbeitsvorgänge-KTBL'!$B$340:$B$417,Qualitätsweizen!A29,'Arbeitsvorgänge-KTBL'!$G$340:$G$417) -> 0.35 | I29: =SUMIF('Arbeitsvorgänge-KTBL'!$B$432:$B$508,Qualitätsweizen!A29,'Arbeitsvorgänge-KTBL'!$G$432:$G$508) -> 0.1 | J29: =SUMIF('Arbeitsvorgänge-KTBL'!$B$523:$B$608,Qualitätsweizen!A29,'Arbeitsvorgänge-KTBL'!$G$523:$G$608) -> 0.26 | K29: 0
A30: JUN | C30: Akh/ha | D30: =SUMIF('Arbeitsvorgänge-KTBL'!$B$9:$B$73,Qualitätsweizen!A30,'Arbeitsvorgänge-KTBL'!$G$9:$G$73) -> 0.46 | E30: =SUMIF('Arbeitsvorgänge-KTBL'!$B$88:$B$153,Qualitätsweizen!A30,'Arbeitsvorgänge-KTBL'!$G$88:$G$153) -> 0.46 | F30: =SUMIF('Arbeitsvorgänge-KTBL'!$B$168:$B$242,Qualitätsweizen!A30,'Arbeitsvorgänge-KTBL'!$G$168:$G$242) -> 0.44 | G30: =SUMIF('Arbeitsvorgänge-KTBL'!$B$257:$B$325,Qualitätsweizen!A30,'Arbeitsvorgänge-KTBL'!$G$257:$G$325) -> 0.33 | H30: =SUMIF('Arbeitsvorgänge-KTBL'!$B$340:$B$417,Qualitätsweizen!A30,'Arbeitsvorgänge-KTBL'!$G$340:$G$417) -> 0.32 | I30: =SUMIF('Arbeitsvorgänge-KTBL'!$B$432:$B$508,Qualitätsweizen!A30,'Arbeitsvorgänge-KTBL'!$G$432:$G$508) -> 0.22 | J30: =SUMIF('Arbeitsvorgänge-KTBL'!$B$523:$B$608,Qualitätsweizen!A30,'Arbeitsvorgänge-KTBL'!$G$523:$G$608) -> 0.21 | K30: 0
A31: JUL | C31: Akh/ha | D31: =SUMIF('Arbeitsvorgänge-KTBL'!$B$9:$B$73,Qualitätsweizen!A31,'Arbeitsvorgänge-KTBL'!$G$9:$G$73) -> 0 | E31: =SUMIF('Arbeitsvorgänge-KTBL'!$B$88:$B$153,Qualitätsweizen!A31,'Arbeitsvorgänge-KTBL'!$G$88:$G$153) -> 0 | F31: =SUMIF('Arbeitsvorgänge-KTBL'!$B$168:$B$242,Qualitätsweizen!A31,'Arbeitsvorgänge-KTBL'!$G$168:$G$242) -> 0 | G31: =SUMIF('Arbeitsvorgänge-KTBL'!$B$257:$B$325,Qualitätsweizen!A31,'Arbeitsvorgänge-KTBL'!$G$257:$G$325) -> 0 | H31: =SUMIF('Arbeitsvorgänge-KTBL'!$B$340:$B$417,Qualitätsweizen!A31,'Arbeitsvorgänge-KTBL'!$G$340:$G$417) -> 0 | I31: =SUMIF('Arbeitsvorgänge-KTBL'!$B$432:$B$508,Qualitätsweizen!A31,'Arbeitsvorgänge-KTBL'!$G$432:$G$508) -> 0 | J31: =SUMIF('Arbeitsvorgänge-KTBL'!$B$523:$B$608,Qualitätsweizen!A31,'Arbeitsvorgänge-KTBL'!$G$523:$G$608) -> 0 | K31: 0
A32: AUG | C32: Akh/ha | D32: =SUMIF('Arbeitsvorgänge-KTBL'!$B$9:$B$73,Qualitätsweizen!A32,'Arbeitsvorgänge-KTBL'!$G$9:$G$73) -> 1.9 | E32: =SUMIF('Arbeitsvorgänge-KTBL'!$B$88:$B$153,Qualitätsweizen!A32,'Arbeitsvorgänge-KTBL'!$G$88:$G$153) -> 2.27 | F32: =SUMIF('Arbeitsvorgänge-KTBL'!$B$168:$B$242,Qualitätsweizen!A32,'Arbeitsvorgänge-KTBL'!$G$168:$G$242) -> 2.51 | G32: =SUMIF('Arbeitsvorgänge-KTBL'!$B$257:$B$325,Qualitätsweizen!A32,'Arbeitsvorgänge-KTBL'!$G$257:$G$325) -> 1.85 | H32: =SUMIF('Arbeitsvorgänge-KTBL'!$B$340:$B$417,Qualitätsweizen!A32,'Arbeitsvorgänge-KTBL'!$G$340:$G$417) -> 2.16 | I32: =SUMIF('Arbeitsvorgänge-KTBL'!$B$432:$B$508,Qualitätsweizen!A32,'Arbeitsvorgänge-KTBL'!$G$432:$G$508) -> 1.2 | J32: =SUMIF('Arbeitsvorgänge-KTBL'!$B$523:$B$608,Qualitätsweizen!A32,'Arbeitsvorgänge-KTBL'!$G$523:$G$608) -> 1.4 | K32: 0
A33: SEP | C33: Akh/ha | D33: =SUMIF('Arbeitsvorgänge-KTBL'!$B$9:$B$73,Qualitätsweizen!A33,'Arbeitsvorgänge-KTBL'!$G$9:$G$73) -> 3.07 | E33: =SUMIF('Arbeitsvorgänge-KTBL'!$B$88:$B$153,Qualitätsweizen!A33,'Arbeitsvorgänge-KTBL'!$G$88:$G$153) -> 3.11 | F33: =SUMIF('Arbeitsvorgänge-KTBL'!$B$168:$B$242,Qualitätsweizen!A33,'Arbeitsvorgänge-KTBL'!$G$168:$G$242) -> 3.14 | G33: =SUMIF('Arbeitsvorgänge-KTBL'!$B$257:$B$325,Qualitätsweizen!A33,'Arbeitsvorgänge-KTBL'!$G$257:$G$325) -> 2.32 | H33: =SUMIF('Arbeitsvorgänge-KTBL'!$B$340:$B$417,Qualitätsweizen!A33,'Arbeitsvorgänge-KTBL'!$G$340:$G$417) -> 2.35 | I33: =SUMIF('Arbeitsvorgänge-KTBL'!$B$432:$B$508,Qualitätsweizen!A33,'Arbeitsvorgänge-KTBL'!$G$432:$G$508) -> 1.57 | J33: =SUMIF('Arbeitsvorgänge-KTBL'!$B$523:$B$608,Qualitätsweizen!A33,'Arbeitsvorgänge-KTBL'!$G$523:$G$608) -> 1.58 | K33: 0
A34: OKT | C34: Akh/ha | D34: =SUMIF('Arbeitsvorgänge-KTBL'!$B$9:$B$73,Qualitätsweizen!A34,'Arbeitsvorgänge-KTBL'!$G$9:$G$73) -> 1.83 | E34: =SUMIF('Arbeitsvorgänge-KTBL'!$B$88:$B$153,Qualitätsweizen!A34,'Arbeitsvorgänge-KTBL'!$G$88:$G$153) -> 1.83 | F34: =SUMIF('Arbeitsvorgänge-KTBL'!$B$168:$B$242,Qualitätsweizen!A34,'Arbeitsvorgänge-KTBL'!$G$168:$G$242) -> 1.83 | G34: =SUMIF('Arbeitsvorgänge-KTBL'!$B$257:$B$325,Qualitätsweizen!A34,'Arbeitsvorgänge-KTBL'!$G$257:$G$325) -> 1.31 | H34: =SUMIF('Arbeitsvorgänge-KTBL'!$B$340:$B$417,Qualitätsweizen!A34,'Arbeitsvorgänge-KTBL'!$G$340:$G$417) -> 1.31 | I34: =SUMIF('Arbeitsvorgänge-KTBL'!$B$432:$B$508,Qualitätsweizen!A34,'Arbeitsvorgänge-KTBL'!$G$432:$G$508) -> 0.85 | J34: =SUMIF('Arbeitsvorgänge-KTBL'!$B$523:$B$608,Qualitätsweizen!A34,'Arbeitsvorgänge-KTBL'!$G$523:$G$608) -> 0.85 | K34: 0
A35: NOV | C35: Akh/ha | D35: =SUMIF('Arbeitsvorgänge-KTBL'!$B$9:$B$73,Qualitätsweizen!A35,'Arbeitsvorgänge-KTBL'!$G$9:$G$73) -> 0 | E35: =SUMIF('Arbeitsvorgänge-KTBL'!$B$88:$B$153,Qualitätsweizen!A35,'Arbeitsvorgänge-KTBL'!$G$88:$G$153) -> 0 | F35: =SUMIF('Arbeitsvorgänge-KTBL'!$B$168:$B$242,Qualitätsweizen!A35,'Arbeitsvorgänge-KTBL'!$G$168:$G$242) -> 0 | G35: =SUMIF('Arbeitsvorgänge-KTBL'!$B$257:$B$325,Qualitätsweizen!A35,'Arbeitsvorgänge-KTBL'!$G$257:$G$325) -> 0 | H35: =SUMIF('Arbeitsvorgänge-KTBL'!$B$340:$B$417,Qualitätsweizen!A35,'Arbeitsvorgänge-KTBL'!$G$340:$G$417) -> 0 | I35: =SUMIF('Arbeitsvorgänge-KTBL'!$B$432:$B$508,Qualitätsweizen!A35,'Arbeitsvorgänge-KTBL'!$G$432:$G$508) -> 0 | J35: =SUMIF('Arbeitsvorgänge-KTBL'!$B$523:$B$608,Qualitätsweizen!A35,'Arbeitsvorgänge-KTBL'!$G$523:$G$608) -> 0 | K35: 0
A36: Rest | C36: Akh/ha | D36: =SUMIF('Arbeitsvorgänge-KTBL'!$B$9:$B$73,Qualitätsweizen!A36,'Arbeitsvorgänge-KTBL'!$G$9:$G$73) -> 0 | E36: =SUMIF('Arbeitsvorgänge-KTBL'!$B$88:$B$153,Qualitätsweizen!A36,'Arbeitsvorgänge-KTBL'!$G$88:$G$153) -> 0 | F36: =SUMIF('Arbeitsvorgänge-KTBL'!$B$168:$B$242,Qualitätsweizen!A36,'Arbeitsvorgänge-KTBL'!$G$168:$G$242) -> 0 | G36: =SUMIF('Arbeitsvorgänge-KTBL'!$B$257:$B$325,Qualitätsweizen!A36,'Arbeitsvorgänge-KTBL'!$G$257:$G$325) -> 0 | H36: =SUMIF('Arbeitsvorgänge-KTBL'!$B$340:$B$417,Qualitätsweizen!A36,'Arbeitsvorgänge-KTBL'!$G$340:$G$417) -> 0 | I36: =SUMIF('Arbeitsvorgänge-KTBL'!$B$432:$B$508,Qualitätsweizen!A36,'Arbeitsvorgänge-KTBL'!$G$432:$G$508) -> 0 | J36: =SUMIF('Arbeitsvorgänge-KTBL'!$B$523:$B$608,Qualitätsweizen!A36,'Arbeitsvorgänge-KTBL'!$G$523:$G$608) -> 0 | K36: 0
A37: Arbeitskraftstunden | C37: AKh/ha | D37: =SUM(D26:D36) -> 8.59 | E37: =SUM(E26:E36) -> 9.04 | F37: 9.76 | G37: 6.87 | H37: 7.6 | I37: 4.61 | J37: 5.04 | K37: 0
A38: DB (je Akh) | C38: €/Akh | D38: =IF(D24>0,D24/D37,0) -> 1.830132366 | E38: 16.29699512 | F38: 31.72680087 | G38: 23.86155857 | H38: 43.28054491 | I38: 42.01886261 | J38: 71.25394542 | K38: 0
A39: Aussaatmenge | C39: kg/ha | D39: 200 | E39: =D39 -> 200 | F39: 200 | G39: 200 | H39: 200 | I39: 200 | J39: 200 | K39: 0
A40: davon Zukaufsaatgut | C40: % | D40: 68 | E40: 68 | F40: 68 | G40: 68 | H40: 68 | I40: 68 | J40: 68 | K40: 0
A41: Saatgutpreis Eigen | C41: €/dt | D41: =D8+Stammdatenblatt!$K$186 -> 25.65458 | E41: =E8+Stammdatenblatt!$K$186 -> 25.65458 | F41: =F8+Stammdatenblatt!$K$186 -> 25.65458 | G41: =G8+Stammdatenblatt!$K$186 -> 25.65458 | H41: =H8+Stammdatenblatt!$K$186 -> 25.65458 | I41: =I8+Stammdatenblatt!$K$186 -> 25.65458 | J41: =J8+Stammdatenblatt!$K$186 -> 25.65458 | K41: 0
A42: Zukauf | C42: €/dt | D42: =+Stammdatenblatt!P78 -> 99.51 | E42: 99.51 | F42: 99.51 | G42: 99.51 | H42: 99.51 | I42: 99.51 | J42: 99.51 | K42: 0
A43: Saatgutkosten | C43: €/ha | D43: =D40/100*(D39*D42)/100+((100-D40)/100*D39*D41/100) -> 151.7525312 | E43: 151.7525312 | F43: 151.7525312 | G43: 151.7525312 | H43: 151.7525312 | I43: 151.7525312 | J43: 151.7525312 | K43: 0
A44: Dünger: | B44: €/kg | D44: Düngerbedarf/ha (in kg Reinnährstoff) nach Düngerabfuhr LfL Deckungsbeiträge 2024
A45: =+Stammdatenblatt!A130 -> Stickstoff | B45: =+Stammdatenblatt!P130 -> 1.365948973 | C45: Aufw./ha | D45: 127 | E45: 169 | F45: 211 | G45: 169 | H45: 211 | I45: 169 | J45: 211 | K45: 0
A46: =+Stammdatenblatt!A131 -> Phosphor | B46: =+Stammdatenblatt!P131 -> 1.429608243 | C46: Aufw./ha | D46: 48 | E46: 64 | F46: 80 | G46: 64 | H46: 80 | I46: 64 | J46: 80 | K46: 0
A47: =+Stammdatenblatt!A132 -> Kali | B47: =+Stammdatenblatt!P132 -> 0.9499175 | C47: Aufw./ha | D47: 33 | E47: 44 | F47: 55 | G47: 44 | H47: 55 | I47: 44 | J47: 55 | K47: 0
A48: =+Stammdatenblatt!A133 -> Kalk | B48: =+Stammdatenblatt!P133 -> 0.05183111111 | C48: Aufw./ha | D48: 300 | E48: =D48 -> 300 | F48: 300 | G48: 300 | H48: 300 | I48: 300 | J48: 300 | K48: 0
A49: =+Stammdatenblatt!A134 -> Magnesium | B49: =+Stammdatenblatt!P134 -> 2.3205 | C49: Aufw./ha | D49: 38 | E49: 42 | F49: 45 | G49: 42 | H49: 45 | I49: 42 | J49: 45 | K49: 0
A50: =+Stammdatenblatt!A135 -> Schwefel | B50: =+Stammdatenblatt!P135 -> 1.0472 | C50: Aufw./ha | D50: 5 | E50: 10 | F50: 10 | G50: 10 | H50: 10 | I50: 10 | J50: 10 | K50: 0
A51: Mineraldüngerkosten | C51: €/ha | D51: =D45*$B$45+D46*$B$46+D47*$B$47+D48*$B$48+D49*$B$49+D50*$B$50 -> 382.4083261 | E51: =E45*$B$45+E46*$B$46+E47*$B$47+E48*$B$48+E49*$B$49+E50*$B$50 -> 487.6190074 | F51: 585.2731886 | G51: 487.6190074 | H51: 585.2731886 | I51: 487.6190074 | J51: 585.2731886 | K51: 0
A52: Herbizide | C52: €/ha | D52: 40 | E52: 50 | F52: 50 | G52: 50 | H52: 50 | I52: 50 | J52: 50 | K52: 0
A53: Fungizide | C53: €/ha | D53: 50 | E53: 70 | F53: 96 | G53: 70 | H53: 96 | I53: 70 | J53: 96 | K53: 0
A54: Insektizide | C54: €/ha | D54: 0 | E54: 7 | F54: 22 | G54: 7 | H54: 22 | I54: 7 | J54: 22 | K54: 0
A55: Wachstumsregler | C55: €/ha | D55: 6 | E55: 11 | F55: 15 | G55: 11 | H55: 15 | I55: 11 | J55: 15 | K55: 0
A56: Pflanzenbehandlungskosten** | C56: €/ha | D56: =SUM(D52:D55) -> 96 | E56: 138 | F56: 183 | G56: 138 | H56: 183 | I56: 138 | J56: 183 | K56: 0
A57: ** bei stärkeren Ackerfuchsschwanzbesatz ist mit Mehrausgaben von 35 €/ha zu rechnen.
A58: *variable Kosten in Anlehnung an KTBL-Richtwerte für Arbeitsgänge incl. Zinsanspruch für 3 Monate

Sheet Sommerweizen
B3: Landesbetrieb Landwirtschaft Hessen
A4: =IF(Stammdatenblatt!G6+Stammdatenblatt!D77+Stammdatenblatt!D112+Stammdatenblatt!B129+Stammdatenblatt!D140+Stammdatenblatt!C183+Stammdatenblatt!C221+Stammdatenblatt!C239=0,"Produktionsverfahren wurden netto gerechnet", "Produktionsverfahren wurden brutto gerechnet") -> Produktionsverfahren wurden brutto gerechnet | I4: =Wirtschaftsdünger!N4 -> Letztes (aktuelles) WJ.
K5: eigene
A6: Sommerweizen | E6: 2 ha | G6: 5 ha | I6: 20 ha | K6: Werte
A7: Leistung: Menge Hauptprodukt | C7: dt/ha | D7: 55 | E7: 70 | F7: 90 | G7: 70 | H7: 90 | I7: 70 | J7: 90 | K7: 0
A8: Preis Hauptprodukt | C8: € | D8: =+Stammdatenblatt!P12 -> 19.17762 | E8: =D8 -> 19.17762 | F8: =E8 -> 19.17762 | G8: =+F8 -> 19.17762 | H8: =G8 -> 19.17762 | I8: =+H8 -> 19.17762 | J8: =I8 -> 19.17762 | K8: 0
A9: Erlös Hauptprodukt | C9: €/ha | D9: =D7*D8 -> 1054.7691 | E9: 1342.4334 | F9: 1725.9858 | G9: 1342.4334 | H9: 1725.9858 | I9: 1342.4334 | J9: 1725.9858 | K9: 0
A10: Erlös Nebenprodukt(e) | C10: €/ha | D10: 0 | E10: =D10 -> 0 | F10: =E10 -> 0 | G10: 0 | H10: =G10 -> 0 | I10: 0 | J10: =I10 -> 0 | K10: 0
A11: Leistungen | C11: €/ha | D11: =D9+D10 -> 1054.7691 | E11: =E10+E9 -> 1342.4334 | F11: 1725.9858 | G11: 1342.4334 | H11: 1725.9858 | I11: 1342.4334 | J11: 1725.9858 | K11: 0
A12: Saatgutkosten | C12: €/ha | D12: =D43 -> 135.7532505 | E12: 135.7532505 | F12: 135.7532505 | G12: 135.7532505 | H12: 135.7532505 | I12: 135.7532505 | J12: 135.7532505 | K12: =K43 -> 0
A13: Mineraldüngerkosten | C13: €/ha | D13: =D51 -> 349.8848772 | E13: 433.8178008 | F13: 530.0423738 | G13: 433.8178008 | H13: 530.0423738 | I13: 433.8178008 | J13: 530.0423738 | K13: =K51 -> 0
A14: Pflanzenbehandlungskosten | C14: €/ha | D14: =D56*(1+Stammdatenblatt!D112) -> 97.58 | E14: =E56*(1+Stammdatenblatt!D112) -> 128.52 | F14: =F56*(1+Stammdatenblatt!D112) -> 174.93 | G14: =G56*(1+Stammdatenblatt!D112) -> 128.52 | H14: =H56*(1+Stammdatenblatt!D112) -> 174.93 | I14: =I56*(1+Stammdatenblatt!D112) -> 128.52 | J14: =J56*(1+Stammdatenblatt!D112) -> 174.93 | K14: =K56 -> 0
A15: Versicherung | C15: €/ha | D15: =+D11/1000*Stammdatenblatt!$P$191 -> 7.631465392 | E15: =+E11/1000*Stammdatenblatt!$P$191 -> 9.712774136 | F15: =+F11/1000*Stammdatenblatt!$P$191 -> 12.48785246 | G15: =+G11/1000*Stammdatenblatt!$P$191 -> 9.712774136 | H15: =+H11/1000*Stammdatenblatt!$P$191 -> 12.48785246 | I15: =+I11/1000*Stammdatenblatt!$P$191 -> 9.712774136 | J15: =+J11/1000*Stammdatenblatt!$P$191 -> 12.48785246 | K15: =+K11/1000*Stammdatenblatt!$E$191 -> 0
A16: Trocknungskosten | C16: €/ha | D16: =(D7*Stammdatenblatt!$P$201+D7*(Stammdatenblatt!$P$202*4))/3 -> 89.012 | E16: =(E7*Stammdatenblatt!$P$201+E7*(Stammdatenblatt!$P$202*4))/3 -> 113.288 | F16: =(F7*Stammdatenblatt!$P$201+F7*(Stammdatenblatt!$P$202*4))/3 -> 145.656 | G16: =E16 -> 113.288 | H16: =F16 -> 145.656 | I16: =G16 -> 113.288 | J16: =H16 -> 145.656 | K16: =K7/Stammdatenblatt!$E$204*Stammdatenblatt!$E$201+(Stammdatenblatt!$E$203*Stammdatenblatt!$E$202) -> 1.08
A17: Summe Direktkosten | C17: €/ha | D17: =SUM(D12:D16) -> 679.8615931 | E17: =SUM(E12:E16) -> 821.0918254 | F17: 998.8694768 | G17: 821.0918254 | H17: 998.8694768 | I17: 821.0918254 | J17: 998.8694768 | K17: 1.08
A18: Direktkostenfreie Leistung | C18: €/ha | D18: =D11-D17 -> 374.9075069 | E18: =E11-E17 -> 521.3415746 | F18: 727.1163232 | G18: 521.3415746 | H18: 727.1163232 | I18: 521.3415746 | J18: 727.1163232 | K18: -1.08
A19: Maschinenkosten eigen ** | C19: €/ha | D19: ='Arbeitsvorgänge-KTBL'!T2192 -> 188.9574214 | E19: ='Arbeitsvorgänge-KTBL'!T2253 -> 235.5239399 | F19: ='Arbeitsvorgänge-KTBL'!T2253 -> 235.5239399 | G19: ='Arbeitsvorgänge-KTBL'!T2379 -> 221.6153012 | H19: ='Arbeitsvorgänge-KTBL'!T2379 -> 221.6153012 | I19: ='Arbeitsvorgänge-KTBL'!T2513 -> 199.0258832 | J19: ='Arbeitsvorgänge-KTBL'!T2513 -> 199.0258832 | K19: 0
A20: Maschinenkosten fremd | C20: €/ha | D20: ='Arbeitsvorgänge-KTBL'!U76*(1+Stammdatenblatt!C239) -> 123.97 | E20: ='Arbeitsvorgänge-KTBL'!U156*(1+Stammdatenblatt!C239) -> 123.97 | F20: ='Arbeitsvorgänge-KTBL'!U245*(1+Stammdatenblatt!C239) -> 123.97 | G20: ='Arbeitsvorgänge-KTBL'!U328*(1+Stammdatenblatt!C239) -> 123.97 | H20: ='Arbeitsvorgänge-KTBL'!U420*(1+Stammdatenblatt!C239) -> 123.97 | I20: ='Arbeitsvorgänge-KTBL'!U511*(1+Stammdatenblatt!C239) -> 113.19 | J20: ='Arbeitsvorgänge-KTBL'!U611*(1+Stammdatenblatt!C239) -> 113.19 | K20: 0
A21: Lohnkosten | C21: €/ha | D21: 0 | E21: =D21 -> 0 | F21: =E21 -> 0 | G21: 0 | H21: =G21 -> 0 | I21: 0 | J21: =I21 -> 0 | K21: 0
A22: xxx | C22: €/ha | D22: 0 | E22: =D22 -> 0 | F22: =E22 -> 0 | G22: 0 | H22: =G22 -> 0 | I22: 0 | J22: =I22 -> 0 | K22: 0
A23: variable Kosten | C23: €/ha | D23: =SUM(D19:D22,D17) -> 992.7890145 | E23: =SUM(E19:E22,E17) -> 1180.585765 | F23: 1358.363417 | G23: 1166.677127 | H23: 1344.454778 | I23: 1133.307709 | J23: 1311.08536 | K23: 1.08
A24: Deckungsbeitrag (DB) | C24: €/ha | D24: =D11-D23 -> 61.98008545 | E24: 161.8476347 | F24: 367.6223833 | G24: 175.7562734 | H24: 381.531022 | I24: 209.1256914 | J24: 414.9004401 | K24: -1.08
A25: Zeit-Spanne | B25: AK-Bedarf
A26: FEB | C26: Akh/ha | D26: =SUMIF('Arbeitsvorgänge-KTBL'!$B$2526:$B$2565,Hafer!A26,'Arbeitsvorgänge-KTBL'!$G$2526:$G$2565) -> 0 | E26: =SUMIF('Arbeitsvorgänge-KTBL'!$B$2580:$B$2623,Hafer!A26,'Arbeitsvorgänge-KTBL'!$G$2580:$G$2623) -> 0 | F26: =SUMIF('Arbeitsvorgänge-KTBL'!$B$2580:$B$2623,Sommerweizen!A26,'Arbeitsvorgänge-KTBL'!$G$2580:$G$2623) -> 0 | G26: =SUMIF('Arbeitsvorgänge-KTBL'!$B$2638:$B$2680,A26,'Arbeitsvorgänge-KTBL'!$G$2638:$G$2680) -> 0 | H26: =SUMIF('Arbeitsvorgänge-KTBL'!$B$2695:$B$2741,A26,'Arbeitsvorgänge-KTBL'!$G$2695:$G$2741) -> 0 | I26: =SUMIF('Arbeitsvorgänge-KTBL'!$B$2756:$B$2800,A26,'Arbeitsvorgänge-KTBL'!$G$2756:$G$2800) -> 0 | J26: =SUMIF('Arbeitsvorgänge-KTBL'!$B$2815:$B$2865,A26,'Arbeitsvorgänge-KTBL'!$G$2815:$G$2865) -> 0 | K26: 0
A27: MRZ | C27: Akh/ha | D27: =SUMIF('Arbeitsvorgänge-KTBL'!$B$2526:$B$2565,Hafer!A27,'Arbeitsvorgänge-KTBL'!$G$2526:$G$2565) -> 2.02 | E27: =SUMIF('Arbeitsvorgänge-KTBL'!$B$2580:$B$2623,Hafer!A27,'Arbeitsvorgänge-KTBL'!$G$2580:$G$2623) -> 2.05 | F27: =SUMIF('Arbeitsvorgänge-KTBL'!$B$2580:$B$2623,Sommerweizen!A27,'Arbeitsvorgänge-KTBL'!$G$2580:$G$2623) -> 2.05 | G27: =SUMIF('Arbeitsvorgänge-KTBL'!$B$2638:$B$2680,A27,'Arbeitsvorgänge-KTBL'!$G$2638:$G$2680) -> 1.45 | H27: =SUMIF('Arbeitsvorgänge-KTBL'!$B$2695:$B$2741,A27,'Arbeitsvorgänge-KTBL'!$G$2695:$G$2741) -> 1.49 | I27: =SUMIF('Arbeitsvorgänge-KTBL'!$B$2756:$B$2800,A27,'Arbeitsvorgänge-KTBL'!$G$2756:$G$2800) -> 0.89 | J27: =SUMIF('Arbeitsvorgänge-KTBL'!$B$2815:$B$2865,A27,'Arbeitsvorgänge-KTBL'!$G$2815:$G$2865) -> 0.89 | K27: 0
A28: APR | C28: Akh/ha | D28: =SUMIF('Arbeitsvorgänge-KTBL'!$B$2526:$B$2565,Hafer!A28,'Arbeitsvorgänge-KTBL'!$G$2526:$G$2565) -> 0 | E28: =SUMIF('Arbeitsvorgänge-KTBL'!$B$2580:$B$2623,Hafer!A28,'Arbeitsvorgänge-KTBL'!$G$2580:$G$2623) -> 0 | F28: =SUMIF('Arbeitsvorgänge-KTBL'!$B$2580:$B$2623,Sommerweizen!A28,'Arbeitsvorgänge-KTBL'!$G$2580:$G$2623) -> 0 | G28: =SUMIF('Arbeitsvorgänge-KTBL'!$B$2638:$B$2680,A28,'Arbeitsvorgänge-KTBL'!$G$2638:$G$2680) -> 0 | H28: =SUMIF('Arbeitsvorgänge-KTBL'!$B$2695:$B$2741,A28,'Arbeitsvorgänge-KTBL'!$G$2695:$G$2741) -> 0 | I28: =SUMIF('Arbeitsvorgänge-KTBL'!$B$2756:$B$2800,A28,'Arbeitsvorgänge-KTBL'!$G$2756:$G$2800) -> 0 | J28: =SUMIF('Arbeitsvorgänge-KTBL'!$B$2815:$B$2865,A28,'Arbeitsvorgänge-KTBL'!$G$2815:$G$2865) -> 0 | K28: 0
A29: MAI | C29: Akh/ha | D29: =SUMIF('Arbeitsvorgänge-KTBL'!$B$2526:$B$2565,Hafer!A29,'Arbeitsvorgänge-KTBL'!$G$2526:$G$2565) -> 0.13 | E29: =SUMIF('Arbeitsvorgänge-KTBL'!$B$2580:$B$2623,Hafer!A29,'Arbeitsvorgänge-KTBL'!$G$2580:$G$2623) -> 0.41 | F29: =SUMIF('Arbeitsvorgänge-KTBL'!$B$2580:$B$2623,Sommerweizen!A29,'Arbeitsvorgänge-KTBL'!$G$2580:$G$2623) -> 0.41 | G29: =SUMIF('Arbeitsvorgänge-KTBL'!$B$2638:$B$2680,A29,'Arbeitsvorgänge-KTBL'!$G$2638:$G$2680) -> 0.11 | H29: =SUMIF('Arbeitsvorgänge-KTBL'!$B$2695:$B$2741,A29,'Arbeitsvorgänge-KTBL'!$G$2695:$G$2741) -> 0.3 | I29: =SUMIF('Arbeitsvorgänge-KTBL'!$B$2756:$B$2800,A29,'Arbeitsvorgänge-KTBL'!$G$2756:$G$2800) -> 0.09 | J29: =SUMIF('Arbeitsvorgänge-KTBL'!$B$2815:$B$2865,A29,'Arbeitsvorgänge-KTBL'!$G$2815:$G$2865) -> 0.23 | K29: 0
A30: JUN | C30: Akh/ha | D30: =SUMIF('Arbeitsvorgänge-KTBL'!$B$2526:$B$2565,Hafer!A30,'Arbeitsvorgänge-KTBL'!$G$2526:$G$2565) -> 0 | E30: =SUMIF('Arbeitsvorgänge-KTBL'!$B$2580:$B$2623,Hafer!A30,'Arbeitsvorgänge-KTBL'!$G$2580:$G$2623) -> 0 | F30: =SUMIF('Arbeitsvorgänge-KTBL'!$B$2580:$B$2623,Sommerweizen!A30,'Arbeitsvorgänge-KTBL'!$G$2580:$G$2623) -> 0 | G30: =SUMIF('Arbeitsvorgänge-KTBL'!$B$2638:$B$2680,A30,'Arbeitsvorgänge-KTBL'!$G$2638:$G$2680) -> 0 | H30: =SUMIF('Arbeitsvorgänge-KTBL'!$B$2695:$B$2741,A30,'Arbeitsvorgänge-KTBL'!$G$2695:$G$2741) -> 0 | I30: =SUMIF('Arbeitsvorgänge-KTBL'!$B$2756:$B$2800,A30,'Arbeitsvorgänge-KTBL'!$G$2756:$G$2800) -> 0 | J30: =SUMIF('Arbeitsvorgänge-KTBL'!$B$2815:$B$2865,A30,'Arbeitsvorgänge-KTBL'!$G$2815:$G$2865) -> 0 | K30: 0
A31: JUL | C31: Akh/ha | D31: =SUMIF('Arbeitsvorgänge-KTBL'!$B$2526:$B$2565,Hafer!A31,'Arbeitsvorgänge-KTBL'!$G$2526:$G$2565) -> 0.76 | E31: =SUMIF('Arbeitsvorgänge-KTBL'!$B$2580:$B$2623,Hafer!A31,'Arbeitsvorgänge-KTBL'!$G$2580:$G$2623) -> 1.09 | F31: =SUMIF('Arbeitsvorgänge-KTBL'!$B$2580:$B$2623,Sommerweizen!A31,'Arbeitsvorgänge-KTBL'!$G$2580:$G$2623) -> 1.09 | G31: =SUMIF('Arbeitsvorgänge-KTBL'!$B$2638:$B$2680,A31,'Arbeitsvorgänge-KTBL'!$G$2638:$G$2680) -> 0.71 | H31: =SUMIF('Arbeitsvorgänge-KTBL'!$B$2695:$B$2741,A31,'Arbeitsvorgänge-KTBL'!$G$2695:$G$2741) -> 1.08 | I31: =SUMIF('Arbeitsvorgänge-KTBL'!$B$2756:$B$2800,A31,'Arbeitsvorgänge-KTBL'!$G$2756:$G$2800) -> 0.44 | J31: =SUMIF('Arbeitsvorgänge-KTBL'!$B$2815:$B$2865,A31,'Arbeitsvorgänge-KTBL'!$G$2815:$G$2865) -> 0.65 | K31: 0
A32: AUG | C32: Akh/ha | D32: =SUMIF('Arbeitsvorgänge-KTBL'!$B$2526:$B$2565,Hafer!A32,'Arbeitsvorgänge-KTBL'!$G$2526:$G$2565) -> 1 | E32: =SUMIF('Arbeitsvorgänge-KTBL'!$B$2580:$B$2623,Hafer!A32,'Arbeitsvorgänge-KTBL'!$G$2580:$G$2623) -> 1 | F32: =SUMIF('Arbeitsvorgänge-KTBL'!$B$2580:$B$2623,Sommerweizen!A32,'Arbeitsvorgänge-KTBL'!$G$2580:$G$2623) -> 1 | G32: =SUMIF('Arbeitsvorgänge-KTBL'!$B$2638:$B$2680,A32,'Arbeitsvorgänge-KTBL'!$G$2638:$G$2680) -> 0.63 | H32: =SUMIF('Arbeitsvorgänge-KTBL'!$B$2695:$B$2741,A32,'Arbeitsvorgänge-KTBL'!$G$2695:$G$2741) -> 0.63 | I32: =SUMIF('Arbeitsvorgänge-KTBL'!$B$2756:$B$2800,A32,'Arbeitsvorgänge-KTBL'!$G$2756:$G$2800) -> 0.4 | J32: =SUMIF('Arbeitsvorgänge-KTBL'!$B$2815:$B$2865,A32,'Arbeitsvorgänge-KTBL'!$G$2815:$G$2865) -> 0.4 | K32: 0
A33: SEP | C33: Akh/ha | D33: =SUMIF('Arbeitsvorgänge-KTBL'!$B$2526:$B$2565,Hafer!A33,'Arbeitsvorgänge-KTBL'!$G$2526:$G$2565) -> 0.96 | E33: =SUMIF('Arbeitsvorgänge-KTBL'!$B$2580:$B$2623,Hafer!A33,'Arbeitsvorgänge-KTBL'!$G$2580:$G$2623) -> 0.96 | F33: =SUMIF('Arbeitsvorgänge-KTBL'!$B$2580:$B$2623,Sommerweizen!A33,'Arbeitsvorgänge-KTBL'!$G$2580:$G$2623) -> 0.96 | G33: =SUMIF('Arbeitsvorgänge-KTBL'!$B$2638:$B$2680,A33,'Arbeitsvorgänge-KTBL'!$G$2638:$G$2680) -> 0.66 | H33: =SUMIF('Arbeitsvorgänge-KTBL'!$B$2695:$B$2741,A33,'Arbeitsvorgänge-KTBL'!$G$2695:$G$2741) -> 0.66 | I33: =SUMIF('Arbeitsvorgänge-KTBL'!$B$2756:$B$2800,A33,'Arbeitsvorgänge-KTBL'!$G$2756:$G$2800) -> 0.45 | J33: =SUMIF('Arbeitsvorgänge-KTBL'!$B$2815:$B$2865,A33,'Arbeitsvorgänge-KTBL'!$G$2815:$G$2865) -> 0.45 | K33: 0
A34: OKT | C34: Akh/ha | D34: =SUMIF('Arbeitsvorgänge-KTBL'!$B$2526:$B$2565,Hafer!A34,'Arbeitsvorgänge-KTBL'!$G$2526:$G$2565) -> 2.06 | E34: =SUMIF('Arbeitsvorgänge-KTBL'!$B$2580:$B$2623,Hafer!A34,'Arbeitsvorgänge-KTBL'!$G$2580:$G$2623) -> 2.12 | F34: =SUMIF('Arbeitsvorgänge-KTBL'!$B$2580:$B$2623,Sommerweizen!A34,'Arbeitsvorgänge-KTBL'!$G$2580:$G$2623) -> 2.12 | G34: =SUMIF('Arbeitsvorgänge-KTBL'!$B$2638:$B$2680,A34,'Arbeitsvorgänge-KTBL'!$G$2638:$G$2680) -> 1.56 | H34: =SUMIF('Arbeitsvorgänge-KTBL'!$B$2695:$B$2741,A34,'Arbeitsvorgänge-KTBL'!$G$2695:$G$2741) -> 1.61 | I34: =SUMIF('Arbeitsvorgänge-KTBL'!$B$2756:$B$2800,A34,'Arbeitsvorgänge-KTBL'!$G$2756:$G$2800) -> 1 | J34: =SUMIF('Arbeitsvorgänge-KTBL'!$B$2815:$B$2865,A34,'Arbeitsvorgänge-KTBL'!$G$2815:$G$2865) -> 1.01 | K34: 0
A35: NOV | C35: Akh/ha | D35: =SUMIF('Arbeitsvorgänge-KTBL'!$B$2526:$B$2565,Hafer!A35,'Arbeitsvorgänge-KTBL'!$G$2526:$G$2565) -> 0 | E35: =SUMIF('Arbeitsvorgänge-KTBL'!$B$2580:$B$2623,Hafer!A35,'Arbeitsvorgänge-KTBL'!$G$2580:$G$2623) -> 0 | F35: =SUMIF('Arbeitsvorgänge-KTBL'!$B$2580:$B$2623,Sommerweizen!A35,'Arbeitsvorgänge-KTBL'!$G$2580:$G$2623) -> 0 | G35: =SUMIF('Arbeitsvorgänge-KTBL'!$B$2638:$B$2680,A35,'Arbeitsvorgänge-KTBL'!$G$2638:$G$2680) -> 0 | H35: =SUMIF('Arbeitsvorgänge-KTBL'!$B$2695:$B$2741,A35,'Arbeitsvorgänge-KTBL'!$G$2695:$G$2741) -> 0 | I35: =SUMIF('Arbeitsvorgänge-KTBL'!$B$2756:$B$2800,A35,'Arbeitsvorgänge-KTBL'!$G$2756:$G$2800) -> 0 | J35: =SUMIF('Arbeitsvorgänge-KTBL'!$B$2815:$B$2865,A35,'Arbeitsvorgänge-KTBL'!$G$2815:$G$2865) -> 0 | K35: 0
A36: Rest | C36: Akh/ha | D36: =SUMIF('Arbeitsvorgänge-KTBL'!$B$2526:$B$2565,Hafer!A36,'Arbeitsvorgänge-KTBL'!$G$2526:$G$2565) -> 0 | E36: =SUMIF('Arbeitsvorgänge-KTBL'!$B$2580:$B$2623,Hafer!A36,'Arbeitsvorgänge-KTBL'!$G$2580:$G$2623) -> 0 | F36: =SUMIF('Arbeitsvorgänge-KTBL'!$B$2580:$B$2623,Sommerweizen!A36,'Arbeitsvorgänge-KTBL'!$G$2580:$G$2623) -> 0 | G36: =SUMIF('Arbeitsvorgänge-KTBL'!$B$2638:$B$2680,A36,'Arbeitsvorgänge-KTBL'!$G$2638:$G$2680) -> 0 | H36: =SUMIF('Arbeitsvorgänge-KTBL'!$B$2695:$B$2741,A36,'Arbeitsvorgänge-KTBL'!$G$2695:$G$2741) -> 0 | I36: =SUMIF('Arbeitsvorgänge-KTBL'!$B$2756:$B$2800,A36,'Arbeitsvorgänge-KTBL'!$G$2756:$G$2800) -> 0 | J36: =SUMIF('Arbeitsvorgänge-KTBL'!$B$2815:$B$2865,A36,'Arbeitsvorgänge-KTBL'!$G$2815:$G$2865) -> 0 | K36: 0
A37: Arbeitskraftstunden | C37: AKh/ha | D37: =SUM(D26:D36) -> 6.93 | E37: =SUM(E26:E36) -> 7.63 | F37: 7.63 | G37: 5.12 | H37: 5.77 | I37: 3.27 | J37: 3.63 | K37: 0
A38: DB (je Akh) | C38: €/Akh | D38: =IF(D24>0,D24/D37,0) -> 8.943735275 | E38: 21.21200979 | F38: 48.18117737 | G38: 34.32739715 | H38: 66.12322739 | I38: 63.95281084 | J38: 114.2976419 | K38: 0
A39: Aussaatmenge | C39: kg/ha | D39: 175 | E39: =D39 -> 175 | F39: 175 | G39: 175 | H39: =G39 -> 175 | I39: 175 | J39: =I39 -> 175 | K39: 0
A40: davon Zukaufsaatgut | C40: % | D40: 70 | E40: 70 | F40: 70 | G40: 70 | H40: =G40 -> 70 | I40: 70 | J40: =I40 -> 70 | K40: 0
A41: Saatgutpreis Eigen | C41: €/dt | D41: =D8+Stammdatenblatt!$K$186 -> 26.38762 | E41: =E8+Stammdatenblatt!$K$186 -> 26.38762 | F41: =F8+Stammdatenblatt!$K$186 -> 26.38762 | G41: =G8+Stammdatenblatt!$K$186 -> 26.38762 | H41: =H8+Stammdatenblatt!$K$186 -> 26.38762 | I41: =I8+Stammdatenblatt!$K$186 -> 26.38762 | J41: =J8+Stammdatenblatt!$K$186 -> 26.38762 | K41: 0
A42: Zukauf | C42: €/dt | D42: =+Stammdatenblatt!P79 -> 99.51 | E42: 99.51 | F42: 99.51 | G42: =+F42 -> 99.51 | H42: =G42 -> 99.51 | I42: =+H42 -> 99.51 | J42: =I42 -> 99.51 | K42: 0
A43: Saatgutkosten | C43: €/ha | D43: =D40/100*(D39*D42)/100+((100-D40)/100*D39*D41/100) -> 135.7532505 | E43: 135.7532505 | F43: 135.7532505 | G43: 135.7532505 | H43: 135.7532505 | I43: 135.7532505 | J43: 135.7532505 | K43: 0
A44: Dünger: | B44: €/kg | D44: Düngerbedarf/ha (in kg Reinnährstoff) nach Düngerabfuhr LfL Deckungsbeiträge 2024
A45: =+Stammdatenblatt!A130 -> Stickstoff | B45: =+Stammdatenblatt!P130 -> 1.365948973 | C45: Aufw./ha | D45: 116 | E45: 148 | F45: 190 | G45: 148 | H45: 190 | I45: 148 | J45: 190 | K45: 0
A46: =+Stammdatenblatt!A131 -> Phosphor | B46: =+Stammdatenblatt!P131 -> 1.429608243 | C46: Aufw./ha | D46: 41 | E46: 53 | F46: 68 | G46: 53 | H46: 68 | I46: 53 | J46: 68 | K46: 0
A47: =+Stammdatenblatt!A132 -> Kali | B47: =+Stammdatenblatt!P132 -> 0.9499175 | C47: Aufw./ha | D47: 30 | E47: 39 | F47: 50 | G47: 39 | H47: 50 | I47: 39 | J47: 50 | K47: 0
A48: =+Stammdatenblatt!A133 -> Kalk | B48: =+Stammdatenblatt!P133 -> 0.05183111111 | C48: Aufw./ha | D48: 300 | E48: =D48 -> 300 | F48: 300 | G48: 300 | H48: 300 | I48: 300 | J48: 300 | K48: 0
A49: =+Stammdatenblatt!A134 -> Magnesium | B49: =+Stammdatenblatt!P134 -> 2.3205 | C49: Aufw./ha | D49: 36 | E49: 40 | F49: 43 | G49: 40 | H49: 43 | I49: 40 | J49: 43 | K49: 0
A50: =+Stammdatenblatt!A135 -> Schwefel | B50: =+Stammdatenblatt!P135 -> 1.0472 | C50: Aufw./ha | D50: 5 | E50: 10 | F50: 10 | G50: 10 | H50: 10 | I50: 10 | J50: 10 | K50: 0
A51: Mineraldüngerkosten | C51: €/ha | D51: =+$B45*D45+$B46*D46+$B47*D47+$B48*D48+$B49*D49+$B50*D50 -> 349.8848772 | E51: 433.8178008 | F51: 530.0423738 | G51: 433.8178008 | H51: =+$B45*H45+$B46*H46+$B47*H47+$B48*H48+$B49*H49+$B50*H50 -> 530.0423738 | I51: 433.8178008 | J51: 530.0423738 | K51: 0
A52: Herbizide | C52: €/ha | D52: 35 | E52: 50 | F52: 50 | G52: 50 | H52: 50 | I52: 50 | J52: 50 | K52: 0
A53: Fungizide | C53: €/ha | D53: 44 | E53: 53 | F53: 73 | G53: 53 | H53: 73 | I53: 53 | J53: 73 | K53: 0
A54: Insektizide | C54: €/ha | D54: 0 | E54: 0 | F54: 15 | G54: 0 | H54: 15 | I54: 0 | J54: 15 | K54: 0
A55: Wachstumsregler | C55: €/ha | D55: 3 | E55: 5 | F55: 9 | G55: 5 | H55: 9 | I55: 5 | J55: 9 | K55: 0
A56: Pflanzenbehandlungskosten* | C56: €/ha | D56: =SUM(D52:D55) -> 82 | E56: 108 | F56: 147 | G56: 108 | H56: 147 | I56: 108 | J56: 147 | K56: 0
A57: *bei stärkeren Ackerfuchsschwanzbesatz ist mit Mehrausgaben von 35 €/ha zu rechnen.
A58: **variable Kosten in Anlehnung an KTBL-Richtwerte für Arbeitsgänge incl. Zinsanspruch für 3 Monate

Sheet Roggen
B3: Landesbetrieb Landwirtschaft Hessen
A4: =IF(Stammdatenblatt!G6+Stammdatenblatt!D77+Stammdatenblatt!D112+Stammdatenblatt!B129+Stammdatenblatt!D140+Stammdatenblatt!C183+Stammdatenblatt!C221+Stammdatenblatt!C239=0,"Produktionsverfahren wurden netto gerechnet", "Produktionsverfahren wurden brutto gerechnet") -> Produktionsverfahren wurden brutto gerechnet | I4: =Wirtschaftsdünger!N4 -> Letztes (aktuelles) WJ.
K5: eigene
A6: Roggen | E6: 2 ha | G6: 5 ha | I6: 20 ha | K6: Werte
A7: Leistung: Menge Hauptprodukt | C7: dt/ha | D7: 60 | E7: 80 | F7: 100 | G7: 80 | H7: 100 | I7: 80 | J7: 100 | K7: 0
A8: Preis Hauptprodukt | C8: € | D8: =+Stammdatenblatt!P14 -> 16.46106 | E8: =D8 -> 16.46106 | F8: =E8 -> 16.46106 | G8: =+D8 -> 16.46106 | H8: =G8 -> 16.46106 | I8: =+H8 -> 16.46106 | J8: =I8 -> 16.46106 | K8: 0
A9: Erlös Hauptprodukt | C9: €/ha | D9: =D7*D8 -> 987.6636 | E9: 1316.8848 | F9: 1646.106 | G9: 1316.8848 | H9: 1646.106 | I9: 1316.8848 | J9: 1646.106 | K9: 0
A10: Erlös Nebenprodukt(e) | C10: €/ha | D10: 0 | E10: =D10 -> 0 | F10: =E10 -> 0 | G10: 0 | H10: =G10 -> 0 | I10: 0 | J10: =I10 -> 0 | K10: 0
A11: Leistungen | C11: €/ha | D11: =D9+D10 -> 987.6636 | E11: =E10+E9 -> 1316.8848 | F11: 1646.106 | G11: 1316.8848 | H11: 1646.106 | I11: 1316.8848 | J11: 1646.106 | K11: 0
A12: Saatgutkosten | C12: €/ha | D12: =D43 -> 95.23 | E12: 95.23 | F12: 95.23 | G12: 95.23 | H12: 95.23 | I12: 95.23 | J12: 95.23 | K12: =K43 -> 0
A13: Mineraldüngerkosten | C13: €/ha | D13: =D51 -> 336.0839156 | E13: 425.8531267 | F13: 508.0658377 | G13: 425.8531267 | H13: 508.0658377 | I13: 425.8531267 | J13: 508.0658377 | K13: =K51 -> 0
A14: Pflanzenbehandlungsk. | C14: €/ha | D14: =D56*(1+Stammdatenblatt!D112) -> 109.48 | E14: =E56*(1+Stammdatenblatt!D112) -> 140.42 | F14: =F56*(1+Stammdatenblatt!D112) -> 195.16 | G14: =G56*(1+Stammdatenblatt!D112) -> 140.42 | H14: =H56*(1+Stammdatenblatt!D112) -> 195.16 | I14: =I56*(1+Stammdatenblatt!D112) -> 140.42 | J14: =J56*(1+Stammdatenblatt!D112) -> 195.16 | K14: =K56 -> 0
A15: Versicherung | C15: €/ha | D15: =(D11/1000)*Stammdatenblatt!$P$190 -> 7.145943679 | E15: =(E11/1000)*Stammdatenblatt!$P$190 -> 9.527924905 | F15: =(F11/1000)*Stammdatenblatt!$P$190 -> 11.90990613 | G15: =(G11/1000)*Stammdatenblatt!$P$190 -> 9.527924905 | H15: =(H11/1000)*Stammdatenblatt!$P$190 -> 11.90990613 | I15: =(I11/1000)*Stammdatenblatt!$P$190 -> 9.527924905 | J15: =(J11/1000)*Stammdatenblatt!$P$190 -> 11.90990613 | K15: =(K11/1000)*Stammdatenblatt!$E$190 -> 0
A16: Trocknungskosten | C16: €/ha | D16: =(D7*Stammdatenblatt!$P$201+D7*(Stammdatenblatt!$P$202*4))/3 -> 97.104 | E16: =(E7*Stammdatenblatt!$P$201+E7*(Stammdatenblatt!$P$202*4))/3 -> 129.472 | F16: =(F7*Stammdatenblatt!$P$201+F7*(Stammdatenblatt!$P$202*4))/3 -> 161.84 | G16: =E16 -> 129.472 | H16: =F16 -> 161.84 | I16: =G16 -> 129.472 | J16: =H16 -> 161.84 | K16: 0
A17: Summe Direktkosten | C17: €/ha | D17: =SUM(D12:D16) -> 645.0438592 | E17: =SUM(E12:E16) -> 800.5030516 | F17: 972.2057439 | G17: 800.5030516 | H17: 972.2057439 | I17: 800.5030516 | J17: 972.2057439 | K17: 0
A18: Direktkostenfreie Leistung | C18: €/ha | D18: =D11-D17 -> 342.6197408 | E18: =E11-E17 -> 516.3817484 | F18: 673.9002561 | G18: 516.3817484 | H18: 673.9002561 | I18: 516.3817484 | J18: 673.9002561 | K18: 0
A19: Maschinenkosten eigen ** | C19: €/ha | D19: ='Arbeitsvorgänge-KTBL'!T677 -> 191.0909803 | E19: ='Arbeitsvorgänge-KTBL'!T742 -> 237.1763189 | F19: ='Arbeitsvorgänge-KTBL'!T807 -> 311.856645 | G19: ='Arbeitsvorgänge-KTBL'!T875 -> 222.6468872 | H19: ='Arbeitsvorgänge-KTBL'!T943 -> 290.9351555 | I19: ='Arbeitsvorgänge-KTBL'!T1015 -> 199.6454925 | J19: ='Arbeitsvorgänge-KTBL'!T1087 -> 259.2358977 | K19: 0
A20: Maschinenkosten fremd | C20: €/ha | D20: ='Arbeitsvorgänge-KTBL'!U677*(1+Stammdatenblatt!C239) -> 123.97 | E20: ='Arbeitsvorgänge-KTBL'!U742*(1+Stammdatenblatt!C239) -> 123.97 | F20: ='Arbeitsvorgänge-KTBL'!U807*(1+Stammdatenblatt!C239) -> 123.97 | G20: ='Arbeitsvorgänge-KTBL'!U875*(1+Stammdatenblatt!C239) -> 123.97 | H20: ='Arbeitsvorgänge-KTBL'!U943*(1+Stammdatenblatt!C239) -> 123.97 | I20: ='Arbeitsvorgänge-KTBL'!U1015*(1+Stammdatenblatt!C239) -> 113.19 | J20: ='Arbeitsvorgänge-KTBL'!U1087*(1+Stammdatenblatt!C239) -> 113.19 | K20: 0
A21: Lohnkosten | C21: €/ha | D21: 0 | E21: =D21 -> 0 | F21: =E21 -> 0 | G21: 0 | H21: =G21 -> 0 | I21: 0 | J21: =I21 -> 0 | K21: 0
A22: xxx | C22: €/ha | D22: 0 | E22: =D22 -> 0 | F22: =E22 -> 0 | G22: 0 | H22: =G22 -> 0 | I22: 0 | J22: =I22 -> 0 | K22: 0
A23: variable Kosten | C23: €/ha | D23: =SUM(D19:D22,D17) -> 960.1048395 | E23: =SUM(E19:E22,E17) -> 1161.649371 | F23: 1408.032389 | G23: 1147.119939 | H23: 1387.110899 | I23: 1113.338544 | J23: 1344.631642 | K23: 0
A24: Deckungsbeitrag (DB) | C24: €/ha | D24: =D11-D23 -> 27.55876045 | E24: 155.2354295 | F24: 238.0736111 | G24: 169.7648612 | H24: 258.9951006 | I24: 203.5462559 | J24: 301.4743585 | K24: 0
A25: Zeit-Spanne | B25: AK-Bedarf
A26: FEB | C26: Akh/ha | D26: =SUMIF('Arbeitsvorgänge-KTBL'!$B$624:$B$674,Roggen!A26,'Arbeitsvorgänge-KTBL'!$G$624:$G$674) -> 0.31 | E26: =SUMIF('Arbeitsvorgänge-KTBL'!$B$689:$B$739,Roggen!A26,'Arbeitsvorgänge-KTBL'!$G$689:$G$739) -> 0.33 | F26: =SUMIF('Arbeitsvorgänge-KTBL'!$B$754:$B$804,Roggen!A26,'Arbeitsvorgänge-KTBL'!$G$754:$G$804) -> 0.33 | G26: =SUMIF('Arbeitsvorgänge-KTBL'!$B$819:$B$872,A26,'Arbeitsvorgänge-KTBL'!$G$819:$G$872) -> 0.27 | H26: =SUMIF('Arbeitsvorgänge-KTBL'!$B$887:$B$940,Roggen!A26,'Arbeitsvorgänge-KTBL'!$G$887:$G$940) -> 0.27 | I26: =SUMIF('Arbeitsvorgänge-KTBL'!$B$955:$B$1012,Roggen!A26,'Arbeitsvorgänge-KTBL'!$G$955:$G$1012) -> 0.16 | J26: =SUMIF('Arbeitsvorgänge-KTBL'!$B$1027:$B$1084,Roggen!A26,'Arbeitsvorgänge-KTBL'!$G$1027:$G$1084) -> 0.16 | K26: 0
A27: MRZ | C27: Akh/ha | D27: =SUMIF('Arbeitsvorgänge-KTBL'!$B$624:$B$674,Roggen!A27,'Arbeitsvorgänge-KTBL'!$G$624:$G$674) -> 0.13 | E27: =SUMIF('Arbeitsvorgänge-KTBL'!$B$689:$B$739,Roggen!A27,'Arbeitsvorgänge-KTBL'!$G$689:$G$739) -> 0.13 | F27: =SUMIF('Arbeitsvorgänge-KTBL'!$B$754:$B$804,Roggen!A27,'Arbeitsvorgänge-KTBL'!$G$754:$G$804) -> 0.13 | G27: =SUMIF('Arbeitsvorgänge-KTBL'!$B$819:$B$872,A27,'Arbeitsvorgänge-KTBL'!$G$819:$G$872) -> 0.11 | H27: =SUMIF('Arbeitsvorgänge-KTBL'!$B$887:$B$940,Roggen!A27,'Arbeitsvorgänge-KTBL'!$G$887:$G$940) -> 0.11 | I27: =SUMIF('Arbeitsvorgänge-KTBL'!$B$955:$B$1012,Roggen!A27,'Arbeitsvorgänge-KTBL'!$G$955:$G$1012) -> 0.09 | J27: =SUMIF('Arbeitsvorgänge-KTBL'!$B$1027:$B$1084,Roggen!A27,'Arbeitsvorgänge-KTBL'!$G$1027:$G$1084) -> 0.09 | K27: 0
A28: APR | C28: Akh/ha | D28: =SUMIF('Arbeitsvorgänge-KTBL'!$B$624:$B$674,Roggen!A28,'Arbeitsvorgänge-KTBL'!$G$624:$G$674) -> 0.44 | E28: =SUMIF('Arbeitsvorgänge-KTBL'!$B$689:$B$739,Roggen!A28,'Arbeitsvorgänge-KTBL'!$G$689:$G$739) -> 0.45 | F28: =SUMIF('Arbeitsvorgänge-KTBL'!$B$754:$B$804,Roggen!A28,'Arbeitsvorgänge-KTBL'!$G$754:$G$804) -> 0.45 | G28: =SUMIF('Arbeitsvorgänge-KTBL'!$B$819:$B$872,A28,'Arbeitsvorgänge-KTBL'!$G$819:$G$872) -> 0.32 | H28: =SUMIF('Arbeitsvorgänge-KTBL'!$B$887:$B$940,Roggen!A28,'Arbeitsvorgänge-KTBL'!$G$887:$G$940) -> 0.32 | I28: =SUMIF('Arbeitsvorgänge-KTBL'!$B$955:$B$1012,Roggen!A28,'Arbeitsvorgänge-KTBL'!$G$955:$G$1012) -> 0.2 | J28: =SUMIF('Arbeitsvorgänge-KTBL'!$B$1027:$B$1084,Roggen!A28,'Arbeitsvorgänge-KTBL'!$G$1027:$G$1084) -> 0.2 | K28: 0
A29: MAI | C29: Akh/ha | D29: =SUMIF('Arbeitsvorgänge-KTBL'!$B$624:$B$674,Roggen!A29,'Arbeitsvorgänge-KTBL'!$G$624:$G$674) -> 0 | E29: =SUMIF('Arbeitsvorgänge-KTBL'!$B$689:$B$739,Roggen!A29,'Arbeitsvorgänge-KTBL'!$G$689:$G$739) -> 0 | F29: =SUMIF('Arbeitsvorgänge-KTBL'!$B$754:$B$804,Roggen!A29,'Arbeitsvorgänge-KTBL'!$G$754:$G$804) -> 0 | G29: =SUMIF('Arbeitsvorgänge-KTBL'!$B$819:$B$872,A29,'Arbeitsvorgänge-KTBL'!$G$819:$G$872) -> 0 | H29: =SUMIF('Arbeitsvorgänge-KTBL'!$B$887:$B$940,Roggen!A29,'Arbeitsvorgänge-KTBL'!$G$887:$G$940) -> 0 | I29: =SUMIF('Arbeitsvorgänge-KTBL'!$B$955:$B$1012,Roggen!A29,'Arbeitsvorgänge-KTBL'!$G$955:$G$1012) -> 0 | J29: =SUMIF('Arbeitsvorgänge-KTBL'!$B$1027:$B$1084,Roggen!A29,'Arbeitsvorgänge-KTBL'!$G$1027:$G$1084) -> 0 | K29: 0
A30: JUN | C30: Akh/ha | D30: =SUMIF('Arbeitsvorgänge-KTBL'!$B$624:$B$674,Roggen!A30,'Arbeitsvorgänge-KTBL'!$G$624:$G$674) -> 0 | E30: =SUMIF('Arbeitsvorgänge-KTBL'!$B$689:$B$739,Roggen!A30,'Arbeitsvorgänge-KTBL'!$G$689:$G$739) -> 0 | F30: =SUMIF('Arbeitsvorgänge-KTBL'!$B$754:$B$804,Roggen!A30,'Arbeitsvorgänge-KTBL'!$G$754:$G$804) -> 0 | G30: =SUMIF('Arbeitsvorgänge-KTBL'!$B$819:$B$872,A30,'Arbeitsvorgänge-KTBL'!$G$819:$G$872) -> 0 | H30: =SUMIF('Arbeitsvorgänge-KTBL'!$B$887:$B$940,Roggen!A30,'Arbeitsvorgänge-KTBL'!$G$887:$G$940) -> 0 | I30: =SUMIF('Arbeitsvorgänge-KTBL'!$B$955:$B$1012,Roggen!A30,'Arbeitsvorgänge-KTBL'!$G$955:$G$1012) -> 0 | J30: =SUMIF('Arbeitsvorgänge-KTBL'!$B$1027:$B$1084,Roggen!A30,'Arbeitsvorgänge-KTBL'!$G$1027:$G$1084) -> 0 | K30: 0
A31: JUL | C31: Akh/ha | D31: =SUMIF('Arbeitsvorgänge-KTBL'!$B$624:$B$674,Roggen!A31,'Arbeitsvorgänge-KTBL'!$G$624:$G$674) -> 0 | E31: =SUMIF('Arbeitsvorgänge-KTBL'!$B$689:$B$739,Roggen!A31,'Arbeitsvorgänge-KTBL'!$G$689:$G$739) -> 0 | F31: =SUMIF('Arbeitsvorgänge-KTBL'!$B$754:$B$804,Roggen!A31,'Arbeitsvorgänge-KTBL'!$G$754:$G$804) -> 0 | G31: =SUMIF('Arbeitsvorgänge-KTBL'!$B$819:$B$872,A31,'Arbeitsvorgänge-KTBL'!$G$819:$G$872) -> 0 | H31: =SUMIF('Arbeitsvorgänge-KTBL'!$B$887:$B$940,Roggen!A31,'Arbeitsvorgänge-KTBL'!$G$887:$G$940) -> 0 | I31: =SUMIF('Arbeitsvorgänge-KTBL'!$B$955:$B$1012,Roggen!A31,'Arbeitsvorgänge-KTBL'!$G$955:$G$1012) -> 0 | J31: =SUMIF('Arbeitsvorgänge-KTBL'!$B$1027:$B$1084,Roggen!A31,'Arbeitsvorgänge-KTBL'!$G$1027:$G$1084) -> 0 | K31: 0
A32: AUG | C32: Akh/ha | D32: =SUMIF('Arbeitsvorgänge-KTBL'!$B$624:$B$674,Roggen!A32,'Arbeitsvorgänge-KTBL'!$G$624:$G$674) -> 1.67 | E32: =SUMIF('Arbeitsvorgänge-KTBL'!$B$689:$B$739,Roggen!A32,'Arbeitsvorgänge-KTBL'!$G$689:$G$739) -> 1.95 | F32: =SUMIF('Arbeitsvorgänge-KTBL'!$B$754:$B$804,Roggen!A32,'Arbeitsvorgänge-KTBL'!$G$754:$G$804) -> 1.95 | G32: =SUMIF('Arbeitsvorgänge-KTBL'!$B$819:$B$872,A32,'Arbeitsvorgänge-KTBL'!$G$819:$G$872) -> 1.6 | H32: =SUMIF('Arbeitsvorgänge-KTBL'!$B$887:$B$940,Roggen!A32,'Arbeitsvorgänge-KTBL'!$G$887:$G$940) -> 1.61 | I32: =SUMIF('Arbeitsvorgänge-KTBL'!$B$955:$B$1012,Roggen!A32,'Arbeitsvorgänge-KTBL'!$G$955:$G$1012) -> 0.97 | J32: =SUMIF('Arbeitsvorgänge-KTBL'!$B$1027:$B$1084,Roggen!A32,'Arbeitsvorgänge-KTBL'!$G$1027:$G$1084) -> 0.97 | K32: 0
A33: SEP | C33: Akh/ha | D33: =SUMIF('Arbeitsvorgänge-KTBL'!$B$624:$B$674,Roggen!A33,'Arbeitsvorgänge-KTBL'!$G$624:$G$674) -> 4.42 | E33: =SUMIF('Arbeitsvorgänge-KTBL'!$B$689:$B$739,Roggen!A33,'Arbeitsvorgänge-KTBL'!$G$689:$G$739) -> 4.46 | F33: =SUMIF('Arbeitsvorgänge-KTBL'!$B$754:$B$804,Roggen!A33,'Arbeitsvorgänge-KTBL'!$G$754:$G$804) -> 4.46 | G33: =SUMIF('Arbeitsvorgänge-KTBL'!$B$819:$B$872,A33,'Arbeitsvorgänge-KTBL'!$G$819:$G$872) -> 3.27 | H33: =SUMIF('Arbeitsvorgänge-KTBL'!$B$887:$B$940,Roggen!A33,'Arbeitsvorgänge-KTBL'!$G$887:$G$940) -> 3.27 | I33: =SUMIF('Arbeitsvorgänge-KTBL'!$B$955:$B$1012,Roggen!A33,'Arbeitsvorgänge-KTBL'!$G$955:$G$1012) -> 2.03 | J33: =SUMIF('Arbeitsvorgänge-KTBL'!$B$1027:$B$1084,Roggen!A33,'Arbeitsvorgänge-KTBL'!$G$1027:$G$1084) -> 2.04 | K33: 0
A34: OKT | C34: Akh/ha | D34: =SUMIF('Arbeitsvorgänge-KTBL'!$B$624:$B$674,Roggen!A34,'Arbeitsvorgänge-KTBL'!$G$624:$G$674) -> 0.44 | E34: =SUMIF('Arbeitsvorgänge-KTBL'!$B$689:$B$739,Roggen!A34,'Arbeitsvorgänge-KTBL'!$G$689:$G$739) -> 0.44 | F34: =SUMIF('Arbeitsvorgänge-KTBL'!$B$754:$B$804,Roggen!A34,'Arbeitsvorgänge-KTBL'!$G$754:$G$804) -> 0.44 | G34: =SUMIF('Arbeitsvorgänge-KTBL'!$B$819:$B$872,A34,'Arbeitsvorgänge-KTBL'!$G$819:$G$872) -> 0.31 | H34: =SUMIF('Arbeitsvorgänge-KTBL'!$B$887:$B$940,Roggen!A34,'Arbeitsvorgänge-KTBL'!$G$887:$G$940) -> 0.31 | I34: =SUMIF('Arbeitsvorgänge-KTBL'!$B$955:$B$1012,Roggen!A34,'Arbeitsvorgänge-KTBL'!$G$955:$G$1012) -> 0.24 | J34: =SUMIF('Arbeitsvorgänge-KTBL'!$B$1027:$B$1084,Roggen!A34,'Arbeitsvorgänge-KTBL'!$G$1027:$G$1084) -> 0.24 | K34: 0
A35: NOV | C35: Akh/ha | D35: =SUMIF('Arbeitsvorgänge-KTBL'!$B$624:$B$674,Roggen!A35,'Arbeitsvorgänge-KTBL'!$G$624:$G$674) -> 0 | E35: =SUMIF('Arbeitsvorgänge-KTBL'!$B$689:$B$739,Roggen!A35,'Arbeitsvorgänge-KTBL'!$G$689:$G$739) -> 0 | F35: =SUMIF('Arbeitsvorgänge-KTBL'!$B$754:$B$804,Roggen!A35,'Arbeitsvorgänge-KTBL'!$G$754:$G$804) -> 0 | G35: =SUMIF('Arbeitsvorgänge-KTBL'!$B$819:$B$872,A35,'Arbeitsvorgänge-KTBL'!$G$819:$G$872) -> 0 | H35: =SUMIF('Arbeitsvorgänge-KTBL'!$B$887:$B$940,Roggen!A35,'Arbeitsvorgänge-KTBL'!$G$887:$G$940) -> 0 | I35: =SUMIF('Arbeitsvorgänge-KTBL'!$B$955:$B$1012,Roggen!A35,'Arbeitsvorgänge-KTBL'!$G$955:$G$1012) -> 0 | J35: =SUMIF('Arbeitsvorgänge-KTBL'!$B$1027:$B$1084,Roggen!A35,'Arbeitsvorgänge-KTBL'!$G$1027:$G$1084) -> 0 | K35: 0
A36: Rest | C36: Akh/ha | D36: =SUMIF('Arbeitsvorgänge-KTBL'!$B$624:$B$674,Roggen!A36,'Arbeitsvorgänge-KTBL'!$G$624:$G$674) -> 0 | E36: =SUMIF('Arbeitsvorgänge-KTBL'!$B$689:$B$739,Roggen!A36,'Arbeitsvorgänge-KTBL'!$G$689:$G$739) -> 0 | F36: =SUMIF('Arbeitsvorgänge-KTBL'!$B$754:$B$804,Roggen!A36,'Arbeitsvorgänge-KTBL'!$G$754:$G$804) -> 0 | G36: =SUMIF('Arbeitsvorgänge-KTBL'!$B$819:$B$872,A36,'Arbeitsvorgänge-KTBL'!$G$819:$G$872) -> 0 | H36: =SUMIF('Arbeitsvorgänge-KTBL'!$B$887:$B$940,Roggen!A36,'Arbeitsvorgänge-KTBL'!$G$887:$G$940) -> 0 | I36: =SUMIF('Arbeitsvorgänge-KTBL'!$B$955:$B$1012,Roggen!A36,'Arbeitsvorgänge-KTBL'!$G$955:$G$1012) -> 0 | J36: =SUMIF('Arbeitsvorgänge-KTBL'!$B$1027:$B$1084,Roggen!A36,'Arbeitsvorgänge-KTBL'!$G$1027:$G$1084) -> 0 | K36: 0
A37: Arbeitskraftstunden | C37: AKh/ha | D37: =SUM(D26:D36) -> 7.41 | E37: =SUM(E26:E36) -> 7.76 | F37: =SUM(F26:F36) -> 7.76 | G37: 5.88 | H37: 5.89 | I37: 3.69 | J37: 3.7 | K37: 0
A38: DB (je Akh) | C38: €/Akh | D38: =IF(D24>0,D24/D37,0) -> 3.719130965 | E38: 20.00456566 | F38: 30.67958906 | G38: 28.87157504 | H38: 43.9720035 | I38: 55.16158698 | J38: 81.47955635 | K38: 0
A39: Aussaatmenge | C39: kg/ha | D39: 100 | E39: =D39 -> 100 | F39: =E39 -> 100 | G39: 100 | H39: =G39 -> 100 | I39: 100 | J39: =I39 -> 100 | K39: 0
A40: davon Zukaufsaatgut | C40: % | D40: 100 | E40: 100 | F40: =E40 -> 100 | G40: 100 | H40: =G40 -> 100 | I40: 100 | J40: =I40 -> 100 | K40: 0
A41: Saatgutpreis Eigen | C41: €/dt | D41: 0 | E41: =D41 -> 0 | F41: =E41 -> 0 | G41: 0 | H41: =G41 -> 0 | I41: 0 | J41: =I41 -> 0 | K41: 0
A42: Zukauf (Hybridroggen)* | C42: €/dt | D42: =Stammdatenblatt!P81 -> 95.23 | E42: =D42 -> 95.23 | F42: =E42 -> 95.23 | G42: =+F42 -> 95.23 | H42: =G42 -> 95.23 | I42: =+H42 -> 95.23 | J42: =I42 -> 95.23 | K42: 0
A43: Saatgutkosten | C43: €/ha | D43: =D40/100*(D39*D42)/100+((100-D40)/100*D39*D41/100) -> 95.23 | E43: 95.23 | F43: 95.23 | G43: 95.23 | H43: 95.23 | I43: 95.23 | J43: 95.23 | K43: 0
A44: Dünger: | B44: €/kg | C44: Düngerbedarf/ha (in kg Reinnährstoff) nach Düngerabfuhr LfL Deckungsbeiträge 2024
A45: =+Stammdatenblatt!A130 -> Stickstoff | B45: =+Stammdatenblatt!P130 -> 1.365948973 | C45: Aufw./ha | D45: 91 | E45: 121 | F45: 151 | G45: 121 | H45: 151 | I45: 121 | J45: 151 | K45: 0
A46: =+Stammdatenblatt!A131 -> Phosphor | B46: =+Stammdatenblatt!P131 -> 1.429608243 | C46: Aufw./ha | D46: 48 | E46: 64 | F46: 80 | G46: 64 | H46: 80 | I46: 64 | J46: 80 | K46: 0
A47: =+Stammdatenblatt!A132 -> Kali | B47: =+Stammdatenblatt!P132 -> 0.9499175 | C47: Aufw./ha | D47: 36 | E47: 48 | F47: 60 | G47: 48 | H47: 60 | I47: 48 | J47: 60 | K47: 0
A48: =+Stammdatenblatt!A133 -> Kalk | B48: =+Stammdatenblatt!P133 -> 0.05183111111 | C48: Aufw./ha | D48: 300 | E48: =D48 -> 300 | F48: 300 | G48: 300 | H48: 300 | I48: 300 | J48: 300 | K48: 0
A49: =+Stammdatenblatt!A134 -> Magnesium | B49: =+Stammdatenblatt!P134 -> 2.3205 | C49: Aufw./ha | D49: 38 | E49: 42 | F49: 45 | G49: 42 | H49: 45 | I49: 42 | J49: 45 | K49: 0
A50: =+Stammdatenblatt!A135 -> Schwefel | B50: =+Stammdatenblatt!P135 -> 1.0472 | C50: Aufw./ha | D50: 5 | E50: 10 | F50: 10 | G50: 10 | H50: 10 | I50: 10 | J50: 10 | K50: 0
A51: Mineraldüngerkosten | C51: €/ha | D51: =D45*$B$45+D46*$B$46+D47*$B$47+D48*$B$48+D49*$B$49+D50*$B$50 -> 336.0839156 | E51: 425.8531267 | F51: 508.0658377 | G51: 425.8531267 | H51: 508.0658377 | I51: 425.8531267 | J51: 508.0658377 | K51: 0
A52: Herbizide | C52: €/ha | D52: 40 | E52: 44 | F52: 44 | G52: 44 | H52: 44 | I52: 44 | J52: 44 | K52: 0
A53: Fungizide | C53: €/ha | D53: 35 | E53: 49 | F53: 67 | G53: 49 | H53: 67 | I53: 49 | J53: 67 | K53: 0
A54: Insektizide | C54: €/ha | D54: 0 | E54: 0 | F54: 2 | G54: 0 | H54: 2 | I54: 0 | J54: 2 | K54: 0
A55: Wachstumsregler | C55: €/ha | D55: 17 | E55: 25 | F55: 51 | G55: 25 | H55: 51 | I55: 25 | J55: 51 | K55: 0
A56: Pflanzenbehandlungskosten | C56: €/ha | D56: =SUM(D52:D55) -> 92 | E56: 118 | F56: 164 | G56: 118 | H56: 164 | I56: 118 | J56: 164 | K56: 0
A57: * normale Sorten incl. USt: | C57: =+Stammdatenblatt!P80 -> 83.46 | D57: €/dt
A58: **variable Kosten in Anlehnung an KTBL-Richtwerte für Arbeitsgänge incl. Zinsanspruch für 3 Monate

Sheet Brotroggen (hidden)
L2: Erntejahr
B3: Landesbetrieb Landwirtschaft Hessen | H3: 2012 | K3: 2011 | L3: 2010 | M3: 2009 | N3: 2008
A6: Roggen | B6: Brot- / Mahlroggen | D6: 2 ha | G6: 5 ha | H6: 5 ha | I6: 20 ha | K6: 5 ha | L6: 5 ha | M6: 5 ha | N6: 5 ha
A7: Leistung: Menge Hauptprod. | C7: dt/ha | D7: 50 | E7: 70 | F7: 90 | G7: 70 | H7: 90 | I7: 70 | J7: 90 | K7: 90 | L7: 90 | M7: 90 | N7: 90
A8: Preis Hauptprod. | B8: (Angaben inkl. MwSt.) | C8: € | D8: =+Stammdatenblatt!P14 -> 16.46106 | E8: =D8 -> 16.46106 | F8: =E8 -> 16.46106 | G8: =+D8 -> 16.46106 | H8: =G8 -> 16.46106 | I8: =+H8 -> 16.46106 | J8: =I8 -> 16.46106 | K8: 22.35 | L8: 17.05 | M8: 9.59 | N8: 12.5
A9: Erlös Hauptprodukt | C9: €/ha | D9: =D7*D8 -> 823.053 | E9: 1152.2742 | F9: 1481.4954 | G9: 1152.2742 | H9: 1481.4954 | I9: 1152.2742 | J9: 1481.4954 | K9: 2011.5 | L9: 1534.5 | M9: 863.1 | N9: 1125
A10: Erlös Nebenprodukt(e) | C10: €/ha | D10: 0 | E10: =D10 -> 0 | F10: =E10 -> 0 | G10: 0 | H10: =G10 -> 0 | I10: 0 | J10: =I10 -> 0 | K10: =J10 -> 0 | L10: =K10 -> 0 | M10: =L10 -> 0 | N10: =M10 -> 0
A11: Leistungen | C11: €/ha | D11: =D9+D10 -> 823.053 | E11: =E10+E9 -> 1152.2742 | F11: 1481.4954 | G11: 1152.2742 | H11: 1481.4954 | I11: 1152.2742 | J11: 1481.4954 | K11: 2011.5 | L11: 1534.5 | M11: 863.1 | N11: 1125
A12: Saatgutkosten | C12: €/ha | D12: =D41 -> 95.23 | E12: 95.23 | F12: 95.23 | G12: 95.23 | H12: 95.23 | I12: 95.23 | J12: 95.23 | K12: 64 | L12: 48 | M12: 50 | N12: 61
A13: Mineraldüngerkosten | C13: €/ha | D13: =D49 -> 406.0949958 | E13: 515.6627946 | F13: 584.9973044 | G13: 515.6627946 | H13: 621.752222 | I13: 520.8987946 | J13: 584.9973044 | K13: 465 | L13: 450 | M13: 350 | N13: 480
A14: Pflanzenbehandlungsk. | C14: €/ha | D14: =D54 -> 65 | E14: 105 | F14: 140 | G14: 105 | H14: 155 | I14: 109 | J14: 133 | K14: 152 | L14: 150 | M14: 133 | N14: 130
A15: Versicherung | C15: €/ha | D15: =(D11/1000)*Stammdatenblatt!$E$190 -> 4.93008747 | E15: =(E11/1000)*Stammdatenblatt!$E$190 -> 6.902122458 | F15: =(F11/1000)*Stammdatenblatt!$E$190 -> 8.874157446 | G15: =(G11/1000)*Stammdatenblatt!$E$190 -> 6.902122458 | H15: =(H11/1000)*Stammdatenblatt!$E$190 -> 8.874157446 | I15: =(I11/1000)*Stammdatenblatt!$E$190 -> 6.902122458 | J15: =(J11/1000)*Stammdatenblatt!$E$190 -> 8.874157446 | K15: 13 | L15: 13 | M15: 12 | N15: 11
A16: Trocknungskosten | C16: €/ha | D16: =D7/Stammdatenblatt!$E$204*Stammdatenblatt!$E$201+(Stammdatenblatt!$E$203*Stammdatenblatt!$E$202) -> 29.91333333 | E16: =E7/Stammdatenblatt!$E$204*Stammdatenblatt!$E$201+(Stammdatenblatt!$E$203*Stammdatenblatt!$E$202) -> 41.44666667 | F16: =F7/Stammdatenblatt!$E$204*Stammdatenblatt!$E$201+(Stammdatenblatt!$E$203*Stammdatenblatt!$E$202) -> 52.98 | G16: =G7/Stammdatenblatt!$E$204*Stammdatenblatt!$E$201+(Stammdatenblatt!$E$203*Stammdatenblatt!$E$202) -> 41.44666667 | H16: =H7/Stammdatenblatt!$E$204*Stammdatenblatt!$E$201+(Stammdatenblatt!$E$203*Stammdatenblatt!$E$202) -> 52.98 | I16: =I7/Stammdatenblatt!$E$204*Stammdatenblatt!$E$201+(Stammdatenblatt!$E$203*Stammdatenblatt!$E$202) -> 41.44666667 | J16: =J7/Stammdatenblatt!$E$204*Stammdatenblatt!$E$201+(Stammdatenblatt!$E$203*Stammdatenblatt!$E$202) -> 52.98 | K16: 19 | L16: 18 | M16: 17 | N16: 16
A17: Summe Direktkosten | C17: €/ha | D17: =SUM(D12:D16) -> 601.1684166 | E17: =SUM(E12:E16) -> 764.2415837 | F17: 882.0814618 | G17: 764.2415837 | H17: 933.8363794 | I17: 773.4775837 | J17: 875.0814618 | K17: 713 | L17: 679 | M17: 562 | N17: 698
A18: Direktkostenfreie Leistung | C18: €/ha | D18: =D11-D17 -> 221.8845834 | E18: =E11-E17 -> 388.0326163 | F18: 599.4139382 | G18: 388.0326163 | H18: 547.6590206 | I18: 378.7966163 | J18: 606.4139382 | K18: 1298.5 | L18: 855.5 | M18: 301.1 | N18: 427
A19: Maschinenkosten eigen | C19: €/ha | D19: =Arbeitsgänge!J523 -> 112.66 | E19: =Arbeitsgänge!J543 -> 117.48 | F19: =Arbeitsgänge!J564 -> 120.51 | G19: =Arbeitsgänge!J586 -> 110.79 | H19: =Arbeitsgänge!J609 -> 113.77 | I19: =Arbeitsgänge!J640 -> 109.09 | J19: =Arbeitsgänge!J673 -> 111.67 | K19: 114 | L19: 112 | M19: 111 | N19: 110
A20: Maschinenkosten fremd | C20: €/ha | D20: =Arbeitsgänge!K523 -> 125 | E20: =Arbeitsgänge!K543 -> 125 | F20: =Arbeitsgänge!K564 -> 125 | G20: =Arbeitsgänge!K586 -> 110 | H20: =Arbeitsgänge!K609 -> 110 | I20: =Arbeitsgänge!K640 -> 110 | J20: =Arbeitsgänge!K673 -> 110 | K20: 110 | L20: 110 | M20: 110 | N20: 110
A21: Lohnkosten / Lohntrocknung | C21: €/ha | D21: 0 | E21: =D21 -> 0 | F21: =E21 -> 0 | G21: 0 | H21: =G21 -> 0 | I21: 0 | J21: =I21 -> 0 | K21: 0 | L21: 0 | M21: 0 | N21: 0
A22: zusätzl. Kosten (Aufbereitung etc.) | C22: €/ha | D22: 0 | E22: =D22 -> 0 | F22: =E22 -> 0 | G22: 0 | H22: =G22 -> 0 | I22: 0 | J22: 0 | K22: 0 | L22: 0 | M22: 0 | N22: 0
A23: variable Kosten | C23: €/ha | D23: =SUM(D19:D22,D17) -> 838.8284166 | E23: =SUM(E19:E22,E17) -> 1006.721584 | F23: 1127.591462 | G23: 985.0315837 | H23: 1157.606379 | I23: 992.5675837 | J23: 1096.751462 | K23: 937 | L23: 901 | M23: 783 | N23: 918
A24: Deckungsbeitrag (DB) | C24: €/ha | D24: =D11-D23 -> -15.77541661 | E24: 145.5526163 | F24: 353.9039382 | G24: 167.2426163 | H24: 323.8890206 | I24: 159.7066163 | J24: 384.7439382 | K24: 1074.5 | L24: 633.5 | M24: 80.1 | N24: 207
A25: Zeit-Spanne | B25: AK-Bedarf
A26: MAE | C26: Akh/ha | D26: =SUMIF(Arbeitsgänge!D$508:D$522,A26,Arbeitsgänge!G$508:G$522) -> 0.24 | E26: =SUMIF(Arbeitsgänge!D$526:D$542,Brotroggen!A26,Arbeitsgänge!G$526:G$542) -> 0.24 | F26: =SUMIF(Arbeitsgänge!D$546:D$563,A26,Arbeitsgänge!G$546:G$563) -> 0.24 | G26: =SUMIF(Arbeitsgänge!D$567:D$585,Brotroggen!A26,Arbeitsgänge!G$567:G$585) -> 0.23 | H26: =SUMIF(Arbeitsgänge!D$589:D$608,Brotroggen!A26,Arbeitsgänge!G$589:G$608) -> 0.23 | I26: =SUMIF(Arbeitsgänge!D$612:D$639,Brotroggen!A26,Arbeitsgänge!G$612:G$639) -> 0.12 | J26: =SUMIF(Arbeitsgänge!D$643:D$672,Brotroggen!A26,Arbeitsgänge!G$643:G$672) -> 0.12 | K26: 0.2 | L26: 0.2 | M26: 0.2 | N26: 0.2
A27: APR | C27: Akh/ha | D27: =SUMIF(Arbeitsgänge!D$508:D$522,A27,Arbeitsgänge!G$508:G$522) -> 0.58 | E27: =SUMIF(Arbeitsgänge!D$526:D$542,Brotroggen!A27,Arbeitsgänge!G$526:G$542) -> 0.58 | F27: =SUMIF(Arbeitsgänge!D$546:D$563,A27,Arbeitsgänge!G$546:G$563) -> 0.58 | G27: =SUMIF(Arbeitsgänge!D$567:D$585,Brotroggen!A27,Arbeitsgänge!G$567:G$585) -> 0.49 | H27: =SUMIF(Arbeitsgänge!D$589:D$608,Brotroggen!A27,Arbeitsgänge!G$589:G$608) -> 0.49 | I27: =SUMIF(Arbeitsgänge!D$612:D$639,Brotroggen!A27,Arbeitsgänge!G$612:G$639) -> 0.29 | J27: =SUMIF(Arbeitsgänge!D$643:D$672,Brotroggen!A27,Arbeitsgänge!G$643:G$672) -> 0.29 | K27: 0.5 | L27: 0.5 | M27: 0.5 | N27: 0.5
A28: MAI | C28: Akh/ha | D28: =SUMIF(Arbeitsgänge!D$508:D$522,A28,Arbeitsgänge!G$508:G$522) -> 0 | E28: =SUMIF(Arbeitsgänge!D$526:D$542,Brotroggen!A28,Arbeitsgänge!G$526:G$542) -> 0.58 | F28: =SUMIF(Arbeitsgänge!D$546:D$563,A28,Arbeitsgänge!G$546:G$563) -> 0.58 | G28: =SUMIF(Arbeitsgänge!D$567:D$585,Brotroggen!A28,Arbeitsgänge!G$567:G$585) -> 0.49 | H28: =SUMIF(Arbeitsgänge!D$589:D$608,Brotroggen!A28,Arbeitsgänge!G$589:G$608) -> 0.49 | I28: =SUMIF(Arbeitsgänge!D$612:D$639,Brotroggen!A28,Arbeitsgänge!G$612:G$639) -> 0.29 | J28: =SUMIF(Arbeitsgänge!D$643:D$672,Brotroggen!A28,Arbeitsgänge!G$643:G$672) -> 0.29 | K28: 0.5 | L28: 0.5 | M28: 0.5 | N28: 0.5
A29: JUN | C29: Akh/ha | D29: =SUMIF(Arbeitsgänge!D$508:D$522,A29,Arbeitsgänge!G$508:G$522) -> 0 | E29: =SUMIF(Arbeitsgänge!D$526:D$542,Brotroggen!A29,Arbeitsgänge!G$526:G$542) -> 0 | F29: =SUMIF(Arbeitsgänge!D$546:D$563,A29,Arbeitsgänge!G$546:G$563) -> 0.34 | G29: =SUMIF(Arbeitsgänge!D$567:D$585,Brotroggen!A29,Arbeitsgänge!G$567:G$585) -> 0 | H29: =SUMIF(Arbeitsgänge!D$589:D$608,Brotroggen!A29,Arbeitsgänge!G$589:G$608) -> 0.26 | I29: =SUMIF(Arbeitsgänge!D$612:D$639,Brotroggen!A29,Arbeitsgänge!G$612:G$639) -> 0 | J29: =SUMIF(Arbeitsgänge!D$643:D$672,Brotroggen!A29,Arbeitsgänge!G$643:G$672) -> 0.17 | K29: 0.3 | L29: 0.3 | M29: 0.3 | N29: 0.3
A30: JUL | C30: Akh/ha | D30: =SUMIF(Arbeitsgänge!D$508:D$522,A30,Arbeitsgänge!G$508:G$522) -> 0 | E30: =SUMIF(Arbeitsgänge!D$526:D$542,Brotroggen!A30,Arbeitsgänge!G$526:G$542) -> 0 | F30: =SUMIF(Arbeitsgänge!D$546:D$563,A30,Arbeitsgänge!G$546:G$563) -> 0 | G30: =SUMIF(Arbeitsgänge!D$567:D$585,Brotroggen!A30,Arbeitsgänge!G$567:G$585) -> 0 | H30: =SUMIF(Arbeitsgänge!D$589:D$608,Brotroggen!A30,Arbeitsgänge!G$589:G$608) -> 0 | I30: =SUMIF(Arbeitsgänge!D$612:D$639,Brotroggen!A30,Arbeitsgänge!G$612:G$639) -> 0 | J30: =SUMIF(Arbeitsgänge!D$643:D$672,Brotroggen!A30,Arbeitsgänge!G$643:G$672) -> 0 | K30: 0 | L30: 0 | M30: 0 | N30: 0
A31: AUG | C31: Akh/ha | D31: =SUMIF(Arbeitsgänge!D$508:D$522,A31,Arbeitsgänge!G$508:G$522) -> 1.34 | E31: =SUMIF(Arbeitsgänge!D$526:D$542,Brotroggen!A31,Arbeitsgänge!G$526:G$542) -> 1.34 | F31: =SUMIF(Arbeitsgänge!D$546:D$563,A31,Arbeitsgänge!G$546:G$563) -> 1.34 | G31: =SUMIF(Arbeitsgänge!D$567:D$585,Brotroggen!A31,Arbeitsgänge!G$567:G$585) -> 1.04 | H31: =SUMIF(Arbeitsgänge!D$589:D$608,Brotroggen!A31,Arbeitsgänge!G$589:G$608) -> 1.04 | I31: =SUMIF(Arbeitsgänge!D$612:D$639,Brotroggen!A31,Arbeitsgänge!G$612:G$639) -> 0.78 | J31: =SUMIF(Arbeitsgänge!D$643:D$672,Brotroggen!A31,Arbeitsgänge!G$643:G$672) -> 0.78 | K31: 1 | L31: 1 | M31: 1 | N31: 1
A32: SEP | C32: Akh/ha | D32: =SUMIF(Arbeitsgänge!D$508:D$522,A32,Arbeitsgänge!G$508:G$522) -> 0.73 | E32: =SUMIF(Arbeitsgänge!D$526:D$542,Brotroggen!A32,Arbeitsgänge!G$526:G$542) -> 0.73 | F32: =SUMIF(Arbeitsgänge!D$546:D$563,A32,Arbeitsgänge!G$546:G$563) -> 0.73 | G32: =SUMIF(Arbeitsgänge!D$567:D$585,Brotroggen!A32,Arbeitsgänge!G$567:G$585) -> 0.55 | H32: =SUMIF(Arbeitsgänge!D$589:D$608,Brotroggen!A32,Arbeitsgänge!G$589:G$608) -> 0.55 | I32: =SUMIF(Arbeitsgänge!D$612:D$639,Brotroggen!A32,Arbeitsgänge!G$612:G$639) -> 0.43 | J32: =SUMIF(Arbeitsgänge!D$643:D$672,Brotroggen!A32,Arbeitsgänge!G$643:G$672) -> 0.43 | K32: 0.6 | L32: 0.6 | M32: 0.6 | N32: 0.6
A33: OKT | C33: Akh/ha | D33: =SUMIF(Arbeitsgänge!D$508:D$522,A33,Arbeitsgänge!G$508:G$522) -> 4.13 | E33: =SUMIF(Arbeitsgänge!D$526:D$542,Brotroggen!A33,Arbeitsgänge!G$526:G$542) -> 4.13 | F33: =SUMIF(Arbeitsgänge!D$546:D$563,A33,Arbeitsgänge!G$546:G$563) -> 4.13 | G33: =SUMIF(Arbeitsgänge!D$567:D$585,Brotroggen!A33,Arbeitsgänge!G$567:G$585) -> 3.14 | H33: =SUMIF(Arbeitsgänge!D$589:D$608,Brotroggen!A33,Arbeitsgänge!G$589:G$608) -> 3.14 | I33: =SUMIF(Arbeitsgänge!D$612:D$639,Brotroggen!A33,Arbeitsgänge!G$612:G$639) -> 2.19 | J33: =SUMIF(Arbeitsgänge!D$643:D$672,Brotroggen!A33,Arbeitsgänge!G$643:G$672) -> 2.19 | K33: 3.1 | L33: 3.1 | M33: 3.1 | N33: 3.1
A34: Rest | C34: Akh/ha | D34: =SUMIF(Arbeitsgänge!D$508:D$522,A34,Arbeitsgänge!G$508:G$522) -> 0 | E34: =SUMIF(Arbeitsgänge!D$526:D$542,Brotroggen!A34,Arbeitsgänge!G$526:G$542) -> 0 | F34: =SUMIF(Arbeitsgänge!D$546:D$563,A34,Arbeitsgänge!G$546:G$563) -> 0 | G34: =SUMIF(Arbeitsgänge!D$567:D$585,Brotroggen!A34,Arbeitsgänge!G$567:G$585) -> 0 | H34: =SUMIF(Arbeitsgänge!D$589:D$608,Brotroggen!A34,Arbeitsgänge!G$589:G$608) -> 0 | I34: =SUMIF(Arbeitsgänge!D$612:D$639,Brotroggen!A34,Arbeitsgänge!G$612:G$639) -> 0 | J34: =SUMIF(Arbeitsgänge!D$643:D$672,Brotroggen!A34,Arbeitsgänge!G$643:G$672) -> 0 | K34: 0 | L34: 0 | M34: 0 | N34: 0
A35: Arbeitskraftstunden | C35: AKh/ha | D35: =SUM(D26:D34) -> 7.02 | E35: 7.6 | F35: 7.94 | G35: 5.94 | H35: 6.2 | I35: 4.1 | J35: 4.27 | K35: 6.2 | L35: 6.2 | M35: 6.2 | N35: 6.2
A36: DB (je Akh) | C36: €/Akh | D36: =IF(D24>0,D24/D35,0) -> 0 | E36: 19.15166004 | F36: 44.57228441 | G36: 28.15532261 | H36: 52.24016461 | I36: 38.95283324 | J36: 90.10396679 | K36: 173.3064516 | L36: 102.1774194 | M36: 12.91935484 | N36: 33.38709677
A37: Aussaatmenge | C37: kg/ha | D37: 100 | E37: =D37 -> 100 | F37: =E37 -> 100 | G37: 100 | H37: =G37 -> 100 | I37: 100 | J37: =I37 -> 100 | K37: 100 | L37: 100 | M37: 100 | N37: 100
A38: davon Zukaufsaatgut | C38: % | D38: 100 | E38: 100 | F38: =E38 -> 100 | G38: 100 | H38: =G38 -> 100 | I38: 100 | J38: 100 | K38: 100 | L38: 100 | M38: 100 | N38: 100
A39: Saatgutpreis Eigen | C39: €/dt | D39: 0 | E39: =D39 -> 0 | F39: =E39 -> 0 | G39: 0 | H39: =G39 -> 0 | I39: 0 | J39: 0 | K39: 0 | L39: 0 | M39: 0 | N39: 0
A40: Zukauf (Hybridroggen)* | C40: €/dt | D40: =Stammdatenblatt!P81 -> 95.23 | E40: =D40 -> 95.23 | F40: =E40 -> 95.23 | G40: =+F40 -> 95.23 | H40: =G40 -> 95.23 | I40: =+H40 -> 95.23 | J40: =I40 -> 95.23 | K40: 64 | L40: 48 | M40: 50 | N40: 61
A41: Saatgutkosten | C41: €/ha | D41: =D38/100*(D37*D40)/100+((100-D38)/100*D37*D39/100) -> 95.23 | E41: 95.23 | F41: 95.23 | G41: 95.23 | H41: 95.23 | I41: 95.23 | J41: 95.23 | K41: 64 | L41: 48 | M41: 50 | N41: 61
A42: Dünger: | B42: €/kg | D42: Düngeraufwand/ha (in kg Reinnährst.)
A43: =+Stammdatenblatt!A130 -> Stickstoff | B43: =+Stammdatenblatt!P130 -> 1.365948973 | C43: Aufw./ha | D43: 130 | E43: 170 | F43: 170 | G43: 170 | H43: 170 | I43: 170 | J43: 170 | K43: 170 | L43: 170 | M43: 170 | N43: 170
A44: =+Stammdatenblatt!A131 -> Phosphor | B44: =+Stammdatenblatt!P131 -> 1.429608243 | C44: Aufw./ha | D44: 45 | E44: 65 | F44: 95 | G44: 65 | H44: 85 | I44: 65 | J44: 95 | K44: 85 | L44: 85 | M44: 85 | N44: 85
A45: =+Stammdatenblatt!A132 -> Kali | B45: =+Stammdatenblatt!P132 -> 0.9499175 | C45: Aufw./ha | D45: 110 | E45: 120 | F45: 135 | G45: 120 | H45: 135 | I45: 120 | J45: 135 | K45: 135 | L45: 135 | M45: 135 | N45: 135
A46: =+Stammdatenblatt!A133 -> Kalk | B46: =+Stammdatenblatt!P133 -> 0.05183111111 | C46: Aufw./ha | D46: 300 | E46: =D46 -> 300 | F46: 300 | G46: 300 | H46: 300 | I46: 300 | J46: 300 | K46: 300 | L46: 300 | M46: 300 | N46: 300
A47: =+Stammdatenblatt!A134 -> Magnesium | B47: =+Stammdatenblatt!P134 -> 2.3205 | C47: Aufw./ha | D47: 10 | E47: 15 | F47: 18 | G47: 15 | H47: 40 | I47: 15 | J47: 18 | K47: 40 | L47: 40 | M47: 40 | N47: 40
A48: =+Stammdatenblatt!A135 -> Schwefel | B48: =+Stammdatenblatt!P135 -> 1.0472 | C48: Aufw./ha | D48: 20 | E48: 25 | F48: 30 | G48: 25 | H48: 30 | I48: =H48 -> 30 | J48: 30 | K48: 30 | L48: 30 | M48: 30 | N48: 30
A49: Mineraldüngerkosten | C49: €/ha | D49: =D43*$B$43+D44*$B$44+D45*$B$45+D46*$B$46+D47*$B$47+D48*$B$48 -> 406.0949958 | E49: 515.6627946 | F49: 584.9973044 | G49: 515.6627946 | H49: 621.752222 | I49: 520.8987946 | J49: 584.9973044 | K49: 465 | L49: 450 | M49: 350 | N49: 480
A50: Herbizide | C50: €/ha | D50: 33 | E50: 45 | F50: 45 | G50: 45 | H50: 59 | I50: 43 | J50: 43 | K50: 58 | L50: 58 | M50: 54 | N50: 55
A51: Fungizide | C51: €/ha | D51: 18 | E51: 35 | F51: 70 | G51: 35 | H51: 54 | I51: 48 | J51: 67 | K51: 53 | L51: 52 | M51: 45 | N51: 46
A52: Insektizide | C52: €/ha | D52: 0 | E52: 0 | F52: 0 | G52: 0 | H52: 10 | I52: 0 | J52: 0 | K52: 11 | L52: 11 | M52: 6 | N52: 2
A53: Wachstumsregler | C53: €/ha | D53: 14 | E53: 25 | F53: 25 | G53: 25 | H53: 32 | I53: 18 | J53: 23 | K53: 30 | L53: 29 | M53: 28 | N53: 27
A54: Pflanzenbehandlungskosten | C54: €/ha | D54: =SUM(D50:D53) -> 65 | E54: 105 | F54: 140 | G54: 105 | H54: 155 | I54: 109 | J54: 133 | K54: 152 | L54: 150 | M54: 133 | N54: 130
B55: * normale Sorten incl. USt: | C55: =+Stammdatenblatt!P80 -> 83.46 | D55: €/dt
A56: Wichtig: Die Arbeitszeiten beinhalten keine Rüstzeiten!

Sheet Saatgutprod.-Hybridroggen (hidden)
L2: Erntejahr
B3: Landesbetrieb Landwirtschaft Hessen | H3: 2012 | K3: 2011 | L3: 2010 | M3: 2009 | N3: 2008
A6: Roggen | B6: Saatgutvermehrung | D6: 2 ha | G6: 5 ha | H6: 5 ha | I6: 20 ha | K6: 5 ha | L6: 5 ha | M6: 5 ha | N6: 5 ha
A7: Leistung: Menge Hauptprod. | C7: dt/ha | D7: 50 | E7: 70 | F7: 90 | G7: 70 | H7: 90 | I7: 70 | J7: 90 | K7: 90 | L7: 90 | M7: 90 | N7: 90
A8: Preis Hauptprod. | B8: (Angaben inkl. MwSt.) | C8: € | D8: =+Stammdatenblatt!P14 -> 16.46106 | E8: =D8 -> 16.46106 | F8: =E8 -> 16.46106 | G8: =+D8 -> 16.46106 | H8: =G8 -> 16.46106 | I8: =+H8 -> 16.46106 | J8: =I8 -> 16.46106 | K8: 22.35 | L8: 17.05 | M8: 9.59 | N8: 12.5
A9: Erlös Hauptprodukt | C9: €/ha | D9: =D7*D8 -> 823.053 | E9: 1152.2742 | F9: 1481.4954 | G9: 1152.2742 | H9: 1481.4954 | I9: 1152.2742 | J9: 1481.4954 | K9: 2011.5 | L9: 1534.5 | M9: 863.1 | N9: 1125
A10: Erlös Nebenprodukt(e) | B10: Vermehrer-Zuschlag | C10: €/ha | D10: =SUM(D7*O10) -> 277.5 | E10: =SUM(E7*O10) -> 388.5 | F10: =E10 -> 388.5 | G10: =G7*O10 -> 388.5 | H10: =H7*O10 -> 499.5 | I10: 0 | J10: =I10 -> 0 | K10: =H10 -> 499.5 | L10: =K10 -> 499.5 | M10: =L10 -> 499.5 | N10: =M10 -> 499.5 | O10: 5.55
A11: Leistungen | C11: €/ha | D11: =D9+D10 -> 1100.553 | E11: =E10+E9 -> 1540.7742 | F11: 1869.9954 | G11: 1540.7742 | H11: 1980.9954 | I11: 1152.2742 | J11: 1481.4954 | K11: 2511 | L11: 2034 | M11: 1362.6 | N11: 1624.5
A12: Saatgutkosten | C12: €/ha | D12: =D41 -> 95.23 | E12: 95.23 | F12: 95.23 | G12: 95.23 | H12: 95.23 | I12: 95.23 | J12: 95.23 | K12: 64 | L12: 48 | M12: 50 | N12: 61
A13: Mineraldüngerkosten | C13: €/ha | D13: =D49 -> 406.0949958 | E13: 515.6627946 | F13: 584.9973044 | G13: 515.6627946 | H13: 621.752222 | I13: 520.8987946 | J13: 584.9973044 | K13: 465 | L13: 450 | M13: 350 | N13: 480
A14: Pflanzenbehandlungsk. | C14: €/ha | D14: =D54 -> 65 | E14: 105 | F14: 140 | G14: 105 | H14: 155 | I14: 109 | J14: 133 | K14: 152 | L14: 150 | M14: 133 | N14: 130
A15: Versicherung | C15: €/ha | D15: =(D11/1000)*Stammdatenblatt!$E$190 -> 6.59231247 | E15: =(E11/1000)*Stammdatenblatt!$E$190 -> 9.229237458 | F15: =(F11/1000)*Stammdatenblatt!$E$190 -> 11.20127245 | G15: =(G11/1000)*Stammdatenblatt!$E$190 -> 9.229237458 | H15: =(H11/1000)*Stammdatenblatt!$E$190 -> 11.86616245 | I15: =(I11/1000)*Stammdatenblatt!$E$190 -> 6.902122458 | J15: =(J11/1000)*Stammdatenblatt!$E$190 -> 8.874157446 | K15: 13 | L15: 13 | M15: 12 | N15: 11
A16: Trocknungskosten | C16: €/ha | D16: =D7/Stammdatenblatt!$E$204*Stammdatenblatt!$E$201+(Stammdatenblatt!$E$203*Stammdatenblatt!$E$202) -> 29.91333333 | E16: =E7/Stammdatenblatt!$E$204*Stammdatenblatt!$E$201+(Stammdatenblatt!$E$203*Stammdatenblatt!$E$202) -> 41.44666667 | F16: =F7/Stammdatenblatt!$E$204*Stammdatenblatt!$E$201+(Stammdatenblatt!$E$203*Stammdatenblatt!$E$202) -> 52.98 | G16: =G7/Stammdatenblatt!$E$204*Stammdatenblatt!$E$201+(Stammdatenblatt!$E$203*Stammdatenblatt!$E$202) -> 41.44666667 | H16: =H7/Stammdatenblatt!$E$204*Stammdatenblatt!$E$201+(Stammdatenblatt!$E$203*Stammdatenblatt!$E$202) -> 52.98 | I16: =I7/Stammdatenblatt!$E$204*Stammdatenblatt!$E$201+(Stammdatenblatt!$E$203*Stammdatenblatt!$E$202) -> 41.44666667 | J16: =J7/Stammdatenblatt!$E$204*Stammdatenblatt!$E$201+(Stammdatenblatt!$E$203*Stammdatenblatt!$E$202) -> 52.98 | K16: 19 | L16: 18 | M16: 17 | N16: 16
A17: Summe Direktkosten | C17: €/ha | D17: =SUM(D12:D16) -> 602.8306416 | E17: =SUM(E12:E16) -> 766.5686987 | F17: 884.4085768 | G17: 766.5686987 | H17: 936.8283844 | I17: 773.4775837 | J17: 875.0814618 | K17: 713 | L17: 679 | M17: 562 | N17: 698
A18: Direktkostenfreie Leistung | C18: €/ha | D18: =D11-D17 -> 497.7223584 | E18: =E11-E17 -> 774.2055013 | F18: 985.5868232 | G18: 774.2055013 | H18: 1044.167016 | I18: 378.7966163 | J18: 606.4139382 | K18: 1798 | L18: 1355 | M18: 800.6 | N18: 926.5
A19: Maschinenkosten eigen | C19: €/ha | D19: =Arbeitsgänge!J523 -> 112.66 | E19: =Arbeitsgänge!J543 -> 117.48 | F19: =Arbeitsgänge!J564 -> 120.51 | G19: =Arbeitsgänge!J586 -> 110.79 | H19: =Arbeitsgänge!J609 -> 113.77 | I19: =Arbeitsgänge!J640 -> 109.09 | J19: =Arbeitsgänge!J673 -> 111.67 | K19: 114 | L19: 112 | M19: 111 | N19: 110
A20: Maschinenkosten fremd | C20: €/ha | D20: =Arbeitsgänge!K523 -> 125 | E20: =Arbeitsgänge!K543 -> 125 | F20: =Arbeitsgänge!K564 -> 125 | G20: =Arbeitsgänge!K586 -> 110 | H20: =Arbeitsgänge!K609 -> 110 | I20: =Arbeitsgänge!K640 -> 110 | J20: =Arbeitsgänge!K673 -> 110 | K20: 110 | L20: 110 | M20: 110 | N20: 110
A21: Lohnkosten / Lohntrocknung | C21: €/ha | D21: 0 | E21: =D21 -> 0 | F21: =E21 -> 0 | G21: 0 | H21: =G21 -> 0 | I21: 0 | J21: =I21 -> 0 | K21: 0 | L21: 0 | M21: 0 | N21: 0
A22: zusätzl. Kosten (Aufbereitung etc.) | C22: €/ha | D22: 30 | E22: 45 | F22: =E22 -> 45 | G22: 45 | H22: 65 | I22: 0 | J22: 0 | K22: 65 | L22: 65 | M22: 65 | N22: 65
A23: variable Kosten | C23: €/ha | D23: =SUM(D19:D22,D17) -> 870.4906416 | E23: =SUM(E19:E22,E17) -> 1054.048699 | F23: 1174.918577 | G23: 1032.358699 | H23: 1225.598384 | I23: 992.5675837 | J23: 1096.751462 | K23: 1002 | L23: 966 | M23: 848 | N23: 983
A24: Deckungsbeitrag (DB) | C24: €/ha | D24: =D11-D23 -> 230.0623584 | E24: 486.7255013 | F24: 695.0768232 | G24: 508.4155013 | H24: 755.3970156 | I24: 159.7066163 | J24: 384.7439382 | K24: 1509 | L24: 1068 | M24: 514.6 | N24: 641.5
A25: Zeit-Spanne | B25: AK-Bedarf
A26: MAE | C26: Akh/ha | D26: =SUMIF(Arbeitsgänge!D$508:D$522,A26,Arbeitsgänge!G$508:G$522) -> 0.24 | E26: =SUMIF(Arbeitsgänge!D$526:D$542,'Saatgutprod.-Hybridroggen'!A26,Arbeitsgänge!G$526:G$542) -> 0.24 | F26: =SUMIF(Arbeitsgänge!D$546:D$563,A26,Arbeitsgänge!G$546:G$563) -> 0.24 | G26: =SUMIF(Arbeitsgänge!D$567:D$585,'Saatgutprod.-Hybridroggen'!A26,Arbeitsgänge!G$567:G$585) -> 0.23 | H26: =SUMIF(Arbeitsgänge!D$589:D$608,'Saatgutprod.-Hybridroggen'!A26,Arbeitsgänge!G$589:G$608) -> 0.23 | I26: =SUMIF(Arbeitsgänge!D$612:D$639,'Saatgutprod.-Hybridroggen'!A26,Arbeitsgänge!G$612:G$639) -> 0.12 | J26: =SUMIF(Arbeitsgänge!D$643:D$672,'Saatgutprod.-Hybridroggen'!A26,Arbeitsgänge!G$643:G$672) -> 0.12 | K26: 0.2 | L26: 0.2 | M26: 0.2 | N26: 0.2
A27: APR | C27: Akh/ha | D27: =SUMIF(Arbeitsgänge!D$508:D$522,A27,Arbeitsgänge!G$508:G$522) -> 0.58 | E27: =SUMIF(Arbeitsgänge!D$526:D$542,'Saatgutprod.-Hybridroggen'!A27,Arbeitsgänge!G$526:G$542) -> 0.58 | F27: =SUMIF(Arbeitsgänge!D$546:D$563,A27,Arbeitsgänge!G$546:G$563) -> 0.58 | G27: =SUMIF(Arbeitsgänge!D$567:D$585,'Saatgutprod.-Hybridroggen'!A27,Arbeitsgänge!G$567:G$585) -> 0.49 | H27: =SUMIF(Arbeitsgänge!D$589:D$608,'Saatgutprod.-Hybridroggen'!A27,Arbeitsgänge!G$589:G$608) -> 0.49 | I27: =SUMIF(Arbeitsgänge!D$612:D$639,'Saatgutprod.-Hybridroggen'!A27,Arbeitsgänge!G$612:G$639) -> 0.29 | J27: =SUMIF(Arbeitsgänge!D$643:D$672,'Saatgutprod.-Hybridroggen'!A27,Arbeitsgänge!G$643:G$672) -> 0.29 | K27: 0.5 | L27: 0.5 | M27: 0.5 | N27: 0.5
A28: MAI | C28: Akh/ha | D28: =SUMIF(Arbeitsgänge!D$508:D$522,A28,Arbeitsgänge!G$508:G$522) -> 0 | E28: =SUMIF(Arbeitsgänge!D$526:D$542,'Saatgutprod.-Hybridroggen'!A28,Arbeitsgänge!G$526:G$542) -> 0.58 | F28: =SUMIF(Arbeitsgänge!D$546:D$563,A28,Arbeitsgänge!G$546:G$563) -> 0.58 | G28: =SUMIF(Arbeitsgänge!D$567:D$585,'Saatgutprod.-Hybridroggen'!A28,Arbeitsgänge!G$567:G$585) -> 0.49 | H28: =SUMIF(Arbeitsgänge!D$589:D$608,'Saatgutprod.-Hybridroggen'!A28,Arbeitsgänge!G$589:G$608) -> 0.49 | I28: =SUMIF(Arbeitsgänge!D$612:D$639,'Saatgutprod.-Hybridroggen'!A28,Arbeitsgänge!G$612:G$639) -> 0.29 | J28: =SUMIF(Arbeitsgänge!D$643:D$672,'Saatgutprod.-Hybridroggen'!A28,Arbeitsgänge!G$643:G$672) -> 0.29 | K28: 0.5 | L28: 0.5 | M28: 0.5 | N28: 0.5
A29: JUN | C29: Akh/ha | D29: =SUMIF(Arbeitsgänge!D$508:D$522,A29,Arbeitsgänge!G$508:G$522) -> 0 | E29: =SUMIF(Arbeitsgänge!D$526:D$542,'Saatgutprod.-Hybridroggen'!A29,Arbeitsgänge!G$526:G$542) -> 0 | F29: =SUMIF(Arbeitsgänge!D$546:D$563,A29,Arbeitsgänge!G$546:G$563) -> 0.34 | G29: =SUMIF(Arbeitsgänge!D$567:D$585,'Saatgutprod.-Hybridroggen'!A29,Arbeitsgänge!G$567:G$585) -> 0 | H29: =SUMIF(Arbeitsgänge!D$589:D$608,'Saatgutprod.-Hybridroggen'!A29,Arbeitsgänge!G$589:G$608) -> 0.26 | I29: =SUMIF(Arbeitsgänge!D$612:D$639,'Saatgutprod.-Hybridroggen'!A29,Arbeitsgänge!G$612:G$639) -> 0 | J29: =SUMIF(Arbeitsgänge!D$643:D$672,'Saatgutprod.-Hybridroggen'!A29,Arbeitsgänge!G$643:G$672) -> 0.17 | K29: 0.3 | L29: 0.3 | M29: 0.3 | N29: 0.3
A30: JUL | C30: Akh/ha | D30: =SUMIF(Arbeitsgänge!D$508:D$522,A30,Arbeitsgänge!G$508:G$522) -> 0 | E30: =SUMIF(Arbeitsgänge!D$526:D$542,'Saatgutprod.-Hybridroggen'!A30,Arbeitsgänge!G$526:G$542) -> 0 | F30: =SUMIF(Arbeitsgänge!D$546:D$563,A30,Arbeitsgänge!G$546:G$563) -> 0 | G30: =SUMIF(Arbeitsgänge!D$567:D$585,'Saatgutprod.-Hybridroggen'!A30,Arbeitsgänge!G$567:G$585) -> 0 | H30: =SUMIF(Arbeitsgänge!D$589:D$608,'Saatgutprod.-Hybridroggen'!A30,Arbeitsgänge!G$589:G$608) -> 0 | I30: =SUMIF(Arbeitsgänge!D$612:D$639,'Saatgutprod.-Hybridroggen'!A30,Arbeitsgänge!G$612:G$639) -> 0 | J30: =SUMIF(Arbeitsgänge!D$643:D$672,'Saatgutprod.-Hybridroggen'!A30,Arbeitsgänge!G$643:G$672) -> 0 | K30: 0 | L30: 0 | M30: 0 | N30: 0
A31: AUG | C31: Akh/ha | D31: =SUMIF(Arbeitsgänge!D$508:D$522,A31,Arbeitsgänge!G$508:G$522) -> 1.34 | E31: =SUMIF(Arbeitsgänge!D$526:D$542,'Saatgutprod.-Hybridroggen'!A31,Arbeitsgänge!G$526:G$542) -> 1.34 | F31: =SUMIF(Arbeitsgänge!D$546:D$563,A31,Arbeitsgänge!G$546:G$563) -> 1.34 | G31: =SUMIF(Arbeitsgänge!D$567:D$585,'Saatgutprod.-Hybridroggen'!A31,Arbeitsgänge!G$567:G$585) -> 1.04 | H31: =SUMIF(Arbeitsgänge!D$589:D$608,'Saatgutprod.-Hybridroggen'!A31,Arbeitsgänge!G$589:G$608) -> 1.04 | I31: =SUMIF(Arbeitsgänge!D$612:D$639,'Saatgutprod.-Hybridroggen'!A31,Arbeitsgänge!G$612:G$639) -> 0.78 | J31: =SUMIF(Arbeitsgänge!D$643:D$672,'Saatgutprod.-Hybridroggen'!A31,Arbeitsgänge!G$643:G$672) -> 0.78 | K31: 1 | L31: 1 | M31: 1 | N31: 1
A32: SEP | C32: Akh/ha | D32: =SUMIF(Arbeitsgänge!D$508:D$522,A32,Arbeitsgänge!G$508:G$522) -> 0.73 | E32: =SUMIF(Arbeitsgänge!D$526:D$542,'Saatgutprod.-Hybridroggen'!A32,Arbeitsgänge!G$526:G$542) -> 0.73 | F32: =SUMIF(Arbeitsgänge!D$546:D$563,A32,Arbeitsgänge!G$546:G$563) -> 0.73 | G32: =SUMIF(Arbeitsgänge!D$567:D$585,'Saatgutprod.-Hybridroggen'!A32,Arbeitsgänge!G$567:G$585) -> 0.55 | H32: =SUMIF(Arbeitsgänge!D$589:D$608,'Saatgutprod.-Hybridroggen'!A32,Arbeitsgänge!G$589:G$608) -> 0.55 | I32: =SUMIF(Arbeitsgänge!D$612:D$639,'Saatgutprod.-Hybridroggen'!A32,Arbeitsgänge!G$612:G$639) -> 0.43 | J32: =SUMIF(Arbeitsgänge!D$643:D$672,'Saatgutprod.-Hybridroggen'!A32,Arbeitsgänge!G$643:G$672) -> 0.43 | K32: 0.6 | L32: 0.6 | M32: 0.6 | N32: 0.6
A33: OKT | C33: Akh/ha | D33: =SUMIF(Arbeitsgänge!D$508:D$522,A33,Arbeitsgänge!G$508:G$522) -> 4.13 | E33: =SUMIF(Arbeitsgänge!D$526:D$542,'Saatgutprod.-Hybridroggen'!A33,Arbeitsgänge!G$526:G$542) -> 4.13 | F33: =SUMIF(Arbeitsgänge!D$546:D$563,A33,Arbeitsgänge!G$546:G$563) -> 4.13 | G33: =SUMIF(Arbeitsgänge!D$567:D$585,'Saatgutprod.-Hybridroggen'!A33,Arbeitsgänge!G$567:G$585) -> 3.14 | H33: =SUMIF(Arbeitsgänge!D$589:D$608,'Saatgutprod.-Hybridroggen'!A33,Arbeitsgänge!G$589:G$608) -> 3.14 | I33: =SUMIF(Arbeitsgänge!D$612:D$639,'Saatgutprod.-Hybridroggen'!A33,Arbeitsgänge!G$612:G$639) -> 2.19 | J33: =SUMIF(Arbeitsgänge!D$643:D$672,'Saatgutprod.-Hybridroggen'!A33,Arbeitsgänge!G$643:G$672) -> 2.19 | K33: 3.1 | L33: 3.1 | M33: 3.1 | N33: 3.1
A34: Rest | C34: Akh/ha | D34: =SUMIF(Arbeitsgänge!D$508:D$522,A34,Arbeitsgänge!G$508:G$522) -> 0 | E34: =SUMIF(Arbeitsgänge!D$526:D$542,'Saatgutprod.-Hybridroggen'!A34,Arbeitsgänge!G$526:G$542) -> 0 | F34: =SUMIF(Arbeitsgänge!D$546:D$563,A34,Arbeitsgänge!G$546:G$563) -> 0 | G34: =SUMIF(Arbeitsgänge!D$567:D$585,'Saatgutprod.-Hybridroggen'!A34,Arbeitsgänge!G$567:G$585) -> 0 | H34: =SUMIF(Arbeitsgänge!D$589:D$608,'Saatgutprod.-Hybridroggen'!A34,Arbeitsgänge!G$589:G$608) -> 0 | I34: =SUMIF(Arbeitsgänge!D$612:D$639,'Saatgutprod.-Hybridroggen'!A34,Arbeitsgänge!G$612:G$639) -> 0 | J34: =SUMIF(Arbeitsgänge!D$643:D$672,'Saatgutprod.-Hybridroggen'!A34,Arbeitsgänge!G$643:G$672) -> 0 | K34: 0 | L34: 0 | M34: 0 | N34: 0 | O34: +
A35: Arbeitskraftstunden | C35: AKh/ha | D35: =SUM(D26:D34)+O35 -> 10.02 | E35: =SUM(E26:E34)+O35 -> 10.6 | F35: =SUM(F26:F34) -> 7.94 | G35: =SUM(G26:G34)+O35 -> 8.94 | H35: =SUM(H26:H34)+O35 -> 9.2 | I35: =SUM(I26:I34) -> 4.1 | J35: =SUM(J26:J34) -> 4.27 | K35: =SUM(K26:K34)+O35 -> 9.2 | L35: =SUM(L26:L34)+O35 -> 9.2 | M35: =SUM(M26:M34)+O35 -> 9.2 | N35: =SUM(N26:N34)+O35 -> 9.2 | O35: 3
A36: DB (je Akh) | C36: €/Akh | D36: =IF(D24>0,D24/D35,0) -> 22.96031521 | E36: 45.91750012 | F36: 87.54116161 | G36: 56.86974287 | H36: 82.10837126 | I36: 38.95283324 | J36: 90.10396679 | K36: 164.0217391 | L36: 116.0869565 | M36: 55.93478261 | N36: 69.72826087
A37: Aussaatmenge | C37: kg/ha | D37: 100 | E37: =D37 -> 100 | F37: =E37 -> 100 | G37: 100 | H37: =G37 -> 100 | I37: 100 | J37: =I37 -> 100 | K37: 100 | L37: 100 | M37: 100 | N37: 100
A38: davon Zukaufsaatgut | C38: % | D38: 100 | E38: 100 | F38: =E38 -> 100 | G38: 100 | H38: =G38 -> 100 | I38: 100 | J38: 100 | K38: 100 | L38: 100 | M38: 100 | N38: 100
A39: Saatgutpreis Eigen | C39: €/dt | D39: 0 | E39: =D39 -> 0 | F39: =E39 -> 0 | G39: 0 | H39: =G39 -> 0 | I39: 0 | J39: 0 | K39: 0 | L39: 0 | M39: 0 | N39: 0
A40: Zukauf (Hybridroggen)* | C40: €/dt | D40: =Stammdatenblatt!P81 -> 95.23 | E40: =D40 -> 95.23 | F40: =E40 -> 95.23 | G40: =+F40 -> 95.23 | H40: =G40 -> 95.23 | I40: =+H40 -> 95.23 | J40: =I40 -> 95.23 | K40: 64 | L40: 48 | M40: 50 | N40: 61
A41: Saatgutkosten | C41: €/ha | D41: =D38/100*(D37*D40)/100+((100-D38)/100*D37*D39/100) -> 95.23 | E41: 95.23 | F41: 95.23 | G41: 95.23 | H41: 95.23 | I41: 95.23 | J41: 95.23 | K41: 64 | L41: 48 | M41: 50 | N41: 61
A42: Dünger: | B42: €/kg | D42: Düngeraufwand/ha (in kg Reinnährst.)
A43: =+Stammdatenblatt!A130 -> Stickstoff | B43: =+Stammdatenblatt!P130 -> 1.365948973 | C43: Aufw./ha | D43: 130 | E43: 170 | F43: 170 | G43: 170 | H43: 170 | I43: 170 | J43: 170 | K43: 170 | L43: 170 | M43: 170 | N43: 170
A44: =+Stammdatenblatt!A131 -> Phosphor | B44: =+Stammdatenblatt!P131 -> 1.429608243 | C44: Aufw./ha | D44: 45 | E44: 65 | F44: 95 | G44: 65 | H44: 85 | I44: 65 | J44: 95 | K44: 85 | L44: 85 | M44: 85 | N44: 85
A45: =+Stammdatenblatt!A132 -> Kali | B45: =+Stammdatenblatt!P132 -> 0.9499175 | C45: Aufw./ha | D45: 110 | E45: 120 | F45: 135 | G45: 120 | H45: 135 | I45: 120 | J45: 135 | K45: 135 | L45: 135 | M45: 135 | N45: 135
A46: =+Stammdatenblatt!A133 -> Kalk | B46: =+Stammdatenblatt!P133 -> 0.05183111111 | C46: Aufw./ha | D46: 300 | E46: =D46 -> 300 | F46: 300 | G46: 300 | H46: 300 | I46: 300 | J46: 300 | K46: 300 | L46: 300 | M46: 300 | N46: 300
A47: =+Stammdatenblatt!A134 -> Magnesium | B47: =+Stammdatenblatt!P134 -> 2.3205 | C47: Aufw./ha | D47: 10 | E47: 15 | F47: 18 | G47: 15 | H47: 40 | I47: 15 | J47: 18 | K47: 40 | L47: 40 | M47: 40 | N47: 40
A48: =+Stammdatenblatt!A135 -> Schwefel | B48: =+Stammdatenblatt!P135 -> 1.0472 | C48: Aufw./ha | D48: 20 | E48: 25 | F48: 30 | G48: 25 | H48: 30 | I48: =H48 -> 30 | J48: 30 | K48: 30 | L48: 30 | M48: 30 | N48: 30
A49: Mineraldüngerkosten | C49: €/ha | D49: =D43*$B$43+D44*$B$44+D45*$B$45+D46*$B$46+D47*$B$47+D48*$B$48 -> 406.0949958 | E49: 515.6627946 | F49: 584.9973044 | G49: 515.6627946 | H49: 621.752222 | I49: 520.8987946 | J49: 584.9973044 | K49: 465 | L49: 450 | M49: 350 | N49: 480
A50: Herbizide | C50: €/ha | D50: 33 | E50: 45 | F50: 45 | G50: 45 | H50: 59 | I50: 43 | J50: 43 | K50: 58 | L50: 58 | M50: 54 | N50: 55
A51: Fungizide | C51: €/ha | D51: 18 | E51: 35 | F51: 70 | G51: 35 | H51: 54 | I51: 48 | J51: 67 | K51: 53 | L51: 52 | M51: 45 | N51: 46
A52: Insektizide | C52: €/ha | D52: 0 | E52: 0 | F52: 0 | G52: 0 | H52: 10 | I52: 0 | J52: 0 | K52: 11 | L52: 11 | M52: 6 | N52: 2
A53: Wachstumsregler | C53: €/ha | D53: 14 | E53: 25 | F53: 25 | G53: 25 | H53: 32 | I53: 18 | J53: 23 | K53: 30 | L53: 29 | M53: 28 | N53: 27
A54: Pflanzenbehandlungskosten | C54: €/ha | D54: =SUM(D50:D53) -> 65 | E54: 105 | F54: 140 | G54: 105 | H54: 155 | I54: 109 | J54: 133 | K54: 152 | L54: 150 | M54: 133 | N54: 130
B55: * normale Sorten incl. USt: | C55: =+Stammdatenblatt!P80 -> 83.46 | D55: €/dt
A56: Wichtig: Die Arbeitszeiten beinhalten keine Rüstzeiten!

Sheet Sonstige Kosten (hidden)
C2: Sonstige Kosten
C4: Nachfolgende Spezialinformationen sind mit den Berechnungsgrundlagen nicht
C5: verknüpft und können für individuelle Kalkulationen verwendet werden.
C7: So setzt sich der Saatgutpreis zusammen, Bsp. Winterweizen, (A-Qualität)
E8: Quelle: BW-agrar, Nr.36/2011, S.61 | I8: je dt
C9: Vermehrungsgrundpreis | H9: 20,50 €
C10: Vermehreraufschlag | H10: 6,25 €
C11: (Mehrkosten Basissaatgut, Bereinigung, Aufbereitung
C12: Risikoausgleich)
C13: Beizung Fungizid | H13: 9,30 €
C14: (Mittelkosten, Beizanlage, Beizlohn)
C15: Verpackung | H15: 1,60 €
C16: Züchterlizenz | H16: 7,00 - 10,50 €
C17: Vo-Spanne | H17: 1,00 - 3,00 €
C18: Handelsspanne | H18: 1,00 - 5,00 €
C19: Lagerung u. Transport | H19: 1,00 - 7,00 €
C20: Verkaufspreis an Landwirte | H20: 48 - 63,50 €
C23: Saatgut
C24: Quelle: | D24: BayWa Saatgut Agrar 04/2011 u. eigene Erhebungen
C25: Kulturen | F25: Saat-/Pflanzgutpreis
F26: €/dt bzw. Einh. (o.Mwst.)
C27: Winterweizen | E27: Futterweizen; C | F27: 56
C28: Winterweizen | E28: Backweizen; B | F28: 57
C29: Winterweizen | E29: Qualitätsweizen; A | F29: 58
C30: Winterweizen | E30: Eliteweizen; E | F30: 60
C31: Winterroggen | E31: Populationssorten | F31: 54
C32: Winterroggen | E32: Hybridsorten | F32: 52
C33: Triticale | F33: 52
C34: Wintergerste | E34: Futtergerste | F34: 52
C35: Dinkel | F35: 83 | I35: Züchterlizenzgebühren | L35: €/dt
C36: Sommerweizen | E36: Backweizen; B | F36: 57 | I36: Getreide | L36: ca. 5 - 10
C37: Sommergerste | E37: Futtergerste | F37: 56 | I37: Ackerbohnen | L37: ca. 8 - 9
C38: Braugerste | F38: 61 | I38: Erbsen | L38: ca. 4 - 11
C39: Hafer | F39: 55 | I39: Lupinen | L39: 9.9
C40: Durum | F40: 93 | I40: Kartoffeln | L40: ca. 4 - 10
C41: Körnermais | E41: 50TK/Einheit | F41: 85 | G41: (je TKEh) | I41: Quelle: Saatgut-Treuhandverwaltungs GmbH www.stv-bonn.de/
C42: Winterraps | E42: Hybridsorten | F42: 244 | N42: Stand 11/2011
E43: Liniensorten | F43: 142
C44: Sommerraps | F44: 260 | G44: (je Eh[ha])
C45: Sonnenblumen | F45: 200 | G45: (0,25 ha)
C46: Sojabohnen | F46: 55 | G46: (je Eh[ha])
C47: Öllein | F47: 74 | I47: Berechnungsbeispiel | L47: Winterroggen
C48: Futtererbsen | F48: 85
C49: Ackerbohnen | F49: 85 | I49: Saatmenge: | K49: 130 | L49: kg/ha
C50: Lupinen | E50: bitterstoffarm | F50: 115 | I50: Anteil Zukauf: | K50: 30 | L50: %
C51: Zuckerrüben
C52: Speisekartoffeln | F52: 66 | I52: =K50% -> 0.3 | J52: =K49*K50%/100 -> 0.39 | K52: Zukauf * | L52: =F32 -> 52 | M52: €/dt = | N52: =J52*L52 -> 20.28 | O52: €/ha
C53: Speisefrühkartoffeln | F53: 70 | I53: =1-I52 -> 0.7 | J53: =K49*I53% -> 0.91 | K53: Eigen * | L53: 17.712 | M53: €/dt = | N53: =J53*L53 -> 16.11792 | O53: €/ha
C54: Hanf (Stroh) ohne Lagerung | J54: Reinigen+Beizen | L54: 15 | M54: €/dt = | N54: =J53*L54 -> 13.65 | O54: €/ha
C55: Hanf (Stroh) nach Lagerung | J55: + Nachbaulizenz | L55: 4 | M55: €/dt = | N55: =J53*L55 -> 3.64 | O55: €/ha
C56: Blühmischung (Brachebegrünung) | F56: 400 | I56: Summe | N56: =SUM(N52:N55) -> 53.68792 | O56: €/ha
C63: Kosten der Feuchtgetreidelagerung
C64: Quelle: in Anlehnung an DLZ 7/2001, S72 ff.; aktualisiert über Preisindizes des Stat. Bundesamtes (11/2011)
C65: Getreidefläche | E65: ha | F65: 20 | G65: 30 | H65: 50 | J65: 100
C66: Getreidemenge | E66: t | F66: 120 | G66: 180 | H66: 300 | J66: 600
C69: Lagerraum | D69: 0.75 | E69: m³ | F69: =F66/$D$69 -> 160 | G69: =G66/$D$69 -> 240 | H69: =H66/$D$69 -> 400 | J69: =J66/$D$69 -> 800
C70: Kosten je m³ | E70: € | F70: 170 | G70: 160 | H70: 120 | J70: 100
C71: Investitionssumme | E71: € | F71: =F69*F70 -> 27200 | G71: =G69*G70 -> 38400 | H71: =H69*H70 -> 48000 | J71: =J69*J70 -> 80000
C72: Abschreibung | D72: 0.04 | E72: € | F72: =F71*$D$72 -> 1088 | G72: =G71*$D$72 -> 1536 | H72: =H71*$D$72 -> 1920 | J72: =J71*$D$72 -> 3200
C73: Zinssatz | D73: 0.02 | E73: € | F73: =F71*$D$73 -> 544 | G73: =G71*$D$73 -> 768 | H73: =H71*$D$73 -> 960 | J73: =J71*$D$73 -> 1600
C74: Festkosten/Jahr | E74: € | F74: =SUM(F72:F73) -> 1632 | G74: =SUM(G72:G73) -> 2304 | H74: =SUM(H72:H73) -> 2880 | J74: =SUM(J72:J73) -> 4800
E75: €/t | F75: =F74/F66 -> 13.6 | G75: =G74/G66 -> 12.8 | H75: =H74/H66 -> 9.6 | J75: =J74/J66 -> 8
C77: Variable Kosten
C78: Einlagerungskosten bei 17 t Stundenleistung mit Zellenradgebläse 7,87 kW-E-Motor 1,12 €/h.
E79: €/t | F79: 0.15 | G79: 0.15 | H79: 0.15 | J79: 0.15
C80: Auslagerungskosten mittels Folge- und Transportschnecke
C81: 2,35 kW-E-Motor | E81: €/t | F81: 0.05 | G81: 0.05 | H81: 0.05 | J81: 0.05
C82: Servicekosten der Anlage
C83: pro Jahr | D83: 250 | E83: €/t | F83: =$D$83/F66 -> 2.083333333 | G83: =$D$83/G66 -> 1.388888889 | H83: =$D$83/H66 -> 0.8333333333 | J83: =$D$83/J66 -> 0.4166666667
C84: Reparaturkosten bei
C85: Gesamtsummen | E85: €/Jahr | F85: 500 | G85: 700 | H85: 1000 | J85: 1000
E86: €/t | F86: =F85/F66 -> 4.166666667 | G86: =G85/G66 -> 3.888888889 | H86: =H85/H66 -> 3.333333333 | J86: =J85/J66 -> 1.666666667
C87: S variable Kosten | E87: €/t | F87: =SUM(F79,F81,F83,F86) -> 6.45 | G87: =SUM(G79,G81,G83,G86) -> 5.477777778 | H87: =SUM(H79,H81,H83,H86) -> 4.366666667 | J87: =SUM(J79,J81,J83,J86) -> 2.283333333
C89: Kosten insgesamt | E89: €/t | F89: =F75+F87 -> 20.05 | G89: =G75+G87 -> 18.27777778 | H89: =H75+H87 -> 13.96666667 | J89: =J75+J87 -> 10.28333333
C91: Kosten der Lagerhaltung
C94: Lagergröße | D94: 600 | E94: t | I94: Getreidepreis | L94: €/dt
C95: Lagerdauer | D95: 5 | E95: Monate | I95: vor Einlagerung | K95: 1 | L95: 14
C97: Festkosten | D97: Anschaff- | E97: Nutzungs- | F97: AfA | G97: Zinsansatz | H97: Vers.
D98: ungskosten | E98: dauer | G98: 0.02 | H98: 0.0025 | I98: gesamt | J98: je t | K98: je dt | X98: Datensammlung: Konservierung -und Lagerung von Druschfrüchten, 2010
D99: € | E99: Jahre | F99: € | G99: € | H99: € | I99: € | J99: € | K99: € | AB99: Modell1a | AD99: Modell1b | AF99: Modell1c | AH99: Modell1d
C100: Anlagetechnik | D100: 30000 | E100: 10 | F100: =D100/E100 -> 3000 | G100: =D100*G98 -> 600 | H100: =D100*H98 -> 75 | I100: =SUM(F100:H100) -> 3675 | X100: Ergenisse von KTBL-Modellanlagen: | AB100: Belegung | AD100: Belegung | AF100: Belegung | AH100: Belegung
C101: Gebäude | D101: 70000 | E101: 40 | F101: =D101/E101 -> 1750 | G101: =D101*G98 -> 1400 | H101: =D101*H98 -> 175 | I101: =SUM(F101:H101) -> 3325 | AB101: 100 %Weizen | AD101: 67,5 % Weizen | AF101: 77,5 % Weizen | AH101: 77,5 % Weizen
C102: S Festkosten | D102: =SUM(D100:D101) -> 100000 | F102: =SUM(F100:F101) -> 4750 | G102: =SUM(G100:G101) -> 2000 | H102: =SUM(H100:H101) -> 250 | I102: =SUM(F102:H102) -> 7000 | J102: =IF(D94=0,0,I102/D94) -> 11.66666667 | K102: =J102/10 -> 1.166666667 | AD102: 32,5% Gerste | AF102: 22,5% Körnermais | AH102: 22,5% Winterraps
C104: Variable Kosten | H104: Erntemenge | J104: je t | K104: je dt | X104: Anschaffungspreis | AB104: 202765 | AD104: 202765 | AF104: 202765 | AH104: 202765
C105: Art | F105: €/t | H105: % | J105: € | K105: € | X105: Fixkosten | AB105: 19284 | AD105: 19284 | AF105: 19284 | AH105: 19284
C106: Strom, Reperaturen | F106: 3 | H106: 100 | J106: =F106*H106% -> 3 | Y106: Abschreibungen | AB106: 12143 | AD106: 12143 | AF106: 12143 | AH106: 12143
C107: Sonstiges | J107: =F107*H107% -> 0 | Y107: Zinsansatz | AB107: 6085 | AD107: 6085 | AF107: 6085 | AH107: 6085
C108: S Variable Kosten | J108: =SUM(J106:J107) -> 3 | K108: =J108/10 -> 0.3 | Y108: Wartung | AB108: 1056 | AD108: 1056 | AF108: 1056 | AH108: 1056
C109: Schwund- und Zinskosten | J109: je Monat | X109: Variable Kosten | AB109: 8133 | AD109: 8108 | AF109: 15526 | AH109: 8294
F110: % | J110: €/dt | K110: € | Y110: Betriebsstoffe u- Reparaturen | AB110: 4456 | AD110: 4342 | AF110: 10424 | AH110: 4624
C111: Lagerverlust pro Monat | F111: 0.2 | J111: =L95*F111% -> 0.028 | Y111: AKh-bedarf | AB111: 245.1 | AD111: 251.1 | AF111: 340.1 | AH111: 244.7
C112: Zinsentgang/Monat | F112: 4 | J112: =L95*F112%/12 -> 0.04666666667 | Y112: Lohnansatz | AB112: 3676 | AD112: 3766 | AF112: 5102 | AH112: 3670
C113: S Schwund- und Zinskosten | J113: =SUM(J111:J112) -> 0.07466666667 | K113: =J113*D95 -> 0.3733333333 | X113: Kosten pro Jahr (fix u. variabel) | AB113: 27417 | AD113: 27392 | AF113: 34810 | AH113: 27578
C114: Gesamtkosten für Lagerung | L114: =K102+K108+K113 -> 1.84 | X114: Masse Leergut | AB114: 2000 | AD114: 1865 | AF114: 1988 | AH114: 1980
X115: Kosten pro Tonne und Jahr | AB115: 13.71 | AD115: 14.69 | AF115: 17.51 | AH115: 13.93
C116: Getreidemindestpreis bei Auslagerung (€/dt) | L116: =L95+L114 -> 15.84
C118: Lagerung
C119: Quelle: | D119: BW agrar 25/2001, S. 42 | Y119: Außenhochsilolagerung | AB119: 125 | AC119: 160
C120: Variable Kosten für 6 Monate je dt: | F120: 1 | G120: € | Y120: Hallenflachlagerung | AB120: 180 | AC120: 230
C121: Feste Kosten je dt: | F121: 1 | G121: €
C123: Hagelversicherung
C124: Quelle: Vereinigte Hagelversicherung VVaG (2011); Bezirksdirektion Stuttgart
B125: =ROWS($B$125:$B125) -> 1 | C125: Kultur | E125: Baden | G125: Württemberg | J125: Kultur | L125: Baden | N125: Württemberg
B126: =ROWS($B$125:$B126) -> 2 | E126: je 1000 € Versicherungssumme | L126: je 1000 € Versicherungssumme
B127: =ROWS($B$125:$B127) -> 3 | C127: Wintergetreide | E127: 19.4 | G127: 19.2 | I127: =ROWS($B$125:$B127) -> 3 | J127: Hanf | L127: 32.1 | N127: 32.1
B128: =ROWS($B$125:$B128) -> 4 | C128: Sommergetreide | E128: 19.4 | G128: 19.2 | I128: =ROWS($B$125:$B128) -> 4 | J128: Grünschnittroggen | L128: 12.4 | N128: 14.3
B129: =ROWS($B$125:$B129) -> 5 | C129: Körnermais | E129: 15.6 | G129: 15.9 | I129: =ROWS($B$125:$B129) -> 5 | J129: Wintergetreide für GPS* | L129: 12.4 | N129: 12.4
B130: =ROWS($B$125:$B130) -> 6 | C130: Silomais | E130: 16.7 | G130: 17.1 | I130: =ROWS($B$125:$B130) -> 6 | J130: Sommergetreide für GPS* | L130: 12.4 | N130: 12.4
B131: =ROWS($B$125:$B131) -> 7 | C131: Raps | E131: 52 | G131: 54.1 | I131: =ROWS($B$125:$B131) -> 7 | J131: Zuckerhirse für GPS* | L131: 18.9 | N131: 19.1
B132: =ROWS($B$125:$B132) -> 8 | C132: Sonnenblumen | E132: 43.2 | G132: 41.4 | I132: =ROWS($B$125:$B132) -> 8 | J132: Sudangras für GPS* | L132: 15.2 | N132: 14.9
B133: =ROWS($B$125:$B133) -> 9 | C133: Öllein | E133: 45.6 | G133: 46.05 | I133: =ROWS($B$125:$B133) -> 9 | J133: Sonnenblumen für GPS* | L133: - | N133: -
B134: =ROWS($B$125:$B134) -> 10 | C134: Ackerbohnen | E134: 29.5 | G134: 22.4 | I134: =ROWS($B$125:$B134) -> 10 | J134: Kleegras / Ackergras | L134: 11.9 | N134: 11.2
B135: =ROWS($B$125:$B135) -> 11 | C135: Erbsen | E135: 29.5 | G135: 22.4 | I135: =ROWS($B$125:$B135) -> 11 | J135: Durchwachsene Silphie | L135: - | N135: -
B136: =ROWS($B$125:$B136) -> 12 | C136: Sojabohnen | E136: 27.9 | G136: 26.4 | I136: =ROWS($B$125:$B136) -> 12 | J136: Topinambur | L136: - | N136: -
B137: =ROWS($B$125:$B137) -> 13 | C137: Körnerhirse | E137: 25.1 | G137: 26.2 | I137: =ROWS($B$125:$B137) -> 13 | J137: Miscanthus | L137: 16.2 | N137: 15.1
B138: =ROWS($B$125:$B138) -> 14 | C138: Kartoffeln | E138: 17.6 | G138: 17.5 | I138: =ROWS($B$125:$B138) -> 14 | J138: Sonstige | L138: 1 | N138: 1
B139: =ROWS($B$125:$B139) -> 15 | C139: Zuckerrüben | E139: 12.8 | G139: 12.6 | I139: =ROWS($B$125:$B139) -> 15
J140: * Nutzung als Ganzpflanzensilage
C141: Saatgut: Begrünung, Zwischenfrucht
C142: Quelle: | D142: BayWa Saatgut Agrar; 04/2011
C143: Kultur | I143: Saatmenge | K143: Nutzung | M143: Saatgutkosten
I144: kg/ha | K144: G/F1) | M144: €/ha (o.MwSt.)
C145: Hülsenfrüchte | E145: Ackerbohnen | I145: 180-200 | K145: G | M145: 200
E146: Futtererbse | I146: 140-160 | K146: G+F | M146: 175
E147: Saatwicken | I147: 80-90 | K147: G | M147: 125
E148: Winterwicken | I148: 70 | K148: F | M148: 160
E149: Lupinen | I149: 150-200 | K149: G | M149: 275
E150: Gemenge (Erb/AB/Wi) | I150: 150 | K150: G+F | M150: 250
C151: Gräser | E151: Einj. Weidelgras | I151: 40-50 | K151: G+F | M151: 103
E152: Welsches Weidelgras | I152: 40-50 | K152: F | M152: 95
C153: Kleesaaten | E153: Perserklee | I153: 20 | K153: G+F | M153: 80
E154: Alexandrinerklee | I154: 35 | K154: G+F | M154: 75
E155: Inkarnatklee | I155: 30 | K155: F | M155: 90
C156: Ölsaaten | E156: Winterraps | I156: 15-25 | K156: G+F | M156: 45
E157: Sommerraps | I157: 15-25 | K157: G+F | M157: 45
E158: Winterrübsen | I158: 12-17 | K158: G+(F) | M158: 29
E159: Sommerrübsen | I159: 8-12 | K159: G | M159: 45
E160: Ölrettich | I160: 20-25 | K160: G+F | M160: 60
E161: Ölrettich (nematodenresistent) | I161: 20-25 | K161: G+F | M161: 70
E162: Gelbsenf | I162: 20-25 | K162: G+F | M162: 45
E163: Gelbsenf (nematodenresistent) | I163: 20-25 | K163: G+F | M163: 58
C164: Mischungen | E164: Landsberger Gemenge | I164: 80-90 | K164: F | M164: 245
E165: Alexandrinerklee/einj. Weidelgras | I165: 35 | K165: F+(G) | M165: 85
C166: Sonstige | E166: Sareptasenf | I166: 6-8 | K166: G | M166: 55
E167: Herbstrüben | I167: 0,6-2,5 | K167: G+F | M167: 15
E168: Phacelia | I168: 9-12 | K168: G | M168: 40
E169: Futterhirse | I169: 25 | K169: F | M169: 45
E170: Grünmais | I170: 45 | K170: F | M170: 75
E171: Winterroggen | I171: 120-150 | K171: F+(G) | M171: 140 | N171: (04/2011)
C172: 1) G = Gründüngung; F = Futternutzung
C173: Vorfruchtwert
C174: Quelle: | D174: in Anlehnung an Thüringer Landesanstalt für Landwirtschaft, Leitlinie Ackerbohne, 01/2001
C176: Beispiel: | D176: Ackerbohne
C178: Mehrerlös Nachfrucht | F178: Ertrag | G178: Mehrertrag | I178: Erzeuger-preis | J178: Mehrerlös
D179: Nachfrucht | F179: dt/ha | G179: % | H179: dt/ha | I179: €/dt | J179: €
C180: 1. | D180: W-Weizen | F180: 75 | G180: 15 | H180: =F180*G180% -> 11.25 | I180: 17 | J180: =H180*I180 -> 191.25
C181: 2. | D181: Braugerste | F181: 55 | G181: 6 | H181: =F181*G181% -> 3.3 | I181: 20 | J181: =H181*I181 -> 66
C182: 3. | H182: =F182*G182% -> 0 | J182: =H182*I182 -> 0
H184: kg/ha | I184: €/kg | J184: €
C185: Einsparung N-Dünger zur Folgefrucht | H185: 25 | I185: 1 | J185: =H185*I185 -> 25
C187: Verringerter Aufwand Bodenbearbeitung | G187: (15-25 €/ha)
C189: Einsparung Pflanzenschutz Folgefrucht | G189: (10-20 €/ha)
C190: Vorfruchtwert | J190: =SUM(J180:J189) -> 282.25
C192: Beregnung
C193: Quelle: | D193: DLZ 6/2001, S. 26
C194: Kosten insgesamt je mm: | E194: 2.5 | F194: €/mm
C196: Berufsgenossenschaft, Wasser- und Bodenverband
C197: Quelle:
C198: Berufsgenossenschaft | G198: €/ha bzw. | H198: 1.1 | I198: €/LVZ
C199: Wasser- u. Bodenverband | G199: €/ha

Sheet Triticale
B3: Landesbetrieb Landwirtschaft Hessen
A4: =IF(Stammdatenblatt!G6+Stammdatenblatt!D77+Stammdatenblatt!D112+Stammdatenblatt!B129+Stammdatenblatt!D140+Stammdatenblatt!C183+Stammdatenblatt!C221+Stammdatenblatt!C239=0,"Produktionsverfahren wurden netto gerechnet", "Produktionsverfahren wurden brutto gerechnet") -> Produktionsverfahren wurden brutto gerechnet | G4: =Wirtschaftsdünger!N4 -> Letztes (aktuelles) WJ.
I5: eigene
A6: Triticale | D6: 2 ha | G6: 5 ha | I6: Werte
A7: Leistung: Menge Hauptprodukt | C7: dt/ha | D7: 65 | E7: 80 | F7: 95 | G7: 80 | H7: 95 | I7: 0
A8: Preis Hauptprodukt | C8: € | D8: =+Stammdatenblatt!P17 -> 17.09708 | E8: =D8 -> 17.09708 | F8: =+D8 -> 17.09708 | G8: =+F8 -> 17.09708 | H8: =G8 -> 17.09708 | I8: 0
A9: Erlös Hauptprodukt | C9: €/ha | D9: =D7*D8 -> 1111.3102 | E9: 1367.7664 | F9: 1624.2226 | G9: 1367.7664 | H9: 1624.2226 | I9: 0
A10: Erlös Nebenprodukt(e) | C10: €/ha | D10: 0 | E10: 0 | F10: 0 | G10: =+F10 -> 0 | H10: =G10 -> 0 | I10: 0
A11: Leistungen | C11: €/ha | D11: =D9+D10 -> 1111.3102 | E11: =E10+E9 -> 1367.7664 | F11: =F10+F9 -> 1624.2226 | G11: =G10+G9 -> 1367.7664 | H11: =H10+H9 -> 1624.2226 | I11: =I10+I9 -> 0
A12: Saatgutkosten | C12: €/ha | D12: =D43 -> 108.6699824 | E12: 108.6699824 | F12: 108.6699824 | G12: 108.6699824 | H12: 108.6699824 | I12: 0
A13: Mineraldüngerkosten | C13: €/ha | D13: =D51 -> 366.5072846 | E13: 440.8785654 | F13: 507.6933461 | G13: 440.8785654 | H13: 507.6933461 | I13: 0
A14: Pflanzenbehandlungskosten | C14: €/ha | D14: =D56*(1+Stammdatenblatt!D112) -> 109.48 | E14: =E56*(1+Stammdatenblatt!D112) -> 142.8 | F14: =F56*(1+Stammdatenblatt!D112) -> 177.31 | G14: =G56*(1+Stammdatenblatt!D112) -> 142.8 | H14: =H56*(1+Stammdatenblatt!D112) -> 177.31 | I14: =I56 -> 0
A15: Versicherung | C15: €/ha | D15: =(D11/1000)*Stammdatenblatt!$P$190 -> 8.040551559 | E15: =(E11/1000)*Stammdatenblatt!$P$190 -> 9.896063457 | F15: =(F11/1000)*Stammdatenblatt!$P$190 -> 11.75157536 | G15: =(G11/1000)*Stammdatenblatt!$P$190 -> 9.896063457 | H15: =(H11/1000)*Stammdatenblatt!$P$190 -> 11.75157536 | I15: =(I11/1000)*Stammdatenblatt!$E$190 -> 0
A16: Trocknungskosten | C16: €/ha | D16: =(D7*Stammdatenblatt!$P$201+D7*(Stammdatenblatt!$P$202*4))/3 -> 105.196 | E16: =(E7*Stammdatenblatt!$P$201+E7*(Stammdatenblatt!$P$202*4))/3 -> 129.472 | F16: =(F7*Stammdatenblatt!$P$201+F7*(Stammdatenblatt!$P$202*4))/3 -> 153.748 | G16: =E16 -> 129.472 | H16: =F16 -> 153.748 | I16: =I7/Stammdatenblatt!$E$204*Stammdatenblatt!$E$201+(Stammdatenblatt!$E$203*Stammdatenblatt!$E$202) -> 1.08
A17: Summe Direktkosten | D17: =SUM(D12:D16) -> 697.8938186 | E17: 831.7166112 | F17: 959.1729039 | G17: 831.7166112 | H17: 959.1729039 | I17: 1.08
A18: Direktkostenfreie Leistung | D18: =D11-D17 -> 413.4163814 | E18: 536.0497888 | F18: 665.0496961 | G18: 536.0497888 | H18: 665.0496961 | I18: -1.08
A19: Maschinenkosten eigen ** | C19: €/ha | D19: ='Arbeitsvorgänge-KTBL'!T1155 -> 191.1112026 | E19: ='Arbeitsvorgänge-KTBL'!T1222 -> 237.0793022 | F19: ='Arbeitsvorgänge-KTBL'!T1297 -> 256.2204001 | G19: ='Arbeitsvorgänge-KTBL'!T1367 -> 222.4796805 | H19: ='Arbeitsvorgänge-KTBL'!T1445 -> 239.8402959 | I19: 0
A20: Maschinenkosten fremd | C20: €/ha | D20: ='Arbeitsvorgänge-KTBL'!U1155*(1+Stammdatenblatt!C239) -> 123.97 | E20: ='Arbeitsvorgänge-KTBL'!U1222*(1+Stammdatenblatt!C239) -> 123.97 | F20: ='Arbeitsvorgänge-KTBL'!U1297*(1+Stammdatenblatt!C239) -> 123.97 | G20: ='Arbeitsvorgänge-KTBL'!U1367*(1+Stammdatenblatt!C239) -> 123.97 | H20: ='Arbeitsvorgänge-KTBL'!U1445*(1+Stammdatenblatt!C239) -> 123.97 | I20: 0
A21: Lohnkosten | C21: €/ha | D21: 0 | E21: =D21 -> 0 | F21: 0 | G21: 0 | H21: 0 | I21: 0
A22: xxx | C22: €/ha | D22: 0 | E22: 0 | F22: 0 | G22: 0 | H22: 0 | I22: 0
A23: variable Kosten | C23: €/ha | D23: =SUM(D19:D22,D17) -> 1012.975021 | E23: 1192.765913 | F23: 1339.363304 | G23: 1178.166292 | H23: 1322.9832 | I23: 1.08
A24: Deckungsbeitrag | C24: €/ha | D24: =D11-D23 -> 98.33517883 | E24: 175.0004866 | F24: 284.859296 | G24: 189.6001082 | H24: 301.2394002 | I24: -1.08
A25: Zeit-Spanne | B25: AK-Bedarf
A26: FEB | C26: Akh/ha | D26: =SUMIF('Arbeitsvorgänge-KTBL'!$B$1100:$B$1152,Triticale!A26,'Arbeitsvorgänge-KTBL'!$G$1100:$G$1152) -> 0.31 | E26: =SUMIF('Arbeitsvorgänge-KTBL'!$B$1167:$B$1219,Triticale!A26,'Arbeitsvorgänge-KTBL'!$G$1167:$G$1219) -> 0.32 | F26: =SUMIF('Arbeitsvorgänge-KTBL'!$B$1234:$B$1294,Triticale!A26,'Arbeitsvorgänge-KTBL'!$G$1234:$G$1294) -> 0.33 | G26: =SUMIF('Arbeitsvorgänge-KTBL'!$B$1309:$B$1364,Triticale!A26,'Arbeitsvorgänge-KTBL'!$G$1309:$G$1364) -> 0.27 | H26: =SUMIF('Arbeitsvorgänge-KTBL'!$B$1379:$B$1442,Triticale!A26,'Arbeitsvorgänge-KTBL'!$G$1379:$G$1442) -> 0.27 | I26: 0
A27: MRZ | C27: Akh/ha | D27: =SUMIF('Arbeitsvorgänge-KTBL'!$B$1100:$B$1152,Triticale!A27,'Arbeitsvorgänge-KTBL'!$G$1100:$G$1152) -> 0.13 | E27: =SUMIF('Arbeitsvorgänge-KTBL'!$B$1167:$B$1219,Triticale!A27,'Arbeitsvorgänge-KTBL'!$G$1167:$G$1219) -> 0.13 | F27: =SUMIF('Arbeitsvorgänge-KTBL'!$B$1234:$B$1294,Triticale!A27,'Arbeitsvorgänge-KTBL'!$G$1234:$G$1294) -> 0.13 | G27: =SUMIF('Arbeitsvorgänge-KTBL'!$B$1309:$B$1364,Triticale!A27,'Arbeitsvorgänge-KTBL'!$G$1309:$G$1364) -> 0.11 | H27: =SUMIF('Arbeitsvorgänge-KTBL'!$B$1379:$B$1442,Triticale!A27,'Arbeitsvorgänge-KTBL'!$G$1379:$G$1442) -> 0.11 | I27: 0
A28: APR | C28: Akh/ha | D28: =SUMIF('Arbeitsvorgänge-KTBL'!$B$1100:$B$1152,Triticale!A28,'Arbeitsvorgänge-KTBL'!$G$1100:$G$1152) -> 0.44 | E28: =SUMIF('Arbeitsvorgänge-KTBL'!$B$1167:$B$1219,Triticale!A28,'Arbeitsvorgänge-KTBL'!$G$1167:$G$1219) -> 0.46 | F28: =SUMIF('Arbeitsvorgänge-KTBL'!$B$1234:$B$1294,Triticale!A28,'Arbeitsvorgänge-KTBL'!$G$1234:$G$1294) -> 0.46 | G28: =SUMIF('Arbeitsvorgänge-KTBL'!$B$1309:$B$1364,Triticale!A28,'Arbeitsvorgänge-KTBL'!$G$1309:$G$1364) -> 0.33 | H28: =SUMIF('Arbeitsvorgänge-KTBL'!$B$1379:$B$1442,Triticale!A28,'Arbeitsvorgänge-KTBL'!$G$1379:$G$1442) -> 0.33 | I28: 0
A29: MAI | C29: Akh/ha | D29: =SUMIF('Arbeitsvorgänge-KTBL'!$B$1100:$B$1152,Triticale!A29,'Arbeitsvorgänge-KTBL'!$G$1100:$G$1152) -> 0.13 | E29: =SUMIF('Arbeitsvorgänge-KTBL'!$B$1167:$B$1219,Triticale!A29,'Arbeitsvorgänge-KTBL'!$G$1167:$G$1219) -> 0.13 | F29: =SUMIF('Arbeitsvorgänge-KTBL'!$B$1234:$B$1294,Triticale!A29,'Arbeitsvorgänge-KTBL'!$G$1234:$G$1294) -> 0.57 | G29: =SUMIF('Arbeitsvorgänge-KTBL'!$B$1309:$B$1364,Triticale!A29,'Arbeitsvorgänge-KTBL'!$G$1309:$G$1364) -> 0.11 | H29: =SUMIF('Arbeitsvorgänge-KTBL'!$B$1379:$B$1442,Triticale!A29,'Arbeitsvorgänge-KTBL'!$G$1379:$G$1442) -> 0.43 | I29: 0
A30: JUN | C30: Akh/ha | D30: =SUMIF('Arbeitsvorgänge-KTBL'!$B$1100:$B$1152,Triticale!A30,'Arbeitsvorgänge-KTBL'!$G$1100:$G$1152) -> 0 | E30: =SUMIF('Arbeitsvorgänge-KTBL'!$B$1167:$B$1219,Triticale!A30,'Arbeitsvorgänge-KTBL'!$G$1167:$G$1219) -> 0 | F30: =SUMIF('Arbeitsvorgänge-KTBL'!$B$1234:$B$1294,Triticale!A30,'Arbeitsvorgänge-KTBL'!$G$1234:$G$1294) -> 0 | G30: =SUMIF('Arbeitsvorgänge-KTBL'!$B$1309:$B$1364,Triticale!A30,'Arbeitsvorgänge-KTBL'!$G$1309:$G$1364) -> 0 | H30: =SUMIF('Arbeitsvorgänge-KTBL'!$B$1379:$B$1442,Triticale!A30,'Arbeitsvorgänge-KTBL'!$G$1379:$G$1442) -> 0 | I30: 0
A31: JUL | C31: Akh/ha | D31: =SUMIF('Arbeitsvorgänge-KTBL'!$B$1100:$B$1152,Triticale!A31,'Arbeitsvorgänge-KTBL'!$G$1100:$G$1152) -> 0 | E31: =SUMIF('Arbeitsvorgänge-KTBL'!$B$1167:$B$1219,Triticale!A31,'Arbeitsvorgänge-KTBL'!$G$1167:$G$1219) -> 0 | F31: =SUMIF('Arbeitsvorgänge-KTBL'!$B$1234:$B$1294,Triticale!A31,'Arbeitsvorgänge-KTBL'!$G$1234:$G$1294) -> 0 | G31: =SUMIF('Arbeitsvorgänge-KTBL'!$B$1309:$B$1364,Triticale!A31,'Arbeitsvorgänge-KTBL'!$G$1309:$G$1364) -> 0 | H31: =SUMIF('Arbeitsvorgänge-KTBL'!$B$1379:$B$1442,Triticale!A31,'Arbeitsvorgänge-KTBL'!$G$1379:$G$1442) -> 0 | I31: 0
A32: AUG | C32: Akh/ha | D32: =SUMIF('Arbeitsvorgänge-KTBL'!$B$1100:$B$1152,Triticale!A32,'Arbeitsvorgänge-KTBL'!$G$1100:$G$1152) -> 1.66 | E32: =SUMIF('Arbeitsvorgänge-KTBL'!$B$1167:$B$1219,Triticale!A32,'Arbeitsvorgänge-KTBL'!$G$1167:$G$1219) -> 1.93 | F32: =SUMIF('Arbeitsvorgänge-KTBL'!$B$1234:$B$1294,Triticale!A32,'Arbeitsvorgänge-KTBL'!$G$1234:$G$1294) -> 2.24 | G32: =SUMIF('Arbeitsvorgänge-KTBL'!$B$1309:$B$1364,Triticale!A32,'Arbeitsvorgänge-KTBL'!$G$1309:$G$1364) -> 1.58 | H32: =SUMIF('Arbeitsvorgänge-KTBL'!$B$1379:$B$1442,Triticale!A32,'Arbeitsvorgänge-KTBL'!$G$1379:$G$1442) -> 1.89 | I32: 0
A33: SEP | C33: Akh/ha | D33: =SUMIF('Arbeitsvorgänge-KTBL'!$B$1100:$B$1152,Triticale!A33,'Arbeitsvorgänge-KTBL'!$G$1100:$G$1152) -> 3.03 | E33: =SUMIF('Arbeitsvorgänge-KTBL'!$B$1167:$B$1219,Triticale!A33,'Arbeitsvorgänge-KTBL'!$G$1167:$G$1219) -> 3.08 | F33: =SUMIF('Arbeitsvorgänge-KTBL'!$B$1234:$B$1294,Triticale!A33,'Arbeitsvorgänge-KTBL'!$G$1234:$G$1294) -> 3.08 | G33: =SUMIF('Arbeitsvorgänge-KTBL'!$B$1309:$B$1364,Triticale!A33,'Arbeitsvorgänge-KTBL'!$G$1309:$G$1364) -> 2.28 | H33: =SUMIF('Arbeitsvorgänge-KTBL'!$B$1379:$B$1442,Triticale!A33,'Arbeitsvorgänge-KTBL'!$G$1379:$G$1442) -> 2.28 | I33: 0
A34: OKT | C34: Akh/ha | D34: =SUMIF('Arbeitsvorgänge-KTBL'!$B$1100:$B$1152,Triticale!A34,'Arbeitsvorgänge-KTBL'!$G$1100:$G$1152) -> 1.83 | E34: =SUMIF('Arbeitsvorgänge-KTBL'!$B$1167:$B$1219,Triticale!A34,'Arbeitsvorgänge-KTBL'!$G$1167:$G$1219) -> 1.83 | F34: =SUMIF('Arbeitsvorgänge-KTBL'!$B$1234:$B$1294,Triticale!A34,'Arbeitsvorgänge-KTBL'!$G$1234:$G$1294) -> 1.83 | G34: =SUMIF('Arbeitsvorgänge-KTBL'!$B$1309:$B$1364,Triticale!A34,'Arbeitsvorgänge-KTBL'!$G$1309:$G$1364) -> 1.3 | H34: =SUMIF('Arbeitsvorgänge-KTBL'!$B$1379:$B$1442,Triticale!A34,'Arbeitsvorgänge-KTBL'!$G$1379:$G$1442) -> 1.3 | I34: 0
A35: NOV | C35: Akh/ha | D35: =SUMIF('Arbeitsvorgänge-KTBL'!$B$1100:$B$1152,Triticale!A35,'Arbeitsvorgänge-KTBL'!$G$1100:$G$1152) -> 0 | E35: =SUMIF('Arbeitsvorgänge-KTBL'!$B$1167:$B$1219,Triticale!A35,'Arbeitsvorgänge-KTBL'!$G$1167:$G$1219) -> 0 | F35: =SUMIF('Arbeitsvorgänge-KTBL'!$B$1234:$B$1294,Triticale!A35,'Arbeitsvorgänge-KTBL'!$G$1234:$G$1294) -> 0 | G35: =SUMIF('Arbeitsvorgänge-KTBL'!$B$1309:$B$1364,Triticale!A35,'Arbeitsvorgänge-KTBL'!$G$1309:$G$1364) -> 0 | H35: =SUMIF('Arbeitsvorgänge-KTBL'!$B$1379:$B$1442,Triticale!A35,'Arbeitsvorgänge-KTBL'!$G$1379:$G$1442) -> 0 | I35: 0
A36: Rest | C36: Akh/ha | D36: =SUMIF('Arbeitsvorgänge-KTBL'!$B$1100:$B$1152,Triticale!A36,'Arbeitsvorgänge-KTBL'!$G$1100:$G$1152) -> 0 | E36: =SUMIF('Arbeitsvorgänge-KTBL'!$B$1167:$B$1219,Triticale!A36,'Arbeitsvorgänge-KTBL'!$G$1167:$G$1219) -> 0 | F36: =SUMIF('Arbeitsvorgänge-KTBL'!$B$1234:$B$1294,Triticale!A36,'Arbeitsvorgänge-KTBL'!$G$1234:$G$1294) -> 0 | G36: =SUMIF('Arbeitsvorgänge-KTBL'!$B$1309:$B$1364,Triticale!A36,'Arbeitsvorgänge-KTBL'!$G$1309:$G$1364) -> 0 | H36: =SUMIF('Arbeitsvorgänge-KTBL'!$B$1379:$B$1442,Triticale!A36,'Arbeitsvorgänge-KTBL'!$G$1379:$G$1442) -> 0 | I36: 0
A37: Arbeitskraftstunden | C37: AKh/ha | D37: =SUM(D26:D36) -> 7.53 | E37: 7.88 | F37: 8.64 | G37: 5.98 | H37: 6.61 | I37: 0
A38: DB (je Akh) | C38: €/Akh | D38: =IF(D24>0,D24/D37,0) -> 13.05912069 | E38: 22.20818358 | F38: 32.96982592 | G38: 31.70570372 | H38: 45.57328294 | I38: 0
A39: Aussaatmenge | C39: kg/ha | D39: 140 | E39: =D39 -> 140 | F39: 140 | G39: =+F39 -> 140 | H39: =G39 -> 140 | I39: 0
A40: davon Zukaufsaatgut | C40: % | D40: 80 | E40: 80 | F40: 80 | G40: =+F40 -> 80 | H40: =+G40 -> 80 | I40: 0
A41: Saatgutpreis Eigen | C41: €/dt | D41: =D8+Stammdatenblatt!$K$186 -> 24.30708 | E41: 24.30708 | F41: 24.30708 | G41: =+F41 -> 24.30708 | H41: =G41 -> 24.30708 | I41: 0
A42: Zukauf | C42: €/dt | D42: =Stammdatenblatt!P82 -> 90.95 | E42: 90.95 | F42: 90.95 | G42: =+F42 -> 90.95 | H42: =G42 -> 90.95 | I42: 0
A43: Saatgutkosten | C43: €/ha | D43: =D40/100*(D39*D42)/100+((100-D40)/100*D39*D41/100) -> 108.6699824 | E43: 108.6699824 | F43: 108.6699824 | G43: 108.6699824 | H43: 108.6699824 | I43: 0
A44: Dünger: | B44: €/kg | C44: Düngerbedarf/ha (in kg Reinnährstoff) nach Düngerabfuhr LfL Deckungsbeiträge 2024
A45: =Stammdatenblatt!A130 -> Stickstoff | B45: =Stammdatenblatt!P130 -> 1.365948973 | C45: Aufw./ha | D45: 107 | E45: 132 | F45: 157 | G45: 132 | H45: 157 | I45: 0
A46: =Stammdatenblatt!A131 -> Phosphor | B46: =Stammdatenblatt!P131 -> 1.429608243 | C46: Aufw./ha | D46: 52 | E46: 64 | F46: 76 | G46: 64 | H46: 76 | I46: 0
A47: =Stammdatenblatt!A132 -> Kali | B47: =Stammdatenblatt!P132 -> 0.9499175 | C47: Aufw./ha | D47: 39 | E47: 48 | F47: 57 | G47: 48 | H47: 57 | I47: 0
A48: =Stammdatenblatt!A133 -> Kalk | B48: =Stammdatenblatt!P133 -> 0.05183111111 | C48: Aufw./ha | D48: 300 | E48: =D48 -> 300 | F48: =E48 -> 300 | G48: =+F48 -> 300 | H48: =G48 -> 300 | I48: 0
A49: =Stammdatenblatt!A134 -> Magnesium | B49: =Stammdatenblatt!P134 -> 2.3205 | C49: Aufw./ha | D49: 38 | E49: 42 | F49: 45 | G49: 42 | H49: 45 | I49: 0
A50: =Stammdatenblatt!A135 -> Schwefel | B50: =Stammdatenblatt!P135 -> 1.0472 | C50: Aufw./ha | D50: 5 | E50: 10 | F50: 10 | G50: 10 | H50: 10 | I50: 0
A51: Mineraldüngerkosten | C51: €/ha | D51: =D45*$B$45+D46*$B$46+D47*$B$47+D48*$B$48+D49*$B$49+D50*$B$50 -> 366.5072846 | E51: 440.8785654 | F51: 507.6933461 | G51: 440.8785654 | H51: 507.6933461 | I51: 0
A52: Herbizide | C52: €/ha | D52: 44 | E52: 55 | F52: 55 | G52: 55 | H52: 55 | I52: 0
A53: Fungizide | C53: €/ha | D53: 33 | E53: 45 | F53: 66 | G53: 45 | H53: 66 | I53: 0
A54: Insektizide | C54: €/ha | D54: 0 | E54: 0 | F54: 3 | G54: 0 | H54: 3 | I54: 0
A55: Wachstumsregler | C55: €/ha | D55: 15 | E55: 20 | F55: 25 | G55: 20 | H55: 25 | I55: 0
A56: Pflanzenbehandlungskosten* | C56: €/ha | D56: =SUM(D52:D55) -> 92 | E56: 120 | F56: 149 | G56: 120 | H56: 149 | I56: 0
A57: * ohne Beizung, bei stärkeren Ackerfuchsschwanzbesatz ist mit Mehrausgaben von 35 €/ha zu rechnen
A58: **variable Kosten in Anlehnung an KTBL-Richtwerte für Arbeitsgänge incl. Zinsanspruch für 3 Monate

Sheet Wintergerste
B3: Landesbetrieb Landwirtschaft Hessen
A4: =IF(Stammdatenblatt!G6+Stammdatenblatt!D77+Stammdatenblatt!D112+Stammdatenblatt!B129+Stammdatenblatt!D140+Stammdatenblatt!C183+Stammdatenblatt!C221+Stammdatenblatt!C239=0,"Produktionsverfahren wurden netto gerechnet", "Produktionsverfahren wurden brutto gerechnet") -> Produktionsverfahren wurden brutto gerechnet | I4: =Wirtschaftsdünger!N4 -> Letztes (aktuelles) WJ.
K5: eigene
A6: Wintergerste | E6: 2 ha | G6: 5 ha | I6: 20 ha | K6: Werte
A7: Leistung: Menge Hauptprodukt | C7: dt/ha | D7: 65 | E7: 80 | F7: 95 | G7: 75 | H7: 95 | I7: 75 | J7: 95 | K7: 0
A8: Preis Hauptprodukt | C8: € | D8: =+Stammdatenblatt!P20 -> 16.82758 | E8: =D8 -> 16.82758 | F8: =E8 -> 16.82758 | G8: =+F8 -> 16.82758 | H8: =G8 -> 16.82758 | I8: =+H8 -> 16.82758 | J8: =I8 -> 16.82758 | K8: 0
A9: Erlös Hauptprodukt | C9: €/ha | D9: =D7*D8 -> 1093.7927 | E9: 1346.2064 | F9: 1598.6201 | G9: 1262.0685 | H9: 1598.6201 | I9: 1262.0685 | J9: 1598.6201 | K9: 0
A10: Erlös Nebenprodukt(e) | C10: €/ha | D10: 0 | E10: =D10 -> 0 | F10: =E10 -> 0 | G10: 0 | H10: =G10 -> 0 | I10: 0 | J10: =I10 -> 0 | K10: 0
A11: Leistungen | C11: €/ha | D11: =D9+D10 -> 1093.7927 | E11: =E10+E9 -> 1346.2064 | F11: 1598.6201 | G11: 1262.0685 | H11: 1598.6201 | I11: 1262.0685 | J11: 1598.6201 | K11: 0
A12: Saatgutkosten | C12: €/ha | D12: =D43 -> 82.6536768 | E12: 82.6536768 | F12: 82.6536768 | G12: 82.6536768 | H12: 82.6536768 | I12: 82.6536768 | J12: 82.6536768 | K12: =K43 -> 0
A13: Mineraldüngerkosten | C13: €/ha | D13: =D51 -> 364.4128846 | E13: 435.6425654 | F13: 507.6933461 | G13: 416.1467881 | H13: 507.6933461 | I13: 416.1467881 | J13: 507.6933461 | K13: =K51 -> 0
A14: Pflanzenbehandlungsk. | C14: €/ha | D14: =D56*(1+Stammdatenblatt!D112) -> 119 | E14: =E56*(1+Stammdatenblatt!D112) -> 159.46 | F14: =F56*(1+Stammdatenblatt!D112) -> 193.97 | G14: =G56*(1+Stammdatenblatt!D112) -> 159.46 | H14: =H56*(1+Stammdatenblatt!D112) -> 193.97 | I14: =I56*(1+Stammdatenblatt!D112) -> 159.46 | J14: =J56*(1+Stammdatenblatt!D112) -> 193.97 | K14: =K56 -> 0
A15: Versicherung | C15: €/ha | D15: =(D11/1000)*Stammdatenblatt!$P$190 -> 7.913808943 | E15: =(E11/1000)*Stammdatenblatt!$P$190 -> 9.740072545 | F15: =(F11/1000)*Stammdatenblatt!$P$190 -> 11.56633615 | G15: =(G11/1000)*Stammdatenblatt!$P$190 -> 9.131318011 | H15: =(H11/1000)*Stammdatenblatt!$P$190 -> 11.56633615 | I15: =(I11/1000)*Stammdatenblatt!$E$190 -> 7.559790315 | J15: =(J11/1000)*Stammdatenblatt!$P$190 -> 11.56633615 | K15: =(K11/1000)*Stammdatenblatt!$E$190 -> 0
A16: Trocknungskosten | C16: €/ha | D16: =(D7*Stammdatenblatt!$P$201+D7*(Stammdatenblatt!$P$202*4))/3 -> 105.196 | E16: =(E7*Stammdatenblatt!$P$201+E7*(Stammdatenblatt!$P$202*4))/3 -> 129.472 | F16: =(F7*Stammdatenblatt!$P$201+F7*(Stammdatenblatt!$P$202*4))/3 -> 153.748 | G16: =E16 -> 129.472 | H16: =F16 -> 153.748 | I16: =E16 -> 129.472 | J16: =F16 -> 153.748 | K16: =K7/Stammdatenblatt!$E$204*Stammdatenblatt!$E$201+(Stammdatenblatt!$E$203*Stammdatenblatt!$E$202) -> 1.08
A17: Summe Direktkosten | C17: €/ha | D17: =SUM(D12:D16) -> 679.1763704 | E17: =SUM(E12:E16) -> 816.9683147 | F17: 949.6313591 | G17: 796.8637829 | H17: 949.6313591 | I17: 795.2922552 | J17: 949.6313591 | K17: 1.08
A18: Direktkostenfreie Leistung | C18: €/ha | D18: =D11-D17 -> 414.6163296 | E18: =E11-E17 -> 529.2380853 | F18: 648.9887409 | G18: 465.2047171 | H18: 648.9887409 | I18: 466.7762448 | J18: 648.9887409 | K18: -1.08
A19: Maschinenkosten eigen * | C19: €/ha | D19: ='Arbeitsvorgänge-KTBL'!T1673 -> 205.1257492 | E19: ='Arbeitsvorgänge-KTBL'!T1742 -> 248.553479 | F19: ='Arbeitsvorgänge-KTBL'!T1818 -> 257.6484666 | G19: ='Arbeitsvorgänge-KTBL'!T1890 -> 233.4970842 | H19: ='Arbeitsvorgänge-KTBL'!T1969 -> 241.8861735 | I19: ='Arbeitsvorgänge-KTBL'!T2047 -> 209.9706617 | J19: ='Arbeitsvorgänge-KTBL'!T2132 -> 217.0440457 | K19: 0
A20: Maschinenkosten fremd | C20: €/ha | D20: ='Arbeitsvorgänge-KTBL'!U1673*(1+Stammdatenblatt!C239) -> 123.97 | E20: ='Arbeitsvorgänge-KTBL'!U1742*(1+Stammdatenblatt!C239) -> 123.97 | F20: ='Arbeitsvorgänge-KTBL'!U1818*(1+Stammdatenblatt!C239) -> 123.97 | G20: ='Arbeitsvorgänge-KTBL'!U1890*(1+Stammdatenblatt!C239) -> 123.97 | H20: ='Arbeitsvorgänge-KTBL'!U1969*(1+Stammdatenblatt!C239) -> 123.97 | I20: ='Arbeitsvorgänge-KTBL'!U2047*(1+Stammdatenblatt!C239) -> 113.19 | J20: ='Arbeitsvorgänge-KTBL'!U2132*(1+Stammdatenblatt!C239) -> 113.19 | K20: 0
A21: Lohnkosten | C21: €/ha | D21: 0 | E21: =D21 -> 0 | F21: =E21 -> 0 | G21: 0 | H21: =G21 -> 0 | I21: 0 | J21: =I21 -> 0 | K21: 0
A22: xxx | C22: €/ha | D22: 0 | E22: =D22 -> 0 | F22: =E22 -> 0 | G22: 0 | H22: =G22 -> 0 | I22: 0 | J22: =I22 -> 0 | K22: 0
A23: variable Kosten | C23: €/ha | D23: =SUM(D19:D22,D17) -> 1008.27212 | E23: =SUM(E19:E22,E17) -> 1189.491794 | F23: 1331.249826 | G23: 1154.330867 | H23: 1315.487533 | I23: 1118.452917 | J23: 1279.865405 | K23: 1.08
A24: Deckungsbeitrag (DB) | C24: €/ha | D24: =D11-D23 -> 85.52058044 | E24: 156.7146062 | F24: 267.3702743 | G24: 107.7376328 | H24: 283.1325674 | I24: 143.6155831 | J24: 318.7546953 | K24: -1.08
A25: Zeit-Spanne | B25: AK-Bedarf
A26: FEB | C26: Akh/ha | D26: =SUMIF('Arbeitsvorgänge-KTBL'!$B$1616:$B$1670,Wintergerste!A26,'Arbeitsvorgänge-KTBL'!$G$1616:$G$1670) -> 0.34 | E26: =SUMIF('Arbeitsvorgänge-KTBL'!$B$1685:$B$1739,Wintergerste!A26,'Arbeitsvorgänge-KTBL'!$G$1685:$G$1739) -> 0.37 | F26: =SUMIF('Arbeitsvorgänge-KTBL'!$B$1754:$B$1815,Wintergerste!A26,'Arbeitsvorgänge-KTBL'!$G$1754:$G$1815) -> 0.37 | G26: =SUMIF('Arbeitsvorgänge-KTBL'!$B$1830:$B$1887,Wintergerste!A26,'Arbeitsvorgänge-KTBL'!$G$1830:$G$1887) -> 0.32 | H26: =SUMIF('Arbeitsvorgänge-KTBL'!$B$1902:$B$1966,Wintergerste!A26,'Arbeitsvorgänge-KTBL'!$G$1902:$G$1966) -> 0.32 | I26: =SUMIF('Arbeitsvorgänge-KTBL'!$B$1981:$B$2044,Wintergerste!A26,'Arbeitsvorgänge-KTBL'!$G$1981:$G$2044) -> 0.17 | J26: =SUMIF('Arbeitsvorgänge-KTBL'!$B$2059:$B$2129,Wintergerste!A26,'Arbeitsvorgänge-KTBL'!$G$2059:$G$2129) -> 0.17 | K26: 0
A27: MRZ | C27: Akh/ha | D27: =SUMIF('Arbeitsvorgänge-KTBL'!$B$1616:$B$1670,Wintergerste!A27,'Arbeitsvorgänge-KTBL'!$G$1616:$G$1670) -> 0.13 | E27: =SUMIF('Arbeitsvorgänge-KTBL'!$B$1685:$B$1739,Wintergerste!A27,'Arbeitsvorgänge-KTBL'!$G$1685:$G$1739) -> 0.13 | F27: =SUMIF('Arbeitsvorgänge-KTBL'!$B$1754:$B$1815,Wintergerste!A27,'Arbeitsvorgänge-KTBL'!$G$1754:$G$1815) -> 0.13 | G27: =SUMIF('Arbeitsvorgänge-KTBL'!$B$1830:$B$1887,Wintergerste!A27,'Arbeitsvorgänge-KTBL'!$G$1830:$G$1887) -> 0.11 | H27: =SUMIF('Arbeitsvorgänge-KTBL'!$B$1902:$B$1966,Wintergerste!A27,'Arbeitsvorgänge-KTBL'!$G$1902:$G$1966) -> 0.11 | I27: =SUMIF('Arbeitsvorgänge-KTBL'!$B$1981:$B$2044,Wintergerste!A27,'Arbeitsvorgänge-KTBL'!$G$1981:$G$2044) -> 0.09 | J27: =SUMIF('Arbeitsvorgänge-KTBL'!$B$2059:$B$2129,Wintergerste!A27,'Arbeitsvorgänge-KTBL'!$G$2059:$G$2129) -> 0.09 | K27: 0
A28: APR | C28: Akh/ha | D28: =SUMIF('Arbeitsvorgänge-KTBL'!$B$1616:$B$1670,Wintergerste!A28,'Arbeitsvorgänge-KTBL'!$G$1616:$G$1670) -> 0.73 | E28: =SUMIF('Arbeitsvorgänge-KTBL'!$B$1685:$B$1739,Wintergerste!A28,'Arbeitsvorgänge-KTBL'!$G$1685:$G$1739) -> 0.73 | F28: =SUMIF('Arbeitsvorgänge-KTBL'!$B$1754:$B$1815,Wintergerste!A28,'Arbeitsvorgänge-KTBL'!$G$1754:$G$1815) -> 0.73 | G28: =SUMIF('Arbeitsvorgänge-KTBL'!$B$1830:$B$1887,Wintergerste!A28,'Arbeitsvorgänge-KTBL'!$G$1830:$G$1887) -> 0.51 | H28: =SUMIF('Arbeitsvorgänge-KTBL'!$B$1902:$B$1966,Wintergerste!A28,'Arbeitsvorgänge-KTBL'!$G$1902:$G$1966) -> 0.51 | I28: =SUMIF('Arbeitsvorgänge-KTBL'!$B$1981:$B$2044,Wintergerste!A28,'Arbeitsvorgänge-KTBL'!$G$1981:$G$2044) -> 0.34 | J28: =SUMIF('Arbeitsvorgänge-KTBL'!$B$2059:$B$2129,Wintergerste!A28,'Arbeitsvorgänge-KTBL'!$G$2059:$G$2129) -> 0.34 | K28: 0
A29: MAI | C29: Akh/ha | D29: =SUMIF('Arbeitsvorgänge-KTBL'!$B$1616:$B$1670,Wintergerste!A29,'Arbeitsvorgänge-KTBL'!$G$1616:$G$1670) -> 0 | E29: =SUMIF('Arbeitsvorgänge-KTBL'!$B$1685:$B$1739,Wintergerste!A29,'Arbeitsvorgänge-KTBL'!$G$1685:$G$1739) -> 0 | F29: =SUMIF('Arbeitsvorgänge-KTBL'!$B$1754:$B$1815,Wintergerste!A29,'Arbeitsvorgänge-KTBL'!$G$1754:$G$1815) -> 0.29 | G29: =SUMIF('Arbeitsvorgänge-KTBL'!$B$1830:$B$1887,Wintergerste!A29,'Arbeitsvorgänge-KTBL'!$G$1830:$G$1887) -> 0 | H29: =SUMIF('Arbeitsvorgänge-KTBL'!$B$1902:$B$1966,Wintergerste!A29,'Arbeitsvorgänge-KTBL'!$G$1902:$G$1966) -> 0.24 | I29: =SUMIF('Arbeitsvorgänge-KTBL'!$B$1981:$B$2044,Wintergerste!A29,'Arbeitsvorgänge-KTBL'!$G$1981:$G$2044) -> 0 | J29: =SUMIF('Arbeitsvorgänge-KTBL'!$B$2059:$B$2129,Wintergerste!A29,'Arbeitsvorgänge-KTBL'!$G$2059:$G$2129) -> 0.15 | K29: 0
A30: JUN | C30: Akh/ha | D30: =SUMIF('Arbeitsvorgänge-KTBL'!$B$1616:$B$1670,Wintergerste!A30,'Arbeitsvorgänge-KTBL'!$G$1616:$G$1670) -> 0 | E30: =SUMIF('Arbeitsvorgänge-KTBL'!$B$1685:$B$1739,Wintergerste!A30,'Arbeitsvorgänge-KTBL'!$G$1685:$G$1739) -> 0 | F30: =SUMIF('Arbeitsvorgänge-KTBL'!$B$1754:$B$1815,Wintergerste!A30,'Arbeitsvorgänge-KTBL'!$G$1754:$G$1815) -> 0 | G30: =SUMIF('Arbeitsvorgänge-KTBL'!$B$1830:$B$1887,Wintergerste!A30,'Arbeitsvorgänge-KTBL'!$G$1830:$G$1887) -> 0 | H30: =SUMIF('Arbeitsvorgänge-KTBL'!$B$1902:$B$1966,Wintergerste!A30,'Arbeitsvorgänge-KTBL'!$G$1902:$G$1966) -> 0 | I30: =SUMIF('Arbeitsvorgänge-KTBL'!$B$1981:$B$2044,Wintergerste!A30,'Arbeitsvorgänge-KTBL'!$G$1981:$G$2044) -> 0 | J30: =SUMIF('Arbeitsvorgänge-KTBL'!$B$2059:$B$2129,Wintergerste!A30,'Arbeitsvorgänge-KTBL'!$G$2059:$G$2129) -> 0 | K30: 0
A31: JUL | C31: Akh/ha | D31: =SUMIF('Arbeitsvorgänge-KTBL'!$B$1616:$B$1670,Wintergerste!A31,'Arbeitsvorgänge-KTBL'!$G$1616:$G$1670) -> 1.85 | E31: =SUMIF('Arbeitsvorgänge-KTBL'!$B$1685:$B$1739,Wintergerste!A31,'Arbeitsvorgänge-KTBL'!$G$1685:$G$1739) -> 2.12 | F31: =SUMIF('Arbeitsvorgänge-KTBL'!$B$1754:$B$1815,Wintergerste!A31,'Arbeitsvorgänge-KTBL'!$G$1754:$G$1815) -> 2.31 | G31: =SUMIF('Arbeitsvorgänge-KTBL'!$B$1830:$B$1887,Wintergerste!A31,'Arbeitsvorgänge-KTBL'!$G$1830:$G$1887) -> 1.86 | H31: =SUMIF('Arbeitsvorgänge-KTBL'!$B$1902:$B$1966,Wintergerste!A31,'Arbeitsvorgänge-KTBL'!$G$1902:$G$1966) -> 2.05 | I31: =SUMIF('Arbeitsvorgänge-KTBL'!$B$1981:$B$2044,Wintergerste!A31,'Arbeitsvorgänge-KTBL'!$G$1981:$G$2044) -> 1.14 | J31: =SUMIF('Arbeitsvorgänge-KTBL'!$B$2059:$B$2129,Wintergerste!A31,'Arbeitsvorgänge-KTBL'!$G$2059:$G$2129) -> 1.25 | K31: 0
A32: AUG | C32: Akh/ha | D32: =SUMIF('Arbeitsvorgänge-KTBL'!$B$1616:$B$1670,Wintergerste!A32,'Arbeitsvorgänge-KTBL'!$G$1616:$G$1670) -> 1.07 | E32: =SUMIF('Arbeitsvorgänge-KTBL'!$B$1685:$B$1739,Wintergerste!A32,'Arbeitsvorgänge-KTBL'!$G$1685:$G$1739) -> 1.07 | F32: =SUMIF('Arbeitsvorgänge-KTBL'!$B$1754:$B$1815,Wintergerste!A32,'Arbeitsvorgänge-KTBL'!$G$1754:$G$1815) -> 1.07 | G32: =SUMIF('Arbeitsvorgänge-KTBL'!$B$1830:$B$1887,Wintergerste!A32,'Arbeitsvorgänge-KTBL'!$G$1830:$G$1887) -> 0.69 | H32: =SUMIF('Arbeitsvorgänge-KTBL'!$B$1902:$B$1966,Wintergerste!A32,'Arbeitsvorgänge-KTBL'!$G$1902:$G$1966) -> 0.69 | I32: =SUMIF('Arbeitsvorgänge-KTBL'!$B$1981:$B$2044,Wintergerste!A32,'Arbeitsvorgänge-KTBL'!$G$1981:$G$2044) -> 0.45 | J32: =SUMIF('Arbeitsvorgänge-KTBL'!$B$2059:$B$2129,Wintergerste!A32,'Arbeitsvorgänge-KTBL'!$G$2059:$G$2129) -> 0.45 | K32: 0
A33: SEP | C33: Akh/ha | D33: =SUMIF('Arbeitsvorgänge-KTBL'!$B$1616:$B$1670,Wintergerste!A33,'Arbeitsvorgänge-KTBL'!$G$1616:$G$1670) -> 3.54 | E33: =SUMIF('Arbeitsvorgänge-KTBL'!$B$1685:$B$1739,Wintergerste!A33,'Arbeitsvorgänge-KTBL'!$G$1685:$G$1739) -> 3.56 | F33: =SUMIF('Arbeitsvorgänge-KTBL'!$B$1754:$B$1815,Wintergerste!A33,'Arbeitsvorgänge-KTBL'!$G$1754:$G$1815) -> 3.57 | G33: =SUMIF('Arbeitsvorgänge-KTBL'!$B$1830:$B$1887,Wintergerste!A33,'Arbeitsvorgänge-KTBL'!$G$1830:$G$1887) -> 2.67 | H33: =SUMIF('Arbeitsvorgänge-KTBL'!$B$1902:$B$1966,Wintergerste!A33,'Arbeitsvorgänge-KTBL'!$G$1902:$G$1966) -> 2.67 | I33: =SUMIF('Arbeitsvorgänge-KTBL'!$B$1981:$B$2044,Wintergerste!A33,'Arbeitsvorgänge-KTBL'!$G$1981:$G$2044) -> 1.63 | J33: =SUMIF('Arbeitsvorgänge-KTBL'!$B$2059:$B$2129,Wintergerste!A33,'Arbeitsvorgänge-KTBL'!$G$2059:$G$2129) -> 1.63 | K33: 0
A34: OKT | C34: Akh/ha | D34: =SUMIF('Arbeitsvorgänge-KTBL'!$B$1616:$B$1670,Wintergerste!A34,'Arbeitsvorgänge-KTBL'!$G$1616:$G$1670) -> 0.44 | E34: =SUMIF('Arbeitsvorgänge-KTBL'!$B$1685:$B$1739,Wintergerste!A34,'Arbeitsvorgänge-KTBL'!$G$1685:$G$1739) -> 0.44 | F34: =SUMIF('Arbeitsvorgänge-KTBL'!$B$1754:$B$1815,Wintergerste!A34,'Arbeitsvorgänge-KTBL'!$G$1754:$G$1815) -> 0.44 | G34: =SUMIF('Arbeitsvorgänge-KTBL'!$B$1830:$B$1887,Wintergerste!A34,'Arbeitsvorgänge-KTBL'!$G$1830:$G$1887) -> 0.31 | H34: =SUMIF('Arbeitsvorgänge-KTBL'!$B$1902:$B$1966,Wintergerste!A34,'Arbeitsvorgänge-KTBL'!$G$1902:$G$1966) -> 0.31 | I34: =SUMIF('Arbeitsvorgänge-KTBL'!$B$1981:$B$2044,Wintergerste!A34,'Arbeitsvorgänge-KTBL'!$G$1981:$G$2044) -> 0.24 | J34: =SUMIF('Arbeitsvorgänge-KTBL'!$B$2059:$B$2129,Wintergerste!A34,'Arbeitsvorgänge-KTBL'!$G$2059:$G$2129) -> 0.24 | K34: 0
A35: NOV | C35: Akh/ha | D35: =SUMIF('Arbeitsvorgänge-KTBL'!$B$1616:$B$1670,Wintergerste!A35,'Arbeitsvorgänge-KTBL'!$G$1616:$G$1670) -> 0 | E35: =SUMIF('Arbeitsvorgänge-KTBL'!$B$1685:$B$1739,Wintergerste!A35,'Arbeitsvorgänge-KTBL'!$G$1685:$G$1739) -> 0 | F35: =SUMIF('Arbeitsvorgänge-KTBL'!$B$1754:$B$1815,Wintergerste!A35,'Arbeitsvorgänge-KTBL'!$G$1754:$G$1815) -> 0 | G35: =SUMIF('Arbeitsvorgänge-KTBL'!$B$1830:$B$1887,Wintergerste!A35,'Arbeitsvorgänge-KTBL'!$G$1830:$G$1887) -> 0 | H35: =SUMIF('Arbeitsvorgänge-KTBL'!$B$1902:$B$1966,Wintergerste!A35,'Arbeitsvorgänge-KTBL'!$G$1902:$G$1966) -> 0 | I35: =SUMIF('Arbeitsvorgänge-KTBL'!$B$1981:$B$2044,Wintergerste!A35,'Arbeitsvorgänge-KTBL'!$G$1981:$G$2044) -> 0 | J35: =SUMIF('Arbeitsvorgänge-KTBL'!$B$2059:$B$2129,Wintergerste!A35,'Arbeitsvorgänge-KTBL'!$G$2059:$G$2129) -> 0 | K35: 0
A36: Rest | C36: Akh/ha | D36: =SUMIF('Arbeitsvorgänge-KTBL'!$B$1616:$B$1670,Wintergerste!A36,'Arbeitsvorgänge-KTBL'!$G$1616:$G$1670) -> 0 | E36: =SUMIF('Arbeitsvorgänge-KTBL'!$B$1685:$B$1739,Wintergerste!A36,'Arbeitsvorgänge-KTBL'!$G$1685:$G$1739) -> 0 | F36: =SUMIF('Arbeitsvorgänge-KTBL'!$B$1754:$B$1815,Wintergerste!A36,'Arbeitsvorgänge-KTBL'!$G$1754:$G$1815) -> 0 | G36: =SUMIF('Arbeitsvorgänge-KTBL'!$B$1830:$B$1887,Wintergerste!A36,'Arbeitsvorgänge-KTBL'!$G$1830:$G$1887) -> 0 | H36: =SUMIF('Arbeitsvorgänge-KTBL'!$B$1902:$B$1966,Wintergerste!A36,'Arbeitsvorgänge-KTBL'!$G$1902:$G$1966) -> 0 | I36: =SUMIF('Arbeitsvorgänge-KTBL'!$B$1981:$B$2044,Wintergerste!A36,'Arbeitsvorgänge-KTBL'!$G$1981:$G$2044) -> 0 | J36: =SUMIF('Arbeitsvorgänge-KTBL'!$B$2059:$B$2129,Wintergerste!A36,'Arbeitsvorgänge-KTBL'!$G$2059:$G$2129) -> 0 | K36: 0
A37: Arbeitskraftstunden | C37: AKh/ha | D37: =SUM(D26:D36) -> 8.1 | E37: =SUM(E26:E36) -> 8.42 | F37: 8.91 | G37: 6.47 | H37: 6.9 | I37: 4.06 | J37: 4.32 | K37: 0
A38: DB ( je Akh) | C38: €/Akh | D38: =IF(D24>0,D24/D37,0) -> 10.55809635 | E38: 18.61218601 | F38: 30.00788713 | G38: 16.65187524 | H38: 41.03370543 | I38: 35.37329634 | J38: 73.7858091 | K38: 0
A39: Aussaatmenge | C39: kg/ha | D39: 160 | E39: =D39 -> 160 | F39: 160 | G39: 160 | H39: =G39 -> 160 | I39: 160 | J39: =I39 -> 160 | K39: 0
A40: davon Zukaufsaatgut | C40: % | D40: 40 | E40: 40 | F40: 40 | G40: 40 | H40: =G40 -> 40 | I40: 40 | J40: =I40 -> 40 | K40: 0
A41: Saatgutpreis Eigen | C41: €/dt | D41: =D8+Stammdatenblatt!$K$186 -> 24.03758 | E41: =E8+Stammdatenblatt!$K$186 -> 24.03758 | F41: =F8+Stammdatenblatt!$K$186 -> 24.03758 | G41: =G8+Stammdatenblatt!$K$186 -> 24.03758 | H41: =H8+Stammdatenblatt!$K$186 -> 24.03758 | I41: =I8+Stammdatenblatt!$K$186 -> 24.03758 | J41: =J8+Stammdatenblatt!$K$186 -> 24.03758 | K41: 0
A42: Zukauf | C42: €/dt | D42: =+Stammdatenblatt!P84 -> 93.09 | E42: 93.09 | F42: 93.09 | G42: =+F42 -> 93.09 | H42: =G42 -> 93.09 | I42: =+H42 -> 93.09 | J42: =I42 -> 93.09 | K42: 0
A43: Saatgutkosten | C43: €/ha | D43: =D40/100*(D39*D42)/100+((100-D40)/100*D39*D41/100) -> 82.6536768 | E43: 82.6536768 | F43: 82.6536768 | G43: 82.6536768 | H43: 82.6536768 | I43: 82.6536768 | J43: 82.6536768 | K43: 0
A44: Dünger: | B44: €/kg | D44: Düngerbedarf/ha (in kg Reinnährstoff) nach Düngerabfuhr LfL Deckungsbeiträge 2024
A45: =+Stammdatenblatt!A130 -> Stickstoff | B45: =+Stammdatenblatt!P130 -> 1.365948973 | C45: Aufw./ha | D45: 107 | E45: 132 | F45: 157 | G45: 124 | H45: 157 | I45: 124 | J45: 157 | K45: 0
A46: =+Stammdatenblatt!A131 -> Phosphor | B46: =+Stammdatenblatt!P131 -> 1.429608243 | C46: Aufw./ha | D46: 52 | E46: 64 | F46: 76 | G46: 60 | H46: 76 | I46: 60 | J46: 76 | K46: 0
A47: =+Stammdatenblatt!A132 -> Kali | B47: =+Stammdatenblatt!P132 -> 0.9499175 | C47: Aufw./ha | D47: 39 | E47: 48 | F47: 57 | G47: 45 | H47: 57 | I47: 45 | J47: 57 | K47: 0
A48: =+Stammdatenblatt!A133 -> Kalk | B48: =+Stammdatenblatt!P133 -> 0.05183111111 | C48: Aufw./ha | D48: 300 | E48: =D48 -> 300 | F48: 300 | G48: 300 | H48: 300 | I48: 300 | J48: 300 | K48: 0
A49: =+Stammdatenblatt!A134 -> Magnesium | B49: =+Stammdatenblatt!P134 -> 2.3205 | C49: Aufw./ha | D49: 38 | E49: 42 | F49: 45 | G49: 42 | H49: 45 | I49: 42 | J49: 45 | K49: 0
A50: =+Stammdatenblatt!A135 -> Schwefel | B50: =+Stammdatenblatt!P135 -> 1.0472 | C50: Aufw./ha | D50: 3 | E50: 5 | F50: 10 | G50: 5 | H50: 10 | I50: 5 | J50: 10 | K50: 0
A51: Mineraldüngerkosten | C51: €/ha | D51: =D45*$B$45+D46*$B$46+D47*$B$47+D48*$B$48+D49*$B$49+D50*$B$50 -> 364.4128846 | E51: 435.6425654 | F51: 507.6933461 | G51: 416.1467881 | H51: 507.6933461 | I51: 416.1467881 | J51: 507.6933461 | K51: 0
A52: Herbizide | C52: €/ha | D52: 45 | E52: 50 | F52: 50 | G52: 50 | H52: 50 | I52: 50 | J52: 50 | K52: 0
A53: Fungizide | C53: €/ha | D53: 45 | E53: 55 | F53: 71 | G53: 55 | H53: 71 | I53: 55 | J53: 71 | K53: 0
A54: Insektizide | C54: €/ha | D54: 0 | E54: 7 | F54: 16 | G54: 7 | H54: 16 | I54: 7 | J54: 16 | K54: 0
A55: Wachstumsregler | C55: €/ha | D55: 10 | E55: 22 | F55: 26 | G55: 22 | H55: 26 | I55: 22 | J55: 26 | K55: 0
A56: Pflanzenbehandlungskosten | C56: €/ha | D56: =SUM(D52:D55) -> 100 | E56: 134 | F56: 163 | G56: 134 | H56: 163 | I56: 134 | J56: 163 | K56: 0
A57: *variable Kosten in Anlehnung an KTBL-Richtwerte für Arbeitsgänge incl. Zinsanspruch für 3 Monate

Sheet Dinkel
B3: Landesbetrieb Landwirtschaft Hessen
A4: =IF(Stammdatenblatt!G6+Stammdatenblatt!D77+Stammdatenblatt!D112+Stammdatenblatt!B129+Stammdatenblatt!D140+Stammdatenblatt!C183+Stammdatenblatt!C221+Stammdatenblatt!C239=0,"Produktionsverfahren wurden netto gerechnet", "Produktionsverfahren wurden brutto gerechnet") -> Produktionsverfahren wurden brutto gerechnet | F4: =Wirtschaftsdünger!N4 -> Letztes (aktuelles) WJ.
D5: bespelzt | F5: entspelzt | H5: eigene
A6: Dinkel | D6: 2 ha | E6: 5 ha | F6: 2 ha | G6: 5 ha | H6: Werte
A7: Leistung: Menge Hauptprodukt | C7: dt/ha | D7: 60 | E7: 60 | F7: 45 | G7: 45 | H7: 0
A8: Preis Hauptprodukt | C8: € | D8: =+Stammdatenblatt!P18 -> 28.73948 | E8: =+D8 -> 28.73948 | F8: =+Stammdatenblatt!P19 -> 51.744 | G8: =+F8 -> 51.744 | H8: 0
A9: Erlös Hauptprodukt | C9: €/ha | D9: =D7*D8 -> 1724.3688 | E9: =E7*E8 -> 1724.3688 | F9: =F7*F8 -> 2328.48 | G9: =G7*G8 -> 2328.48 | H9: =H7*H8 -> 0
A10: Erlös Nebenprodukt(e) | C10: €/ha | D10: 0 | E10: =D10 -> 0 | F10: =E10 -> 0 | G10: =F10 -> 0 | H10: 0
A11: Leistungen | C11: €/ha | D11: =D10+D9 -> 1724.3688 | E11: =E10+E9 -> 1724.3688 | F11: =F10+F9 -> 2328.48 | G11: =G10+G9 -> 2328.48 | H11: =H10+H9 -> 0
A12: Saatgutkosten | C12: €/ha | D12: =D43 -> 194.7212672 | E12: =E43 -> 194.7212672 | F12: =F43 -> 209.44416 | G12: =G43 -> 209.44416 | H12: =H43 -> 0
A13: Mineraldüngerkosten | C13: €/ha | D13: =D51 -> 300.9930174 | E13: =E51 -> 300.9930174 | F13: =F51 -> 300.9930174 | G13: =G51 -> 300.9930174 | H13: =H51 -> 0
A14: Pflanzenbehandlungskosten | C14: €/ha | D14: =D56*(1+Stammdatenblatt!C221) -> 85.68 | E14: =E56*(1+Stammdatenblatt!C221) -> 85.68 | F14: =F56*(1+Stammdatenblatt!C221) -> 85.68 | G14: =G56*(1+Stammdatenblatt!C221) -> 85.68 | H14: =H56 -> 0
A15: Versicherung | C15: €/ha | D15: =+D9/1000*Stammdatenblatt!$P$190 -> 12.47615314 | E15: =+E9/1000*Stammdatenblatt!$P$190 -> 12.47615314 | F15: =+F9/1000*Stammdatenblatt!$P$190 -> 16.8470185 | G15: =+G9/1000*Stammdatenblatt!$P$190 -> 16.8470185 | H15: =+H9/1000*Stammdatenblatt!$E$190 -> 0
A16: Trocknungskosten | C16: €/ha | D16: =(D7*Stammdatenblatt!$P$201+D7*(Stammdatenblatt!$P$202*4))/3 -> 97.104 | E16: =(E7*Stammdatenblatt!$P$201+E7*(Stammdatenblatt!$P$202*4))/3 -> 97.104 | F16: =E16 -> 97.104 | G16: =F16 -> 97.104 | H16: =H7/Stammdatenblatt!$E$204*Stammdatenblatt!$E$201+(Stammdatenblatt!$E$203*Stammdatenblatt!$E$202) -> 1.08
A17: Summe Direktkosten | C17: €/ha | D17: =SUM(D12:D16) -> 690.9744377 | E17: =SUM(E12:E16) -> 690.9744377 | F17: =SUM(F12:F16) -> 710.0681959 | G17: =SUM(G12:G16) -> 710.0681959 | H17: =SUM(H12:H16) -> 1.08
A18: Direktkostenfreie Leistung | C18: €/ha | D18: =D11-D17 -> 1033.394362 | E18: =E11-E17 -> 1033.394362 | F18: =F11-F17 -> 1618.411804 | G18: =G11-G17 -> 1618.411804 | H18: =H11-H17 -> -1.08
A19: Maschinenkosten eigen * | C19: €/ha | D19: ='Arbeitsvorgänge-KTBL'!T742 -> 237.1763189 | E19: ='Arbeitsvorgänge-KTBL'!T875 -> 222.6468872 | F19: ='Arbeitsvorgänge-KTBL'!T742 -> 237.1763189 | G19: ='Arbeitsvorgänge-KTBL'!T875 -> 222.6468872 | H19: 0
A20: Maschinenkosten fremd | C20: €/ha | D20: ='Arbeitsvorgänge-KTBL'!U742*(1+Stammdatenblatt!C239) -> 123.97 | E20: ='Arbeitsvorgänge-KTBL'!U875*(1+Stammdatenblatt!C239) -> 123.97 | F20: ='Arbeitsvorgänge-KTBL'!U677*(1+Stammdatenblatt!C239) -> 123.97 | G20: ='Arbeitsvorgänge-KTBL'!U742*(1+Stammdatenblatt!C239) -> 123.97 | H20: 0
A21: Reinigung/Entspelzung | C21: €/ha | D21: 0 | E21: =D21 -> 0 | F21: =Stammdatenblatt!K219*F7 -> 675 | G21: =F21 -> 675 | H21: 0
A22: xxx | C22: €/ha | D22: 0 | E22: =D22 -> 0 | F22: =E22 -> 0 | G22: =F22 -> 0 | H22: 0
A23: variable Kosten | C23: €/ha | D23: =SUM(D19:D22,D17) -> 1052.120757 | E23: =SUM(E19:E22,E17) -> 1037.591325 | F23: =SUM(F19:F22,F17) -> 1746.214515 | G23: =SUM(G19:G22,G17) -> 1731.685083 | H23: =SUM(H19:H22,H17) -> 1.08
A24: Deckungsbeitrag (DB) | C24: €/ha | D24: =D11-D23 -> 672.2480434 | E24: =E11-E23 -> 686.7774751 | F24: =F11-F23 -> 582.2654852 | G24: =G11-G23 -> 596.7949169 | H24: =H11-H23 -> -1.08
A25: Zeit-Spanne | B25: AK-Bedarf
A26: FEB | C26: Akh/ha | D26: =SUMIF('Arbeitsvorgänge-KTBL'!$B$88:$B$153,' Dinkel'!A26,'Arbeitsvorgänge-KTBL'!$G$88:$G$153) -> 0.37 | E26: =SUMIF('Arbeitsvorgänge-KTBL'!$B$257:$B$325,' Dinkel'!A26,'Arbeitsvorgänge-KTBL'!$G$257:$G$325) -> 0.32 | F26: =SUMIF('Arbeitsvorgänge-KTBL'!$B$88:$B$153,' Dinkel'!A26,'Arbeitsvorgänge-KTBL'!$G$88:$G$153) -> 0.37 | G26: =SUMIF('Arbeitsvorgänge-KTBL'!$B$257:$B$325,' Dinkel'!A26,'Arbeitsvorgänge-KTBL'!$G$257:$G$325) -> 0.32 | H26: 0
A27: MRZ | C27: Akh/ha | D27: =SUMIF('Arbeitsvorgänge-KTBL'!$B$88:$B$153,' Dinkel'!A27,'Arbeitsvorgänge-KTBL'!$G$88:$G$153) -> 0.13 | E27: =SUMIF('Arbeitsvorgänge-KTBL'!$B$257:$B$325,' Dinkel'!A27,'Arbeitsvorgänge-KTBL'!$G$257:$G$325) -> 0.11 | F27: =SUMIF('Arbeitsvorgänge-KTBL'!$B$88:$B$153,' Dinkel'!A27,'Arbeitsvorgänge-KTBL'!$G$88:$G$153) -> 0.13 | G27: =SUMIF('Arbeitsvorgänge-KTBL'!$B$257:$B$325,' Dinkel'!A27,'Arbeitsvorgänge-KTBL'!$G$257:$G$325) -> 0.11 | H27: 0
A28: APR | C28: Akh/ha | D28: =SUMIF('Arbeitsvorgänge-KTBL'!$B$88:$B$153,' Dinkel'!A28,'Arbeitsvorgänge-KTBL'!$G$88:$G$153) -> 0.74 | E28: =SUMIF('Arbeitsvorgänge-KTBL'!$B$257:$B$325,' Dinkel'!A28,'Arbeitsvorgänge-KTBL'!$G$257:$G$325) -> 0.52 | F28: =SUMIF('Arbeitsvorgänge-KTBL'!$B$88:$B$153,' Dinkel'!A28,'Arbeitsvorgänge-KTBL'!$G$88:$G$153) -> 0.74 | G28: =SUMIF('Arbeitsvorgänge-KTBL'!$B$257:$B$325,' Dinkel'!A28,'Arbeitsvorgänge-KTBL'!$G$257:$G$325) -> 0.52 | H28: 0
A29: MAI | C29: Akh/ha | D29: =SUMIF('Arbeitsvorgänge-KTBL'!$B$88:$B$153,' Dinkel'!A29,'Arbeitsvorgänge-KTBL'!$G$88:$G$153) -> 0.13 | E29: =SUMIF('Arbeitsvorgänge-KTBL'!$B$257:$B$325,' Dinkel'!A29,'Arbeitsvorgänge-KTBL'!$G$257:$G$325) -> 0.11 | F29: =SUMIF('Arbeitsvorgänge-KTBL'!$B$88:$B$153,' Dinkel'!A29,'Arbeitsvorgänge-KTBL'!$G$88:$G$153) -> 0.13 | G29: =SUMIF('Arbeitsvorgänge-KTBL'!$B$257:$B$325,' Dinkel'!A29,'Arbeitsvorgänge-KTBL'!$G$257:$G$325) -> 0.11 | H29: 0
A30: JUN | C30: Akh/ha | D30: =SUMIF('Arbeitsvorgänge-KTBL'!$B$88:$B$153,' Dinkel'!A30,'Arbeitsvorgänge-KTBL'!$G$88:$G$153) -> 0.46 | E30: =SUMIF('Arbeitsvorgänge-KTBL'!$B$257:$B$325,' Dinkel'!A30,'Arbeitsvorgänge-KTBL'!$G$257:$G$325) -> 0.33 | F30: =SUMIF('Arbeitsvorgänge-KTBL'!$B$88:$B$153,' Dinkel'!A30,'Arbeitsvorgänge-KTBL'!$G$88:$G$153) -> 0.46 | G30: =SUMIF('Arbeitsvorgänge-KTBL'!$B$257:$B$325,' Dinkel'!A30,'Arbeitsvorgänge-KTBL'!$G$257:$G$325) -> 0.33 | H30: 0
A31: JUL | C31: Akh/ha | D31: =SUMIF('Arbeitsvorgänge-KTBL'!$B$88:$B$153,' Dinkel'!A31,'Arbeitsvorgänge-KTBL'!$G$88:$G$153) -> 0 | E31: =SUMIF('Arbeitsvorgänge-KTBL'!$B$257:$B$325,' Dinkel'!A31,'Arbeitsvorgänge-KTBL'!$G$257:$G$325) -> 0 | F31: =SUMIF('Arbeitsvorgänge-KTBL'!$B$88:$B$153,' Dinkel'!A31,'Arbeitsvorgänge-KTBL'!$G$88:$G$153) -> 0 | G31: =SUMIF('Arbeitsvorgänge-KTBL'!$B$257:$B$325,' Dinkel'!A31,'Arbeitsvorgänge-KTBL'!$G$257:$G$325) -> 0 | H31: 0
A32: AUG | C32: Akh/ha | D32: =SUMIF('Arbeitsvorgänge-KTBL'!$B$88:$B$153,' Dinkel'!A32,'Arbeitsvorgänge-KTBL'!$G$88:$G$153) -> 2.27 | E32: =SUMIF('Arbeitsvorgänge-KTBL'!$B$257:$B$325,' Dinkel'!A32,'Arbeitsvorgänge-KTBL'!$G$257:$G$325) -> 1.85 | F32: =SUMIF('Arbeitsvorgänge-KTBL'!$B$88:$B$153,' Dinkel'!A32,'Arbeitsvorgänge-KTBL'!$G$88:$G$153) -> 2.27 | G32: =SUMIF('Arbeitsvorgänge-KTBL'!$B$257:$B$325,' Dinkel'!A32,'Arbeitsvorgänge-KTBL'!$G$257:$G$325) -> 1.85 | H32: 0
A33: SEP | C33: Akh/ha | D33: =SUMIF('Arbeitsvorgänge-KTBL'!$B$88:$B$153,' Dinkel'!A33,'Arbeitsvorgänge-KTBL'!$G$88:$G$153) -> 3.11 | E33: =SUMIF('Arbeitsvorgänge-KTBL'!$B$257:$B$325,' Dinkel'!A33,'Arbeitsvorgänge-KTBL'!$G$257:$G$325) -> 2.32 | F33: =SUMIF('Arbeitsvorgänge-KTBL'!$B$88:$B$153,' Dinkel'!A33,'Arbeitsvorgänge-KTBL'!$G$88:$G$153) -> 3.11 | G33: =SUMIF('Arbeitsvorgänge-KTBL'!$B$257:$B$325,' Dinkel'!A33,'Arbeitsvorgänge-KTBL'!$G$257:$G$325) -> 2.32 | H33: 0
A34: OKT | C34: Akh/ha | D34: =SUMIF('Arbeitsvorgänge-KTBL'!$B$88:$B$153,' Dinkel'!A34,'Arbeitsvorgänge-KTBL'!$G$88:$G$153) -> 1.83 | E34: =SUMIF('Arbeitsvorgänge-KTBL'!$B$257:$B$325,' Dinkel'!A34,'Arbeitsvorgänge-KTBL'!$G$257:$G$325) -> 1.31 | F34: =SUMIF('Arbeitsvorgänge-KTBL'!$B$88:$B$153,' Dinkel'!A34,'Arbeitsvorgänge-KTBL'!$G$88:$G$153) -> 1.83 | G34: =SUMIF('Arbeitsvorgänge-KTBL'!$B$257:$B$325,' Dinkel'!A34,'Arbeitsvorgänge-KTBL'!$G$257:$G$325) -> 1.31 | H34: 0
A35: NOV | C35: Akh/ha | D35: =SUMIF('Arbeitsvorgänge-KTBL'!$B$88:$B$153,' Dinkel'!A35,'Arbeitsvorgänge-KTBL'!$G$88:$G$153) -> 0 | E35: =SUMIF('Arbeitsvorgänge-KTBL'!$B$257:$B$325,' Dinkel'!A35,'Arbeitsvorgänge-KTBL'!$G$257:$G$325) -> 0 | F35: =SUMIF('Arbeitsvorgänge-KTBL'!$B$88:$B$153,' Dinkel'!A35,'Arbeitsvorgänge-KTBL'!$G$88:$G$153) -> 0 | G35: =SUMIF('Arbeitsvorgänge-KTBL'!$B$257:$B$325,' Dinkel'!A35,'Arbeitsvorgänge-KTBL'!$G$257:$G$325) -> 0 | H35: 0
A36: Rest | C36: Akh/ha | D36: =SUMIF('Arbeitsvorgänge-KTBL'!$B$88:$B$153,' Dinkel'!A36,'Arbeitsvorgänge-KTBL'!$G$88:$G$153) -> 0 | E36: =SUMIF('Arbeitsvorgänge-KTBL'!$B$257:$B$325,' Dinkel'!A36,'Arbeitsvorgänge-KTBL'!$G$257:$G$325) -> 0 | F36: =SUMIF('Arbeitsvorgänge-KTBL'!$B$88:$B$153,' Dinkel'!A36,'Arbeitsvorgänge-KTBL'!$G$88:$G$153) -> 0 | G36: =SUMIF('Arbeitsvorgänge-KTBL'!$B$257:$B$325,' Dinkel'!A36,'Arbeitsvorgänge-KTBL'!$G$257:$G$325) -> 0 | H36: 0
A37: Arbeitskraftstunden | C37: AKh/ha | D37: =SUM(D26:D36) -> 9.04 | E37: =SUM(E26:E36) -> 6.87 | F37: =SUM(F26:F36) -> 9.04 | G37: =SUM(G26:G36) -> 6.87 | H37: =SUM(H26:H36) -> 0
A38: DB ( je Akh) | C38: €/Akh | D38: =ROUND(IF(D24>0,D24/D37,0),0) -> 74 | E38: =ROUND(IF(E24>0,E24/E37,0),0) -> 100 | F38: =ROUND(IF(F24>0,F24/F37,0),0) -> 64 | G38: =ROUND(IF(G24>0,G24/G37,0),0) -> 87 | H38: =ROUND(IF(H24>0,H24/H37,0),0) -> 0
A39: Aussaatmenge | C39: kg/ha | D39: 200 | E39: =D39 -> 200 | F39: 200 | G39: =F39 -> 200 | H39: 0
A40: davon Zukaufsaatgut | C40: % | D40: 68 | E40: 68 | F40: 68 | G40: 68 | H40: 0
A41: Saatgutpreis Eigen | C41: €/dt | D41: =D8+Stammdatenblatt!$K$186 -> 35.94948 | E41: =E8+Stammdatenblatt!$K$186 -> 35.94948 | F41: =F8+Stammdatenblatt!$K$186 -> 58.954 | G41: =G8+Stammdatenblatt!$K$186 -> 58.954 | H41: 0
A42: Zukauf | C42: €/dt | D42: =+Stammdatenblatt!P83 -> 126.26 | E42: =D42 -> 126.26 | F42: =+E42 -> 126.26 | G42: =F42 -> 126.26 | H42: 0
A43: Saatgutkosten | C43: €/ha | D43: =D40/100*(D39*D42)/100+((100-D40)/100*D39*D41/100) -> 194.7212672 | E43: =E40/100*(E39*E42)/100+((100-E40)/100*E39*E41/100) -> 194.7212672 | F43: =F40/100*(F39*F42)/100+((100-F40)/100*F39*F41/100) -> 209.44416 | G43: =G40/100*(G39*G42)/100+((100-G40)/100*G39*G41/100) -> 209.44416 | H43: =H40/100*(H39*H42)/100+((100-H40)/100*H39*H41/100) -> 0
A44: Dünger: | B44: €/kg | C44: Düngerbedarf/ha (in kg Reinnährstoff) nach Düngerabfuhr LfL Deckungsbeiträge 2024
A45: =+Stammdatenblatt!A130 -> Stickstoff | B45: =+Stammdatenblatt!P130 -> 1.365948973 | C45: Aufw./ha | D45: 99 | E45: 99 | F45: 99 | G45: 99 | H45: 0
A46: =+Stammdatenblatt!A131 -> Phosphor | B46: =+Stammdatenblatt!P131 -> 1.429608243 | C46: Aufw./ha | D46: 48 | E46: 48 | F46: 48 | G46: 48 | H46: 0
A47: =+Stammdatenblatt!A132 -> Kali | B47: =+Stammdatenblatt!P132 -> 0.9499175 | C47: Aufw./ha | D47: 48 | E47: 48 | F47: 48 | G47: 48 | H47: 0
A48: =+Stammdatenblatt!A133 -> Kalk | B48: =+Stammdatenblatt!P133 -> 0.05183111111 | C48: Aufw./ha | D48: 300 | E48: =D48 -> 300 | F48: 300 | G48: 300 | H48: 0
A49: =+Stammdatenblatt!A134 -> Magnesium | B49: =+Stammdatenblatt!P134 -> 2.3205 | C49: Aufw./ha | D49: 11 | E49: 11 | F49: 11 | G49: 11 | H49: 0
A50: =+Stammdatenblatt!A135 -> Schwefel | B50: =+Stammdatenblatt!P135 -> 1.0472 | C50: Aufw./ha | D50: 10 | E50: 10 | F50: 10 | G50: 10 | H50: 0
A51: Mineraldüngerkosten | C51: €/ha | D51: =+$B45*D45+D46*$B46+$B47*D47+$B48*D48+$B49*D49+$B50*D50 -> 300.9930174 | E51: =+$B45*E45+E46*$B46+$B47*E47+$B48*E48+$B49*E49+$B50*E50 -> 300.9930174 | F51: =+$B45*F45+F46*$B46+$B47*F47+$B48*F48+$B49*F49+$B50*F50 -> 300.9930174 | G51: =+$B45*G45+G46*$B46+$B47*G47+$B48*G48+$B49*G49+$B50*G50 -> 300.9930174 | H51: =+$B45*H45+H46*$B46+$B47*H47+$B48*H48+$B49*H49+$B50*H50 -> 0
A52: Herbizide | C52: €/ha | D52: 45 | E52: 45 | F52: 45 | G52: 45 | H52: 0
A53: Fungizide | C53: €/ha | D53: 0 | E53: 0 | F53: 0 | G53: 0 | H53: 0
A54: Insektizide | C54: €/ha | D54: 12 | E54: 12 | F54: 12 | G54: 12 | H54: 0
A55: Wachstumsregler | C55: €/ha | D55: 15 | E55: 15 | F55: 15 | G55: 15 | H55: 0
A56: Pflanzenbehandlungskosten | C56: €/ha | D56: =SUM(D52:D55) -> 72 | E56: =SUM(E52:E55) -> 72 | F56: =SUM(F52:F55) -> 72 | G56: =SUM(G52:G55) -> 72 | H56: =SUM(H52:H55) -> 0
A57: *variable Kosten in Anlehnung an KTBL-Richtwerte für Arbeitsgänge incl. Zinsanspruch für 3 Monate

Sheet Braugerste
B3: Landesbetrieb Landwirtschaft Hessen
A4: =IF(Stammdatenblatt!G6+Stammdatenblatt!D77+Stammdatenblatt!D112+Stammdatenblatt!B129+Stammdatenblatt!D140+Stammdatenblatt!C183+Stammdatenblatt!C221+Stammdatenblatt!C239=0,"Produktionsverfahren wurden netto gerechnet", "Produktionsverfahren wurden brutto gerechnet") -> Produktionsverfahren wurden brutto gerechnet | H4: =Wirtschaftsdünger!N4 -> Letztes (aktuelles) WJ.
J5: eigene
A6: Braugerste | D6: 2 ha | F6: 5 ha | H6: 20 ha | J6: Werte
A7: Leistung: Menge Hauptprodukt | C7: dt/ha | D7: 55 | E7: 75 | F7: 55 | G7: 75 | H7: 55 | I7: 75 | J7: 0
A8: Preis Hauptprodukt | C8: € | D8: =+Stammdatenblatt!P21 -> 25.45158 | E8: =+D8 -> 25.45158 | F8: =E8 -> 25.45158 | G8: =F8 -> 25.45158 | H8: =G8 -> 25.45158 | I8: =H8 -> 25.45158 | J8: 0
A9: Erlös Hauptprodukt | C9: €/ha | D9: =D7*D8 -> 1399.8369 | E9: 1908.8685 | F9: 1399.8369 | G9: 1908.8685 | H9: 1399.8369 | I9: 1908.8685 | J9: 0
A10: Erlös Nebenprodukt(e) | C10: €/ha | D10: 0 | E10: =D10 -> 0 | F10: =E10 -> 0 | G10: =F10 -> 0 | H10: =G10 -> 0 | I10: =H10 -> 0 | J10: 0
A11: Leistungen | C11: €/ha | D11: =D9+D10 -> 1399.8369 | E11: =E10+E9 -> 1908.8685 | F11: 1399.8369 | G11: 1908.8685 | H11: 1399.8369 | I11: 1908.8685 | J11: 0
A12: Saatgutkosten | C12: €/ha | D12: =D43 -> 130.326 | E12: 130.326 | F12: 130.326 | G12: 130.326 | H12: 130.326 | I12: 130.326 | J12: =J43 -> 0
A13: Mineraldüngerkosten | C13: €/ha | D13: =D51 -> 299.4699955 | E13: 378.9508086 | F13: 299.4699955 | G13: 378.9508086 | H13: 299.4699955 | I13: 378.9508086 | J13: =J51 -> 0
A14: Pflanzenbehandlungskosten | C14: €/ha | D14: =D56*(1+Stammdatenblatt!C221) -> 91.63 | E14: =E56*(1+Stammdatenblatt!C221) -> 130.9 | F14: =F56*(1+Stammdatenblatt!C221) -> 91.63 | G14: =G56*(1+Stammdatenblatt!C221) -> 130.9 | H14: =H56*(1+Stammdatenblatt!C221) -> 91.63 | I14: =I56*(1+Stammdatenblatt!C221) -> 130.9 | J14: =J56 -> 0
A15: Versicherung | C15: €/ha | D15: =(D11/1000)*Stammdatenblatt!$P$191 -> 10.12809994 | E15: =(E11/1000)*Stammdatenblatt!$P$191 -> 13.81104537 | F15: =(F11/1000)*Stammdatenblatt!$P$191 -> 10.12809994 | G15: =(G11/1000)*Stammdatenblatt!$P$191 -> 13.81104537 | H15: =(H11/1000)*Stammdatenblatt!$P$191 -> 10.12809994 | I15: =(I11/1000)*Stammdatenblatt!$P$191 -> 13.81104537 | J15: =(J11/1000)*Stammdatenblatt!$E$191 -> 0
A16: Trocknungskosten | C16: €/ha | D16: =(D7*Stammdatenblatt!$P$201+D7*(Stammdatenblatt!$P$202*4))/3 -> 89.012 | E16: =(E7*Stammdatenblatt!$P$201+E7*(Stammdatenblatt!$P$202*4))/3 -> 121.38 | F16: =(F7*Stammdatenblatt!$P$201+F7*(Stammdatenblatt!$P$202*4))/3 -> 89.012 | G16: =(G7*Stammdatenblatt!$P$201+G7*(Stammdatenblatt!$P$202*4))/3 -> 121.38 | H16: =(H7*Stammdatenblatt!$P$201+H7*(Stammdatenblatt!$P$202*4))/3 -> 89.012 | I16: =(I7*Stammdatenblatt!$P$201+I7*(Stammdatenblatt!$P$202*4))/3 -> 121.38 | J16: =(J7*Stammdatenblatt!$P$201+J7*(Stammdatenblatt!$P$202*4))/3 -> 0
A17: Summe Direktkosten | C17: €/ha | D17: =SUM(D12:D16) -> 620.5660954 | E17: =SUM(E12:E16) -> 775.367854 | F17: 620.5660954 | G17: 775.367854 | H17: 620.5660954 | I17: 775.367854 | J17: 0
A18: Direktkostenfreie Leistung | C18: €/ha | D18: =D11-D17 -> 779.2708046 | E18: =E11-E17 -> 1133.500646 | F18: 779.2708046 | G18: 1133.500646 | H18: 779.2708046 | I18: 1133.500646 | J18: 0
A19: Maschinenkosten eigen * | C19: €/ha | D19: ='Arbeitsvorgänge-KTBL'!T2192 -> 188.9574214 | E19: ='Arbeitsvorgänge-KTBL'!T2253 -> 235.5239399 | F19: ='Arbeitsvorgänge-KTBL'!T2315 -> 178.6906939 | G19: ='Arbeitsvorgänge-KTBL'!T2379 -> 221.6153012 | H19: ='Arbeitsvorgänge-KTBL'!T2445 -> 158.3396869 | I19: ='Arbeitsvorgänge-KTBL'!T2513 -> 199.0258832 | J19: 0
A20: Maschinenkosten fremd | C20: €/ha | D20: ='Arbeitsvorgänge-KTBL'!U2192*(1+Stammdatenblatt!C239) -> 123.97 | E20: ='Arbeitsvorgänge-KTBL'!U2253*(1+Stammdatenblatt!C239) -> 123.97 | F20: ='Arbeitsvorgänge-KTBL'!U2315*(1+Stammdatenblatt!C239) -> 123.97 | G20: ='Arbeitsvorgänge-KTBL'!U2379*(1+Stammdatenblatt!C239) -> 123.97 | H20: ='Arbeitsvorgänge-KTBL'!U2445*(1+Stammdatenblatt!C239) -> 113.19 | I20: ='Arbeitsvorgänge-KTBL'!U2513*(1+Stammdatenblatt!C239) -> 113.19 | J20: 0
A21: Lohnkosten | C21: €/ha | D21: 0 | E21: =D21 -> 0 | F21: 0 | G21: 0 | H21: 0 | I21: 0 | J21: 0
A22: xxx | C22: €/ha | D22: 0 | E22: 0 | F22: 0 | G22: 0 | H22: 0 | I22: 0 | J22: 0
A23: variable Kosten | C23: €/ha | D23: =SUM(D19:D22,D17) -> 933.4935169 | E23: =SUM(E19:E22,E17) -> 1134.861794 | F23: 923.2267893 | G23: 1120.953155 | H23: 892.0957823 | I23: 1087.583737 | J23: 0
A24: Deckungsbeitrag (DB) | C24: €/ha | D24: =D11-D23 -> 466.3433831 | E24: 774.0067061 | F24: 476.6101107 | G24: 787.9153448 | H24: 507.7411177 | I24: 821.2847628 | J24: 0
A25: Zeit-Spanne | B25: AK-Bedarf
A26: FEB | C26: Akh/ha | D26: =SUMIF('Arbeitsvorgänge-KTBL'!$B$2145:$B$2189,Braugerste!A26,'Arbeitsvorgänge-KTBL'!$G$2145:$G$2189) -> 0 | E26: =SUMIF('Arbeitsvorgänge-KTBL'!$B$2204:$B$2250,Braugerste!A26,'Arbeitsvorgänge-KTBL'!$G$2204:$G$2250) -> 0 | F26: =SUMIF('Arbeitsvorgänge-KTBL'!$B$2265:$B$2312,Braugerste!A26,'Arbeitsvorgänge-KTBL'!$G$2265:$G$2312) -> 0 | G26: =SUMIF('Arbeitsvorgänge-KTBL'!$B$2327:$B$2376,Braugerste!A26,'Arbeitsvorgänge-KTBL'!$G$2327:$G$2376) -> 0 | H26: =SUMIF('Arbeitsvorgänge-KTBL'!$B$2391:$B$2442,Braugerste!A26,'Arbeitsvorgänge-KTBL'!$G$2391:$G$2442) -> 0 | I26: =SUMIF('Arbeitsvorgänge-KTBL'!B2457:B2510,Braugerste!A26,'Arbeitsvorgänge-KTBL'!$G$2457:$G$2510) -> 0 | J26: 0
A27: MRZ | C27: Akh/ha | D27: =SUMIF('Arbeitsvorgänge-KTBL'!$B$2145:$B$2189,Braugerste!A27,'Arbeitsvorgänge-KTBL'!$G$2145:$G$2189) -> 2.02 | E27: =SUMIF('Arbeitsvorgänge-KTBL'!$B$2204:$B$2250,Braugerste!A27,'Arbeitsvorgänge-KTBL'!$G$2204:$G$2250) -> 2.07 | F27: =SUMIF('Arbeitsvorgänge-KTBL'!$B$2265:$B$2312,Braugerste!A27,'Arbeitsvorgänge-KTBL'!$G$2265:$G$2312) -> 1.47 | G27: =SUMIF('Arbeitsvorgänge-KTBL'!$B$2327:$B$2376,Braugerste!A27,'Arbeitsvorgänge-KTBL'!$G$2327:$G$2376) -> 1.52 | H27: =SUMIF('Arbeitsvorgänge-KTBL'!$B$2391:$B$2442,Braugerste!A27,'Arbeitsvorgänge-KTBL'!$G$2391:$G$2442) -> 0.88 | I27: =SUMIF('Arbeitsvorgänge-KTBL'!B2458:B2511,Braugerste!A27,'Arbeitsvorgänge-KTBL'!$G$2457:$G$2510) -> 1.82 | J27: 0
A28: APR | C28: Akh/ha | D28: =SUMIF('Arbeitsvorgänge-KTBL'!$B$2145:$B$2189,Braugerste!A28,'Arbeitsvorgänge-KTBL'!$G$2145:$G$2189) -> 0 | E28: =SUMIF('Arbeitsvorgänge-KTBL'!$B$2204:$B$2250,Braugerste!A28,'Arbeitsvorgänge-KTBL'!$G$2204:$G$2250) -> 0 | F28: =SUMIF('Arbeitsvorgänge-KTBL'!$B$2265:$B$2312,Braugerste!A28,'Arbeitsvorgänge-KTBL'!$G$2265:$G$2312) -> 0 | G28: =SUMIF('Arbeitsvorgänge-KTBL'!$B$2327:$B$2376,Braugerste!A28,'Arbeitsvorgänge-KTBL'!$G$2327:$G$2376) -> 0 | H28: =SUMIF('Arbeitsvorgänge-KTBL'!$B$2391:$B$2442,Braugerste!A28,'Arbeitsvorgänge-KTBL'!$G$2391:$G$2442) -> 0 | I28: =SUMIF('Arbeitsvorgänge-KTBL'!B2459:B2512,Braugerste!A28,'Arbeitsvorgänge-KTBL'!$G$2457:$G$2510) -> 0 | J28: 0
A29: MAI | C29: Akh/ha | D29: =SUMIF('Arbeitsvorgänge-KTBL'!$B$2145:$B$2189,Braugerste!A29,'Arbeitsvorgänge-KTBL'!$G$2145:$G$2189) -> 0 | E29: =SUMIF('Arbeitsvorgänge-KTBL'!$B$2204:$B$2250,Braugerste!A29,'Arbeitsvorgänge-KTBL'!$G$2204:$G$2250) -> 0 | F29: =SUMIF('Arbeitsvorgänge-KTBL'!$B$2265:$B$2312,Braugerste!A29,'Arbeitsvorgänge-KTBL'!$G$2265:$G$2312) -> 0 | G29: =SUMIF('Arbeitsvorgänge-KTBL'!$B$2327:$B$2376,Braugerste!A29,'Arbeitsvorgänge-KTBL'!$G$2327:$G$2376) -> 0 | H29: =SUMIF('Arbeitsvorgänge-KTBL'!$B$2391:$B$2442,Braugerste!A29,'Arbeitsvorgänge-KTBL'!$G$2391:$G$2442) -> 0 | I29: =SUMIF('Arbeitsvorgänge-KTBL'!B2460:B2513,Braugerste!A29,'Arbeitsvorgänge-KTBL'!$G$2457:$G$2510) -> 0 | J29: 0
A30: JUN | C30: Akh/ha | D30: =SUMIF('Arbeitsvorgänge-KTBL'!$B$2145:$B$2189,Braugerste!A30,'Arbeitsvorgänge-KTBL'!$G$2145:$G$2189) -> 0.41 | E30: =SUMIF('Arbeitsvorgänge-KTBL'!$B$2204:$B$2250,Braugerste!A30,'Arbeitsvorgänge-KTBL'!$G$2204:$G$2250) -> 0.41 | F30: =SUMIF('Arbeitsvorgänge-KTBL'!$B$2265:$B$2312,Braugerste!A30,'Arbeitsvorgänge-KTBL'!$G$2265:$G$2312) -> 0.3 | G30: =SUMIF('Arbeitsvorgänge-KTBL'!$B$2327:$B$2376,Braugerste!A30,'Arbeitsvorgänge-KTBL'!$G$2327:$G$2376) -> 0.3 | H30: =SUMIF('Arbeitsvorgänge-KTBL'!$B$2391:$B$2442,Braugerste!A30,'Arbeitsvorgänge-KTBL'!$G$2391:$G$2442) -> 0.23 | I30: =SUMIF('Arbeitsvorgänge-KTBL'!B2461:B2514,Braugerste!A30,'Arbeitsvorgänge-KTBL'!$G$2457:$G$2510) -> 0.23 | J30: 0
A31: JUL | C31: Akh/ha | D31: =SUMIF('Arbeitsvorgänge-KTBL'!$B$2145:$B$2189,Braugerste!A31,'Arbeitsvorgänge-KTBL'!$G$2145:$G$2189) -> 0.76 | E31: =SUMIF('Arbeitsvorgänge-KTBL'!$B$2204:$B$2250,Braugerste!A31,'Arbeitsvorgänge-KTBL'!$G$2204:$G$2250) -> 1.09 | F31: =SUMIF('Arbeitsvorgänge-KTBL'!$B$2265:$B$2312,Braugerste!A31,'Arbeitsvorgänge-KTBL'!$G$2265:$G$2312) -> 0.74 | G31: =SUMIF('Arbeitsvorgänge-KTBL'!$B$2327:$B$2376,Braugerste!A31,'Arbeitsvorgänge-KTBL'!$G$2327:$G$2376) -> 1.11 | H31: =SUMIF('Arbeitsvorgänge-KTBL'!$B$2391:$B$2442,Braugerste!A31,'Arbeitsvorgänge-KTBL'!$G$2391:$G$2442) -> 0.44 | I31: =SUMIF('Arbeitsvorgänge-KTBL'!B2462:B2515,Braugerste!A31,'Arbeitsvorgänge-KTBL'!$G$2457:$G$2510) -> 0.1 | J31: 0
A32: AUG | C32: Akh/ha | D32: =SUMIF('Arbeitsvorgänge-KTBL'!$B$2145:$B$2189,Braugerste!A32,'Arbeitsvorgänge-KTBL'!$G$2145:$G$2189) -> 1 | E32: =SUMIF('Arbeitsvorgänge-KTBL'!$B$2204:$B$2250,Braugerste!A32,'Arbeitsvorgänge-KTBL'!$G$2204:$G$2250) -> 1 | F32: =SUMIF('Arbeitsvorgänge-KTBL'!$B$2265:$B$2312,Braugerste!A32,'Arbeitsvorgänge-KTBL'!$G$2265:$G$2312) -> 0.63 | G32: =SUMIF('Arbeitsvorgänge-KTBL'!$B$2327:$B$2376,Braugerste!A32,'Arbeitsvorgänge-KTBL'!$G$2327:$G$2376) -> 0.63 | H32: =SUMIF('Arbeitsvorgänge-KTBL'!$B$2391:$B$2442,Braugerste!A32,'Arbeitsvorgänge-KTBL'!$G$2391:$G$2442) -> 0.4 | I32: =SUMIF('Arbeitsvorgänge-KTBL'!B2463:B2516,Braugerste!A32,'Arbeitsvorgänge-KTBL'!$G$2457:$G$2510) -> 0.66 | J32: 0
A33: SEP | C33: Akh/ha | D33: =SUMIF('Arbeitsvorgänge-KTBL'!$B$2145:$B$2189,Braugerste!A33,'Arbeitsvorgänge-KTBL'!$G$2145:$G$2189) -> 0.96 | E33: =SUMIF('Arbeitsvorgänge-KTBL'!$B$2204:$B$2250,Braugerste!A33,'Arbeitsvorgänge-KTBL'!$G$2204:$G$2250) -> 0.96 | F33: =SUMIF('Arbeitsvorgänge-KTBL'!$B$2265:$B$2312,Braugerste!A33,'Arbeitsvorgänge-KTBL'!$G$2265:$G$2312) -> 0.66 | G33: =SUMIF('Arbeitsvorgänge-KTBL'!$B$2327:$B$2376,Braugerste!A33,'Arbeitsvorgänge-KTBL'!$G$2327:$G$2376) -> 0.66 | H33: =SUMIF('Arbeitsvorgänge-KTBL'!$B$2391:$B$2442,Braugerste!A33,'Arbeitsvorgänge-KTBL'!$G$2391:$G$2442) -> 0.45 | I33: =SUMIF('Arbeitsvorgänge-KTBL'!B2464:B2517,Braugerste!A33,'Arbeitsvorgänge-KTBL'!$G$2457:$G$2510) -> 0.57 | J33: 0
A34: OKT | C34: Akh/ha | D34: =SUMIF('Arbeitsvorgänge-KTBL'!$B$2145:$B$2189,Braugerste!A34,'Arbeitsvorgänge-KTBL'!$G$2145:$G$2189) -> 2.07 | E34: =SUMIF('Arbeitsvorgänge-KTBL'!$B$2204:$B$2250,Braugerste!A34,'Arbeitsvorgänge-KTBL'!$G$2204:$G$2250) -> 2.13 | F34: =SUMIF('Arbeitsvorgänge-KTBL'!$B$2265:$B$2312,Braugerste!A34,'Arbeitsvorgänge-KTBL'!$G$2265:$G$2312) -> 1.58 | G34: =SUMIF('Arbeitsvorgänge-KTBL'!$B$2327:$B$2376,Braugerste!A34,'Arbeitsvorgänge-KTBL'!$G$2327:$G$2376) -> 1.63 | H34: =SUMIF('Arbeitsvorgänge-KTBL'!$B$2391:$B$2442,Braugerste!A34,'Arbeitsvorgänge-KTBL'!$G$2391:$G$2442) -> 1 | I34: =SUMIF('Arbeitsvorgänge-KTBL'!B2465:B2518,Braugerste!A34,'Arbeitsvorgänge-KTBL'!$G$2457:$G$2510) -> 0 | J34: 0
A35: NOV | C35: Akh/ha | D35: =SUMIF('Arbeitsvorgänge-KTBL'!$B$2145:$B$2189,Braugerste!A35,'Arbeitsvorgänge-KTBL'!$G$2145:$G$2189) -> 0 | E35: =SUMIF('Arbeitsvorgänge-KTBL'!$B$2204:$B$2250,Braugerste!A35,'Arbeitsvorgänge-KTBL'!$G$2204:$G$2250) -> 0 | F35: =SUMIF('Arbeitsvorgänge-KTBL'!$B$2265:$B$2312,Braugerste!A35,'Arbeitsvorgänge-KTBL'!$G$2265:$G$2312) -> 0 | G35: =SUMIF('Arbeitsvorgänge-KTBL'!$B$2327:$B$2376,Braugerste!A35,'Arbeitsvorgänge-KTBL'!$G$2327:$G$2376) -> 0 | H35: =SUMIF('Arbeitsvorgänge-KTBL'!$B$2391:$B$2442,Braugerste!A35,'Arbeitsvorgänge-KTBL'!$G$2391:$G$2442) -> 0 | I35: =SUMIF('Arbeitsvorgänge-KTBL'!B2466:B2519,Braugerste!A35,'Arbeitsvorgänge-KTBL'!$G$2457:$G$2510) -> 0 | J35: 0
A36: Rest | C36: Akh/ha | D36: =SUMIF('Arbeitsvorgänge-KTBL'!$B$2145:$B$2189,Braugerste!A36,'Arbeitsvorgänge-KTBL'!$G$2145:$G$2189) -> 0 | E36: =SUMIF('Arbeitsvorgänge-KTBL'!$B$2204:$B$2250,Braugerste!A36,'Arbeitsvorgänge-KTBL'!$G$2204:$G$2250) -> 0 | F36: =SUMIF('Arbeitsvorgänge-KTBL'!$B$2265:$B$2312,Braugerste!A36,'Arbeitsvorgänge-KTBL'!$G$2265:$G$2312) -> 0 | G36: =SUMIF('Arbeitsvorgänge-KTBL'!$B$2327:$B$2376,Braugerste!A36,'Arbeitsvorgänge-KTBL'!$G$2327:$G$2376) -> 0 | H36: =SUMIF('Arbeitsvorgänge-KTBL'!$B$2391:$B$2442,Braugerste!A36,'Arbeitsvorgänge-KTBL'!$G$2391:$G$2442) -> 0 | I36: =SUMIF('Arbeitsvorgänge-KTBL'!B2467:B2520,Braugerste!A36,'Arbeitsvorgänge-KTBL'!$G$2457:$G$2510) -> 0 | J36: 0
A37: Arbeitskraftstunden | C37: AKh/ha | D37: =SUM(D26:D36) -> 7.22 | E37: =SUM(E26:E36) -> 7.66 | F37: 5.38 | G37: 5.85 | H37: 3.4 | I37: 3.38 | J37: 0
A38: DB (je Akh) | C38: €/Akh | D38: =IF(D24>0,D24/D37,0) -> 64.59049628 | E38: 101.0452619 | F38: 88.5892399 | G38: 134.6863837 | H38: 149.3356229 | I38: 242.9836576 | J38: 0
A39: Aussaatmenge | C39: kg/ha | D39: 140 | E39: =D39 -> 140 | F39: =E39 -> 140 | G39: =F39 -> 140 | H39: =G39 -> 140 | I39: =H39 -> 140 | J39: 0
A40: davon Zukaufsaatgut | C40: % | D40: 100 | E40: =D40 -> 100 | F40: 100 | G40: 100 | H40: 100 | I40: 100 | J40: 0
A41: Saatgutpreis Eigen | C41: €/dt | D41: 0 | E41: 0 | F41: 0 | G41: 0 | H41: =G41 -> 0 | I41: =H41 -> 0 | J41: 0
A42: Zukauf | C42: €/dt | D42: =+Stammdatenblatt!P85 -> 93.09 | E42: =D42 -> 93.09 | F42: =+E42 -> 93.09 | G42: =F42 -> 93.09 | H42: =+G42 -> 93.09 | I42: =H42 -> 93.09 | J42: 0
A43: Saatgutkosten | C43: €/ha | D43: =D40/100*(D39*D42)/100+((100-D40)/100*D39*D41/100) -> 130.326 | E43: 130.326 | F43: 130.326 | G43: 130.326 | H43: 130.326 | I43: 130.326 | J43: 0
A44: Dünger: | B44: €/kg | C44: Düngerbedarf/ha (in kg Reinnährstoff) nach Düngerabfuhr LfL Deckungsbeiträge 2024
A45: =+Stammdatenblatt!A130 -> Stickstoff | B45: =+Stammdatenblatt!P130 -> 1.365948973 | C45: Aufw./ha | D45: 76 | E45: 104 | F45: 76 | G45: 104 | H45: 76 | I45: 104 | J45: 0
A46: =+Stammdatenblatt!A131 -> Phosphor | B46: =+Stammdatenblatt!P131 -> 1.429608243 | C46: Aufw./ha | D46: 44 | E46: 60 | F46: 44 | G46: 60 | H46: 44 | I46: 60 | J46: 0
A47: =+Stammdatenblatt!A132 -> Kali | B47: =+Stammdatenblatt!P132 -> 0.9499175 | C47: Aufw./ha | D47: 33 | E47: 45 | F47: 33 | G47: 45 | H47: 33 | I47: 45 | J47: 0
A48: =+Stammdatenblatt!A133 -> Kalk | B48: =+Stammdatenblatt!P133 -> 0.05183111111 | C48: Aufw./ha | D48: 300 | E48: =+D48 -> 300 | F48: 300 | G48: =+F48 -> 300 | H48: 300 | I48: =+H48 -> 300 | J48: 0
A49: =+Stammdatenblatt!A134 -> Magnesium | B49: =+Stammdatenblatt!P134 -> 2.3205 | C49: Aufw./ha | D49: 37 | E49: 40 | F49: 37 | G49: 40 | H49: 37 | I49: 40 | J49: 0
A50: =+Stammdatenblatt!A135 -> Schwefel | B50: =+Stammdatenblatt!P135 -> 1.0472 | C50: Aufw./ha | D50: 0 | E50: =D50 -> 0 | F50: 0 | G50: =F50 -> 0 | H50: 0 | I50: =H50 -> 0 | J50: 0
A51: Mineraldüngerkosten | C51: €/ha | D51: =D45*$B$45+D46*$B$46+D47*$B$47+D48*$B$48+D49*$B$49+D50*$B$50 -> 299.4699955 | E51: 378.9508086 | F51: 299.4699955 | G51: 378.9508086 | H51: 299.4699955 | I51: 378.9508086 | J51: 0
A52: Herbizide | C52: €/ha | D52: 28 | E52: 35 | F52: 28 | G52: 35 | H52: 28 | I52: 35 | J52: 0
A53: Fungizide | C53: €/ha | D53: 45 | E53: 60 | F53: 45 | G53: 60 | H53: 45 | I53: 60 | J53: 0
A54: Insektizide | C54: €/ha | D54: 2 | E54: 3 | F54: 2 | G54: 3 | H54: 2 | I54: 3 | J54: 0
A55: Wachstumsregler | C55: €/ha | D55: 2 | E55: 12 | F55: 2 | G55: 12 | H55: 2 | I55: 12 | J55: 0
A56: Pflanzenbehandlungskosten | C56: €/ha | D56: =SUM(D52:D55) -> 77 | E56: 110 | F56: 77 | G56: 110 | H56: 77 | I56: 110 | J56: 0
A57: *variable Kosten in Anlehnung an KTBL-Richtwerte für Arbeitsgänge incl. Zinsanspruch für 3 Monate

Sheet Hafer
B3: Landesbetrieb Landwirtschaft Hessen
A4: =IF(Stammdatenblatt!G6+Stammdatenblatt!D77+Stammdatenblatt!D112+Stammdatenblatt!B129+Stammdatenblatt!D140+Stammdatenblatt!C183+Stammdatenblatt!C221+Stammdatenblatt!C239=0,"Produktionsverfahren wurden netto gerechnet", "Produktionsverfahren wurden brutto gerechnet") -> Produktionsverfahren wurden brutto gerechnet | H4: =Wirtschaftsdünger!N4 -> Letztes (aktuelles) WJ.
J5: eigene
A6: Hafer | D6: 2 ha | F6: 5 ha | H6: 20 ha | J6: Werte
A7: Leistung: Menge Hauptprodukt | C7: dt/ha | D7: 50 | E7: 70 | F7: 50 | G7: 70 | H7: 50 | I7: 70 | J7: 0
A8: Preis Hauptprodukt | C8: € | D8: =+Stammdatenblatt!P22 -> 19.943 | E8: =+D8 -> 19.943 | F8: =+E8 -> 19.943 | G8: =F8 -> 19.943 | H8: =+G8 -> 19.943 | I8: =H8 -> 19.943 | J8: 0
A9: Erlös Hauptprodukt | C9: €/ha | D9: =D7*D8 -> 997.15 | E9: 1396.01 | F9: 997.15 | G9: 1396.01 | H9: 997.15 | I9: 1396.01 | J9: 0
A10: Erlös Nebenprodukt(e) | C10: €/ha | D10: 0 | E10: =D10 -> 0 | F10: =E10 -> 0 | G10: =F10 -> 0 | H10: =G10 -> 0 | I10: =H10 -> 0 | J10: 0
A11: Leistungen | C11: €/ha | D11: =D9+D10 -> 997.15 | E11: =E10+E9 -> 1396.01 | F11: 997.15 | G11: 1396.01 | H11: 997.15 | I11: 1396.01 | J11: 0
A12: Saatgutkosten | C12: €/ha | D12: =D43 -> 61.290723 | E12: 61.290723 | F12: 61.290723 | G12: 61.290723 | H12: 61.290723 | I12: 61.290723 | J12: =J43 -> 0
A13: Mineraldüngerkosten | C13: €/ha | D13: =D51 -> 290.67571 | E13: 378.3505211 | F13: 290.67571 | G13: 378.3505211 | H13: 290.67571 | I13: 378.3505211 | J13: =J51 -> 0
A14: Pflanzenbehandlungskosten | C14: €/ha | D14: =D56*(1+Stammdatenblatt!C221) -> 57.12 | E14: =E56*(1+Stammdatenblatt!C221) -> 79.73 | F14: =F56*(1+Stammdatenblatt!C221) -> 57.12 | G14: =G56*(1+Stammdatenblatt!C221) -> 79.73 | H14: =H56*(1+Stammdatenblatt!C221) -> 57.12 | I14: =I56*(1+Stammdatenblatt!C221) -> 79.73 | J14: =J56 -> 0
A15: Versicherung | C15: €/ha | D15: =(D11/1000)*Stammdatenblatt!$P$191 -> 7.21457968 | E15: =(E11/1000)*Stammdatenblatt!$P$191 -> 10.10041155 | F15: =(F11/1000)*Stammdatenblatt!$P$191 -> 7.21457968 | G15: =(G11/1000)*Stammdatenblatt!$P$191 -> 10.10041155 | H15: =(H11/1000)*Stammdatenblatt!$P$191 -> 7.21457968 | I15: =(I11/1000)*Stammdatenblatt!$P$191 -> 10.10041155 | J15: =(J11/1000)*Stammdatenblatt!$E$191 -> 0
A16: Trocknungskosten | C16: €/ha | D16: =(D7*Stammdatenblatt!$P$201+D7*(Stammdatenblatt!$P$202*4))/3 -> 80.92 | E16: =(E7*Stammdatenblatt!$P$201+E7*(Stammdatenblatt!$P$202*4))/3 -> 113.288 | F16: =D16 -> 80.92 | G16: =E16 -> 113.288 | H16: =D16 -> 80.92 | I16: =G16 -> 113.288 | J16: =J7/Stammdatenblatt!$E$204*Stammdatenblatt!$E$201+(Stammdatenblatt!$E$203*Stammdatenblatt!$E$202) -> 1.08
A17: Summe Direktkosten | C17: €/ha | D17: =SUM(D12:D16) -> 497.2210127 | E17: 642.7596557 | F17: 497.2210127 | G17: 642.7596557 | H17: 497.2210127 | I17: 642.7596557 | J17: 1.08
A18: Direktkostenfreie Leistung | C18: €/ha | D18: =D11-D17 -> 499.9289873 | E18: =E11-E17 -> 753.2503443 | F18: 499.9289873 | G18: 753.2503443 | H18: 499.9289873 | I18: 753.2503443 | J18: -1.08
A19: Maschinenkosten eigen * | C19: €/ha | D19: ='Arbeitsvorgänge-KTBL'!T2568 -> 183.6797823 | E19: ='Arbeitsvorgänge-KTBL'!T2626 -> 234.083381 | F19: ='Arbeitsvorgänge-KTBL'!T2683 -> 173.342359 | G19: ='Arbeitsvorgänge-KTBL'!T2744 -> 219.6279677 | H19: ='Arbeitsvorgänge-KTBL'!T2803 -> 153.6330331 | I19: ='Arbeitsvorgänge-KTBL'!T2868 -> 197.4800734 | J19: 0
A20: Maschinenkosten fremd | C20: €/ha | D20: ='Arbeitsvorgänge-KTBL'!U2568*(1+Stammdatenblatt!C239) -> 123.97 | E20: ='Arbeitsvorgänge-KTBL'!U2626*(1+Stammdatenblatt!C239) -> 123.97 | F20: ='Arbeitsvorgänge-KTBL'!U2683*(1+Stammdatenblatt!C239) -> 123.97 | G20: ='Arbeitsvorgänge-KTBL'!U2744*(1+Stammdatenblatt!C239) -> 123.97 | H20: ='Arbeitsvorgänge-KTBL'!U2803*(1+Stammdatenblatt!C239) -> 113.19 | I20: ='Arbeitsvorgänge-KTBL'!U2868*(1+Stammdatenblatt!C239) -> 113.19 | J20: 0
A21: Lohnkosten | C21: €/ha | D21: 0 | E21: =D21 -> 0 | F21: 0 | G21: 0 | H21: 0 | I21: 0 | J21: 0
A22: xxx | C22: €/ha | D22: 0 | E22: 0 | F22: 0 | G22: 0 | H22: 0 | I22: 0 | J22: 0
A23: variable Kosten | C23: €/ha | D23: =SUM(D19:D22,D17) -> 804.8707951 | E23: =SUM(E19:E22,E17) -> 1000.813037 | F23: 794.5333717 | G23: 986.3576234 | H23: 764.0440458 | I23: 953.4297291 | J23: 1.08
A24: Deckungsbeitrag (DB) | C24: €/ha | D24: =D11-D23 -> 192.2792049 | E24: =E11-E23 -> 395.1969633 | F24: 202.6166283 | G24: 409.6523766 | H24: 233.1059542 | I24: 442.5802709 | J24: -1.08
A25: Zeit-Spanne | B25: AK-Bedarf
A26: FEB | C26: Akh/ha | D26: =SUMIF('Arbeitsvorgänge-KTBL'!$B$2526:$B$2565,Hafer!A26,'Arbeitsvorgänge-KTBL'!$G$2526:$G$2565) -> 0 | E26: =SUMIF('Arbeitsvorgänge-KTBL'!$B$2580:$B$2623,Hafer!A26,'Arbeitsvorgänge-KTBL'!$G$2580:$G$2623) -> 0 | F26: =SUMIF('Arbeitsvorgänge-KTBL'!$B$2638:$B$2680,Hafer!A26,'Arbeitsvorgänge-KTBL'!$G$2638:$G$2680) -> 0 | G26: =SUMIF('Arbeitsvorgänge-KTBL'!$B$2695:$B$2741,Hafer!A26,'Arbeitsvorgänge-KTBL'!$G$2695:$G$2741) -> 0 | H26: =SUMIF('Arbeitsvorgänge-KTBL'!$B$2756:$B$2800,Hafer!A26,'Arbeitsvorgänge-KTBL'!$G$2756:$G$2800) -> 0 | I26: =SUMIF('Arbeitsvorgänge-KTBL'!$B$2815:$B$2865,Hafer!A26,'Arbeitsvorgänge-KTBL'!$G$2815:$G$2865) -> 0 | J26: 0
A27: MRZ | C27: Akh/ha | D27: =SUMIF('Arbeitsvorgänge-KTBL'!$B$2526:$B$2565,Hafer!A27,'Arbeitsvorgänge-KTBL'!$G$2526:$G$2565) -> 2.02 | E27: =SUMIF('Arbeitsvorgänge-KTBL'!$B$2580:$B$2623,Hafer!A27,'Arbeitsvorgänge-KTBL'!$G$2580:$G$2623) -> 2.05 | F27: =SUMIF('Arbeitsvorgänge-KTBL'!$B$2638:$B$2680,Hafer!A27,'Arbeitsvorgänge-KTBL'!$G$2638:$G$2680) -> 1.45 | G27: =SUMIF('Arbeitsvorgänge-KTBL'!$B$2695:$B$2741,Hafer!A27,'Arbeitsvorgänge-KTBL'!$G$2695:$G$2741) -> 1.49 | H27: =SUMIF('Arbeitsvorgänge-KTBL'!$B$2756:$B$2800,Hafer!A27,'Arbeitsvorgänge-KTBL'!$G$2756:$G$2800) -> 0.89 | I27: =SUMIF('Arbeitsvorgänge-KTBL'!$B$2815:$B$2865,Hafer!A27,'Arbeitsvorgänge-KTBL'!$G$2815:$G$2865) -> 0.89 | J27: 0
A28: APR | C28: Akh/ha | D28: =SUMIF('Arbeitsvorgänge-KTBL'!$B$2526:$B$2565,Hafer!A28,'Arbeitsvorgänge-KTBL'!$G$2526:$G$2565) -> 0 | E28: =SUMIF('Arbeitsvorgänge-KTBL'!$B$2580:$B$2623,Hafer!A28,'Arbeitsvorgänge-KTBL'!$G$2580:$G$2623) -> 0 | F28: =SUMIF('Arbeitsvorgänge-KTBL'!$B$2638:$B$2680,Hafer!A28,'Arbeitsvorgänge-KTBL'!$G$2638:$G$2680) -> 0 | G28: =SUMIF('Arbeitsvorgänge-KTBL'!$B$2695:$B$2741,Hafer!A28,'Arbeitsvorgänge-KTBL'!$G$2695:$G$2741) -> 0 | H28: =SUMIF('Arbeitsvorgänge-KTBL'!$B$2756:$B$2800,Hafer!A28,'Arbeitsvorgänge-KTBL'!$G$2756:$G$2800) -> 0 | I28: =SUMIF('Arbeitsvorgänge-KTBL'!$B$2815:$B$2865,Hafer!A28,'Arbeitsvorgänge-KTBL'!$G$2815:$G$2865) -> 0 | J28: 0
A29: MAI | C29: Akh/ha | D29: =SUMIF('Arbeitsvorgänge-KTBL'!$B$2526:$B$2565,Hafer!A29,'Arbeitsvorgänge-KTBL'!$G$2526:$G$2565) -> 0.13 | E29: =SUMIF('Arbeitsvorgänge-KTBL'!$B$2580:$B$2623,Hafer!A29,'Arbeitsvorgänge-KTBL'!$G$2580:$G$2623) -> 0.41 | F29: =SUMIF('Arbeitsvorgänge-KTBL'!$B$2638:$B$2680,Hafer!A29,'Arbeitsvorgänge-KTBL'!$G$2638:$G$2680) -> 0.11 | G29: =SUMIF('Arbeitsvorgänge-KTBL'!$B$2695:$B$2741,Hafer!A29,'Arbeitsvorgänge-KTBL'!$G$2695:$G$2741) -> 0.3 | H29: =SUMIF('Arbeitsvorgänge-KTBL'!$B$2756:$B$2800,Hafer!A29,'Arbeitsvorgänge-KTBL'!$G$2756:$G$2800) -> 0.09 | I29: =SUMIF('Arbeitsvorgänge-KTBL'!$B$2815:$B$2865,Hafer!A29,'Arbeitsvorgänge-KTBL'!$G$2815:$G$2865) -> 0.23 | J29: 0
A30: JUN | C30: Akh/ha | D30: =SUMIF('Arbeitsvorgänge-KTBL'!$B$2526:$B$2565,Hafer!A30,'Arbeitsvorgänge-KTBL'!$G$2526:$G$2565) -> 0 | E30: =SUMIF('Arbeitsvorgänge-KTBL'!$B$2580:$B$2623,Hafer!A30,'Arbeitsvorgänge-KTBL'!$G$2580:$G$2623) -> 0 | F30: =SUMIF('Arbeitsvorgänge-KTBL'!$B$2638:$B$2680,Hafer!A30,'Arbeitsvorgänge-KTBL'!$G$2638:$G$2680) -> 0 | G30: =SUMIF('Arbeitsvorgänge-KTBL'!$B$2695:$B$2741,Hafer!A30,'Arbeitsvorgänge-KTBL'!$G$2695:$G$2741) -> 0 | H30: =SUMIF('Arbeitsvorgänge-KTBL'!$B$2756:$B$2800,Hafer!A30,'Arbeitsvorgänge-KTBL'!$G$2756:$G$2800) -> 0 | I30: =SUMIF('Arbeitsvorgänge-KTBL'!$B$2815:$B$2865,Hafer!A30,'Arbeitsvorgänge-KTBL'!$G$2815:$G$2865) -> 0 | J30: 0
A31: JUL | C31: Akh/ha | D31: =SUMIF('Arbeitsvorgänge-KTBL'!$B$2526:$B$2565,Hafer!A31,'Arbeitsvorgänge-KTBL'!$G$2526:$G$2565) -> 0.76 | E31: =SUMIF('Arbeitsvorgänge-KTBL'!$B$2580:$B$2623,Hafer!A31,'Arbeitsvorgänge-KTBL'!$G$2580:$G$2623) -> 1.09 | F31: =SUMIF('Arbeitsvorgänge-KTBL'!$B$2638:$B$2680,Hafer!A31,'Arbeitsvorgänge-KTBL'!$G$2638:$G$2680) -> 0.71 | G31: =SUMIF('Arbeitsvorgänge-KTBL'!$B$2695:$B$2741,Hafer!A31,'Arbeitsvorgänge-KTBL'!$G$2695:$G$2741) -> 1.08 | H31: =SUMIF('Arbeitsvorgänge-KTBL'!$B$2756:$B$2800,Hafer!A31,'Arbeitsvorgänge-KTBL'!$G$2756:$G$2800) -> 0.44 | I31: =SUMIF('Arbeitsvorgänge-KTBL'!$B$2815:$B$2865,Hafer!A31,'Arbeitsvorgänge-KTBL'!$G$2815:$G$2865) -> 0.65 | J31: 0
A32: AUG | C32: Akh/ha | D32: =SUMIF('Arbeitsvorgänge-KTBL'!$B$2526:$B$2565,Hafer!A32,'Arbeitsvorgänge-KTBL'!$G$2526:$G$2565) -> 1 | E32: =SUMIF('Arbeitsvorgänge-KTBL'!$B$2580:$B$2623,Hafer!A32,'Arbeitsvorgänge-KTBL'!$G$2580:$G$2623) -> 1 | F32: =SUMIF('Arbeitsvorgänge-KTBL'!$B$2638:$B$2680,Hafer!A32,'Arbeitsvorgänge-KTBL'!$G$2638:$G$2680) -> 0.63 | G32: =SUMIF('Arbeitsvorgänge-KTBL'!$B$2695:$B$2741,Hafer!A32,'Arbeitsvorgänge-KTBL'!$G$2695:$G$2741) -> 0.63 | H32: =SUMIF('Arbeitsvorgänge-KTBL'!$B$2756:$B$2800,Hafer!A32,'Arbeitsvorgänge-KTBL'!$G$2756:$G$2800) -> 0.4 | I32: =SUMIF('Arbeitsvorgänge-KTBL'!$B$2815:$B$2865,Hafer!A32,'Arbeitsvorgänge-KTBL'!$G$2815:$G$2865) -> 0.4 | J32: 0
A33: SEP | C33: Akh/ha | D33: =SUMIF('Arbeitsvorgänge-KTBL'!$B$2526:$B$2565,Hafer!A33,'Arbeitsvorgänge-KTBL'!$G$2526:$G$2565) -> 0.96 | E33: =SUMIF('Arbeitsvorgänge-KTBL'!$B$2580:$B$2623,Hafer!A33,'Arbeitsvorgänge-KTBL'!$G$2580:$G$2623) -> 0.96 | F33: =SUMIF('Arbeitsvorgänge-KTBL'!$B$2638:$B$2680,Hafer!A33,'Arbeitsvorgänge-KTBL'!$G$2638:$G$2680) -> 0.66 | G33: =SUMIF('Arbeitsvorgänge-KTBL'!$B$2695:$B$2741,Hafer!A33,'Arbeitsvorgänge-KTBL'!$G$2695:$G$2741) -> 0.66 | H33: =SUMIF('Arbeitsvorgänge-KTBL'!$B$2756:$B$2800,Hafer!A33,'Arbeitsvorgänge-KTBL'!$G$2756:$G$2800) -> 0.45 | I33: =SUMIF('Arbeitsvorgänge-KTBL'!$B$2815:$B$2865,Hafer!A33,'Arbeitsvorgänge-KTBL'!$G$2815:$G$2865) -> 0.45 | J33: 0
A34: OKT | C34: Akh/ha | D34: =SUMIF('Arbeitsvorgänge-KTBL'!$B$2526:$B$2565,Hafer!A34,'Arbeitsvorgänge-KTBL'!$G$2526:$G$2565) -> 2.06 | E34: =SUMIF('Arbeitsvorgänge-KTBL'!$B$2580:$B$2623,Hafer!A34,'Arbeitsvorgänge-KTBL'!$G$2580:$G$2623) -> 2.12 | F34: =SUMIF('Arbeitsvorgänge-KTBL'!$B$2638:$B$2680,Hafer!A34,'Arbeitsvorgänge-KTBL'!$G$2638:$G$2680) -> 1.56 | G34: =SUMIF('Arbeitsvorgänge-KTBL'!$B$2695:$B$2741,Hafer!A34,'Arbeitsvorgänge-KTBL'!$G$2695:$G$2741) -> 1.61 | H34: =SUMIF('Arbeitsvorgänge-KTBL'!$B$2756:$B$2800,Hafer!A34,'Arbeitsvorgänge-KTBL'!$G$2756:$G$2800) -> 1 | I34: =SUMIF('Arbeitsvorgänge-KTBL'!$B$2815:$B$2865,Hafer!A34,'Arbeitsvorgänge-KTBL'!$G$2815:$G$2865) -> 1.01 | J34: 0
A35: NOV | C35: Akh/ha | D35: =SUMIF('Arbeitsvorgänge-KTBL'!$B$2526:$B$2565,Hafer!A35,'Arbeitsvorgänge-KTBL'!$G$2526:$G$2565) -> 0 | E35: =SUMIF('Arbeitsvorgänge-KTBL'!$B$2580:$B$2623,Hafer!A35,'Arbeitsvorgänge-KTBL'!$G$2580:$G$2623) -> 0 | F35: =SUMIF('Arbeitsvorgänge-KTBL'!$B$2638:$B$2680,Hafer!A35,'Arbeitsvorgänge-KTBL'!$G$2638:$G$2680) -> 0 | G35: =SUMIF('Arbeitsvorgänge-KTBL'!$B$2695:$B$2741,Hafer!A35,'Arbeitsvorgänge-KTBL'!$G$2695:$G$2741) -> 0 | H35: =SUMIF('Arbeitsvorgänge-KTBL'!$B$2756:$B$2800,Hafer!A35,'Arbeitsvorgänge-KTBL'!$G$2756:$G$2800) -> 0 | I35: =SUMIF('Arbeitsvorgänge-KTBL'!$B$2815:$B$2865,Hafer!A35,'Arbeitsvorgänge-KTBL'!$G$2815:$G$2865) -> 0 | J35: 0
A36: Rest | C36: Akh/ha | D36: =SUMIF('Arbeitsvorgänge-KTBL'!$B$2526:$B$2565,Hafer!A36,'Arbeitsvorgänge-KTBL'!$G$2526:$G$2565) -> 0 | E36: =SUMIF('Arbeitsvorgänge-KTBL'!$B$2580:$B$2623,Hafer!A36,'Arbeitsvorgänge-KTBL'!$G$2580:$G$2623) -> 0 | F36: =SUMIF('Arbeitsvorgänge-KTBL'!$B$2638:$B$2680,Hafer!A36,'Arbeitsvorgänge-KTBL'!$G$2638:$G$2680) -> 0 | G36: =SUMIF('Arbeitsvorgänge-KTBL'!$B$2695:$B$2741,Hafer!A36,'Arbeitsvorgänge-KTBL'!$G$2695:$G$2741) -> 0 | H36: =SUMIF('Arbeitsvorgänge-KTBL'!$B$2756:$B$2800,Hafer!A36,'Arbeitsvorgänge-KTBL'!$G$2756:$G$2800) -> 0 | I36: =SUMIF('Arbeitsvorgänge-KTBL'!$B$2815:$B$2865,Hafer!A36,'Arbeitsvorgänge-KTBL'!$G$2815:$G$2865) -> 0 | J36: 0
A37: Arbeitskraftstunden | C37: AKh/ha | D37: =SUM(D26:D36) -> 6.93 | E37: =SUM(E27:E36) -> 7.63 | F37: 5.12 | G37: 5.77 | H37: 3.27 | I37: 3.63 | J37: 0
A38: DB (je Akh) | C38: €/Akh | D38: =IF(D24>0,D24/D37,0) -> 27.74591702 | E38: 51.79514591 | F38: 39.57356022 | G38: 70.99694569 | H38: 71.28622454 | I38: 121.9229397 | J38: 0
A39: Aussaatmenge | C39: kg/ha | D39: 130 | E39: =D39 -> 130 | F39: =E39 -> 130 | G39: =F39 -> 130 | H39: =G39 -> 130 | I39: =H39 -> 130 | J39: 0
A40: davon Zukaufsaatgut | C40: % | D40: 33 | E40: =D40 -> 33 | F40: =E40 -> 33 | G40: =F40 -> 33 | H40: 33 | I40: =H40 -> 33 | J40: 0
A41: Saatgutpreis Eigen | C41: €/dt | D41: =D8+Stammdatenblatt!$K$186 -> 27.153 | E41: =E8+Stammdatenblatt!$K$186 -> 27.153 | F41: =F8+Stammdatenblatt!$K$186 -> 27.153 | G41: =G8+Stammdatenblatt!$K$186 -> 27.153 | H41: =H8+Stammdatenblatt!$K$186 -> 27.153 | I41: =I8+Stammdatenblatt!$K$186 -> 27.153 | J41: 0
A42: Zukauf | C42: €/dt | D42: =+Stammdatenblatt!P86 -> 87.74 | E42: =D42 -> 87.74 | F42: =+E42 -> 87.74 | G42: =F42 -> 87.74 | H42: =+G42 -> 87.74 | I42: =H42 -> 87.74 | J42: 0
A43: Saatgutkosten | C43: €/ha | D43: =D40/100*(D39*D42)/100+((100-D40)/100*D39*D41/100) -> 61.290723 | E43: 61.290723 | F43: 61.290723 | G43: 61.290723 | H43: 61.290723 | I43: 61.290723 | J43: 0
A44: Dünger: | B44: €/kg | C44: Düngerbedarf/ha (in kg Reinnährstoff) nach Düngerabfuhr LfL Deckungsbeiträge 2024
A45: =+Stammdatenblatt!A130 -> Stickstoff | B45: =+Stammdatenblatt!P130 -> 1.365948973 | C45: Aufw./ha | D45: 76 | E45: 106 | F45: 76 | G45: 106 | H45: 76 | I45: 106 | J45: 0
A46: =+Stammdatenblatt!A131 -> Phosphor | B46: =+Stammdatenblatt!P131 -> 1.429608243 | C46: Aufw./ha | D46: 40 | E46: 56 | F46: 40 | G46: 56 | H46: 40 | I46: 56 | J46: 0
A47: =+Stammdatenblatt!A132 -> Kali | B47: =+Stammdatenblatt!P132 -> 0.9499175 | C47: Aufw./ha | D47: 30 | E47: 42 | F47: 30 | G47: 42 | H47: 30 | I47: 42 | J47: 0
A48: =+Stammdatenblatt!A133 -> Kalk | B48: =+Stammdatenblatt!P133 -> 0.05183111111 | C48: Aufw./ha | D48: 300 | E48: =D48 -> 300 | F48: 300 | G48: =F48 -> 300 | H48: 300 | I48: =H48 -> 300 | J48: 0
A49: =+Stammdatenblatt!A134 -> Magnesium | B49: =+Stammdatenblatt!P134 -> 2.3205 | C49: Aufw./ha | D49: 36 | E49: 40 | F49: 36 | G49: 40 | H49: 36 | I49: 40 | J49: 0
A50: =+Stammdatenblatt!A135 -> Schwefel | B50: =+Stammdatenblatt!P135 -> 1.0472 | C50: Aufw./ha | D50: 2 | E50: 5 | F50: 2 | G50: 5 | H50: 2 | I50: 5 | J50: 0
A51: Mineraldüngerkosten | C51: €/ha | D51: =D45*$B$45+D46*$B$46+D47*$B$47+D48*$B$48+D49*$B$49+D50*$B$50 -> 290.67571 | E51: 378.3505211 | F51: 290.67571 | G51: 378.3505211 | H51: 290.67571 | I51: 378.3505211 | J51: 0
A52: Herbizide | C52: €/ha | D52: 31 | E52: 35 | F52: 31 | G52: 35 | H52: 31 | I52: 35 | J52: 0
A53: Fungizide | C53: €/ha | D53: 13 | E53: 23 | F53: 13 | G53: 23 | H53: 13 | I53: 23 | J53: 0
A54: Insektizide | C54: €/ha | D54: 0 | E54: 3 | F54: 0 | G54: 3 | H54: 0 | I54: 3 | J54: 0
A55: Wachstumsregler | C55: €/ha | D55: 4 | E55: 6 | F55: 4 | G55: 6 | H55: 4 | I55: 6 | J55: 0
A56: Pflanzenbehandlungskosten | C56: €/ha | D56: =SUM(D52:D55) -> 48 | E56: 67 | F56: 48 | G56: 67 | H56: 48 | I56: 67 | J56: 0
A57: *variable Kosten in Anlehnung an KTBL-Richtwerte für Arbeitsgänge incl. Zinsanspruch für 3 Monate

Sheet Raps
B3: Landesbetrieb Landwirtschaft Hessen
A4: =IF(Stammdatenblatt!G6+Stammdatenblatt!D77+Stammdatenblatt!D112+Stammdatenblatt!B129+Stammdatenblatt!D140+Stammdatenblatt!C183+Stammdatenblatt!C221+Stammdatenblatt!C239=0,"Produktionsverfahren wurden netto gerechnet", "Produktionsverfahren wurden brutto gerechnet") -> Produktionsverfahren wurden brutto gerechnet | H4: =Wirtschaftsdünger!N4 -> Letztes (aktuelles) WJ.
D5: Winterraps | J5: eigene
A6: Raps | D6: 2 ha | F6: 5 ha | H6: 20 ha | J6: Werte
A7: Leistung: Menge Hauptprodukt | C7: dt/ha | D7: 35 | E7: 45 | F7: 35 | G7: 45 | H7: 35 | I7: 45 | J7: 0
A8: Preis Hauptprodukt | C8: € | D8: =+Stammdatenblatt!P25 -> 47.57214 | E8: =+D8 -> 47.57214 | F8: =+E8 -> 47.57214 | G8: =+F8 -> 47.57214 | H8: =+G8 -> 47.57214 | I8: =+H8 -> 47.57214 | J8: 0
A9: Erlös Hauptprodukt | C9: €/ha | D9: =D7*D8 -> 1665.0249 | E9: 2140.7463 | F9: 1665.0249 | G9: 2140.7463 | H9: 1665.0249 | I9: 2140.7463 | J9: 0
A10: Erlös Nebenprodukt(e) | C10: €/ha | D10: 0 | E10: 0 | F10: 0 | G10: 0 | H10: 0 | I10: 0 | J10: 0
A11: Leistungen | C11: €/ha | D11: =D9+D10 -> 1665.0249 | E11: =E10+E9 -> 2140.7463 | F11: 1665.0249 | G11: 2140.7463 | H11: 1665.0249 | I11: 2140.7463 | J11: 0
A12: Saatgutkosten ** | C12: €/ha | D12: =D43 -> 79.608 | E12: 79.608 | F12: 79.608 | G12: 79.608 | H12: 79.608 | I12: 79.608 | J12: =J43 -> 0
A13: Mineraldüngerkosten | C13: €/ha | D13: =D51 -> 401.969795 | E13: 485.9646835 | F13: 401.969795 | G13: 485.9646835 | H13: 401.969795 | I13: 485.9646835 | J13: =J51 -> 0
A14: Pflanzenbehandlungsk. | C14: €/ha | D14: =D56*(1+Stammdatenblatt!C221) -> 202.3 | E14: =E56*(1+Stammdatenblatt!C221) -> 285.6 | F14: =F56*(1+Stammdatenblatt!C221) -> 202.3 | G14: =G56*(1+Stammdatenblatt!C221) -> 285.6 | H14: =H56*(1+Stammdatenblatt!C221) -> 202.3 | I14: =I56*(1+Stammdatenblatt!C221) -> 285.6 | J14: =J56 -> 0
A15: Versicherung | C15: €/ha | D15: =(D11/1000)*Stammdatenblatt!$P$192 -> 36.14036447 | E15: =(E11/1000)*Stammdatenblatt!$P$192 -> 46.46618289 | F15: =(F11/1000)*Stammdatenblatt!$P$192 -> 36.14036447 | G15: =(G11/1000)*Stammdatenblatt!$P$192 -> 46.46618289 | H15: =(H11/1000)*Stammdatenblatt!$P$192 -> 36.14036447 | I15: =(I11/1000)*Stammdatenblatt!$P$192 -> 46.46618289 | J15: =(J11/1000)*Stammdatenblatt!$E$192 -> 0
A16: Trocknungskosten | C16: €/ha | D16: =(D7*Stammdatenblatt!$P$206+D7*(Stammdatenblatt!$P$207*3))/3 -> 49.84116667 | E16: =(E7*Stammdatenblatt!$P$206+E7*(Stammdatenblatt!$P$207*3))/3 -> 64.0815 | F16: =D16 -> 49.84116667 | G16: =E16 -> 64.0815 | H16: =F16 -> 49.84116667 | I16: =G16 -> 64.0815 | J16: =J7/Stammdatenblatt!$E$209*Stammdatenblatt!$E$206+(Stammdatenblatt!$E$208*Stammdatenblatt!$E$207) -> 0.66
A17: Summe Direktkosten | C17: €/ha | D17: =SUM(D12:D16) -> 769.8593262 | E17: =SUM(E12:E16) -> 961.7203664 | F17: 769.8593262 | G17: 961.7203664 | H17: 769.8593262 | I17: 961.7203664 | J17: 0.66
A18: Direktkostenfreie Leistung | C18: €/ha | D18: =D11-D17 -> 895.1655738 | E18: =E11-E17 -> 1179.025934 | F18: 895.1655738 | G18: 1179.025934 | H18: 895.1655738 | I18: 1179.025934 | J18: -0.66
A19: Maschinenkosten eigen * | C19: €/ha | D19: ='Arbeitsvorgänge-KTBL'!T2939 -> 256.1775528 | E19: ='Arbeitsvorgänge-KTBL'!T3013 -> 272.8160226 | F19: ='Arbeitsvorgänge-KTBL'!T3083 -> 238.8141614 | G19: ='Arbeitsvorgänge-KTBL'!T3157 -> 255.2201637 | H19: ='Arbeitsvorgänge-KTBL'!T3233 -> 215.2768784 | I19: ='Arbeitsvorgänge-KTBL'!T3315 -> 230.6628516 | J19: 0
A20: Maschinenkosten fremd | C20: €/ha | D20: ='Arbeitsvorgänge-KTBL'!U2939*(1+Stammdatenblatt!C239) -> 150.92 | E20: ='Arbeitsvorgänge-KTBL'!U3013*(1+Stammdatenblatt!C239) -> 150.92 | F20: ='Arbeitsvorgänge-KTBL'!U3083*(1+Stammdatenblatt!C239) -> 150.92 | G20: ='Arbeitsvorgänge-KTBL'!U3157*(1+Stammdatenblatt!C239) -> 150.92 | H20: ='Arbeitsvorgänge-KTBL'!U3233*(1+Stammdatenblatt!C239) -> 140.14 | I20: ='Arbeitsvorgänge-KTBL'!U3315*(1+Stammdatenblatt!C239) -> 140.14 | J20: 0
A21: Lohnkosten | C21: €/ha | D21: 0 | E21: =D21 -> 0 | F21: 0 | G21: 0 | H21: 0 | I21: 0 | J21: 0
A22: xxx | C22: €/ha | D22: 0 | E22: 0 | F22: 0 | G22: 0 | H22: 0 | I22: 0 | J22: 0
A23: variable Kosten | C23: €/ha | D23: =SUM(D19:D22,D17) -> 1176.956879 | E23: =SUM(E19:E22,E17) -> 1385.456389 | F23: 1159.593488 | G23: 1367.86053 | H23: 1125.276205 | I23: 1332.523218 | J23: 0.66
A24: Deckungsbeitrag (DB) | C24: €/ha | D24: =D11-D23 -> 488.068021 | E24: 755.289911 | F24: 505.4314124 | G24: 772.8857699 | H24: 539.7486954 | I24: 808.223082 | J24: -0.66
A25: Zeit-Spanne | B25: AK-Bedarf
A26: FEB | C26: Akh/ha | D26: =SUMIF('Arbeitsvorgänge-KTBL'!$B$2881:$B$2936,Raps!A26,'Arbeitsvorgänge-KTBL'!$G$2881:$G$2936) -> 0.33 | E26: =SUMIF('Arbeitsvorgänge-KTBL'!$B$2951:$B$3010,Raps!A26,'Arbeitsvorgänge-KTBL'!$G$2951:$G$3010) -> 0.37 | F26: =SUMIF('Arbeitsvorgänge-KTBL'!$B$3025:$B$3080,Raps!A26,'Arbeitsvorgänge-KTBL'!$G$3025:$G$3080) -> 0.28 | G26: =SUMIF('Arbeitsvorgänge-KTBL'!$B$3095:$B$3154,Raps!A26,'Arbeitsvorgänge-KTBL'!$G$3095:$G$3154) -> 0.32 | H26: =SUMIF('Arbeitsvorgänge-KTBL'!$B$3169:$B$3230,Raps!A26,'Arbeitsvorgänge-KTBL'!$G$3169:$G$3230) -> 0.16 | I26: =SUMIF('Arbeitsvorgänge-KTBL'!$B$3245:$B$3312,Raps!A26,'Arbeitsvorgänge-KTBL'!$G$3245:$G$3312) -> 0.17 | J26: 0
A27: MRZ | C27: Akh/ha | D27: =SUMIF('Arbeitsvorgänge-KTBL'!$B$2881:$B$2936,Raps!A27,'Arbeitsvorgänge-KTBL'!$G$2881:$G$2936) -> 0 | E27: =SUMIF('Arbeitsvorgänge-KTBL'!$B$2951:$B$3010,Raps!A27,'Arbeitsvorgänge-KTBL'!$G$2951:$G$3010) -> 0 | F27: =SUMIF('Arbeitsvorgänge-KTBL'!$B$3025:$B$3080,Raps!A27,'Arbeitsvorgänge-KTBL'!$G$3025:$G$3080) -> 0 | G27: =SUMIF('Arbeitsvorgänge-KTBL'!$B$3095:$B$3154,Raps!A27,'Arbeitsvorgänge-KTBL'!$G$3095:$G$3154) -> 0 | H27: =SUMIF('Arbeitsvorgänge-KTBL'!$B$3169:$B$3230,Raps!A27,'Arbeitsvorgänge-KTBL'!$G$3169:$G$3230) -> 0 | I27: =SUMIF('Arbeitsvorgänge-KTBL'!$B$3245:$B$3312,Raps!A27,'Arbeitsvorgänge-KTBL'!$G$3245:$G$3312) -> 0 | J27: 0
A28: APR | C28: Akh/ha | D28: =SUMIF('Arbeitsvorgänge-KTBL'!$B$2881:$B$2936,Raps!A28,'Arbeitsvorgänge-KTBL'!$G$2881:$G$2936) -> 0.6 | E28: =SUMIF('Arbeitsvorgänge-KTBL'!$B$2951:$B$3010,Raps!A28,'Arbeitsvorgänge-KTBL'!$G$2951:$G$3010) -> 0.6 | F28: =SUMIF('Arbeitsvorgänge-KTBL'!$B$3025:$B$3080,Raps!A28,'Arbeitsvorgänge-KTBL'!$G$3025:$G$3080) -> 0.46 | G28: =SUMIF('Arbeitsvorgänge-KTBL'!$B$3095:$B$3154,Raps!A28,'Arbeitsvorgänge-KTBL'!$G$3095:$G$3154) -> 0.46 | H28: =SUMIF('Arbeitsvorgänge-KTBL'!$B$3169:$B$3230,Raps!A28,'Arbeitsvorgänge-KTBL'!$G$3169:$G$3230) -> 0.3 | I28: =SUMIF('Arbeitsvorgänge-KTBL'!$B$3245:$B$3312,Raps!A28,'Arbeitsvorgänge-KTBL'!$G$3245:$G$3312) -> 0.34 | J28: 0
A29: MAI | C29: Akh/ha | D29: =SUMIF('Arbeitsvorgänge-KTBL'!$B$2881:$B$2936,Raps!A29,'Arbeitsvorgänge-KTBL'!$G$2881:$G$2936) -> 0 | E29: =SUMIF('Arbeitsvorgänge-KTBL'!$B$2951:$B$3010,Raps!A29,'Arbeitsvorgänge-KTBL'!$G$2951:$G$3010) -> 0 | F29: =SUMIF('Arbeitsvorgänge-KTBL'!$B$3025:$B$3080,Raps!A29,'Arbeitsvorgänge-KTBL'!$G$3025:$G$3080) -> 0 | G29: =SUMIF('Arbeitsvorgänge-KTBL'!$B$3095:$B$3154,Raps!A29,'Arbeitsvorgänge-KTBL'!$G$3095:$G$3154) -> 0 | H29: =SUMIF('Arbeitsvorgänge-KTBL'!$B$3169:$B$3230,Raps!A29,'Arbeitsvorgänge-KTBL'!$G$3169:$G$3230) -> 0 | I29: =SUMIF('Arbeitsvorgänge-KTBL'!$B$3245:$B$3312,Raps!A29,'Arbeitsvorgänge-KTBL'!$G$3245:$G$3312) -> 0 | J29: 0
A30: JUN | C30: Akh/ha | D30: =SUMIF('Arbeitsvorgänge-KTBL'!$B$2881:$B$2936,Raps!A30,'Arbeitsvorgänge-KTBL'!$G$2881:$G$2936) -> 0 | E30: =SUMIF('Arbeitsvorgänge-KTBL'!$B$2951:$B$3010,Raps!A30,'Arbeitsvorgänge-KTBL'!$G$2951:$G$3010) -> 0.28 | F30: =SUMIF('Arbeitsvorgänge-KTBL'!$B$3025:$B$3080,Raps!A30,'Arbeitsvorgänge-KTBL'!$G$3025:$G$3080) -> 0 | G30: =SUMIF('Arbeitsvorgänge-KTBL'!$B$3095:$B$3154,Raps!A30,'Arbeitsvorgänge-KTBL'!$G$3095:$G$3154) -> 0.19 | H30: =SUMIF('Arbeitsvorgänge-KTBL'!$B$3169:$B$3230,Raps!A30,'Arbeitsvorgänge-KTBL'!$G$3169:$G$3230) -> 0 | I30: =SUMIF('Arbeitsvorgänge-KTBL'!$B$3245:$B$3312,Raps!A30,'Arbeitsvorgänge-KTBL'!$G$3245:$G$3312) -> 0.1 | J30: 0
A31: JUL | C31: Akh/ha | D31: =SUMIF('Arbeitsvorgänge-KTBL'!$B$2881:$B$2936,Raps!A31,'Arbeitsvorgänge-KTBL'!$G$2881:$G$2936) -> 3.77 | E31: =SUMIF('Arbeitsvorgänge-KTBL'!$B$2951:$B$3010,Raps!A31,'Arbeitsvorgänge-KTBL'!$G$2951:$G$3010) -> 3.91 | F31: =SUMIF('Arbeitsvorgänge-KTBL'!$B$3025:$B$3080,Raps!A31,'Arbeitsvorgänge-KTBL'!$G$3025:$G$3080) -> 2.86 | G31: =SUMIF('Arbeitsvorgänge-KTBL'!$B$3095:$B$3154,Raps!A31,'Arbeitsvorgänge-KTBL'!$G$3095:$G$3154) -> 3.03 | H31: =SUMIF('Arbeitsvorgänge-KTBL'!$B$3169:$B$3230,Raps!A31,'Arbeitsvorgänge-KTBL'!$G$3169:$G$3230) -> 1.8 | I31: =SUMIF('Arbeitsvorgänge-KTBL'!$B$3245:$B$3312,Raps!A31,'Arbeitsvorgänge-KTBL'!$G$3245:$G$3312) -> 1.9 | J31: 0
A32: AUG | C32: Akh/ha | D32: =SUMIF('Arbeitsvorgänge-KTBL'!$B$2881:$B$2936,Raps!A32,'Arbeitsvorgänge-KTBL'!$G$2881:$G$2936) -> 2.73 | E32: =SUMIF('Arbeitsvorgänge-KTBL'!$B$2951:$B$3010,Raps!A32,'Arbeitsvorgänge-KTBL'!$G$2951:$G$3010) -> 2.73 | F32: =SUMIF('Arbeitsvorgänge-KTBL'!$B$3025:$B$3080,Raps!A32,'Arbeitsvorgänge-KTBL'!$G$3025:$G$3080) -> 1.83 | G32: =SUMIF('Arbeitsvorgänge-KTBL'!$B$3095:$B$3154,Raps!A32,'Arbeitsvorgänge-KTBL'!$G$3095:$G$3154) -> 1.83 | H32: =SUMIF('Arbeitsvorgänge-KTBL'!$B$3169:$B$3230,Raps!A32,'Arbeitsvorgänge-KTBL'!$G$3169:$G$3230) -> 1.19 | I32: =SUMIF('Arbeitsvorgänge-KTBL'!$B$3245:$B$3312,Raps!A32,'Arbeitsvorgänge-KTBL'!$G$3245:$G$3312) -> 1.23 | J32: 0
A33: SEP | C33: Akh/ha | D33: =SUMIF('Arbeitsvorgänge-KTBL'!$B$2881:$B$2936,Raps!A33,'Arbeitsvorgänge-KTBL'!$G$2881:$G$2936) -> 0 | E33: =SUMIF('Arbeitsvorgänge-KTBL'!$B$2951:$B$3010,Raps!A33,'Arbeitsvorgänge-KTBL'!$G$2951:$G$3010) -> 0 | F33: =SUMIF('Arbeitsvorgänge-KTBL'!$B$3025:$B$3080,Raps!A33,'Arbeitsvorgänge-KTBL'!$G$3025:$G$3080) -> 0 | G33: =SUMIF('Arbeitsvorgänge-KTBL'!$B$3095:$B$3154,Raps!A33,'Arbeitsvorgänge-KTBL'!$G$3095:$G$3154) -> 0 | H33: =SUMIF('Arbeitsvorgänge-KTBL'!$B$3169:$B$3230,Raps!A33,'Arbeitsvorgänge-KTBL'!$G$3169:$G$3230) -> 0 | I33: =SUMIF('Arbeitsvorgänge-KTBL'!$B$3245:$B$3312,Raps!A33,'Arbeitsvorgänge-KTBL'!$G$3245:$G$3312) -> 0 | J33: 0
A34: OKT | C34: Akh/ha | D34: =SUMIF('Arbeitsvorgänge-KTBL'!$B$2881:$B$2936,Raps!A34,'Arbeitsvorgänge-KTBL'!$G$2881:$G$2936) -> 0.28 | E34: =SUMIF('Arbeitsvorgänge-KTBL'!$B$2951:$B$3010,Raps!A34,'Arbeitsvorgänge-KTBL'!$G$2951:$G$3010) -> 0.28 | F34: =SUMIF('Arbeitsvorgänge-KTBL'!$B$3025:$B$3080,Raps!A34,'Arbeitsvorgänge-KTBL'!$G$3025:$G$3080) -> 0.19 | G34: =SUMIF('Arbeitsvorgänge-KTBL'!$B$3095:$B$3154,Raps!A34,'Arbeitsvorgänge-KTBL'!$G$3095:$G$3154) -> 0.19 | H34: =SUMIF('Arbeitsvorgänge-KTBL'!$B$3169:$B$3230,Raps!A34,'Arbeitsvorgänge-KTBL'!$G$3169:$G$3230) -> 0.14 | I34: =SUMIF('Arbeitsvorgänge-KTBL'!$B$3245:$B$3312,Raps!A34,'Arbeitsvorgänge-KTBL'!$G$3245:$G$3312) -> 0.1 | J34: 0
A35: NOV | C35: Akh/ha | D35: =SUMIF('Arbeitsvorgänge-KTBL'!$B$2881:$B$2936,Raps!A35,'Arbeitsvorgänge-KTBL'!$G$2881:$G$2936) -> 0 | E35: =SUMIF('Arbeitsvorgänge-KTBL'!$B$2951:$B$3010,Raps!A35,'Arbeitsvorgänge-KTBL'!$G$2951:$G$3010) -> 0 | F35: =SUMIF('Arbeitsvorgänge-KTBL'!$B$3025:$B$3080,Raps!A35,'Arbeitsvorgänge-KTBL'!$G$3025:$G$3080) -> 0 | G35: =SUMIF('Arbeitsvorgänge-KTBL'!$B$3095:$B$3154,Raps!A35,'Arbeitsvorgänge-KTBL'!$G$3095:$G$3154) -> 0 | H35: =SUMIF('Arbeitsvorgänge-KTBL'!$B$3169:$B$3230,Raps!A35,'Arbeitsvorgänge-KTBL'!$G$3169:$G$3230) -> 0 | I35: =SUMIF('Arbeitsvorgänge-KTBL'!$B$3245:$B$3312,Raps!A35,'Arbeitsvorgänge-KTBL'!$G$3245:$G$3312) -> 0 | J35: 0
A36: Rest | C36: Akh/ha | D36: =SUMIF('Arbeitsvorgänge-KTBL'!$B$2881:$B$2936,Raps!A36,'Arbeitsvorgänge-KTBL'!$G$2881:$G$2936) -> 0 | E36: =SUMIF('Arbeitsvorgänge-KTBL'!$B$2951:$B$3010,Raps!A36,'Arbeitsvorgänge-KTBL'!$G$2951:$G$3010) -> 0 | F36: =SUMIF('Arbeitsvorgänge-KTBL'!$B$3025:$B$3080,Raps!A36,'Arbeitsvorgänge-KTBL'!$G$3025:$G$3080) -> 0 | G36: =SUMIF('Arbeitsvorgänge-KTBL'!$B$3095:$B$3154,Raps!A36,'Arbeitsvorgänge-KTBL'!$G$3095:$G$3154) -> 0 | H36: =SUMIF('Arbeitsvorgänge-KTBL'!$B$3169:$B$3230,Raps!A36,'Arbeitsvorgänge-KTBL'!$G$3169:$G$3230) -> 0 | I36: =SUMIF('Arbeitsvorgänge-KTBL'!$B$3245:$B$3312,Raps!A36,'Arbeitsvorgänge-KTBL'!$G$3245:$G$3312) -> 0 | J36: 0
A37: Arbeitskraftstunden | C37: AKh/ha | D37: =SUM(D26:D36) -> 7.71 | E37: =SUM(E26:E36) -> 8.17 | F37: 5.62 | G37: 6.02 | H37: 3.59 | I37: 3.84 | J37: 0
A38: DB (je Akh) | C38: €/Akh | D38: =IF(D24>0,D24/D37,0) -> 63.30324527 | E38: 92.44674553 | F38: 89.93441503 | G38: 128.3863405 | H38: 150.347826 | I38: 210.4747609 | J38: 0
A39: Aussaatmenge | C39: kg/ha | D39: 4 | E39: =D39 -> 4 | F39: =E39 -> 4 | G39: =F39 -> 4 | H39: =G39 -> 4 | I39: =H39 -> 4 | J39: 0
A40: davon Zukaufsaatgut | C40: % | D40: 100 | E40: =D40 -> 100 | F40: 100 | G40: 100 | H40: 100 | I40: 100 | J40: 0
A41: Saatgutpreis Eigen | C41: €/dt | D41: 0 | E41: 0 | F41: 0 | G41: 0 | H41: =G41 -> 0 | I41: =H41 -> 0 | J41: 0
A42: Zukauf | C42: €/kg | D42: =+Stammdatenblatt!$P$87 -> 19.902 | E42: =D42 -> 19.902 | F42: =+E42 -> 19.902 | G42: =F42 -> 19.902 | H42: =+G42 -> 19.902 | I42: =+Stammdatenblatt!$P$87 -> 19.902 | J42: 0
A43: Saatgutkosten | C43: €/ha | D43: =+(D39*D40)/100*D42+(D39*(100-D40)/100)*D42 -> 79.608 | E43: 79.608 | F43: 79.608 | G43: 79.608 | H43: 79.608 | I43: 79.608 | J43: 0
A44: Dünger: | B44: €/kg | D44: Düngerbedarf/ha (in kg Reinnährstoff) nach Düngerabfuhr LfL Deckungsbeiträge 2024
A45: =+Stammdatenblatt!A130 -> Stickstoff | B45: =+Stammdatenblatt!P130 -> 1.365948973 | C45: Aufw./ha | D45: 117 | E45: 151 | F45: 117 | G45: 151 | H45: 117 | I45: 151 | J45: 0
A46: =+Stammdatenblatt!A131 -> Phosphor | B46: =+Stammdatenblatt!P131 -> 1.429608243 | C46: Aufw./ha | D46: 63 | E46: 81 | F46: 63 | G46: 81 | H46: 63 | I46: 81 | J46: 0
A47: =+Stammdatenblatt!A132 -> Kali | B47: =+Stammdatenblatt!P132 -> 0.9499175 | C47: Aufw./ha | D47: 35 | E47: 45 | F47: 35 | G47: 45 | H47: 35 | I47: 45 | J47: 0
A48: =+Stammdatenblatt!A133 -> Kalk | B48: =+Stammdatenblatt!P133 -> 0.05183111111 | C48: Aufw./ha | D48: 300 | E48: =D48 -> 300 | F48: 300 | G48: =F48 -> 300 | H48: 300 | I48: =H48 -> 300 | J48: 0
A49: =+Stammdatenblatt!A134 -> Magnesium | B49: =+Stammdatenblatt!P134 -> 2.3205 | C49: Aufw./ha | D49: 40 | E49: 41 | F49: 40 | G49: 41 | H49: 40 | I49: 41 | J49: 0
A50: =+Stammdatenblatt!A135 -> Schwefel | B50: =+Stammdatenblatt!P135 -> 1.0472 | C50: Aufw./ha | D50: 10 | E50: 10 | F50: 10 | G50: =F50 -> 10 | H50: 10 | I50: =H50 -> 10 | J50: 0
A51: Mineraldüngerkosten | C51: €/ha | D51: =D45*$B$45+D46*$B$46+D47*$B$47+D48*$B$48+D49*$B$49+D50*$B$50 -> 401.969795 | E51: 485.9646835 | F51: 401.969795 | G51: 485.9646835 | H51: 401.969795 | I51: 485.9646835 | J51: 0
A52: Herbizide | C52: €/ha | D52: 80 | E52: 90 | F52: 80 | G52: 90 | H52: 80 | I52: 90 | J52: 0
A53: Fungizide | C53: €/ha | D53: 40 | E53: 75 | F53: 40 | G53: 75 | H53: 40 | I53: 75 | J53: 0
A54: Insektizide | C54: €/ha | D54: 25 | E54: 50 | F54: 25 | G54: 50 | H54: 25 | I54: 50 | J54: 0
A55: Molluskizide | C55: €/ha | D55: 25 | E55: 25 | F55: 25 | G55: 25 | H55: 25 | I55: 25 | J55: 0
A56: Pflanzenbehandlungsk. | C56: €/ha | D56: =SUM(D52:D55) -> 170 | E56: 240 | F56: 170 | G56: 240 | H56: 170 | I56: 240 | J56: 0
A57: *variable Kosten in Anlehnung an KTBL-Richtwerte für Arbeitsgänge incl. Zinsanspruch für 3 Monate
A58: **Saatgut ab WJ 2013/2014 in sog. Units (Einheiten), siehe Hinweis mit Vergleichsberechnung rechts!

Sheet Erbsen
B3: Landesbetrieb Landwirtschaft Hessen
A4: =IF(Stammdatenblatt!G6+Stammdatenblatt!D77+Stammdatenblatt!D112+Stammdatenblatt!B129+Stammdatenblatt!D140+Stammdatenblatt!C183+Stammdatenblatt!C221+Stammdatenblatt!C239=0,"Produktionsverfahren wurden netto gerechnet", "Produktionsverfahren wurden brutto gerechnet") -> Produktionsverfahren wurden brutto gerechnet | E4: =Wirtschaftsdünger!N4 -> Letztes (aktuelles) WJ.
G5: eigene
A6: Erbsen | D6: 2 ha | E6: 5 ha | F6: 20 ha | G6: Werte
A7: Leistung: Menge Hauptprodukt | C7: dt/ha | D7: 50 | E7: 50 | F7: 50 | G7: 0
A8: Preis Hauptprodukt | C8: € | D8: =+Stammdatenblatt!P26 -> 25.08506 | E8: =D8 -> 25.08506 | F8: =+E8 -> 25.08506 | G8: 0
A9: Erlös Hauptprodukt | C9: €/ha | D9: =D7*D8 -> 1254.253 | E9: =E7*E8 -> 1254.253 | F9: =F7*F8 -> 1254.253 | G9: =G7*G8 -> 0
A10: Erlös Nebenprodukt(e) | C10: €/ha | D10: 0 | E10: =D10 -> 0 | F10: =E10 -> 0 | G10: 0
A11: Leistungen | C11: €/ha | D11: =D9+D10 -> 1254.253 | E11: =E10+E9 -> 1254.253 | F11: =F10+F9 -> 1254.253 | G11: =G10+G9 -> 0
A12: Saatgutkosten | C12: €/ha | D12: =D43 -> 191.102 | E12: =E43 -> 191.102 | F12: =F43 -> 191.102 | G12: =G43 -> 0
A13: Mineraldüngerkosten | C13: €/ha | D13: =D51 -> 255.8125117 | E13: =E51 -> 255.8125117 | F13: =F51 -> 255.8125117 | G13: =G51 -> 0
A14: Pflanzenbehandlungsk. | C14: €/ha | D14: =D56*(1+Stammdatenblatt!C221) -> 117.81 | E14: =E56*(1+Stammdatenblatt!C221) -> 117.81 | F14: =F56*(1+Stammdatenblatt!C221) -> 117.81 | G14: =G56 -> 0
A15: Versicherung | C15: €/ha | D15: =(D11/1000)*Stammdatenblatt!$P$193 -> 20.41823544 | E15: =(E11/1000)*Stammdatenblatt!$P$193 -> 20.41823544 | F15: =(F11/1000)*Stammdatenblatt!$P$193 -> 20.41823544 | G15: =(G11/1000)*Stammdatenblatt!$E$193 -> 0
A16: Trocknungskosten | C16: €/ha | D16: =(D7*Stammdatenblatt!$P$211+(D7*Stammdatenblatt!$J$213*6))/2 -> 98.8 | E16: =(E7*Stammdatenblatt!$P$211+(E7*Stammdatenblatt!$J$213*6))/2 -> 98.8 | F16: =(F7*Stammdatenblatt!$P$211+(F7*Stammdatenblatt!$J$213*6))/2 -> 98.8 | G16: =(G7*Stammdatenblatt!$P$211+(G7*Stammdatenblatt!$J$213*6))/2 -> 0
A17: Summe Direktkosten | C17: €/ha | D17: =SUM(D12:D16) -> 683.9427471 | E17: =SUM(E12:E16) -> 683.9427471 | F17: =SUM(F12:F16) -> 683.9427471 | G17: =SUM(G12:G16) -> 0
A18: Direktkostenfreie Leistung | C18: €/ha | D18: =D11-D17 -> 570.3102529 | E18: =E11-E17 -> 570.3102529 | F18: =F11-F17 -> 570.3102529 | G18: =G11-G17 -> 0
A19: Maschinenkosten eigen * | C19: €/ha | D19: ='Arbeitsvorgänge-KTBL'!T3369 -> 242.6844708 | E19: ='Arbeitsvorgänge-KTBL'!T3425 -> 226.4621969 | F19: ='Arbeitsvorgänge-KTBL'!T3485 -> 202.9947183 | G19: 0
A20: Maschinenkosten fremd | C20: €/ha | D20: ='Arbeitsvorgänge-KTBL'!U3369*(1+Stammdatenblatt!C239) -> 140.14 | E20: ='Arbeitsvorgänge-KTBL'!U3425*(1+Stammdatenblatt!C239) -> 140.14 | F20: ='Arbeitsvorgänge-KTBL'!U3485*(1+Stammdatenblatt!C239) -> 129.36 | G20: 0
A21: Lohnkosten | C21: €/ha | D21: 0 | E21: =D21 -> 0 | F21: =E21 -> 0 | G21: 0
A22: xxx | C22: €/ha | D22: 0 | E22: =D22 -> 0 | F22: =E22 -> 0 | G22: 0
A23: variable Kosten | C23: €/ha | D23: =SUM(D19:D22,D17) -> 1066.767218 | E23: =SUM(E19:E22,E17) -> 1050.544944 | F23: =SUM(F19:F22,F17) -> 1016.297465 | G23: =SUM(G19:G22,G17) -> 0
A24: Deckungsbeitrag (DB) | C24: €/ha | D24: =D11-D23 -> 187.485782 | E24: =E11-E23 -> 203.708056 | F24: =F11-F23 -> 237.9555346 | G24: =G11-G23 -> 0
A25: Zeit-Spanne | B25: AK-Bedarf
A26: FEB | C26: Akh/ha | D26: =SUMIF('Arbeitsvorgänge-KTBL'!$B$3328:$B$3366,Erbsen!A26,'Arbeitsvorgänge-KTBL'!$G$3328:$G$3366) -> 0 | E26: =SUMIF('Arbeitsvorgänge-KTBL'!$B$3381:$B$3422,Erbsen!A26,'Arbeitsvorgänge-KTBL'!$G$3381:$G$3422) -> 0 | F26: =SUMIF('Arbeitsvorgänge-KTBL'!$B$3437:$B$3482,Erbsen!A26,'Arbeitsvorgänge-KTBL'!$G$3437:$G$3482) -> 0 | G26: 0
A27: MRZ | C27: Akh/ha | D27: =SUMIF('Arbeitsvorgänge-KTBL'!$B$3328:$B$3366,Erbsen!A27,'Arbeitsvorgänge-KTBL'!$G$3328:$G$3366) -> 2.12 | E27: =SUMIF('Arbeitsvorgänge-KTBL'!$B$3381:$B$3422,Erbsen!A27,'Arbeitsvorgänge-KTBL'!$G$3381:$G$3422) -> 1.31 | F27: =SUMIF('Arbeitsvorgänge-KTBL'!$B$3437:$B$3482,Erbsen!A27,'Arbeitsvorgänge-KTBL'!$G$3437:$G$3482) -> 0.85 | G27: 0
A28: APR | C28: Akh/ha | D28: =SUMIF('Arbeitsvorgänge-KTBL'!$B$3328:$B$3366,Erbsen!A28,'Arbeitsvorgänge-KTBL'!$G$3328:$G$3366) -> 0 | E28: =SUMIF('Arbeitsvorgänge-KTBL'!$B$3381:$B$3422,Erbsen!A28,'Arbeitsvorgänge-KTBL'!$G$3381:$G$3422) -> 0 | F28: =SUMIF('Arbeitsvorgänge-KTBL'!$B$3437:$B$3482,Erbsen!A28,'Arbeitsvorgänge-KTBL'!$G$3437:$G$3482) -> 0 | G28: 0
A29: MAI | C29: Akh/ha | D29: =SUMIF('Arbeitsvorgänge-KTBL'!$B$3328:$B$3366,Erbsen!A29,'Arbeitsvorgänge-KTBL'!$G$3328:$G$3366) -> 0 | E29: =SUMIF('Arbeitsvorgänge-KTBL'!$B$3381:$B$3422,Erbsen!A29,'Arbeitsvorgänge-KTBL'!$G$3381:$G$3422) -> 0.19 | F29: =SUMIF('Arbeitsvorgänge-KTBL'!$B$3437:$B$3482,Erbsen!A29,'Arbeitsvorgänge-KTBL'!$G$3437:$G$3482) -> 0.1 | G29: 0
A30: JUN | C30: Akh/ha | D30: =SUMIF('Arbeitsvorgänge-KTBL'!$B$3328:$B$3366,Erbsen!A30,'Arbeitsvorgänge-KTBL'!$G$3328:$G$3366) -> 0 | E30: =SUMIF('Arbeitsvorgänge-KTBL'!$B$3381:$B$3422,Erbsen!A30,'Arbeitsvorgänge-KTBL'!$G$3381:$G$3422) -> 0 | F30: =SUMIF('Arbeitsvorgänge-KTBL'!$B$3437:$B$3482,Erbsen!A30,'Arbeitsvorgänge-KTBL'!$G$3437:$G$3482) -> 0 | G30: 0
A31: JUL | C31: Akh/ha | D31: =SUMIF('Arbeitsvorgänge-KTBL'!$B$3328:$B$3366,Erbsen!A31,'Arbeitsvorgänge-KTBL'!$G$3328:$G$3366) -> 0.62 | E31: =SUMIF('Arbeitsvorgänge-KTBL'!$B$3381:$B$3422,Erbsen!A31,'Arbeitsvorgänge-KTBL'!$G$3381:$G$3422) -> 0.6 | F31: =SUMIF('Arbeitsvorgänge-KTBL'!$B$3437:$B$3482,Erbsen!A31,'Arbeitsvorgänge-KTBL'!$G$3437:$G$3482) -> 0.35 | G31: 0
A32: AUG | C32: Akh/ha | D32: =SUMIF('Arbeitsvorgänge-KTBL'!$B$3328:$B$3366,Erbsen!A32,'Arbeitsvorgänge-KTBL'!$G$3328:$G$3366) -> 1 | E32: =SUMIF('Arbeitsvorgänge-KTBL'!$B$3381:$B$3422,Erbsen!A32,'Arbeitsvorgänge-KTBL'!$G$3381:$G$3422) -> 0.63 | F32: =SUMIF('Arbeitsvorgänge-KTBL'!$B$3437:$B$3482,Erbsen!A32,'Arbeitsvorgänge-KTBL'!$G$3437:$G$3482) -> 0.4 | G32: 0
A33: SEP | C33: Akh/ha | D33: =SUMIF('Arbeitsvorgänge-KTBL'!$B$3328:$B$3366,Erbsen!A33,'Arbeitsvorgänge-KTBL'!$G$3328:$G$3366) -> 0.96 | E33: =SUMIF('Arbeitsvorgänge-KTBL'!$B$3381:$B$3422,Erbsen!A33,'Arbeitsvorgänge-KTBL'!$G$3381:$G$3422) -> 0.66 | F33: =SUMIF('Arbeitsvorgänge-KTBL'!$B$3437:$B$3482,Erbsen!A33,'Arbeitsvorgänge-KTBL'!$G$3437:$G$3482) -> 0.45 | G33: 0
A34: OKT | C34: Akh/ha | D34: =SUMIF('Arbeitsvorgänge-KTBL'!$B$3328:$B$3366,Erbsen!A34,'Arbeitsvorgänge-KTBL'!$G$3328:$G$3366) -> 2.14 | E34: =SUMIF('Arbeitsvorgänge-KTBL'!$B$3381:$B$3422,Erbsen!A34,'Arbeitsvorgänge-KTBL'!$G$3381:$G$3422) -> 1.64 | F34: =SUMIF('Arbeitsvorgänge-KTBL'!$B$3437:$B$3482,Erbsen!A34,'Arbeitsvorgänge-KTBL'!$G$3437:$G$3482) -> 1.02 | G34: 0
A35: NOV | C35: Akh/ha | D35: =SUMIF('Arbeitsvorgänge-KTBL'!$B$3328:$B$3366,Erbsen!A35,'Arbeitsvorgänge-KTBL'!$G$3328:$G$3366) -> 0 | E35: =SUMIF('Arbeitsvorgänge-KTBL'!$B$3381:$B$3422,Erbsen!A35,'Arbeitsvorgänge-KTBL'!$G$3381:$G$3422) -> 0 | F35: =SUMIF('Arbeitsvorgänge-KTBL'!$B$3437:$B$3482,Erbsen!A35,'Arbeitsvorgänge-KTBL'!$G$3437:$G$3482) -> 0 | G35: 0
A36: Rest | C36: Akh/ha | D36: =SUMIF('Arbeitsvorgänge-KTBL'!$B$3328:$B$3366,Erbsen!A36,'Arbeitsvorgänge-KTBL'!$G$3328:$G$3366) -> 0 | E36: =SUMIF('Arbeitsvorgänge-KTBL'!$B$3381:$B$3422,Erbsen!A36,'Arbeitsvorgänge-KTBL'!$G$3381:$G$3422) -> 0 | F36: =SUMIF('Arbeitsvorgänge-KTBL'!$B$3437:$B$3482,Erbsen!A36,'Arbeitsvorgänge-KTBL'!$G$3437:$G$3482) -> 0 | G36: 0
A37: Arbeitskraftstunden | C37: AKh/ha | D37: =SUM(D26:D36) -> 6.84 | E37: =SUM(E26:E36) -> 5.03 | F37: =SUM(F26:F36) -> 3.17 | G37: =SUM(G26:G36) -> 0
A38: DB ( je Akh) | C38: €/Akh | D38: =IF(D24>0,D24/D37,0) -> 27.41020205 | E38: =IF(E24>0,E24/E37,0) -> 40.49861948 | F38: =IF(F24>0,F24/F37,0) -> 75.06483742 | G38: =IF(G24>0,G24/G37,0) -> 0
A39: Aussaatmenge | C39: kg/ha | D39: 190 | E39: =D39 -> 190 | F39: 190 | G39: 0
A40: davon Zukaufsaatgut | C40: % | D40: 100 | E40: 100 | F40: 100 | G40: 0
A41: Saatgutpreis Eigen | C41: €/dt | D41: 0 | E41: 0 | F41: 0 | G41: 0
A42: Zukauf | C42: €/dt | D42: =+Stammdatenblatt!P88 -> 100.58 | E42: =+D42 -> 100.58 | F42: =+E42 -> 100.58 | G42: 0
A43: Saatgutkosten | C43: €/ha | D43: =D40/100*(D39*D42)/100+((100-D40)/100*D39*D41/100) -> 191.102 | E43: =E40/100*(E39*E42)/100+((100-E40)/100*E39*E41/100) -> 191.102 | F43: =F40/100*(F39*F42)/100+((100-F40)/100*F39*F41/100) -> 191.102 | G43: =G40/100*(G39*G42)/100+((100-G40)/100*G39*G41/100) -> 0
A44: Dünger: | B44: €/kg | C44: Düngerbedarf/ha (in kg Reinnährstoff) nach Düngerabfuhr LfL Deckungsbeiträge 2024
A45: =+Stammdatenblatt!A130 -> Stickstoff | B45: =+Stammdatenblatt!P130 -> 1.365948973 | C45: Aufw./ha | D45: 0 | E45: 0 | F45: 0 | G45: 0
A46: =+Stammdatenblatt!A131 -> Phosphor | B46: =+Stammdatenblatt!P131 -> 1.429608243 | C46: Aufw./ha | D46: 55 | E46: 55 | F46: 55 | G46: 0
A47: =+Stammdatenblatt!A132 -> Kali | B47: =+Stammdatenblatt!P132 -> 0.9499175 | C47: Aufw./ha | D47: 70 | E47: 70 | F47: 70 | G47: 0
A48: =+Stammdatenblatt!A133 -> Kalk | B48: =+Stammdatenblatt!P133 -> 0.05183111111 | C48: Aufw./ha | D48: 300 | E48: =D48 -> 300 | F48: 300 | G48: 0
A49: =+Stammdatenblatt!A134 -> Magnesium | B49: =+Stammdatenblatt!P134 -> 2.3205 | C49: Aufw./ha | D49: 41 | E49: =D49 -> 41 | F49: =E49 -> 41 | G49: 0
A50: =+Stammdatenblatt!A135 -> Schwefel | B50: =+Stammdatenblatt!P135 -> 1.0472 | C50: Aufw./ha | D50: 0 | E50: =D50 -> 0 | F50: =E50 -> 0 | G50: 0
A51: Mineraldüngerkosten | C51: €/ha | D51: =D45*$B$45+D46*$B$46+D47*$B$47+D48*$B$48+D49*$B$49+D50*$B$50 -> 255.8125117 | E51: =E45*$B$45+E46*$B$46+E47*$B$47+E48*$B$48+E49*$B$49+E50*$B$50 -> 255.8125117 | F51: =F45*$B$45+F46*$B$46+F47*$B$47+F48*$B$48+F49*$B$49+F50*$B$50 -> 255.8125117 | G51: =G45*$B$45+G46*$B$46+G47*$B$47+G48*$B$48+G49*$B$49+G50*$B$50 -> 0
A52: Herbizide | C52: €/ha | D52: 85 | E52: 85 | F52: 85 | G52: 0
A53: Fungizide | C53: €/ha | D53: 6 | E53: 6 | F53: 6 | G53: 0
A54: Insektizide | C54: €/ha | D54: 8 | E54: 8 | F54: 8 | G54: 0
A55: Wachstumsregler | C55: €/ha | D55: 0 | E55: 0 | F55: 0 | G55: 0
A56: Pflanzenbehandlungsk. | C56: €/ha | D56: =SUM(D52:D55) -> 99 | E56: =SUM(E52:E55) -> 99 | F56: =SUM(F52:F55) -> 99 | G56: =SUM(G52:G55) -> 0
A57: *variable Kosten in Anlehnung an KTBL-Richtwerte für Arbeitsgänge incl. Zinsanspruch für 3 Monate

Sheet Ackerbohnen
B3: Landesbetrieb Landwirtschaft Hessen
A4: =IF(Stammdatenblatt!G6+Stammdatenblatt!D77+Stammdatenblatt!D112+Stammdatenblatt!B129+Stammdatenblatt!D140+Stammdatenblatt!C183+Stammdatenblatt!C221+Stammdatenblatt!C239=0,"Produktionsverfahren wurden netto gerechnet", "Produktionsverfahren wurden brutto gerechnet") -> Produktionsverfahren wurden brutto gerechnet | E4: =Wirtschaftsdünger!N4 -> Letztes (aktuelles) WJ.
G5: eigene
A6: Ackerbohnen | D6: 2 ha | E6: 5 ha | F6: 20 ha | G6: Werte
A7: Leistung: Menge Hauptprodukt | C7: dt/ha | D7: 55 | E7: 55 | F7: 55 | G7: 0
A8: Preis Hauptprodukt | C8: € | D8: =+Stammdatenblatt!P27 -> 25.2791 | E8: =D8 -> 25.2791 | F8: =+E8 -> 25.2791 | G8: 0
A9: Erlös Hauptprodukt | C9: €/ha | D9: =D7*D8 -> 1390.3505 | E9: =E7*E8 -> 1390.3505 | F9: =F7*F8 -> 1390.3505 | G9: =G7*G8 -> 0
A10: Erlös Nebenprodukt(e) | C10: €/ha | D10: 0 | E10: =D10 -> 0 | F10: =E10 -> 0 | G10: 0
A11: Leistungen | C11: €/ha | D11: =D10+D9 -> 1390.3505 | E11: =E10+E9 -> 1390.3505 | F11: =F10+F9 -> 1390.3505 | G11: =G10+G9 -> 0
A12: Saatgutkosten | C12: €/ha | D12: =D43 -> 209.72 | E12: =E43 -> 209.72 | F12: =F43 -> 209.72 | G12: =G43 -> 0
A13: Mineraldüngerkosten | C13: €/ha | D13: =D51 -> 280.5081249 | E13: =E51 -> 280.5081249 | F13: =F51 -> 280.5081249 | G13: =G51 -> 0
A14: Pflanzenbehandlungsk. | C14: €/ha | D14: =D56*(1+Stammdatenblatt!C221) -> 124.95 | E14: =E56*(1+Stammdatenblatt!C221) -> 124.95 | F14: =F56*(1+Stammdatenblatt!C221) -> 124.95 | G14: =G56 -> 0
A15: Versicherung | C15: €/ha | D15: =(D11/1000)*Stammdatenblatt!$P$194 -> 22.63379386 | E15: =(E11/1000)*Stammdatenblatt!$P$194 -> 22.63379386 | F15: =(F11/1000)*Stammdatenblatt!$P$194 -> 22.63379386 | G15: =(G11/1000)*Stammdatenblatt!$E$194 -> 0
A16: Trocknungskosten | C16: €/ha | D16: =(D7*Stammdatenblatt!$P$211+(D7*Stammdatenblatt!$J$213*6))/2 -> 108.68 | E16: =(E7*Stammdatenblatt!$P$211+(E7*Stammdatenblatt!$J$213*6))/2 -> 108.68 | F16: =(F7*Stammdatenblatt!$P$211+(F7*Stammdatenblatt!$J$213*6))/2 -> 108.68 | G16: =(G7*Stammdatenblatt!$P$211+(G7*Stammdatenblatt!$J$213*6))/2 -> 0
